{"text_format":"1","workbook":"xlsx","n_sheets":19,"sheets":["Input","For approval only","Splitting feeder calculation","Unused ASC Allowance","R Form","POC Report","Drawing","Before Drwg","After Drwg","data","Study request guidance notes","G&P application","Cable ratings","ASL calculation","Splitting feeder calculatio (3)","Splitting feeder calculatio (2)","CAF calculator","CAF calculator instructions","HV Circuit Lookup DATA"],"not_rendered":{"charts":0,"images":10,"macros":1,"external_links":3,"defined_names":22,"comments":4,"pivot_tables":0},"unopened":[],"bounds":{"document_bytes":16777216,"sheet_cells":100000,"rows_first":2000,"rows_last":500,"rows_between":2000,"halvings":0,"cell_chars":16384,"cell_head_chars":4096},"cells_cut":0,"cells_raw":0,"read":"whole","date_system":"1900"}

{"sheet":"Input","index":0,"n_rows":99,"n_cols":69,"rows_kept":99,"cut":false,"hidden":false,"merged":[[19,35,19,39],[6,4,6,5],[74,10,74,13],[76,12,77,13],[95,3,95,6],[95,10,95,13],[88,10,88,13],[92,5,93,6],[92,12,93,13],[85,12,86,13],[88,3,88,6],[84,3,84,6],[84,10,84,13],[91,3,91,6],[91,10,91,13],[85,5,86,6],[11,8,11,10],[11,11,11,12],[11,4,11,5],[12,4,12,5],[60,10,60,13],[36,1,36,4],[43,1,43,4],[42,1,42,7],[58,3,58,6],[51,3,51,6],[48,5,49,6],[55,5,56,6],[60,3,60,6],[47,10,47,13],[46,10,46,13],[11,13,11,15],[18,4,18,5],[90,3,90,6],[62,5,63,6],[83,10,83,13],[62,12,63,13],[79,10,79,13],[68,3,68,6],[67,10,67,13],[68,10,68,13],[79,3,79,6],[76,5,77,6],[75,3,75,6],[83,3,83,6],[74,3,74,6],[75,10,75,13],[90,10,90,13],[34,1,34,4],[2,11,2,12],[25,1,25,4],[26,1,26,4],[8,8,9,10],[13,4,14,5],[13,1,14,3],[23,1,23,4],[8,4,8,5],[9,4,9,5],[8,6,8,7],[9,6,9,7],[2,4,2,8],[3,11,3,12],[5,4,5,5],[22,1,22,4],[35,1,35,4],[55,12,56,13],[48,12,49,13],[61,3,61,6],[67,3,67,6],[29,1,29,4],[65,10,65,13],[31,1,31,4],[15,4,15,5],[24,1,24,4],[27,1,27,4],[61,10,61,13],[51,10,51,13],[58,10,58,13],[54,10,54,13],[30,1,30,4],[28,1,28,4],[33,1,33,4],[32,1,32,4],[46,3,46,6],[47,3,47,6],[72,10,72,13],[65,3,65,6],[54,3,54,6],[53,10,53,13],[69,12,70,13],[69,5,70,6],[53,3,53,6],[72,3,72,6]]}
[null,"LOADCHECK - R form calculation sheet -",null,null,null,null,{"$f":"IF('R Form'!O16=\"\",\"\",'R Form'!O16)","v":""},null,null,null,null,null,{"$f":"'R Form'!E68","v":"Version3 (11/02/2014)"},null,null,null,null,null,null,null,null,null,null,null,null,null,null,null,null,null,null,null,null,null,null,null,null,null,null,null,null,null,null,null,null,null,null,null,null,null,null,null,"Please Select From List...","Please Select From List...(see Note*)"]
[null,null,null,null,null,null,null,null,null,null,null,null,null,null,null,null,null,null,null,null,true,"SOEDC RELATED",null,{"$f":"VLOOKUP(T13,U2:V3,2,0)","v":0},null,null,null,null,null,null,null,null,null,null,null,null,null,null,null,null,null,null,null,null,null,null,null,null,null,null,null,null,"Proposed","Automation"]
[null,null,null,"Scheme Name and address:",{"$f":"AM21","v":"Stagecoach Sharston Depot, Leestone Road, Wythenshawe, Manchester"},null,null,null,null,null,"Date:","2019-07-31",null,null,null,null,null,null,null,null,false,null,null,null,null,null,null,null,null,null,null,null,null,null,null,null,null,null,null,null,null,null,null,null,null,null,null,null,null,null,null,null,"Committed","Diversion"]
[null,null,null,"Post Code ","M22 4RB",null,null,null,null,null,"Scheme number:",{"$f":"AL21","v":"5500153017A"},null,null,null,null,null,null,null,null,null,null,null,null,null,null,null,null,null,null,null,null,null,null,null,null,null,null,null,null,null,null,null,null,null,null,null,null,null,null,null,null,"Cancelled","Sw Gr Change"]
[null,null,null,null,null,null,null,null,null,null,null,{"$f":"IF((L6-L8)>999,\"G&P STUDY REQUIRED\",\"\")","v":"G&P STUDY REQUIRED"},null,null,null,null,null,null,null,null,null,null,null,null,null,null,null,null,null,null,null,null,null,null,null,null,null,null,null,null,null,null,null,null,null,null,null,null,null,null,null,null,"Completed","ESQCR"]
[null,null,null,"Design engineer",{"$f":"IF(BM21=\"\",\"Please Select Name\",AX21)","v":"Peter Range"},null,"Tel:",{"$f":"VLOOKUP(E6,data!O2:R150,2,0)","v":22018},null,null,"Proposed MIC:",1500,null,"Proposed MEC:",{"$f":"AZ21","v":0},"kVA",null,null,null,null,null,null,null,null,null,null,null,null,null,null,null,null,null,null,null,null,null,null,null,null,null,null,null,null,null,null,null,null,null,null,null,null,null,"Generation (Storage)"]
[null,null,null,"Strategic  planning engineer",{"$f":"IF(BM21=\"\",\"Please Select Name\",BM21)","v":"Ian Walker"},null,"Tel:",{"$f":"VLOOKUP(E7,data!O3:R151,2,0)","v":22931},null,null,"Existing MIC:",120,null,"Existing MEC:",null,"kVA",null,null,null,null,null,null,null,null,null,null,null,null,null,null,null,null,null,null,"N-1",null,null,null,null,null,null,null,null,null,null,null,null,null,null,null,null,null,null,"Generation (No Storage)"]
[null,null,null,null,null,null,null,null,null,null,"Existing demand of customer:",107,"kVA",null,null,null,null,null,null,null,null,null,null,null,null,null,null,null,null,null,null,null,null,null,"N-0",null,null,null,null,null,null,null,null,null,null,null,null,null,null,null,null,null,null,"Reinforcement"]
[null,null,null,"Status","Proposed",null,{"$f":"IF(E9=\"Please Select From List...\",\"REQUIRED FIELD\",\"\")","v":""},null,"Additional load on network:",null,null,{"$f":"L6-L8","v":1393},"kVA",null,null,null,null,null,null,null,{"$f":"VLOOKUP(E19,data!G1:H2,2,0)","v":6600},{"$f":"IF(U9=6600,6.6,11)","v":6.6},null,null,null,null,null,null,null,null,null,null,null,null,null,null,null,null,null,null,null,null,null,null,null,null,null,null,null,null,null,null,null,"NOP move"]
[null,null,null,"Type","Add Load",null,{"$f":"IF(E10=\"Please Select From List...(see Note*)\",\"REQUIRED FIELD\",\"\")","v":""},null,null,null,null,{"$f":"IF(L6=\"\",\"\",SUM((L6-L8)*1000)/(U9*SQRT(3)))","v":121.85589772441648},"Amps",null,null,null,null,null,null,null,null,null,null,null,null,null,null,null,null,null,null,null,null,null,null,null,null,null,null,null,null,null,null,null,null,null,null,null,null,null,null,null,null,"Asset Removal"]
[null,null,null,null,null,null,null,null,null,null,null,null,null,null,null,null,null,null,null,null,null,null,null,null,null,null,null,null,null,null,null,null,null,null,null,null,null,null,null,null,null,null,null,null,null,null,null,null,null,null,null,null,null,"Add Load"]
[null,null,null,"Distribution Sub No.",178413,null,"OR  adj.  No. for feeder identification",null,"Application Start Date",null,null,{"$f":"AP21","v":"2019-06-22"},null,"for interactivity purposes",null,null,null,null,null,null,null,null,null,null,null,null,null,null,null,null,null,null,null,null,null,null,null,null,null,null,null,null,null,null,null,null,null,null,null,null,null,null,null,"New Connection IDNO (domestic)"]
[null,null,null,"Circuit",{"$f":"VLOOKUP(E12,'HV Circuit Lookup DATA'!A:B,2,FALSE)","v":"F4500 LEESTONE RD"},null,null,null,null,null,"Interactive with other schemes?","Yes","Supply details here",null,null,null,null,null,null,false,null,null,null,null,null,null,null,null,null,null,null,null,null,null,null,null,null,null,null,null,null,null,null,null,null,null,null,null,null,null,null,null,null,"New Connection IDNO (I&C)"]
[null,"Primary Substation the load will be connected on",null,null,{"$f":"VLOOKUP(E12,'HV Circuit Lookup DATA'!A:D,3,FALSE)","v":"NORTHENDEN"},null,null,null,null,null,"Number of customers accociated with this connection:",null,"Consumers",null,null,null,null,null,null,null,null,null,null,null,{"$f":"VLOOKUP(E14,data!A2:C402,3,0)","v":0},null,null,null,null,null,null,null,null,null,null,null,null,null,null,null,null,null,null,null,null,null,null,null,null,null,null,null,null,"New Connection Stat (domestic)"]
[null,null,null,null,null,null,null,null,null,null,null,null,null,null,null,null,null,null,null,null,null,null,null,null,null,null,null,null,null,null,null,null,null,null,null,null,null,null,null,null,null,null,null,null,null,null,null,null,null,null,null,null,null,"New Connection Stat (I&C)"]
[null,null,null,"HV diagram area",{"$f":"VLOOKUP(E14,data!A2:E402,4,0)","v":"MANCHESTER SOUTH"},null,null,null,null,null,null,null,null,null,null,null,null,null,null,null,null,null,null,null,null,null,null,null,null,null,null,null,null,null,null,null,null,null,null,null,null,null,null,null,null,null,null,null,null,null,null,null,null,"New Connection ICP (domestic)"]
[null,null,null,"Reinforcement charge",{"$f":"VLOOKUP(E14,data!A2:C370,2,0)","v":0},"per kVA",null,null,null,null,null,null,null,null,null,null,null,null,null,"YES",{"$f":"L10","v":121.85589772441648},{"$f":"L14","v":0},null,null,null,null,null,null,null,null,null,null,null,null,null,null,null,null,null,null,null,null,null,null,null,null,null,null,null,null,null,null,null,"New Connection ICP (I&C)"]
[null,null,null,"Customer charge",{"$f":"SUM(E17*(L6-L7))","v":0},null,null,null,null,null,null,null,null,null,null,null,null,null,null,"NO",0,0]
[null,null,null,"Voltage",{"$f":"VLOOKUP(E14,data!A5:E405,5,0)","v":"6.6kV"},null,null,null,null,null,"Demand Connection Type","N-1"]
[null,null,null,null,null,null,null,null,null,null,"Generation Connection Type",null,null,null,null,null,null,null,null,null,null,null,null,null,null,null,null,null,null,null,null,null,null,null,null,"This row is for Strategic Planning use only : paste the whole row here (paste values)"]
[null,null,null,null,null,null,null,null,null,null,null,null,null,null,null,null,null,null,null,null,null,null,null,null,null,null,null,null,null,null,null,null,null,null,null,5500153017,"A","5500153017A","Stagecoach Sharston Depot, Leestone Road, Wythenshawe, Manchester","Pending for Approval",580000084470,"2019-06-22",10,"2019-07-01",35,"2019-08-07",11,"DDD-HVHV","HV Demand Connection with assoc HV work","Peter Range",1500,0,383472,388998,"M22 4RB","South","None","HV POC","EHV ASSESSMENT","None","HV Work","EHV Work","Dem","Do Not Self Assign","Ian Walker",null,null,"SK","00:00:00"]
[null,"*Note: Please select Domestic if the domestic component is greater than 50% of the total, and I&C if it is greater than 50% of the total"]
[null,"Feeder name:",null,null,null,"Cable type (1st section):","Primary CB / CT rating          or other restriction * :","Normal peak load (FLA):","Customer numbers on feeder:","New load to be connected to this feeder:","Unused ASC on this feeder:","Proposed Customers on feeder:","Total feeder load:","Spare amps (Distribution):","Spare amps (Cyclic):","Spare amps (Continuous):",null,null,null,"Load","Customers","Cable Dist","Cable Cyc","Cable Cont","CB","Rating Dist:","Rating cyc","Rating cont"]
[null,"Northenden: F4500 Leestone Rd",null,null,null,"300 Al PILC",600,55,6,"YES",{"$f":"'Unused ASC Allowance'!G12","v":43.73865675678983},{"$f":"IF(J24=\"\",\"\",SUM(I24+U24))","v":6},{"$f":"IF(J24=\"\",\"\",SUM(H24+K24+T24))","v":220.5945544812063},{"$f":"IF(J24=\"\",\"\",Z24-M24)","v":304.40544551879373},{"$f":"IF(J24=\"\",\"\",AA24-M24)","v":189.4054455187937},{"$f":"IF(J24=\"\",\"\",AB24-M24)","v":144.4054455187937},null,null,null,{"$f":"VLOOKUP(J24,$T$17:$V$18,2,0)","v":121.85589772441648},{"$f":"VLOOKUP(J24,$T$17:$V$18,3,0)","v":0},{"$f":"VLOOKUP(F24,data!$J$2:$M$38,4,0)","v":525},{"$f":"VLOOKUP(F24,data!$J$2:$M$38,3,0)","v":410},{"$f":"VLOOKUP(F24,data!$J$2:$M$38,2,0)","v":365},{"$f":"G24","v":600},{"$f":"MIN(V24,Y24)","v":525},{"$f":"MIN(W24,Y24)","v":410},{"$f":"MIN(X24,Y24)","v":365}]
[null,"Northenden: F1887 Royal Green Rd",null,null,null,"0.5 Al PILC",400,175,1255,"NO",{"$f":"'Unused ASC Allowance'!G23","v":0},{"$f":"IF(J25=\"\",\"\",SUM(I25+U25))","v":1255},{"$f":"IF(J25=\"\",\"\",SUM(H25+K25+T25))","v":175},{"$f":"IF(J25=\"\",\"\",Z25-M25)","v":225},{"$f":"IF(J25=\"\",\"\",AA25-M25)","v":225},{"$f":"IF(J25=\"\",\"\",AB25-M25)","v":225},null,null,null,{"$f":"VLOOKUP(J25,$T$17:$V$18,2,0)","v":0},{"$f":"VLOOKUP(J25,$T$17:$V$18,3,0)","v":0},{"$f":"VLOOKUP(F25,data!$J$2:$M$38,4,0)","v":530},{"$f":"VLOOKUP(F25,data!$J$2:$M$38,3,0)","v":475},{"$f":"VLOOKUP(F25,data!$J$2:$M$38,2,0)","v":420},400,{"$f":"MIN(V25,Y25)","v":400},{"$f":"MIN(W25,Y25)","v":400},{"$f":"MIN(X25,Y25)","v":400}]
[null,"Gatley: F2083 Church Rd (Gatley)",null,null,null,"0.5 Al PILC",400,193,1411,"NO",{"$f":"'Unused ASC Allowance'!G34","v":0},{"$f":"IF(J26=\"\",\"\",SUM(I26+U26))","v":1411},{"$f":"IF(J26=\"\",\"\",SUM(H26+K26+T26))","v":193},207,207,207,null,null,null,0,0,{"$f":"VLOOKUP(F26,data!$J$2:$M$38,4,0)","v":530},{"$f":"VLOOKUP(F26,data!$J$2:$M$38,3,0)","v":475},{"$f":"VLOOKUP(F26,data!$J$2:$M$38,2,0)","v":420},400,400,400,400]
[null,null,null,null,null,null,null,null,null,null,{"$f":"'Unused ASC Allowance'!G45","v":0},{"$f":"IF(J27=\"\",\"\",SUM(I27+U27))","v":""},"","","","",null,null,null,{"$error":"#N/A"},{"$error":"#N/A"},{"$f":"VLOOKUP(F27,data!$J$2:$M$38,4,0)","v":{"$error":"#N/A"}},{"$f":"VLOOKUP(F27,data!$J$2:$M$38,3,0)","v":{"$error":"#N/A"}},{"$f":"VLOOKUP(F27,data!$J$2:$M$38,2,0)","v":{"$error":"#N/A"}},0,{"$error":"#N/A"},{"$error":"#N/A"},{"$error":"#N/A"}]
[null,".",null,null,null,null,null,null,null,null,{"$f":"'Unused ASC Allowance'!G56","v":0},"","","","","",null,null,null,{"$error":"#N/A"},{"$error":"#N/A"},{"$f":"VLOOKUP(F28,data!$J$2:$M$38,4,0)","v":{"$error":"#N/A"}},{"$f":"VLOOKUP(F28,data!$J$2:$M$38,3,0)","v":{"$error":"#N/A"}},{"$f":"VLOOKUP(F28,data!$J$2:$M$38,2,0)","v":{"$error":"#N/A"}},0,{"$error":"#N/A"},{"$error":"#N/A"},{"$error":"#N/A"}]
[null,".",null,null,null,null,null,null,null,null,{"$f":"'Unused ASC Allowance'!G67","v":0},"","","","","",null,null,null,{"$error":"#N/A"},{"$error":"#N/A"},{"$f":"VLOOKUP(F29,data!$J$2:$M$38,4,0)","v":{"$error":"#N/A"}},{"$f":"VLOOKUP(F29,data!$J$2:$M$38,3,0)","v":{"$error":"#N/A"}},{"$f":"VLOOKUP(F29,data!$J$2:$M$38,2,0)","v":{"$error":"#N/A"}},0,{"$error":"#N/A"},{"$error":"#N/A"},{"$error":"#N/A"}]
[null,".",null,null,null,null,null,null,null,null,{"$f":"'Unused ASC Allowance'!G78","v":0},"","","","","",null,null,null,{"$error":"#N/A"},{"$error":"#N/A"},{"$f":"VLOOKUP(F30,data!$J$2:$M$38,4,0)","v":{"$error":"#N/A"}},{"$f":"VLOOKUP(F30,data!$J$2:$M$38,3,0)","v":{"$error":"#N/A"}},{"$f":"VLOOKUP(F30,data!$J$2:$M$38,2,0)","v":{"$error":"#N/A"}},0,{"$error":"#N/A"},{"$error":"#N/A"},{"$error":"#N/A"}]
[null,".",null,null,null,null,null,null,null,null,{"$f":"'Unused ASC Allowance'!G89","v":0},"","","","","",null,null,null,{"$error":"#N/A"},{"$error":"#N/A"},{"$f":"VLOOKUP(F31,data!$J$2:$M$38,4,0)","v":{"$error":"#N/A"}},{"$f":"VLOOKUP(F31,data!$J$2:$M$38,3,0)","v":{"$error":"#N/A"}},{"$f":"VLOOKUP(F31,data!$J$2:$M$38,2,0)","v":{"$error":"#N/A"}},0,{"$error":"#N/A"},{"$error":"#N/A"},{"$error":"#N/A"}]
[null,".",null,null,null,null,null,null,null,null,{"$f":"'Unused ASC Allowance'!G100","v":0},"","","","","",null,null,null,{"$error":"#N/A"},{"$error":"#N/A"},{"$f":"VLOOKUP(F32,data!$J$2:$M$38,4,0)","v":{"$error":"#N/A"}},{"$f":"VLOOKUP(F32,data!$J$2:$M$38,3,0)","v":{"$error":"#N/A"}},{"$f":"VLOOKUP(F32,data!$J$2:$M$38,2,0)","v":{"$error":"#N/A"}},0,{"$error":"#N/A"},{"$error":"#N/A"},{"$error":"#N/A"}]
[null,".",null,null,null,null,null,null,null,null,{"$f":"'Unused ASC Allowance'!G111","v":0},"","","","","",null,null,null,{"$error":"#N/A"},{"$error":"#N/A"},{"$f":"VLOOKUP(F33,data!$J$2:$M$38,4,0)","v":{"$error":"#N/A"}},{"$f":"VLOOKUP(F33,data!$J$2:$M$38,3,0)","v":{"$error":"#N/A"}},{"$f":"VLOOKUP(F33,data!$J$2:$M$38,2,0)","v":{"$error":"#N/A"}},0,{"$error":"#N/A"},{"$error":"#N/A"},{"$error":"#N/A"}]
[null,".",null,null,null,null,null,null,null,null,{"$f":"'Unused ASC Allowance'!G122","v":0},"","","","","",null,null,null,{"$error":"#N/A"},{"$error":"#N/A"},{"$f":"VLOOKUP(F34,data!$J$2:$M$38,4,0)","v":{"$error":"#N/A"}},{"$f":"VLOOKUP(F34,data!$J$2:$M$38,3,0)","v":{"$error":"#N/A"}},{"$f":"VLOOKUP(F34,data!$J$2:$M$38,2,0)","v":{"$error":"#N/A"}},0,{"$error":"#N/A"},{"$error":"#N/A"},{"$error":"#N/A"}]
[null,".",null,null,null,null,null,null,null,null,{"$f":"'Unused ASC Allowance'!G133","v":0},"","","","","",null,null,null,{"$error":"#N/A"},{"$error":"#N/A"},{"$f":"VLOOKUP(F35,data!$J$2:$M$38,4,0)","v":{"$error":"#N/A"}},{"$f":"VLOOKUP(F35,data!$J$2:$M$38,3,0)","v":{"$error":"#N/A"}},{"$f":"VLOOKUP(F35,data!$J$2:$M$38,2,0)","v":{"$error":"#N/A"}},0,{"$error":"#N/A"},{"$error":"#N/A"},{"$error":"#N/A"}]
[null,".",null,null,null,null,null,null,null,null,{"$f":"'Unused ASC Allowance'!G144","v":0},"","","","","",null,null,null,{"$error":"#N/A"},{"$error":"#N/A"},{"$f":"VLOOKUP(F36,data!$J$2:$M$38,4,0)","v":{"$error":"#N/A"}},{"$f":"VLOOKUP(F36,data!$J$2:$M$38,3,0)","v":{"$error":"#N/A"}},{"$f":"VLOOKUP(F36,data!$J$2:$M$38,2,0)","v":{"$error":"#N/A"}},0,{"$error":"#N/A"},{"$error":"#N/A"},{"$error":"#N/A"}]
[null,".",null,null,null,null,null,null,null,null,{"$f":"'Unused ASC Allowance'!G155","v":0},"","","","","",null,null,null,{"$error":"#N/A"},{"$error":"#N/A"},{"$f":"VLOOKUP(F37,data!$J$2:$M$38,4,0)","v":{"$error":"#N/A"}},{"$f":"VLOOKUP(F37,data!$J$2:$M$38,3,0)","v":{"$error":"#N/A"}},{"$f":"VLOOKUP(F37,data!$J$2:$M$38,2,0)","v":{"$error":"#N/A"}},0,{"$error":"#N/A"},{"$error":"#N/A"},{"$error":"#N/A"}]
[null,"* NOTE:   An overhead conductor rating can be entered here if network is overhead. "]
[]
[]
[]
[]
[null,"Outage scenarios",null,null,null,null,null,null,null,null,null,null,null,null,{"$f":"IF(G1=\"\",\"\",G1)","v":""}]
[]
[]
[]
[null,1,"Outage on:","Northenden: F4500 Leestone Rd",null,null,null,null,2,"Outage on:","Northenden: F1887 Royal Green Rd",null,null,null,null,null,null,null,null,{"$f":"VLOOKUP(D47,$B$24:$N$37,12,0)","v":220.5945544812063},{"$f":"VLOOKUP(K47,$B$24:$N$37,12,0)","v":175}]
[null,null,"Pick up on:","Northenden: F1887 Royal Green Rd",null,null,null,null,null,"Pick up on:","Northenden: F4500 Leestone Rd",null,null,null,null,null,null,null,null,{"$f":"VLOOKUP(D48,$B$24:$N$37,12,0)","v":175},{"$f":"VLOOKUP(K48,$B$24:$N$37,12,0)","v":220.5945544812063},null,"Using Distribution rating","Using Cyclic rating","Using Continuous Rating"]
[null,null,"Rating of feeder:",{"$f":"IF(Z49=0,\"\",Z49)","v":400},"Amps","Using Distribution rating",null,null,null,"Rating of feeder:",{"$f":"IF(Z50=0,\"\",Z50)","v":525},"Amps","Using Distribution rating",null,null,null,null,null,null,null,null,null,{"$f":"IF(($F$49=$W$48),IF(D48=\"\",\"\",VLOOKUP(D48,$B$24:$AB$37,25,0)))","v":400},{"$f":"IF(($F$49=$X$48),IF(D48=\"\",\"\",VLOOKUP(D48,$B$24:$AB$37,26,0)))","v":false},{"$f":"IF(($F$49=$Y$48),IF(D48=\"\",\"\",VLOOKUP(D48,$B$24:$AB$37,27,0)))","v":false},{"$f":"MAX(W49:Y49)","v":400}]
[null,null,"Total load on feeder:",{"$f":"IF(D49=\"\",\"\",SUM(T47:T48))","v":395.59455448120627},"Amps",null,null,null,null,"Total load on feeder:",{"$f":"IF(K49=\"\",\"\",SUM(U47:U48))","v":395.59455448120627},"Amps",null,null,null,null,null,null,null,null,null,null,{"$f":"IF(($M$49=W48),IF(K48=\"\",\"\",VLOOKUP($K$48,$B$24:AB38,25,0)))","v":525},{"$f":"IF(($M$49=X48),IF(K48=\"\",\"\",VLOOKUP($K$48,$B$24:AC38,26,0)))","v":false},{"$f":"IF(($M$49=Y48),IF(K48=\"\",\"\",VLOOKUP($K$48,$B$24:AD38,27,0)))","v":false},525]
[null,null,"Acceptable:",{"$f":"IF(AND(D50=\"\",D49=\"\"),\"\",IF(D50>D49,\"NO\",\"YES\"))","v":"YES"},null,"Spare amps:",{"$f":"IF(D49=\"\",\"\",SUM(D49-D50))","v":4.4054455187937265},null,null,"Acceptable:",{"$f":"IF(AND(K50=\"\",K49=\"\"),\"\",IF(K50>K49,\"NO\",\"YES\"))","v":"YES"},null,"Spare amps:",{"$f":"IF(K49=\"\",\"\",SUM(K49-K50))","v":129.40544551879373},null,null,null,null,null,null,null,null,{"$f":"IF(($F$56=W48),IF(D55=\"\",\"\",VLOOKUP($D$55,$B$24:$AB$37,25,0)))","v":400},{"$f":"IF(($F$56=X48),IF(D55=\"\",\"\",VLOOKUP($D$55,$B$24:$AB$37,26,0)))","v":false},{"$f":"IF(($F$56=Y48),IF(D55=\"\",\"\",VLOOKUP($D$55,$B$24:$AB$37,27,0)))","v":false},400]
[null,null,"Comments:",null,null,null,null,null,null,"Comments:",null,null,null,null,null,null,null,null,null,null,null,null,{"$f":"IF(($M$56=W48),IF(K55=\"\",\"\",VLOOKUP($K$55,$B$24:$AB$37,25,0)))","v":525},{"$f":"IF(($M$56=X48),IF(K55=\"\",\"\",VLOOKUP($K$55,$B$24:$AB$37,26,0)))","v":false},{"$f":"IF(($M$56=Y48),IF(K55=\"\",\"\",VLOOKUP($K$55,$B$24:$AB$37,27,0)))","v":false},525]
[null,null,null,null,null,null,null,null,null,null,null,null,null,null,null,null,null,null,null,{"$f":"VLOOKUP(D54,$B$24:$N$37,12,0)","v":220.5945544812063},{"$f":"VLOOKUP(K54,$B$24:$N$37,12,0)","v":193},null,{"$f":"IF(($F$63=W48),IF(D62=\"\",\"\",VLOOKUP($D$62,$B$24:$AB$37,25,0)))","v":""},{"$f":"IF(($F$63=X48),IF(D62=\"\",\"\",VLOOKUP($D$62,$B$24:$AB$37,26,0)))","v":false},{"$f":"IF(($F$63=Y48),IF(D62=\"\",\"\",VLOOKUP($D$62,$B$24:$AB$37,27,0)))","v":false},0]
[null,3,"Outage on:","Northenden: F4500 Leestone Rd",null,null,null,null,4,"Outage on:","Gatley: F2083 Church Rd (Gatley)",null,null,null,null,null,null,null,null,{"$f":"VLOOKUP(D55,$B$24:$N$37,12,0)","v":193},{"$f":"VLOOKUP(K55,$B$24:$N$37,12,0)","v":220.5945544812063},null,{"$f":"IF(($M$63=W48),IF(K62=\"\",\"\",VLOOKUP($K$62,$B$24:$AB$37,25,0)))","v":""},{"$f":"IF(($M$63=X48),IF(K62=\"\",\"\",VLOOKUP($K$62,$B$24:$AB$37,26,0)))","v":false},{"$f":"IF(($M$63=Y48),IF(K62=\"\",\"\",VLOOKUP($K$62,$B$24:$AB$37,27,0)))","v":false},0]
[null,null,"Pick up on:","Gatley: F2083 Church Rd (Gatley)",null,null,null,null,null,"Pick up on:","Northenden: F4500 Leestone Rd",null,null,null,null,null,null,null,null,null,null,null,{"$f":"IF(($F$70=W48),IF(D69=\"\",\"\",VLOOKUP($D$69,$B$24:$AB$37,25,0)))","v":""},{"$f":"IF(($F$70=X48),IF(D69=\"\",\"\",VLOOKUP($D$69,$B$24:$AB$37,26,0)))","v":false},{"$f":"IF(($F$70=Y48),IF(D69=\"\",\"\",VLOOKUP($D$69,$B$24:$AB$37,27,0)))","v":false},0]
[null,null,"Rating of feeder:",{"$f":"IF(Z51=0,\"\",Z51)","v":400},"Amps","Using Distribution rating",null,null,null,"Rating of feeder:",{"$f":"IF(Z52=0,\"\",Z52)","v":525},"Amps","Using Distribution rating",null,null,null,null,null,null,null,null,null,{"$f":"IF(($M$70=W48),IF(K69=\"\",\"\",VLOOKUP($K$69,$B$24:$AB$37,25,0)))","v":""},{"$f":"IF(($M$70=X48),IF(K69=\"\",\"\",VLOOKUP($K$69,$B$24:$AB$37,26,0)))","v":false},{"$f":"IF(($M$70=Y48),IF(K69=\"\",\"\",VLOOKUP($K$69,$B$24:$AB$37,27,0)))","v":false},0]
[null,null,"Total load on feeder:",{"$f":"IF(D56=\"\",\"\",SUM(T53:T54))","v":413.59455448120627},"Amps",null,null,null,null,"Total load on feeder:",{"$f":"IF(K56=\"\",\"\",SUM(U53:U54))","v":413.59455448120627},"Amps",null,null,null,null,null,null,null,null,null,null,{"$f":"IF(($F$77=W48),IF(D76=\"\",\"\",VLOOKUP($D$76,$B$24:$AB$37,25,0)))","v":""},{"$f":"IF(($F$77=X48),IF(D76=\"\",\"\",VLOOKUP($D$76,$B$24:$AB$37,26,0)))","v":false},{"$f":"IF(($F$77=Y48),IF(D76=\"\",\"\",VLOOKUP($D$76,$B$24:$AB$37,27,0)))","v":false},0]
[null,null,"Acceptable:",{"$f":"IF(AND(D57=\"\",D56=\"\"),\"\",IF(D57>D56,\"NO\",\"YES\"))","v":"NO"},null,"Spare amps:",{"$f":"IF(D56=\"\",\"\",SUM(D56-D57))","v":-13.594554481206274},null,null,"Acceptable:",{"$f":"IF(AND(K57=\"\",K56=\"\"),\"\",IF(K57>K56,\"NO\",\"YES\"))","v":"YES"},null,"Spare amps:",{"$f":"IF(K56=\"\",\"\",SUM(K56-K57))","v":111.40544551879373},null,null,null,null,null,null,null,null,{"$f":"IF(($M$77=W48),IF(K76=\"\",\"\",VLOOKUP($K$76,$B$24:$AB$37,25,0)))","v":""},{"$f":"IF(($M$77=X48),IF(K76=\"\",\"\",VLOOKUP($K$76,$B$24:$AB$37,26,0)))","v":false},{"$f":"IF(($M$77=Y48),IF(K76=\"\",\"\",VLOOKUP($K$76,$B$24:$AB$37,27,0)))","v":false},0]
[null,null,"Comments:",null,null,null,null,null,null,"Comments:",null,null,null,null,null,null,null,null,null,{"$f":"VLOOKUP(D61,$B$24:$N$37,12,0)","v":{"$error":"#N/A"}},{"$f":"VLOOKUP(K61,$B$24:$N$37,12,0)","v":{"$error":"#N/A"}},null,{"$f":"IF(($F$86=W48),IF(D85=\"\",\"\",VLOOKUP($D$85,$B$24:$AB$37,25,0)))","v":""},{"$f":"IF(($F$86=X48),IF(D85=\"\",\"\",VLOOKUP($D$85,$B$24:$AB$37,26,0)))","v":false},{"$f":"IF(($F$86=Y48),IF(D85=\"\",\"\",VLOOKUP($D$85,$B$24:$AB$37,27,0)))","v":false},0]
[null,null,null,null,null,null,null,null,null,null,null,null,null,null,null,null,null,null,null,{"$f":"VLOOKUP(D62,$B$24:$N$37,12,0)","v":{"$error":"#N/A"}},{"$f":"VLOOKUP(K62,$B$24:$N$37,12,0)","v":{"$error":"#N/A"}},null,{"$f":"IF(($M$86=W48),IF(K85=\"\",\"\",VLOOKUP($K$85,$B$24:$AB$37,25,0)))","v":""},{"$f":"IF(($M$86=X48),IF(K85=\"\",\"\",VLOOKUP($K$85,$B$24:$AB$37,26,0)))","v":false},{"$f":"IF(($M$86=Y48),IF(K85=\"\",\"\",VLOOKUP($K$85,$B$24:$AB$37,27,0)))","v":false},0]
[null,5,"Outage on:",null,null,null,null,null,6,"Outage on:",null,null,null,null,null,null,null,null,null,null,null,null,{"$f":"IF(($F$93=W48),IF(D92=\"\",\"\",VLOOKUP($D$92,$B$24:$AB$37,25,0)))","v":""},{"$f":"IF(($F$93=X48),IF(D92=\"\",\"\",VLOOKUP($D$92,$B$24:$AB$37,26,0)))","v":false},{"$f":"IF(($F$93=Y48),IF(D92=\"\",\"\",VLOOKUP($D$92,$B$24:$AB$37,27,0)))","v":false},0]
[null,null,"Pick up on:",null,null,null,null,null,null,"Pick up on:",null,null,null,null,null,null,null,null,null,null,null,null,{"$f":"IF(($M$93=W48),IF(K92=\"\",\"\",VLOOKUP($K$92,$B$24:$AB$37,25,0)))","v":""},{"$f":"IF(($M$93=X48),IF(K92=\"\",\"\",VLOOKUP($K$92,$B$24:$AB$37,26,0)))","v":false},{"$f":"IF(($M$93=Y48),IF(K92=\"\",\"\",VLOOKUP($K$92,$B$24:$AB$37,27,0)))","v":false},0]
[null,null,"Rating of feeder:",{"$f":"IF(Z53=0,\"\",Z53)","v":""},"Amps","Using Distribution rating",null,null,null,"Rating of feeder:",{"$f":"IF(Z54=0,\"\",Z54)","v":""},"Amps","Using Distribution rating"]
[null,null,"Total load on feeder:",{"$f":"IF(D63=\"\",\"\",SUM(T59:T60))","v":""},"Amps",null,null,null,null,"Total load on feeder:",{"$f":"IF(K63=\"\",\"\",SUM(U59:U60))","v":""},"Amps"]
[null,null,"Acceptable:",{"$f":"IF(AND(D64=\"\",D63=\"\"),\"\",IF(D64>D63,\"NO\",\"YES\"))","v":""},null,"Spare amps:",{"$f":"IF(D63=\"\",\"\",SUM(D63-D64))","v":""},null,null,"Acceptable:",{"$f":"IF(AND(K64=\"\",K63=\"\"),\"\",IF(K64>K63,\"NO\",\"YES\"))","v":""},null,"Spare amps:",{"$f":"IF(K63=\"\",\"\",SUM(K63-K64))","v":""},null,null,null,null,null,{"$f":"VLOOKUP(D68,$B$24:$N$37,12,0)","v":{"$error":"#N/A"}},{"$f":"VLOOKUP(K68,$B$24:$N$37,12,0)","v":{"$error":"#N/A"}}]
[null,null,"Comments:",null,null,null,null,null,null,"Comments:",null,null,null,null,null,null,null,null,null,{"$f":"VLOOKUP(D69,$B$24:$N$37,12,0)","v":{"$error":"#N/A"}},{"$f":"VLOOKUP(K69,$B$24:$N$37,12,0)","v":{"$error":"#N/A"}}]
[]
[null,7,"Outage on:",null,null,null,null,null,8,"Outage on:"]
[null,null,"Pick up on:",null,null,null,null,null,null,"Pick up on:"]
[null,null,"Rating of feeder:",{"$f":"IF(Z55=0,\"\",Z55)","v":""},"Amps","Using Distribution rating",null,null,null,"Rating of feeder:",{"$f":"IF(Z56=0,\"\",Z56)","v":""},"Amps","Using Distribution rating"]
[null,null,"Total load on feeder:",{"$f":"IF(D70=\"\",\"\",SUM(T65:T66))","v":""},"Amps",null,null,null,null,"Total load on feeder:",{"$f":"IF(K70=\"\",\"\",SUM(U65:U66))","v":""},"Amps",null,null,null,null,null,null,null,{"$f":"VLOOKUP(D75,$B$24:$N$37,12,0)","v":{"$error":"#N/A"}},{"$f":"VLOOKUP(K75,$B$24:$N$37,12,0)","v":{"$error":"#N/A"}}]
[null,null,"Acceptable:",{"$f":"IF(AND(D71=\"\",D70=\"\"),\"\",IF(D71>D70,\"NO\",\"YES\"))","v":""},null,"Spare amps:",{"$f":"IF(D70=\"\",\"\",SUM(D70-D71))","v":""},null,null,"Acceptable:",{"$f":"IF(AND(K71=\"\",K70=\"\"),\"\",IF(K71>K70,\"NO\",\"YES\"))","v":""},null,"Spare amps:",{"$f":"IF(K70=\"\",\"\",SUM(K70-K71))","v":""},null,null,null,null,null,{"$f":"VLOOKUP(D76,$B$24:$N$37,12,0)","v":{"$error":"#N/A"}},{"$f":"VLOOKUP(K76,$B$24:$N$37,12,0)","v":{"$error":"#N/A"}}]
[null,null,"omments:",null,null,null,null,null,null,"Comments:"]
[]
[null,9,"Outage on:",null,null,null,null,null,10,"Outage on:"]
[null,null,"Pick up on:",null,null,null,null,null,null,"Pick up on:"]
[null,null,"Rating of feeder:",{"$f":"IF(Z57=0,\"\",Z57)","v":""},"Amps","Using Distribution rating",null,null,null,"Rating of feeder:",{"$f":"IF(Z58=0,\"\",Z58)","v":""},"Amps","Using Distribution rating",null,null,null,null,null,null,{"$f":"VLOOKUP(D84,$B$24:$N$37,12,0)","v":{"$error":"#N/A"}},{"$f":"VLOOKUP(K84,$B$24:$N$37,12,0)","v":{"$error":"#N/A"}}]
[null,null,"Total load on feeder:",{"$f":"IF(D77=\"\",\"\",SUM(T71:T72))","v":""},"Amps",null,null,null,null,"Total load on feeder:",{"$f":"IF(K77=\"\",\"\",SUM(U71:U72))","v":""},"Amps",null,null,null,null,null,null,null,{"$f":"VLOOKUP(D85,$B$24:$N$37,12,0)","v":{"$error":"#N/A"}},{"$f":"VLOOKUP(K85,$B$24:$N$37,12,0)","v":{"$error":"#N/A"}}]
[null,null,"Acceptable:",{"$f":"IF(AND(D78=\"\",D77=\"\"),\"\",IF(D78>D77,\"NO\",\"YES\"))","v":""},null,"Spare amps:",{"$f":"IF(D77=\"\",\"\",SUM(D77-D78))","v":""},null,null,"Acceptable:",{"$f":"IF(AND(K78=\"\",K77=\"\"),\"\",IF(K78>K77,\"NO\",\"YES\"))","v":""},null,"Spare amps:",{"$f":"IF(K77=\"\",\"\",SUM(K77-K78))","v":""}]
[null,null,"Comments:",null,null,null,null,null,null,"Comments:"]
[]
[]
[]
[null,11,"Outage on:",null,null,null,null,null,12,"Outage on:",null,null,null,null,null,null,null,null,null,{"$f":"VLOOKUP(D91,$B$24:$N$37,12,0)","v":{"$error":"#N/A"}},{"$f":"VLOOKUP(K91,$B$24:$N$37,12,0)","v":{"$error":"#N/A"}}]
[null,null,"Pick up on:",null,null,null,null,null,null,"Pick up on:",null,null,null,null,null,null,null,null,null,{"$f":"VLOOKUP(D92,$B$24:$N$37,12,0)","v":{"$error":"#N/A"}},{"$f":"VLOOKUP(K92,$B$24:$N$37,12,0)","v":{"$error":"#N/A"}}]
[null,null,"Rating of feeder:",{"$f":"IF(Z59=0,\"\",Z59)","v":""},"Amps","Using Distribution rating",null,null,null,"Rating of feeder:",{"$f":"IF(Z60=0,\"\",Z60)","v":""},"Amps","Using Distribution rating"]
[null,null,"Total load on feeder:",{"$f":"IF(D86=\"\",\"\",SUM(T77:T78))","v":""},"Amps",null,null,null,null,"Total load on feeder:",{"$f":"IF(K86=\"\",\"\",SUM(U77:U78))","v":""},"Amps"]
[null,null,"Acceptable:",{"$f":"IF(AND(D87=\"\",D86=\"\"),\"\",IF(D87>D86,\"NO\",\"YES\"))","v":""},null,"Spare amps:",{"$f":"IF(D86=\"\",\"\",SUM(D86-D87))","v":""},null,null,"Acceptable:",{"$f":"IF(AND(K87=\"\",K86=\"\"),\"\",IF(K87>K86,\"NO\",\"YES\"))","v":""},null,"Spare amps:",{"$f":"IF(K86=\"\",\"\",SUM(K86-K87))","v":""}]
[null,null,"Comments:",null,null,null,null,null,null,"Comments:"]
[]
[null,13,"Outage on:",null,null,null,null,null,14,"Outage on:"]
[null,null,"Pick up on:",null,null,null,null,null,null,"Pick up on:"]
[null,null,"Rating of feeder:",{"$f":"IF(Z61=0,\"\",Z61)","v":""},"Amps","Using Distribution rating",null,null,null,"Rating of feeder:",{"$f":"IF(Z62=0,\"\",Z62)","v":""},"Amps","Using Distribution rating"]
[null,null,"Total load on feeder:",{"$f":"IF(D93=\"\",\"\",SUM(T84:T85))","v":""},"Amps",null,null,null,null,"Total load on feeder:",{"$f":"IF(K93=\"\",\"\",SUM(U84:U85))","v":""},"Amps"]
[null,null,"Acceptable:",{"$f":"IF(AND(D94=\"\",D93=\"\"),\"\",IF(D94>D93,\"NO\",\"YES\"))","v":""},null,"Spare amps:",{"$f":"IF(D93=\"\",\"\",SUM(D93-D94))","v":""},null,null,"Acceptable:",{"$f":"IF(AND(K94=\"\",K93=\"\"),\"\",IF(K94>K93,\"NO\",\"YES\"))","v":""},null,"Spare amps:",{"$f":"IF(K93=\"\",\"\",SUM(K93-K94))","v":""}]
[null,null,"Comments:",null,null,null,null,null,null,"Comments:"]
[]
[null,{"$f":"IF(G1=\"\",\"\",G1)","v":""}]
[null,"Free format notes:"]

{"sheet":"For approval only","index":1,"n_rows":26,"n_cols":2,"rows_kept":26,"cut":false,"hidden":true,"merged":[[10,0,11,5]]}
["NC"]
[{"$f":"Input!L9","v":1393},"kVA"]
[]
["R11/11/11"]
[]
[{"$f":"Input!L4","v":"5500153017A"}]
[{"$f":"Input!G1","v":""}]
[{"$f":"Input!E6","v":"Peter Range"}]
[{"$f":"'R Form'!E57","v":"Manchester"}]
[{"$f":"Input!E3","v":"Stagecoach Sharston Depot, Leestone Road, Wythenshawe, Manchester"}]
[]
[]
[]
[]
[]
[]
[]
["HV DIAG.  ",{"$f":"Input!E16","v":"MANCHESTER SOUTH"}]
["PROJ. NO.",{"$f":"A6","v":"5500153017A"}]
["PRIMARY",{"$f":"Input!E14","v":"NORTHENDEN"}]
["FEEDER",{"$f":"'R Form'!F11","v":"F4500 LEESTONE RD"}]
["G.REF.",{"$f":"'R Form'!#REF!&+'R Form'!#REF!&\".\"&+'R Form'!#REF!","v":{"$error":"#REF!"}}]
["REQ. REASON",{"$f":"A1","v":"NC"}]
["REQ. DESC.",{"$f":"Input!E3","v":"Stagecoach Sharston Depot, Leestone Road, Wythenshawe, Manchester"}]
["ADD LOAD",{"$f":"A2","v":1393}]
["REQUESTED BY",{"$f":"A8","v":"Peter Range"}]

{"sheet":"Splitting feeder calculation","index":2,"n_rows":32,"n_cols":16,"rows_kept":32,"cut":false,"hidden":true,"merged":[[2,2,2,3],[2,5,2,6],[0,1,0,6]]}
["Feeder Name:",null,null,null,null,null,null,null,null,null,null,null,null,{"$f":"Input!U9","v":6600}]
[null,null,null,null,null,null,null,null,null,null,null,null,null,"Diversity"]
["Substation name","Substation number","MD of Tx",null,null,"Diversified load (Amps)",null,null,null,null,null,null,null,{"$f":"C28/C27","v":0.51320023927966729}]
["Duddon Road",616064,500,"kVA",{"$f":"SUM(C4*1000)/($N$1*SQRT(3))","v":43.73865675678983},{"$f":"SUM((C4*1000)/($N$1*SQRT(3)))*$C$30","v":22.446689113355777},null,null,null,null,null,null,null,false,{"$f":"IF(N4=TRUE,F4,0)","v":0},{"$f":"IF(N4=FALSE,F4,0)","v":22.446689113355777}]
["St Georges Square",618006,400,"kVA",{"$f":"SUM(C5*1000)/($N$1*SQRT(3))","v":34.990925405431867},17.957351290684624,null,null,null,null,null,null,null,false,{"$f":"IF(N5=TRUE,F5,0)","v":0},{"$f":"IF(N5=FALSE,F5,0)","v":17.957351290684624}]
["Haverigg Windfarm 'D'",619460,40,"kVA",{"$f":"SUM(C6*1000)/($N$1*SQRT(3))","v":3.4990925405431867},1.7957351290684624,null,null,null,null,null,null,null,false,0,1.7957351290684624]
["Back Duke St.",616006,360,"kVA",31.491832864888679,16.161616161616159,null,null,null,null,null,null,null,false,0,16.161616161616159]
["Kings Quarry",616009,415,"kVA",36.303085108135562,18.630751964085295,null,null,null,null,null,null,null,false,0,18.630751964085295]
["Lowther Rd",616007,325,"kVA",28.430126891913392,14.590347923681257,null,null,null,null,null,null,null,false,0,14.590347923681257]
["Moor End",610087,15,"kVA",1.3121597027036951,0.67340067340067344,null,null,null,null,null,null,null,false,0,0.67340067340067344]
["Oxenbows",610078,200,"kVA",17.495462702715933,8.978675645342312,null,null,null,null,null,null,null,false,0,8.978675645342312]
["Moor Cotts",610087,500,"kVA",43.73865675678983,22.446689113355777,null,null,null,null,null,null,null,false,0,22.446689113355777]
["Back Albert St.",616012,800,"kVA",69.981850810863733,35.914702581369248,null,null,null,null,null,null,null,false,0,35.914702581369248]
["Queens Street",616015,600,"kVA",52.4863881081478,26.936026936026934,null,null,null,null,null,null,null,false,0,26.936026936026934]
["Effluent Pump",616222,200,"kVA",17.495462702715933,8.978675645342312,null,null,null,null,null,null,null,false,0,8.978675645342312]
["Wellington Street",616016,100,"kVA",8.7477313513579666,4.489337822671156,null,null,null,null,null,null,null,false,0,4.489337822671156]
["Furness Street",616019,null,"kVA",0,0,null,null,null,null,null,null,null,false,0,0]
["Argyle Street",616014,null,"kVA",0,0,null,null,null,null,null,null,null,false,0,0]
["Hearfields",616232,null,"kVA",0,0,null,null,null,null,null,null,null,false,0,0]
[null,null,null,"kVA",0,0,null,null,null,null,null,null,null,false,0,0]
[null,null,null,"kVA",0,0,null,null,null,null,null,null,null,false,0,0]
[null,null,null,"kVA",0,0,null,null,null,null,null,null,null,false,0,0]
[null,null,null,"kVA",0,0,null,null,null,null,null,null,null,false,0,0]
[null,null,null,"kVA",0,0,null,null,null,null,null,null,null,false,0,0]
[null,null,null,"kVA",{"$f":"SUM(C25*1000)/($N$1*SQRT(3))","v":0},0,null,null,null,null,null,null,null,false,0,0]
[null,"Total load (MD):",{"$f":"SUM(C4:C25)","v":4455},"kVA",null,null,null,null,null,null,null,null,null,null,{"$f":"SUM(O4:O25)","v":0},{"$f":"SUM(P4:P25)","v":200}]
[null,"Total load (MD):",{"$f":"SUM(C26*1000)/($N$1*SQRT(3))","v":389.7114317029974},"Amps"]
[null,"FLA load on feeder:",200,"Amps"]
[null,"Calculated Diversity:",{"$f":"N3","v":0.51320023927966729},null,null,{"$f":"IF(C29<0.5,\"VERY LOW DIVERSITY\",IF(C29>0.71,\"\",\"LOW DIVERSITY\"))","v":"LOW DIVERSITY"}]
[null,"User Input Diversity:",{"$f":"C29","v":0.51320023927966729}]
[null,"Checked boxes:",{"$f":"O26","v":0},"Amps"]
[null,"Un checked boxes:",{"$f":"P26","v":200},"Amps"]

{"sheet":"Unused ASC Allowance","index":3,"n_rows":155,"n_cols":10,"rows_kept":155,"cut":false,"hidden":false,"merged":[[154,0,154,5],[47,0,47,7],[124,0,124,7],[132,0,132,5],[135,0,135,7],[143,0,143,5],[146,0,146,7],[102,0,102,7],[110,0,110,5],[113,0,113,7],[58,0,58,7],[66,0,66,5],[69,0,69,7],[77,0,77,5],[121,0,121,5],[80,0,80,7],[88,0,88,5],[91,0,91,7],[99,0,99,5],[11,0,11,5],[11,18,11,23],[55,0,55,5],[36,0,36,7],[44,0,44,5],[3,0,3,7],[14,0,14,7],[22,0,22,5],[25,0,25,7],[33,0,33,5]]}
["Unused ASC (existing and future customers)"]
[]
[]
[{"$f":"Input!B24","v":"Northenden: F4500 Leestone Rd"}]
["Customer","MPAN","ASC","MD","Unused","Factor","Results"]
["Stagecoach Bus Depot (quoted)","55-147350",415,null,{"$f":"IF(C6=\"\",\"\",SUM(C6-D6))","v":415},0,{"$f":"IF(F6=0,\"\",SUM(F6*E6))","v":""},null,null,{"$f":"Input!U9","v":6600}]
["Development, Altrincham Road  (accepted)","55-64200",500,null,500,1,500,null,null,{"$f":"SUM(G6:G11)","v":500}]
["Petrocarbon house (171975)",null,null,null,"",0,""]
[null,null,null,null,"",0,""]
["Insuloid (171442) (HV)",1620000306779,null,null,null,0,""]
[null,null,null,null,"",0,""]
["Total",null,null,null,null,null,{"$f":"SUM(((J7)*1000)/(J6*SQRT(3)))","v":43.73865675678983},"Amps"]
[]
[]
[{"$f":"Input!B25","v":"Northenden: F1887 Royal Green Rd"}]
["Customer","MPAN","ASC","MD","Unused","Factor","Results"]
["Wylex Intake (172528)",1620000001683,450,450,{"$f":"IF(C17=\"\",\"\",SUM(C17-D17))","v":0},0,{"$f":"IF(F17=0,\"\",SUM(F17*E17))","v":""},null,null,{"$f":"Input!U9","v":6600}]
[null,null,null,null,null,0,{"$f":"IF(F18=0,\"\",SUM(F18*E28))","v":""},null,null,{"$f":"SUM(G17:G22)","v":0}]
[null,null,null,null,"",0,""]
[null,null,null,null,"",0,""]
[null,null,null,null,"",0,""]
[null,null,null,null,"",0,""]
["Total",null,null,null,null,null,{"$f":"SUM(((J18)*1000)/(J17*SQRT(3)))","v":0},"Amps"]
[]
[]
[{"$f":"Input!B26","v":"Gatley: F2083 Church Rd (Gatley)"}]
["Customer","MPAN","ASC","MD","Unused","Factor","Results"]
[null,null,null,null,{"$f":"IF(C28=\"\",\"\",SUM(C28-D28))","v":""},0,{"$f":"IF(F28=0,\"\",SUM(F28*#REF!))","v":""},null,null,{"$f":"Input!U9","v":6600}]
[null,null,null,null,{"$f":"IF(C29=\"\",\"\",SUM(C29-D29))","v":""},0,{"$f":"IF(F29=0,\"\",SUM(F29*E29))","v":""},null,null,{"$f":"SUM(G28:G33)","v":0}]
[null,null,null,null,"",0,""]
[null,null,null,null,"",0,""]
[null,null,null,null,"",0,""]
[null,null,null,null,"",0,""]
["Total",null,null,null,null,null,{"$f":"SUM(((J29)*1000)/(J28*SQRT(3)))","v":0},"Amps"]
[]
[]
[{"$f":"Input!B27","v":0}]
["Customer","MPAN","ASC","MD","Unused","Factor","Results"]
[null,null,null,null,{"$f":"IF(C39=\"\",\"\",SUM(C39-D39))","v":""},0,{"$f":"IF(F39=0,\"\",SUM(F39*E39))","v":""},null,null,{"$f":"Input!U9","v":6600}]
[null,null,null,null,"",0,"",null,null,{"$f":"SUM(G39:G44)","v":0}]
[null,null,null,null,"",0,""]
[null,null,null,null,"",0,""]
[null,null,null,null,"",0,""]
[null,null,null,null,"",0,""]
["Total",null,null,null,null,null,{"$f":"SUM(((J40)*1000)/(J39*SQRT(3)))","v":0},"Amps"]
[]
[]
[{"$f":"Input!B28","v":"."}]
["Customer","MPAN","ASC","MD","Unused","Factor","Results"]
[null,null,null,null,{"$f":"IF(C50=\"\",\"\",SUM(C50-D50))","v":""},0,{"$f":"IF(F50=0,\"\",SUM(F50*E50))","v":""},null,null,{"$f":"Input!U9","v":6600}]
[null,null,null,null,"",0,"",null,null,{"$f":"SUM(G50:G55)","v":0}]
[null,null,null,null,"",0,""]
[null,null,null,null,"",0,""]
[null,null,null,null,"",0,""]
[null,null,null,null,"",0,""]
["Total",null,null,null,null,null,{"$f":"SUM(((J51)*1000)/(J50*SQRT(3)))","v":0},"Amps"]
[]
[]
[{"$f":"Input!B29","v":"."}]
["Customer","MPAN","ASC","MD","Unused","Factor","Results"]
[null,null,null,null,{"$f":"IF(C61=\"\",\"\",SUM(C61-D61))","v":""},0,{"$f":"IF(F61=0,\"\",SUM(F61*E61))","v":""},null,null,{"$f":"Input!U9","v":6600}]
[null,null,null,null,"",0,"",null,null,{"$f":"SUM(G61:G66)","v":0}]
[null,null,null,null,"",0,""]
[null,null,null,null,"",0,""]
[null,null,null,null,"",0,""]
[null,null,null,null,"",0,""]
["Total",null,null,null,null,null,{"$f":"SUM(((J62)*1000)/(J61*SQRT(3)))","v":0},"Amps"]
[]
[]
[{"$f":"Input!B30","v":"."}]
["Customer","MPAN","ASC","MD","Unused","Factor","Results"]
[null,null,null,null,{"$f":"IF(C72=\"\",\"\",SUM(C72-D72))","v":""},0,{"$f":"IF(F72=0,\"\",SUM(F72*E72))","v":""},null,null,{"$f":"Input!U9","v":6600}]
[null,null,null,null,"",0,"",null,null,{"$f":"SUM(G72:G77)","v":0}]
[null,null,null,null,"",0,""]
[null,null,null,null,"",0,""]
[null,null,null,null,"",0,""]
[null,null,null,null,"",0,""]
["Total",null,null,null,null,null,{"$f":"SUM(((J73)*1000)/(J72*SQRT(3)))","v":0},"Amps"]
[]
[]
[{"$f":"Input!B31","v":"."}]
["Customer","MPAN","ASC","MD","Unused","Factor","Results"]
[null,null,null,null,{"$f":"IF(C83=\"\",\"\",SUM(C83-D83))","v":""},0,{"$f":"IF(F83=0,\"\",SUM(F83*E83))","v":""},null,null,{"$f":"Input!U9","v":6600}]
[null,null,null,null,"",0,"",null,null,{"$f":"SUM(G83:G88)","v":0}]
[null,null,null,null,"",0,""]
[null,null,null,null,"",0,""]
[null,null,null,null,"",0,""]
[null,null,null,null,"",0,""]
["Total",null,null,null,null,null,{"$f":"SUM(((J84)*1000)/(J83*SQRT(3)))","v":0},"Amps"]
[]
[]
[{"$f":"Input!B32","v":"."}]
["Customer","MPAN","ASC","MD","Unused","Factor","Results"]
[null,null,null,null,{"$f":"IF(C94=\"\",\"\",SUM(C94-D94))","v":""},0,{"$f":"IF(F94=0,\"\",SUM(F94*E94))","v":""},null,null,{"$f":"Input!U9","v":6600}]
[null,null,null,null,"",0,"",null,null,{"$f":"SUM(G94:G99)","v":0}]
[null,null,null,null,"",0,""]
[null,null,null,null,"",0,""]
[null,null,null,null,"",0,""]
[null,null,null,null,"",0,""]
["Total",null,null,null,null,null,{"$f":"SUM(((J95)*1000)/(J94*SQRT(3)))","v":0},"Amps"]
[]
[]
[{"$f":"Input!B33","v":"."}]
["Customer","MPAN","ASC","MD","Unused","Factor","Results"]
[null,null,null,null,{"$f":"IF(C105=\"\",\"\",SUM(C105-D105))","v":""},0,{"$f":"IF(F105=0,\"\",SUM(F105*E105))","v":""},null,null,{"$f":"Input!U9","v":6600}]
[null,null,null,null,"",0,"",null,null,{"$f":"SUM(G105:G110)","v":0}]
[null,null,null,null,"",0,""]
[null,null,null,null,"",0,""]
[null,null,null,null,"",0,""]
[null,null,null,null,"",0,""]
["Total",null,null,null,null,null,{"$f":"SUM(((J106)*1000)/(J105*SQRT(3)))","v":0},"Amps"]
[]
[]
[{"$f":"Input!B34","v":"."}]
["Customer","MPAN","ASC","MD","Unused","Factor","Results"]
[null,null,null,null,{"$f":"IF(C116=\"\",\"\",SUM(C116-D116))","v":""},0,{"$f":"IF(F116=0,\"\",SUM(F116*E116))","v":""},null,null,{"$f":"Input!U9","v":6600}]
[null,null,null,null,"",0,"",null,null,{"$f":"SUM(G116:G121)","v":0}]
[null,null,null,null,"",0,""]
[null,null,null,null,"",0,""]
[null,null,null,null,"",0,""]
[null,null,null,null,"",0,""]
["Total",null,null,null,null,null,{"$f":"SUM(((J117)*1000)/(J116*SQRT(3)))","v":0},"Amps"]
[]
[]
[{"$f":"Input!B35","v":"."}]
["Customer","MPAN","ASC","MD","Unused","Factor","Results"]
[null,null,null,null,{"$f":"IF(C127=\"\",\"\",SUM(C127-D127))","v":""},0,{"$f":"IF(F127=0,\"\",SUM(F127*E127))","v":""},null,null,{"$f":"Input!U9","v":6600}]
[null,null,null,null,"",0,"",null,null,{"$f":"SUM(G127:G132)","v":0}]
[null,null,null,null,"",0,""]
[null,null,null,null,"",0,""]
[null,null,null,null,"",0,""]
[null,null,null,null,"",0,""]
["Total",null,null,null,null,null,{"$f":"SUM(((J128)*1000)/(J127*SQRT(3)))","v":0},"Amps"]
[]
[]
[{"$f":"Input!B36","v":"."}]
["Customer","MPAN","ASC","MD","Unused","Factor","Results"]
[null,null,null,null,{"$f":"IF(C138=\"\",\"\",SUM(C138-D138))","v":""},0,{"$f":"IF(F138=0,\"\",SUM(F138*E138))","v":""},null,null,{"$f":"Input!U9","v":6600}]
[null,null,null,null,"",0,"",null,null,{"$f":"SUM(G138:G143)","v":0}]
[null,null,null,null,"",0,""]
[null,null,null,null,"",0,""]
[null,null,null,null,"",0,""]
[null,null,null,null,"",0,""]
["Total",null,null,null,null,null,{"$f":"SUM(((J139)*1000)/(J138*SQRT(3)))","v":0},"Amps"]
[]
[]
[{"$f":"Input!B37","v":"."}]
["Customer","MPAN","ASC","MD","Unused","Factor","Results"]
[null,null,null,null,{"$f":"IF(C149=\"\",\"\",SUM(C149-D149))","v":""},0,{"$f":"IF(F149=0,\"\",SUM(F149*E149))","v":""},null,null,{"$f":"Input!U9","v":6600}]
[null,null,null,null,"",0,"",null,null,{"$f":"SUM(G149:G154)","v":0}]
[null,null,null,null,"",0,""]
[null,null,null,null,"",0,""]
[null,null,null,null,"",0,""]
[null,null,null,null,"",0,""]
["Total",null,null,null,null,null,{"$f":"SUM(((J150)*1000)/(J149*SQRT(3)))","v":0},"Amps"]

{"sheet":"R Form","index":4,"n_rows":68,"n_cols":28,"rows_kept":68,"cut":false,"hidden":false,"merged":[[66,1,66,3],[67,1,67,3],[58,16,59,20],[44,13,45,17],[16,1,17,8],[49,1,51,2],[44,11,45,12],[52,11,55,13],[44,18,45,18],[46,13,47,20],[44,19,45,20],[60,14,61,15],[60,16,61,20],[60,1,61,3],[58,1,59,3],[52,16,53,20],[54,16,55,20],[66,33,67,35],[66,36,67,42],[68,33,69,35],[68,36,69,42],[56,11,61,13],[56,14,57,15],[56,16,57,20],[62,33,63,35],[62,36,63,42],[64,33,65,35],[64,36,65,42],[64,1,64,20],[58,14,59,15],[67,8,67,10],[67,18,67,20],[66,14,66,17],[67,14,67,17],[66,4,66,7],[67,4,67,7],[66,11,66,13],[67,11,67,13],[66,8,66,10],[66,18,66,20],[62,1,63,6],[6,4,6,5],[6,8,6,10],[5,1,5,3],[5,4,5,10],[8,11,8,14],[58,4,59,10],[8,5,8,10],[12,5,12,10],[6,1,6,3],[6,6,6,7],[10,11,11,14],[9,11,9,14],[13,4,13,6],[13,8,13,10],[54,14,55,15],[52,1,53,3],[52,4,53,10],[54,1,55,3],[54,4,55,10],[46,1,47,12],[18,1,18,10],[9,5,9,10],[12,1,12,4],[13,1,13,2],[1,1,1,13],[3,1,4,3],[19,1,43,10],[19,11,43,20],[2,1,2,10],[10,1,11,4],[10,5,11,10],[13,11,13,20],[15,11,15,13],[3,4,4,10],[18,11,18,20],[3,16,3,18],[4,16,4,18],[3,11,3,13],[4,11,4,13],[5,11,5,17],[5,18,5,19],[6,11,6,14],[6,16,6,20],[7,16,7,20],[7,11,7,14],[8,1,8,4],[9,1,9,4],[8,18,8,19],[14,7,15,8],[14,9,15,10],[16,9,17,10],[7,1,7,4],[7,5,7,10],[62,7,63,20],[48,3,51,20],[60,4,61,10],[56,1,57,3],[56,4,57,10],[44,1,45,10],[52,14,53,15],[14,1,15,6],[8,15,8,16]]}
[null,"REQUEST FOR ALTERATION TO HV SYSTEM 'R' FORM"]
[null,"Approval of this form must not be taken as an endorsement of the Health & Safety, technical or economic merits of the proposed alteration (see EDP 282, 4.1)."]
[]
[null,{"$f":"Input!D3","v":"Scheme Name and address:"},null,null,{"$f":"Input!E3","v":"Stagecoach Sharston Depot, Leestone Road, Wythenshawe, Manchester"},null,null,null,null,null,null,"Existing MIC:",null,null,{"$f":"Input!L7","v":120},"kVA","Proposed MIC:",null,null,{"$f":"Input!L6","v":1500},"kVA"]
[null,null,null,null,null,null,null,null,null,null,null,"Existing MEC:",null,null,{"$f":"Input!O7","v":0},"kVA","Proposed MEC:",null,null,{"$f":"Input!O6","v":0},"kVA"]
[null,"Application Start Date",null,null,{"$f":"Input!L12","v":"2019-06-22"},null,null,null,null,null,null,"Estimated increase in demand on the                        network to be seen above the existing levels:",null,null,null,null,null,null,{"$f":"Input!L9","v":1393},null,"kVA"]
[null,"Post code:",null,null,{"$f":"Input!E4","v":"M22 4RB"},null,"Project No.",null,{"$f":"Input!L4","v":"5500153017A"},null,null,"Interactive:",null,null,null,null,"No"]
[null,"Status:",null,null,null,{"$f":"Input!E9","v":"Proposed"},null,null,null,null,null,"Type:",null,null,null,null,{"$f":"Input!E10","v":"Add Load"}]
[null,"Distribution Sub:",null,null,null,{"$f":"Input!E12","v":178413},null,null,null,null,null,"Connection Type:",null,null,null,"Demand ",null,{"$f":"IF(Input!L19=0,\"\",Input!L19)","v":"N-1"},"Generation ",null,{"$f":"IF(Input!L20=0,\"\",Input!L20)","v":""}]
[null,"Primary Substation:",null,null,null,{"$f":"Input!E14","v":"NORTHENDEN"},null,null,null,null,null,"For approval use only"]
[null,"Primary feeder name:",null,null,null,{"$f":"Input!E13","v":"F4500 LEESTONE RD"},null,null,null,null,null,"RELEASED:"]
[null,null,null,null,null,null,null,null,null,null,null,null,null,null,null,null,null,null,null,null,null,null,null,null,"YES",{"$f":"VLOOKUP(Y12,AA12:AB24,2,1)","v":"Northenden: F4500 Leestone Rd"},{"$f":"Input!J24","v":"YES"},{"$f":"Input!B24","v":"Northenden: F4500 Leestone Rd"}]
[null,"HV diagram reference:",null,null,null,{"$f":"Input!E16","v":"MANCHESTER SOUTH"},null,null,null,null,null,"Release Expiry Date",null,null,null,null,null,null,null,null,null,null,null,null,null,null,{"$f":"Input!J25","v":"NO"},{"$f":"Input!B25","v":"Northenden: F1887 Royal Green Rd"}]
[null,"Grid Ref:",null,"X:",{"$f":"IF(Input!BA21=\"\",\"Please enter X\",Input!BA21)","v":383472},null,null,"Y:",{"$f":"IF(Input!BB21=\"\",\"Please enter Y\",Input!BB21)","v":388998},null,null,"(Expiry date of approval to undertake work)",null,null,null,null,null,null,null,null,null,null,null,null,null,null,{"$f":"Input!J27","v":0},{"$f":"Input!B27","v":0}]
[null,"Are there legal consents required with parties other than the applicant?",null,null,null,null,null,null,null,null,null,"WORK CANNOT PROCEED WITHOUT A RELEASE SIGNATURE",null,null,null,null,null,null,null,null,null,null,null,null,null,null,{"$f":"Input!J28","v":0},{"$f":"Input!B28","v":"."}]
[null,null,null,null,null,null,null,null,null,null,null,"Registration No:",null,null,null,null,null,null,null,null,null,null,null,null,null,null,{"$f":"Input!J29","v":0},{"$f":"Input!B29","v":"."}]
[null,"Design includes network performance optimisation as per EPD 282, 4.2?",null,null,null,null,null,null,null,null,null,null,null,null,null,null,null,null,null,null,null,null,null,null,null,null,{"$f":"Input!J30","v":0},{"$f":"Input!B30","v":"."}]
[null,null,null,null,null,null,null,null,null,null,null,null,null,null,null,null,null,null,null,null,null,null,null,null,null,null,{"$f":"Input!J31","v":0},{"$f":"Input!B31","v":"."}]
[null,"System before",null,null,null,null,null,null,null,null,null,"System after",null,null,null,null,null,null,null,null,null,null,null,null,null,null,{"$f":"Input!J32","v":0},{"$f":"Input!B32","v":"."}]
[null,null,null,null,null,null,null,null,null,null,null,null,null,null,null,null,null,null,null,null,null,null,null,null,null,null,{"$f":"Input!J33","v":0},{"$f":"Input!B33","v":"."}]
[null,null,null,null,null,null,null,null,null,null,null,null,null,null,null,null,null,null,null,null,null,null,null,null,null,null,{"$f":"Input!J34","v":0},{"$f":"Input!B34","v":"."}]
[null,null,null,null,null,null,null,null,null,null,null,null,null,null,null,null,null,null,null,null,null,null,null,null,null,null,{"$f":"Input!J35","v":0},{"$f":"Input!B35","v":"."}]
[null,null,null,null,null,null,null,null,null,null,null,null,null,null,null,null,null,null,null,null,null,null,null,null,null,null,{"$f":"Input!J36","v":0},{"$f":"Input!B36","v":"."}]
[null,null,null,null,null,null,null,null,null,null,null,null,null,null,null,null,null,null,null,null,null,null,null,null,null,null,{"$f":"Input!J37","v":0},{"$f":"Input!B37","v":"."}]
[]
[]
[]
[]
[]
[]
[]
[]
[]
[]
[]
[]
[]
[]
[]
[]
[]
[]
[]
[]
[null,"Are there any reinforcement costs associated with this project?",null,null,null,null,null,null,null,null,null,"Yes",null,null,null,null,null,null,"No"]
[]
[null,"Are there any abnormal loads, eg large motors, welders, thyristor control, arc furnace etc?  If yes, provide brief summary and attach details."]
[]
[null,"Other notes:",null,"S.K"]
[]
[]
[]
[null,"Requested by:",null,null,{"$f":"Input!E6","v":"Peter Range"},null,null,null,null,null,null,"Strategic Planning Engineer",null,null,"Name:",null,{"$f":"Input!E7","v":"Ian Walker"}]
[]
[null,"Date:",null,null,{"$f":"IF(Input!L3=\"\",\"\",Input!L3)","v":"2019-07-31"},null,null,null,null,null,null,null,null,null,"Tel:",null,{"$f":"Input!H7","v":22931}]
[]
[null,"Office & Dept:",null,null,{"$f":"VLOOKUP(Input!E6,data!O2:R150,4,0)","v":"Manchester"},null,null,null,null,null,null,"Alteration registered by:",null,null,"Signed:"]
[]
[null,"Tel:",null,null,{"$f":"Input!H6","v":22018},null,null,null,null,null,null,null,null,null,"Print:"]
[]
[null,null,null,null,null,null,null,null,null,null,null,null,null,null,"Date:"]
[]
[null,"PROPOSAL EXPIRY DATE:"]
[]
[null,"An approved copy of this form, with RELEASE VALIDATION, must accompany the associated HV switching programme:"]
[]
[null,"Document No",null,null,"Loadcheck Version",null,null,null,"R form Version",null,null,"Issue date",null,null,"Template Prepared by",null,null,null,"Approved by"]
[null,"GB 01",null,null,"Version3 (11/02/2014)",null,null,null,"Version 8.0 (March19 v1.3)",null,null,"2019-03-28",null,null,"Gillian Williamson",null,null,null,"Victoria Turnham"]

{"sheet":"POC Report","index":5,"n_rows":34,"n_cols":15,"rows_kept":34,"cut":false,"hidden":false,"merged":[[33,1,33,9],[27,1,27,9],[28,1,28,9],[29,1,29,9],[30,1,30,9],[31,1,31,9],[32,0,32,9],[26,1,26,9],[15,1,15,9],[16,1,16,9],[17,1,17,9],[18,0,18,9],[19,1,19,9],[20,1,20,9],[21,1,21,9],[22,0,22,9],[23,1,23,9],[24,1,24,9],[25,1,25,9],[14,1,14,9],[1,0,1,9],[2,1,2,9],[3,1,3,9],[4,0,4,9],[5,1,5,9],[6,1,6,9],[13,1,13,9],[7,1,7,9],[8,1,8,9],[9,1,9,9],[10,1,10,9],[11,1,12,9]]}
[null,"HV Point of Connection Report"]
["HV POC Assessment"]
["Strategic Planning Planning Engineer",{"$f":"Input!E7","v":"Ian Walker"}]
["HV POC Completion Date",{"$f":"Input!L3","v":"2019-07-31"}]
["Scheme Application Information"]
["Reference Number                                 55 No.",{"$f":"Input!L4","v":"5500153017A"}]
["58 No.",{"$f":"Input!AO21","v":580000084470}]
["Scheme Name & Address",{"$f":"Input!E3","v":"Stagecoach Sharston Depot, Leestone Road, Wythenshawe, Manchester"}]
["Scheme Postcode",{"$f":"Input!E4","v":"M22 4RB"}]
["Grid Reference                                                X",{"$f":"IF(Input!BA21=\"\",\"Please enter X\",Input!BA21)","v":383472}]
["Y",{"$f":"IF(Input!BB21=\"\",\"Please enter Y\",Input!BB21)","v":388998},null,null,null,null,null,null,null,null,null,null,null,{"$f":"IF(OR(N12=1,N13=1),0,1)","v":1},"Demand"]
["Connection Type",{"$f":"VLOOKUP(1,N11:O13,2,0)","v":"Demand"},null,null,null,null,null,null,null,null,null,null,null,{"$f":"IF([2]Input!E14=\"Generation (No Storage)\",1,\"\")","v":""},"Generator"]
["Demand/Generator/Storage",null,null,null,null,null,null,null,null,null,null,null,null,{"$f":"IF([2]Input!E14=\"Generation (Storage)\",1,\"\")","v":""},"Storage"]
["Generator Classification (G99 Type)",{"$f":"IF(B12<>\"Demand\",\"Please enter G99 Type classification\",\"Not required for Demand\")","v":"Not required for Demand"}]
["Import (MIC - kW)",{"$f":"Input!L6&\"kVA\"","v":"1500kVA"}]
["Export (MEC - kW)",{"$f":"IF(Input!O10=\"\",\"\",Input!O6&\" Kw\")","v":""}]
["Applicant","UK Power Networks"]
["Overview","Add load 1500kVA to existing network "]
["Point of Connection"]
["Primary Substation",{"$f":"Input!E14","v":"NORTHENDEN"}]
["Circuit (if applicable)",{"$f":"Input!E13","v":"F4500 LEESTONE RD"}]
["Point of Connection","Add load 1500kVA to existing network "]
["Connection Details"]
["Any capital work involved –  if so, describe:"]
["Rating for Apportionment -CAF factors (if applicable)"]
["Interactive","Yes",null,null,null,null,null,null,null,null,"Yes","No"]
["Baisis on Interactivity (circuit or Primary name)","F1887 Royal Green Rd"]
["Second Comer Applicable?"]
["HV circuit/asset affected by second comer"]
["Power Supply Interruptions (PSI's)"]
["Circuit Main Earth's required (CME's)"]
["Statement of Works"]
["Other Comments"]
["Other Comments","The proposed scheme shall be made interactive with 55-147350 (Stagecoach Bus Depot)"]

{"sheet":"Drawing","index":6,"n_rows":73,"n_cols":80,"rows_kept":73,"cut":false,"hidden":true,"merged":[[64,29,64,33],[65,28,66,33],[67,28,68,33],[69,5,69,33],[72,5,72,33],[56,28,57,33],[58,28,59,29],[58,31,59,31],[58,32,59,33],[61,28,62,29],[61,31,62,33],[51,28,51,29],[52,28,53,29],[52,31,53,31],[52,32,53,33],[54,28,55,29],[54,31,55,31],[54,32,55,33],[47,28,48,29],[47,31,48,31],[47,32,48,33],[49,28,50,29],[49,31,50,31],[49,32,50,33],[41,28,42,29],[41,31,42,33],[43,28,44,29],[43,31,44,33],[45,28,46,29],[45,31,46,31],[45,32,46,33],[39,28,40,29],[39,31,40,33],[24,28,25,29],[24,31,25,33],[26,28,26,33],[28,28,29,33],[32,27,32,33],[33,27,33,33],[35,28,36,29],[35,31,36,33],[37,28,38,29],[37,31,38,31],[37,32,38,33],[18,28,19,29],[18,30,19,33],[20,28,21,29],[20,30,21,33],[22,28,23,29],[22,31,22,33],[23,31,23,33],[16,28,17,29],[16,30,17,33],[1,41,5,49],[1,50,5,50],[8,28,8,33],[10,28,14,28],[10,29,14,33]]}
[]
[null,null,null,null,null,null,null,null,null,null,null,null,null,null,null,null,null,null,null,null,null,null,null,null,null,null,null,null,null,null,null,null,null,null,null,null,null,null,null,null,null,null,null,null,null,null,null,null,null,null,null,null,null,null,null,null,{"$f":"IF($AY$2=BF2,1,\"\")","v":""},"No",null,null,null,null,null,null,null,null,null,null,null,null,null,null,null,null,null,"Looped"]
[null,null,null,null,null,null,null,null,null,null,null,null,null,null,null,null,null,null,null,null,null,null,null,null,null,null,null,null,null,null,null,null,null,null,null,null,null,null,null,null,null,null,null,null,null,null,null,null,null,null,null,null,null,null,null,null,{"$f":"IF($AY$2=BF3,1,\"\")","v":""},1,null,null,null,null,null,null,null,null,null,null,null,null,null,null,null,null,null,"Teed",null,null,null,230]
[null,null,null,null,null,null,null,null,null,null,null,null,null,null,null,null,null,null,null,null,null,null,null,null,null,null,null,null,null,null,null,null,null,null,null,null,null,null,null,null,null,null,null,null,null,null,null,null,null,null,null,null,null,null,null,null,{"$f":"IF($AY$2=BF4,1,\"\")","v":""},2,null,null,null,null,null,null,null,null,null,null,null,null,null,null,null,null,null,null,null,15,null,"230/400"]
[null,null,null,null,null,null,null,null,null,null,null,null,null,null,null,null,null,null,null,null,null,null,null,null,null,null,null,null,null,null,null,null,null,null,null,null,null,null,null,null,null,null,null,null,null,null,null,null,null,null,null,null,null,null,null,null,{"$f":"IF($AY$2=BF5,1,\"\")","v":""},3,null,null,null,null,null,null,null,null,null,null,null,null,null,null,null,null,null,null,null,25,null,"230/460"]
[null,null,null,null,null,null,null,null,null,null,null,null,null,null,null,null,null,null,null,null,null,null,null,null,null,null,null,null,null,null,null,null,null,null,null,null,null,null,null,null,null,null,null,null,null,null,null,null,null,null,null,null,null,null,null,null,null,null,null,null,null,null,null,null,null,null,null,null,null,null,null,null,null,null,null,null,null,100,null,6600]
[null,null,null,null,null,null,null,null,null,null,null,null,null,null,null,null,null,null,null,null,null,null,null,null,null,null,null,null,null,null,null,null,null,null,null,null,null,null,null,null,null,null,null,null,null,null,null,null,null,null,null,null,null,null,null,null,null,null,null,null,null,null,null,null,null,null,null,null,null,null,null,null,null,null,null,null,null,200,null,11000]
[null,null,null,null,null,null,null,null,null,null,null,null,null,null,null,null,null,null,null,null,null,null,null,null,null,null,null,null,null,null,null,null,null,null,null,null,null,null,null,null,null,null,null,null,null,null,null,null,null,null,null,null,null,null,null,null,null,null,null,null,null,null,null,null,null,null,null,null,null,null,null,null,null,null,null,null,null,300,null,33000]
[null,null,null,null,null,null,null,null,null,null,null,null,null,null,null,null,null,null,null,null,null,null,null,null,null,null,null,null,"PROJECT DETAIL",null,null,null,null,null,null,null,null,null,null,null,null,null,null,null,null,null,null,null,null,null,null,null,null,null,null,null,null,null,null,null,null,null,null,null,null,null,null,null,null,null,null,null,null,null,null,null,null,315]
[null,null,null,null,null,null,null,null,null,null,null,null,null,null,null,null,null,null,null,null,null,null,null,null,null,null,null,null,null,null,null,null,null,null,null,null,null,null,null,null,null,null,null,null,null,null,null,null,null,null,null,null,null,null,null,null,null,null,null,null,null,null,null,null,null,null,null,null,null,null,null,null,null,null,null,null,null,500]
[null,null,null,null,null,null,null,null,null,null,null,null,null,null,null,null,null,null,null,null,null,null,null,null,null,null,null,null,"Name & Address:",{"$f":"Input!E3","v":"Stagecoach Sharston Depot, Leestone Road, Wythenshawe, Manchester"},null,null,null,null,null,null,null,null,null,null,null,null,null,null,null,null,null,null,null,null,null,null,null,null,null,null,null,null,null,null,null,null,null,null,null,null,null,null,null,null,null,null,null,null,null,null,null,750]
[null,null,null,null,null,null,null,null,null,null,null,null,null,null,null,null,null,null,null,null,null,null,null,null,null,null,null,null,null,null,null,null,null,null,null,null,null,null,null,null,null,null,null,null,null,null,null,null,null,null,null,null,null,null,null,null,null,null,null,null,null,null,null,null,null,null,null,null,null,null,null,null,null,null,null,null,null,800]
[null,null,null,null,null,null,null,null,null,null,null,null,null,null,null,null,null,null,null,null,null,null,null,null,null,null,null,null,null,null,null,null,null,null,null,null,null,null,null,null,null,null,null,null,null,null,null,null,null,null,null,null,null,null,null,null,null,null,null,null,null,null,null,null,null,null,null,null,null,null,null,null,null,null,null,null,null,1000]
[]
[]
[]
[null,null,null,null,null,null,null,null,null,null,null,null,null,null,null,null,null,null,null,null,null,null,null,null,null,null,null,null,"Scheme Ref Number:",null,{"$f":"Input!L4","v":"5500153017A"}]
[]
[null,null,null,null,null,null,null,null,null,null,null,null,null,null,null,null,null,null,null,null,null,null,null,null,null,null,null,null,"Drawn By:  ",null,{"$f":"Input!E6","v":"Peter Range"}]
[]
[null,null,null,null,null,null,null,null,null,null,null,null,null,null,null,null,null,null,null,null,null,null,null,null,null,null,null,null,"Date:",null,{"$f":"'POC Report'!B4:J4","v":{"$error":"#VALUE!"}}]
[]
[null,null,null,null,null,null,null,null,null,null,null,null,null,null,null,null,null,null,null,null,null,null,null,null,null,null,null,null,"Grid Reference:",null,"(X)",{"$f":"'R Form'!E14:G14","v":{"$error":"#VALUE!"}}]
[null,null,null,null,null,null,null,null,null,null,null,null,null,null,null,null,null,null,null,null,null,null,null,null,null,null,null,null,null,null,"(Y)",{"$f":"'R Form'!I14:K14","v":{"$error":"#VALUE!"}}]
[null,null,null,null,null,null,null,null,null,null,null,null,null,null,null,null,null,null,null,null,null,null,null,null,null,null,null,null,"Scale:",null,null,"N.T.S"]
[]
[]
[]
[]
[]
[]
[]
[null,null,null,null,null,null,null,null,null,null,null,null,null,null,null,null,null,null,null,null,null,null,null,null,null,null,null,"POINT OF CONNECTION"]
[null,null,null,null,null,null,null,null,null,null,null,null,null,null,null,null,null,null,null,null,null,null,null,null,null,null,null,"TECHNICAL DETAIL"]
[]
[null,null,null,null,null,null,null,null,null,null,null,null,null,null,null,null,null,null,null,null,null,null,null,null,null,null,null,null,"Cable Size @ P.O.C :"]
[]
[null,null,null,null,null,null,null,null,null,null,null,null,null,null,null,null,null,null,null,null,null,null,null,null,null,null,null,null,"Voltage :",null,null,{"$f":"Input!E19","v":"6.6kV"}]
[]
[null,null,null,null,null,null,null,null,null,null,null,null,null,null,null,null,null,null,null,null,null,null,null,null,null,null,null,null,"Minimum Cable Size :"]
[]
[null,null,null,null,null,null,null,null,null,null,null,null,null,null,null,null,null,null,null,null,null,null,null,null,null,null,null,null,"Loop or Teed (HV only)"]
[]
[null,null,null,null,null,null,null,null,null,null,null,null,null,null,null,null,null,null,null,null,null,null,null,null,null,null,null,null,"Feeder Name / No :",null,null,{"$f":"'R Form'!F11:K12","v":{"$error":"#VALUE!"}}]
[]
[null,null,null,null,null,null,null,null,null,null,null,null,null,null,null,null,null,null,null,null,null,null,null,null,null,null,null,null,"Transformer Size :",null,null,null,"kVA"]
[]
[null,null,null,null,null,null,null,null,null,null,null,null,null,null,null,null,null,null,null,null,null,null,null,null,null,null,null,null,"Fuse Size :",null,null,null,"Amps"]
[]
[null,null,null,null,null,null,null,null,null,null,null,null,null,null,null,null,null,null,null,null,null,null,null,null,null,null,null,null,"Earth Loop Impedance :",null,null,null,"ohms"]
[]
[null,null,null,null,null,null,null,null,null,null,null,null,null,null,null,null,null,null,null,null,null,null,null,null,null,null,null,null,"% Voltage Drop "]
[null,null,null,null,null,null,null,null,null,null,null,null,null,null,null,null,null,null,null,null,null,null,null,null,null,null,null,null,"1) Including site load",null,null,null,"%"]
[]
[null,null,null,null,null,null,null,null,null,null,null,null,null,null,null,null,null,null,null,null,null,null,null,null,null,null,null,null,"2) excluding site Load",null,null,null,"%"]
[]
[null,null,null,null,null,null,null,null,null,null,null,null,null,null,null,null,null,null,null,null,null,null,null,null,null,null,null,null,"Generation:"]
[]
[null,null,null,null,null,null,null,null,null,null,null,null,null,null,null,null,null,null,null,null,null,null,null,null,null,null,null,null,"Voltage Rise relative to primary BB :",null,null,null,"%"]
[]
[]
[null,null,null,null,null,null,null,null,null,null,null,null,null,null,null,null,null,null,null,null,null,null,null,null,null,null,null,null,"Positive sequence R+JX (% on 100MVA base)"]
[]
[]
[null,null,null,null,null,null,null,null,null,null,null,null,null,null,null,null,null,null,null,null,null,null,null,null,null,null,null,null,"Notes :"]
[]
[]
[null,null,null,null,null,null,null,null,null,null,null,null,null,null,null,null,null,null,null,null,null,null,null,null,null,null,null,null,"For reference only"]
[]
[null,null,null,null,null,"This plan is issued by Electricity North West Limited. Unless otherwise indicated Electricity North West Limited cables are laid at depths in accordance with NJUG 2 (typically 450mm for Low Voltage & 600mm for 11KV cables in footpath). 33KV/132KV cables are laid at depths as marked. The depths and positions of Electricity North West Limited equipment was accurate as shown when the equipment was installed. However, third parties may have altered the surface level & other reference data. Therefore Electricity North West Limited accept no responsibility for the position of Electricity North West Limited equipment being different from that shown. No person, body or company, shall be relieved from liability for damage caused to Electricity North West Limited equipment by reason of being located differently to the indications on this drawing. Service cables are not necessarily shown but must be assumed to exist to all premises, streetlights and signs. There may be other Electricity North West Limited apparatus in the vicinity which is not indicated in the cable records. "]
[]
[]
[null,null,null,null,null,"Other apparatus may also be present which is owned by a third party other than Electricity North West Limited. Reproduced from or based upon Ordnance Survey's map with permission of the controller of Her Majesty's Stationery Office. Crown Copyright Reserved. LICENCE No 100017892. Unauthorised reproduction infringes Crown Copyright and may lead to prosecution or civil proceedings. Reference should be made to HSE guidance HS(G)47 \"Avoiding Danger from Underground Services\" and GS6 \"Avoidance of Danger from Overhead Power Lines\". Electricity North West Limited, registered number 2366949, registered in England and Wales, registered office: 304 Bridgewater Place, Birchwood Park,  Warrington, WA3 6XG"]

{"sheet":"Before Drwg","index":7,"n_rows":22,"n_cols":28,"rows_kept":22,"cut":false,"hidden":false,"merged":[]}
[]
[]
[]
[]
[]
[]
[]
[]
[]
[null,null,null,null,null,null,null,null,null,null,null,null,null,null,null,null,null,null,null,null,null,null,null,null,"YES",{"$f":"VLOOKUP(Y10,AA10:AB22,2,0)","v":"Northenden: F4500 Leestone Rd"},{"$f":"Input!J24","v":"YES"},{"$f":"Input!B24","v":"Northenden: F4500 Leestone Rd"}]
[null,null,null,null,null,null,null,null,null,null,null,null,null,null,null,null,null,null,null,null,null,null,null,null,null,null,{"$f":"Input!J25","v":"NO"},{"$f":"Input!B25","v":"Northenden: F1887 Royal Green Rd"}]
[null,null,null,null,null,null,null,null,null,null,null,null,null,null,null,null,null,null,null,null,null,null,null,null,null,null,{"$f":"Input!J27","v":0},{"$f":"Input!B27","v":0}]
[null,null,null,null,null,null,null,null,null,null,null,null,null,null,null,null,null,null,null,null,null,null,null,null,null,null,{"$f":"Input!J28","v":0},{"$f":"Input!B28","v":"."}]
[null,null,null,null,null,null,null,null,null,null,null,null,null,null,null,null,null,null,null,null,null,null,null,null,null,null,{"$f":"Input!J29","v":0},{"$f":"Input!B29","v":"."}]
[null,null,null,null,null,null,null,null,null,null,null,null,null,null,null,null,null,null,null,null,null,null,null,null,null,null,{"$f":"Input!J30","v":0},{"$f":"Input!B30","v":"."}]
[null,null,null,null,null,null,null,null,null,null,null,null,null,null,null,null,null,null,null,null,null,null,null,null,null,null,{"$f":"Input!J31","v":0},{"$f":"Input!B31","v":"."}]
[null,null,null,null,null,null,null,null,null,null,null,null,null,null,null,null,null,null,null,null,null,null,null,null,null,null,{"$f":"Input!J32","v":0},{"$f":"Input!B32","v":"."}]
[null,null,null,null,null,null,null,null,null,null,null,null,null,null,null,null,null,null,null,null,null,null,null,null,null,null,{"$f":"Input!J33","v":0},{"$f":"Input!B33","v":"."}]
[null,null,null,null,null,null,null,null,null,null,null,null,null,null,null,null,null,null,null,null,null,null,null,null,null,null,{"$f":"Input!J34","v":0},{"$f":"Input!B34","v":"."}]
[null,null,null,null,null,null,null,null,null,null,null,null,null,null,null,null,null,null,null,null,null,null,null,null,null,null,{"$f":"Input!J35","v":0},{"$f":"Input!B35","v":"."}]
[null,null,null,null,null,null,null,null,null,null,null,null,null,null,null,null,null,null,null,null,null,null,null,null,null,null,{"$f":"Input!J36","v":0},{"$f":"Input!B36","v":"."}]
[null,null,null,null,null,null,null,null,null,null,null,null,null,null,null,null,null,null,null,null,null,null,null,null,null,null,{"$f":"Input!J37","v":0},{"$f":"Input!B37","v":"."}]

{"sheet":"After Drwg","index":8,"n_rows":22,"n_cols":28,"rows_kept":22,"cut":false,"hidden":false,"merged":[]}
[]
[]
[]
[]
[]
[]
[]
[]
[]
[null,null,null,null,null,null,null,null,null,null,null,null,null,null,null,null,null,null,null,null,null,null,null,null,"YES",{"$f":"VLOOKUP(Y10,AA10:AB22,2,0)","v":"Northenden: F4500 Leestone Rd"},{"$f":"Input!J24","v":"YES"},{"$f":"Input!B24","v":"Northenden: F4500 Leestone Rd"}]
[null,null,null,null,null,null,null,null,null,null,null,null,null,null,null,null,null,null,null,null,null,null,null,null,null,null,{"$f":"Input!J25","v":"NO"},{"$f":"Input!B25","v":"Northenden: F1887 Royal Green Rd"}]
[null,null,null,null,null,null,null,null,null,null,null,null,null,null,null,null,null,null,null,null,null,null,null,null,null,null,{"$f":"Input!J27","v":0},{"$f":"Input!B27","v":0}]
[null,null,null,null,null,null,null,null,null,null,null,null,null,null,null,null,null,null,null,null,null,null,null,null,null,null,{"$f":"Input!J28","v":0},{"$f":"Input!B28","v":"."}]
[null,null,null,null,null,null,null,null,null,null,null,null,null,null,null,null,null,null,null,null,null,null,null,null,null,null,{"$f":"Input!J29","v":0},{"$f":"Input!B29","v":"."}]
[null,null,null,null,null,null,null,null,null,null,null,null,null,null,null,null,null,null,null,null,null,null,null,null,null,null,{"$f":"Input!J30","v":0},{"$f":"Input!B30","v":"."}]
[null,null,null,null,null,null,null,null,null,null,null,null,null,null,null,null,null,null,null,null,null,null,null,null,null,null,{"$f":"Input!J31","v":0},{"$f":"Input!B31","v":"."}]
[null,null,null,null,null,null,null,null,null,null,null,null,null,null,null,null,null,null,null,null,null,null,null,null,null,null,{"$f":"Input!J32","v":0},{"$f":"Input!B32","v":"."}]
[null,null,null,null,null,null,null,null,null,null,null,null,null,null,null,null,null,null,null,null,null,null,null,null,null,null,{"$f":"Input!J33","v":0},{"$f":"Input!B33","v":"."}]
[null,null,null,null,null,null,null,null,null,null,null,null,null,null,null,null,null,null,null,null,null,null,null,null,null,null,{"$f":"Input!J34","v":0},{"$f":"Input!B34","v":"."}]
[null,null,null,null,null,null,null,null,null,null,null,null,null,null,null,null,null,null,null,null,null,null,null,null,null,null,{"$f":"Input!J35","v":0},{"$f":"Input!B35","v":"."}]
[null,null,null,null,null,null,null,null,null,null,null,null,null,null,null,null,null,null,null,null,null,null,null,null,null,null,{"$f":"Input!J36","v":0},{"$f":"Input!B36","v":"."}]
[null,null,null,null,null,null,null,null,null,null,null,null,null,null,null,null,null,null,null,null,null,null,null,null,null,null,{"$f":"Input!J37","v":0},{"$f":"Input!B37","v":"."}]

{"sheet":"data","index":9,"n_rows":402,"n_cols":22,"rows_kept":402,"cut":false,"hidden":false,"merged":[]}
["Primary s/s","£ per kVA","G&P STUDY REQUIRED","HV diagram area","VOLTAGE",null,"11kV",11000,null,"Size","Continuous","Cyclic","Distribution",null,"Planner","Tel (Internal)","Fax","Area",null,null,null,"Selector"]
["Air Products",{"$error":"#N/A"},null,"MANCHESTER SOUTH",{"$error":"#N/A"},null,"6.6kV",6600,null,"95 XXX",245,284,316,null,"PLEASE FILL IN NAME",null,null,null,null,null,null,"Yes"]
["Albion St",0,0,"BLACKBURN","6.6kV",null,null,null,null,"95 PICAS",185,210,245,null,"Alan Bradley",81868,81732,"Planning Preston",null,null,null,"No"]
["Alderley & Chelford",0,0,"PEAK SOUTH","11kV",null,null,null,null,"95 Cu PILC",245,275,330,null,"Alan Kemp",81834,81841,"Statutory Preston",null,"OK WITH DIVERSITY"]
["Alderley Park",{"$error":"#N/A"},null,"PEAK SOUTH",{"$error":"#N/A"},null,null,null,null,"95 Al PILC",190,215,260,null,"Alek Hyzniak",22961,22314,"Manchester",null,"ALTERNTIVE AVAILABLE"]
["Alston",0,0,"PENRITH","11kV",null,null,null,null,"400 XXX",552,646,713,null,"Allen Rawcliffe",81468,81503,"Statutory Preston",null,"NOT DUE TO NEW LOAD"]
["AM Paper",{"$error":"#N/A"},null,"SOUTH LANCS",{"$error":"#N/A"},null,null,null,null,"300 XXX",461,542,610,null,"Andrew Harper",24344,null,"Manchester",null,"RESTORE SUPPLIES BY SPLITTING"]
["Ambleside",0,0,"KENDAL","11kV",null,null,null,null,"300 PICAS",355,400,490,null,"Andrew Twyford","01524 701423",null,"Planning Kendal",null,"FEEDER SPLIT TO RESTORE SUPPLIES"]
["Ancoats North T11 & T12",0,0,"MANCHESTER NORTH","6.6kV",null,null,null,null,"300 Cu PILC",460,520,665,null,"Andy Lees",22930,22314,"Manchester",null,"SEE BELOW FOR REDUCED SECTION"]
["Ancoats North T13",{"$error":"#N/A"},null,"MANCHESTER NORTH","6.6kV",null,null,null,null,"300 Al PILC",365,410,525,null,"Anne Thomson",22139,22314,"Manchester",null,"TO CHECK REDUCED SECTION IN FEEDER"]
["Annie Pit",0,0,"WORKINGTON","11kV",null,null,null,null,"240 Cu PILC",410,460,460,null,"Bill Halliwell",81610,81503,"Statutory Preston",null,"EXISTING ARRANGEMENT"]
["Ansdell",0,0,"BLACKPOOL","6.6kV",null,null,null,null,"240 Al PILC",325,365,460,null,"Bryan Jenkinson",86128,86009,"Planning Kendal",null,"PROPOSED ARRANGEMENT"]
["Ardwick",0,"LV charges are £153.31. All charges apply until 29/6/2014. Proj ref d.80010717.799 Ardwick 224.7 LV charges are £153.31. All charges apply until 29/6/2014. Proj ref d.80010717.799 MANCHESTER SOUTH 6.6kV D.80010717 Manc Cntrl Piccadilly Travis St Rein 28/09/2012 Expired","MANCHESTER SOUTH","6.6kV",null,null,null,null,"185 XXX",353,412,461,null,"Chris Cliff",26706,26699,"Stockport Planning",null,"OK IF NO ASC'S EXCEEDED"]
["Arnside",0,0,"LANCASTER","11kV",null,null,null,null,"185 PICAS",270,305,370,null,"Chris Reilly",86415,null,"Planning Carlisle",null,"SCENARIO FOR NO ASC'S EXCEEDED"]
["Ashton (Golborne)",{"$error":"#N/A"},null,"SOUTH LANCS","6.6kV",null,null,null,null,"185 Cu PILC",355,400,500,null,"Chris Thompson",6557,6442,"Statutory Carlisle",null,"WON'T WORK EVEN WITH SPLITTING"]
["Ashton (Ribble)",{"$error":"#N/A"},null,"PRESTON","6.6kV",null,null,null,null,"185 Al PILC",280,315,390,null,"Claire Knight",85313,null,"Manchester",null,"WON'T WORK CAN'T SPLIT"]
["Ashton On Mersey",0,0,"MANCHESTER SOUTH","6.6kV",null,null,null,null,"120 Cu PILC",280,315,380,null,"Clive Mellor",26695,26699,"Stockport Planning",null,"SEE NOTE IN FREE FORMAT SECTION"]
["Ashton Under Lyne T11 & T12",{"$error":"#N/A"},null,"PEAK NORTH","6.6kV",null,null,null,null,"120 Al PILC",220,245,300,null,"Dan Garner",26694,26699,"Stockport Planning",null,"FOR EXAMPLE ONLY"]
["Ashton Under Lyne T13",{"$error":"#N/A"},null,"PEAK NORTH","6.6kV",null,null,null,null,"0.5 Cu",530,600,670,null,"Dan Harber",26694,26699,"Stockport Planning",null,"NOT CRITICAL"]
["Ashwood Dale",0,0,"PEAK SOUTH","6.6kV",null,null,null,null,"0.5 Al PILC",420,475,530,null,"Daniel Sage",25277,null,"Preston"]
["Askam & Dalton",0,0,"BARROW","11kV",null,null,null,null,"0.4 Cu",475,535,595,null,"Darren Mycock",22568,22314,"Manchester"]
["Askerton castle",0,0,"CARLISLE","11kV",null,null,null,null,"0.4 Al PILC",375,420,470,null,"Dave Ashton",88950]
["Aspatria",0,0,"WORKINGTON","11kV",null,null,null,null,"0.3 Cu",410,460,500,null,"Dave Barlow",81846,81841,"Statutory Preston"]
["Astra Zeneca",{"$error":"#N/A"},null,"PEAK SOUTH",{"$error":"#N/A"},null,null,null,null,"0.3 Al PILC",325,365,390,null,"Dave Crowdy",86242,86009,"Planning Kendal"]
["Atherton Town Centre",{"$error":"#N/A"},null,"SOUTH LANCS","11kV",null,null,null,null,"0.25 Cu",370,415,440,null,"Dave Garrett",26696,26699,"Stockport Planning"]
["Athletic St",0,0,"BURNLEY & NELSON","6.6kV",null,null,null,null,"0.25 Al",290,325,345,null,"David Schofield",81843,81841,"Statutory Preston"]
["Avenham",0,0,"PRESTON","6.6kV",null,null,null,null,"0.2 Cu",320,360,385,null,"David Woodworth",75465,75412,"Hill Top"]
["Baguley",0,0,"MANCHESTER SOUTH","11kV",null,null,null,null,"0.2 Al",250,280,300,null,"Eric Coope",81813,81841,"Statutory Preston"]
["Bamber Bridge",0,0,"CHORLEY","11kV",null,null,null,null,"0.15 Cu",270,305,320,null,"Eric Rennie",26704,26699,"Stockport Planning"]
["Barbara St",0,0,"SOUTH LANCS","6.6kV",null,null,null,null,"0.15 Al",210,235,250,null,"Gary Davies",22849,22314,"Manchester"]
["Barrow",{"$error":"#N/A"},null,"BARROW","11kV",null,null,null,null,"0.1 Cu",220,245,255,null,"Gavin Anderson",24263,null,"System Devlopment"]
["Barton Dock Rd",0,0,"MANCHESTER NORTH","6.6kV",null,null,null,null,"0.1 Al",170,190,195,null,"Ged Horton",22049,22314,"Manchester"]
["Bedford",0,0,"SOUTH LANCS","11kV",null,null,null,null,"0.06 Cu",160,175,185,null,"Geoff Gill",26703,26699,"Stockport Planning"]
["Belgrave",0,0,"PEAK NORTH","6.6kV",null,null,null,null,"0.06 Al",125,135,145,null,"Glenn Hill",86165]
["Benchill",0,0,"MANCHESTER SOUTH","11kV",null,null,null,null,"0.04 Cu",130,140,145,null,"Ian Bradley",26695,26699,"Stockport Planning"]
["Bentham",0,0,"SETTLE","11kV",null,null,null,null,"0.04 Al",100,110,110,null,"Ian Diffenthal",81857,81732,"Planning Preston"]
["BGC Westfield Point",{"$error":"#N/A"},null,{"$error":"#N/A"},{"$error":"#N/A"},null,null,null,null,"0.025 Cu",92,100,100,null,"Ian McCormack",81760,81732,"Planning Preston"]
["Bispham",{"$error":"#N/A"},null,"BLACKPOOL","6.6kV",null,null,null,null,"0.025 Al",72,78,78,null,"Ian Walker",22931,22314,"Manchester"]
["Blackbull",0,"LV charges are £189.94. All charges apply until 12/10/2014. Proj ref d.80009716.799  Blackbull 195.07 LV charges are £189.94. All charges apply until 12/10/2014. Proj ref d.80009716.799 PRESTON 6.6kV D.80009716 Preston East Primary Reinf 04/04/2011 Expired","PRESTON","6.6kV",null,null,null,null,null,null,null,null,null,"James Johannessen ",26692,26699,"Stockport Planning"]
["Blackburn",0,0,"BLACKBURN","6.6kV",null,null,null,null,null,null,null,null,null,"Jane Newton",22153,22314,"Manchester"]
["Blackburn Rd Clayton",{"$error":"#N/A"},null,"BLACKBURN","6.6kV",null,null,null,null,null,null,null,null,null,"Jim Butler",22216,22314,"Manchester"]
["Blackfriars",0,0,"MANCHESTER NORTH","6.6kV",null,null,null,null,null,null,null,null,null,"Jim Henderson",22264,22771,"System Devlopment"]
["Blackley",0,0,"MANCHESTER NORTH","6.6kV",null,null,null,null,null,null,null,null,null,"Joe Davis",81273,81503,"Statutory Preston"]
["Blackpool",0,0,"BLACKPOOL","6.6kV",null,null,null,null,null,null,null,null,null,"John Coulthard",6451,6442,"Statutory Carlisle"]
["BNFL 9",{"$error":"#N/A"},null,{"$error":"#N/A"},{"$error":"#N/A"},null,null,null,null,null,null,null,null,null,"John Hannah","ENS"]
["BNFL Beckermet",{"$error":"#N/A"},null,{"$error":"#N/A"},{"$error":"#N/A"},null,null,null,null,null,null,null,null,null,"John Whiting",26703,26699,"Stockport Planning"]
["BNFL11",{"$error":"#N/A"},null,{"$error":"#N/A"},{"$error":"#N/A"},null,null,null,null,null,null,null,null,null,"John Wilkinson",23662,null,"Planning Kendal"]
["Bollington",0,0,"PEAK SOUTH","11kV",null,null,null,null,null,null,null,null,null,"Jon Nickson",24896,null,"Hilltop"]
["Bolton By Bowland",0,0,"11KV","11kV",null,null,null,null,null,null,null,null,null,"Julian Shepherd",26698,26699,"Stockport Planning"]
["Bolton Le Sands",0,0,"LANCASTER","11kV",null,null,null,null,null,null,null,null,null,"Karen McFadden",22111,22314,"Manchester"]
["Bolton Waste",{"$error":"#N/A"},null,"SOUTH LANCS",{"$error":"#N/A"},null,null,null,null,null,null,null,null,null,"Keith Nicholls",81110,81503,"Statutory Preston"]
["Botany Bay",0,0,"CHORLEY","11kV",null,null,null,null,null,null,null,null,null,"Keith Shepherd",88821]
["Bow Lane",{"$error":"#N/A"},null,"CHORLEY","11kV",null,null,null,null,null,null,null,null,null,"Ken Harper",6440,6442,"Statutory Carlisle"]
["Bowaters",0,0,"BARROW","11kV",null,null,null,null,null,null,null,null,null,"Kevin Bullock",86067,86009,"Planning Kendal"]
["Bowdon",0,0,"MANCHESTER SOUTH","11kV",null,null,null,null,null,null,null,null,null,"Kianoush Naraghipour",26711,26699,"Stockport Planning"]
["Bradford",0,0,"MANCHESTER SOUTH","6.6kV",null,null,null,null,null,null,null,null,null,"Laura Stelfox",86047,86009,"Planning Kendal"]
["Bradshawgate",0,0,"SOUTH LANCS","6.6kV",null,null,null,null,null,null,null,null,null,"Lorraine Lowdon",6210,6146,"Planning Kendal"]
["Bramhall",0,0,"PEAK SOUTH","11kV",null,null,null,null,null,null,null,null,null,"Lukasz Bochinski",26708,26699,"Stockport Planning"]
["Bridgewater",0,0,"MANCHESTER SOUTH","6.6kV",null,null,null,null,null,null,null,null,null,"Marius Greef","ENS"]
["Brinksway",0,0,"PEAK SOUTH","6.6kV",null,null,null,null,null,null,null,null,null,"Mark Griffiths","ENS"]
["Broadheath",0,0,"MANCHESTER SOUTH","11kV",null,null,null,null,null,null,null,null,null,"Mark Knowles ",81263,81503,"Statutory Preston"]
["Broadway",0,0,"LANCASTER","6.6kV",null,null,null,null,null,null,null,null,null,"Martin Lord",81854,81732,"Planning Preston"]
["Buckshaw",{"$error":"#N/A"},null,"CHORLEY","6.6kV",null,null,null,null,null,null,null,null,null,"Matt Savka",22781,22314,"Manchester"]
["Burnley",0,0,"BURNLEY & NELSON","6.6kV",null,null,null,null,null,null,null,null,null,"Matthew Rigby",26707,26699,"Stockport Planning"]
["Burnley Centre",0,0,"BURNLEY & NELSON","6.6kV",null,null,null,null,null,null,null,null,null,"Michelle Range",22561,22314,"Manchester"]
["Burnley North",0,0,"BURNLEY & NELSON","6.6kV",null,null,null,null,null,null,null,null,null,"Mike Henderson",81813,81503,"Statutory Preston"]
["Burrow Beck",0,"Load transfers to Spring Garden Street chargeable as per Spring Garden Street","LANCASTER","11kV",null,null,null,null,null,null,null,null,null,"Mike Jackson",81839,81503,"Statutory Preston"]
["Burscough Bridge",{"$error":"#N/A"},null,"CHORLEY","11kV",null,null,null,null,null,null,null,null,null,"Mike Wharton",86196,86009,"Planning Kendal"]
["Bury Town Centre",{"$error":"#N/A"},null,"SOUTH LANCS","6.6kV",null,null,null,null,null,null,null,null,null,"Murad Amin",24329,null,"Salford Energy Solutions"]
["Calgarth",{"$error":"#N/A"},null,"KENDAL",{"$error":"#N/A"},null,null,null,null,null,null,null,null,null,"Neville Hartley",81799,81503,"Statutory Preston"]
["Campbell St",0,0,"SOUTH LANCS","11kV",null,null,null,null,null,null,null,null,null,"Paul Boyer",22033,22314,"Manchester"]
["Cannon St",0,0,"MANCHESTER NORTH","6.6kV",null,null,null,null,null,null,null,null,null,"Paul Griffiths",75410,75412,"Hill Top"]
["Capontree",0,0,"CARLISLE","11kV",null,null,null,null,null,null,null,null,null,"Paul Robinson",26696,26699,"Stockport Planning"]
["Carleton",0,0,"WORKINGTON","11kV",null,null,null,null,null,null,null,null,null,"Paul Thompson",26705,26699,"Stockport Planning"]
["Carlisle North",{"$error":"#N/A"},null,"CARLISLE","11kV",null,null,null,null,null,null,null,null,null,"Pervez Muhammad",null,null,"Stockport"]
["Carr Lane",{"$error":"#N/A"},null,"PRESTON","11kV",null,null,null,null,null,null,null,null,null,"Peter Range",22018,22314,"Manchester"]
["Carr St",0,0,"SOUTH LANCS","11kV",null,null,null,null,null,null,null,null,null,"Phil Snape",22287,22771,"System Devlopment"]
["Castleton",0,0,"PEAK NORTH","6.6kV",null,null,null,null,null,null,null,null,null,"Phil Taylor",81771,81841,"Statutory Preston"]
["Catterall Waterworks",{"$error":"#N/A"},null,"LANCASTER","6.6kV",null,null,null,null,null,null,null,null,null,"Phil Walker",26697,26699,"Stockport Planning"]
["Cecil St",0,0,"BLACKPOOL","6.6kV",null,null,null,null,null,null,null,null,null,"Pushpa Henderson",24398,null,"Preston Energy Solutions"]
["Cement Works",{"$error":"#N/A"},null,"BURNLEY & NELSON",{"$error":"#N/A"},null,null,null,null,null,null,null,null,null,"Rachel Rayton",85279,85392,"Manchester"]
["Central Manchester",0,"LV charges are £153.31. HV charges for network connected load £224.70. Sole use of spare CB add £28,865 All charges apply until 29/6/2014. Proj ref d.80010717.799Central Manchester 188.13 LV charges are £153.31. HV charges for network connected load £224.70. Sole use of spare CB add £28,865 All charges apply until 29/6/2014. Proj ref d.80010717.799 MANCHESTER NORTH 6.6kV D.80010717 Manc Cntrl Piccadilly Travis St Rein 28/09/2012 Expired","MANCHESTER NORTH","6.6kV",null,null,null,null,null,null,null,null,null,"Ray Cramer",22043,22314,"Manchester"]
["Chadderton",0,0,"PEAK NORTH","6.6kV",null,null,null,null,null,null,null,null,null,"Richard Warren",26707,26699,"Stockport Planning"]
["Chamberhall",0,0,"SOUTH LANCS","6.6kV",null,null,null,null,null,null,null,null,null,"Ryan Austin",81861,81732,"Planning Preston"]
["Chapel Wharf",{"$error":"#N/A"},null,"MANCHESTER NORTH","6.6kV",null,null,null,null,null,null,null,null,null,"Sarah Morris",null,null,"Preston"]
["Chassen Rd",0,0,"MANCHESTER NORTH","6.6kV",null,null,null,null,null,null,null,null,null,"Sarah Seabrook",81537,81503,"Planning Preston"]
["Chatsworth St",0,0,"BARROW","11kV",null,null,null,null,null,null,null,null,null,"Simon Little",86017,86009,"Planning Kendal"]
["Cheadle Heath",0,0,"PEAK SOUTH","6.6kV",null,null,null,null,null,null,null,null,null,"Steve Hanson",81813,81841,"Statutory Preston"]
["Cheadle Hulme",0,0,"MANCHESTER SOUTH","11kV",null,null,null,null,null,null,null,null,null,"Steve Hitchmough",null,null,"Stockport Planning"]
["Cheetham Hill",0,0,"MANCHESTER NORTH","6.6kV",null,null,null,null,null,null,null,null,null,"Stewart Riley",81847,81732,"Planning Preston"]
["Chester Rd T11 & T12",0,"LV connections requiring 3rd Tx £29.29 Charges apply until Sep 2016. Proj ref d.80013710.799Chester Rd T11 & T12 65.09 LV connections requiring 3rd Tx £29.29 Charges apply until Sep 2016. Proj ref d.80013710.799 MANCHESTER SOUTH 6.6kV D.80013710 Chester road Reinforcement 01/09/2011 Expired","MANCHESTER SOUTH","6.6kV",null,null,null,null,null,null,null,null,null,"Stuart Smith",81794,81732,"Planning Preston"]
["Chester Rd T13",{"$error":"#N/A"},null,"MANCHESTER SOUTH","6.6kV",null,null,null,null,null,null,null,null,null,"Stuart Telford",6414,6442,"Statutory Carlisle"]
["Chorley South",0,"No charge for LV connectionsProj ref d.80014674.799 Chorley South 65.76 No charge for LV connectionsProj ref d.80014674.799 CHORLEY 11kV D.80014674 Chorley 33kV Network Rein X 02/03/2012 Expired","CHORLEY","11kV",null,null,null,null,null,null,null,null,null,"Tony Coughlan",26695,26699,"Stockport Planning"]
["Chorlton",0,0,"MANCHESTER SOUTH","6.6kV",null,null,null,null,null,null,null,null,null,"Trevor Bloor",26694,26699,"Stockport Planning"]
["Christie",{"$error":"#N/A"},null,"MANCHESTER SOUTH",{"$error":"#N/A"},null,null,null,null,null,null,null,null,null,"Val Egerton",22075,22314,"Manchester"]
["Church",0,0,"RAWTENSTALL & ACCRINGTON","6.6kV",null,null,null,null,null,null,null,null,null,"Walter Harris",26697,26699,"Stockport Planning"]
["Clarendon Rd",0,0,"BLACKBURN","6.6kV",null,null,null,null,null,null,null,null,null,"Spare 13"]
["Claughton",0,0,"LANCASTER","11kV",null,null,null,null,null,null,null,null,null,"Spare 14"]
["Cleveleys",0,0,"BLACKPOOL","6.6kV",null,null,null,null,null,null,null,null,null,"Spare 15"]
["Clifton Junction",0,0,"SOUTH LANCS","11kV",null,null,null,null,null,null,null,null,null,"Spare 16"]
["Clifton Marsh",{"$error":"#N/A"},null,"PRESTON","6.6kV",null,null,null,null,null,null,null,null,null,"Spare 17"]
["Clitheroe Works",{"$error":"#N/A"},null,"BURNLEY & NELSON",{"$error":"#N/A"},null,null,null,null,null,null,null,null,null,"Spare 18"]
["Clover Hill",0,0,"BURNLEY & NELSON","6.6kV",null,null,null,null,null,null,null,null,null,"Spare 19"]
["Cog Lane",{"$error":"#N/A"},null,"BURNLEY & NELSON","6.6kV",null,null,null,null,null,null,null,null,null,"Spare 20"]
["Coniston",0,0,"BARROW","11kV",null,null,null,null,null,null,null,null,null,"Spare 21"]
["Copse Rd",0,0,"BLACKPOOL","6.6kV",null,null,null,null,null,null,null,null,null,"Spare 22"]
["Cox Green",0,0,"SOUTH LANCS","11kV",null,null,null,null,null,null,null,null,null,"Spare 23"]
["CPS",{"$error":"#N/A"},null,"BLACKBURN",{"$error":"#N/A"},null,null,null,null,null,null,null,null,null,"Spare 24"]
["Craggs Row & Bushell St",0,"LV charges are £189.94. All charges apply until 12/10/2014. Proj ref d.80009716.799 Craggs Row & Bushell St 195.07 LV charges are £189.94. All charges apply until 12/10/2014. Proj ref d.80009716.799 PRESTON 6.6kV D.80009716 Preston East Primary Reinf 04/04/2011 Expired","PRESTON","6.6kV",null,null,null,null,null,null,null,null,null,"Spare 25"]
["Crown Lane",{"$error":"#N/A"},null,"SOUTH LANCS","11kV",null,null,null,null,null,null,null,null,null,"Spare 26"]
["Culcheth",0,0,"SOUTH LANCS","11kV",null,null,null,null,null,null,null,null,null,"Spare 27"]
["Cutacre",{"$error":"#N/A"},null,"SOUTH LANCS","11kV",null,null,null,null,null,null,null,null,null,"Spare 28"]
["Davyhulme",{"$error":"#N/A"},null,"MANCHESTER SOUTH",{"$error":"#N/A"}]
["Deansgate",0,0,"MANCHESTER NORTH","6.6kV"]
["Denton East",0,0,"MANCHESTER SOUTH","6.6kV"]
["Denton West",0,0,"MANCHESTER SOUTH","6.6kV"]
["Dickinson St",{"$error":"#N/A"},null,"MANCHESTER NORTH","6.6kV"]
["Didsbury",{"$error":"#N/A"},null,"MANCHESTER SOUTH","6.6kV"]
["Disley",0,0,"PEAK SOUTH","11kV"]
["Dodgson Rd",0,"LV charges are £78.86. All charges apply until 12/10/2014. Proj ref d.80009716.799 Dodgson Rd 83.99 LV charges are £78.86. All charges apply until 12/10/2014. Proj ref d.80009716.799 PRESTON 6.6kV D.80009716 Preston East Primary Reinf 04/04/2011 Expired","PRESTON","6.6kV"]
["Douglas St",0,0,"PRESTON","6.6kV"]
["Droylsden East",0,0,"MANCHESTER SOUTH","6.6kV"]
["Dukinfield",0,0,"PEAK NORTH","6.6kV"]
["Dumers Lane",{"$error":"#N/A"},null,"SOUTH LANCS","11kV"]
["Dumplington",0,0,"MANCHESTER NORTH","11kV"]
["Eastlands",0,0,"MANCHESTER NORTH","6.6kV"]
["Easton",0,0,"CARLISLE","11kV"]
["Egremont",0,0,"WORKINGTON","11kV"]
["Embleton",0,0,"WORKINGTON","11kV"]
["Exchange St",0,0,"BLACKBURN","6.6kV"]
["Failsworth",0,0,"MANCHESTER NORTH","6.6kV"]
["Fallowfield",0,0,"MANCHESTER SOUTH","6.6kV"]
["Farnworth",0,0,"SOUTH LANCS","11kV"]
["Feniscowles",0,0,"BLACKBURN","6.6kV"]
["Ferodo",0,0,"PEAK SOUTH","11kV"]
["Flat Lane",{"$error":"#N/A"},null,"SETTLE","11kV"]
["Frederick Rd",0,0,"MANCHESTER NORTH","6.6kV"]
["Fusehill",{"$error":"#N/A"},null,"CARLISLE","11kV"]
["Gale",0,0,"PEAK NORTH","6.6kV"]
["Gale Bay",{"$error":"#N/A"},null,"PENRITH",{"$error":"#N/A"}]
["Garstang",0,0,"LANCASTER","6.6kV"]
["Gatley",0,0,"MANCHESTER SOUTH","6.6kV"]
["Gidlow",0,0,"SOUTH LANCS","6.6kV"]
["Gillsrow",0,0,"PENRITH","11kV"]
["Glaxo",0,0,"BARROW","11kV"]
["Glossop",0,0,"PEAK NORTH","11kV"]
["Golborne",0,0,"SOUTH LANCS","11kV"]
["Gowhole",0,0,"PEAK SOUTH","11kV"]
["Grane Rd & Prinny Hill",0,"No charge for LV connections. Proj ref d.80014565.799 Grane Rd & Prinny Hill 47.63 No charge for LV connections. Proj ref d.80014565.799 RAWTENSTALL & ACCRINGTON 6.6kV D.80014565 Rawtenstall Road Reinforcement 31/08/2012 Expired","RAWTENSTALL & ACCRINGTON","6.6kV"]
["Grange",0,0,"BARROW","11kV"]
["Great Harwood",0,0,"BLACKBURN","6.6kV"]
["Green Lane (Altrincham)",{"$error":"#N/A"},null,"MANCHESTER SOUTH","11kV"]
["Green Lane (Hazel Grove)",{"$error":"#N/A"},null,"PEAK SOUTH","11kV"]
["Green St T11",{"$error":"#N/A"},null,"SOUTH LANCS","6.6kV"]
["Green St T12 & T13",0,0,"SOUTH LANCS","6.6kV"]
["Greenfield",{"$error":"#N/A"},null,"PEAK NORTH","11kV"]
["Greenhill",0,0,"PEAK NORTH","6.6kV"]
["Griffin",0,0,"BLACKBURN","6.6kV"]
["Hadfield",0,0,"PEAK NORTH","11kV"]
["Hall Cross",0,0,"PRESTON","6.6kV"]
["Handforth",0,0,"PEAK SOUTH","11kV"]
["Hanging Bridge",0,"No charge for LV connections. Proj ref d.80014674.799Hanging Bridge 65.76 No charge for LV connections. Proj ref d.80014674.799 CHORLEY 11kV D.80014674 Chorley 33kV Network Rein X 02/03/2012 Expired\n","CHORLEY","11kV"]
["Hareholme",0,"No charge for LV connections. Proj ref d.80014565.799 Hareholme 47.63 No charge for LV connections. Proj ref d.80014565.799 RAWTENSTALL & ACCRINGTON 6.6kV D.80014565 Rawtenstall Road Reinforcement 31/08/2012 Expired","RAWTENSTALL & ACCRINGTON","6.6kV"]
["Harpurhey",0,0,"MANCHESTER NORTH","6.6kV"]
["Harwood",0,0,"SOUTH LANCS","11kV"]
["Hattersley",{"$error":"#N/A"},null,"PEAK NORTH","11kV"]
["Haverthwaite",0,0,"BARROW","11kV"]
["Haweswater",{"$error":"#N/A"},null,"PENRITH",{"$error":"#N/A"}]
["Hawk Green",0,0,"PEAK SOUTH","11kV"]
["Haydock",{"$error":"#N/A"},null,"SOUTH LANCS","11kV"]
["HDA No1 & HDA No2",{"$error":"#N/A"},null,"WORKINGTON","11kV"]
["Heady Hill",0,0,"SOUTH LANCS","6.6kV"]
["Heap Bridge",0,0,"SOUTH LANCS","6.6kV"]
["Heasandford",0,0,"BURNLEY & NELSON","6.6kV"]
["Heaton Moor",0,0,"PEAK SOUTH","6.6kV"]
["Heaton Norris",0,0,"PEAK SOUTH","6.6kV"]
["Helwith Bridge",0,0,"SETTLE","11kV"]
["Hensingham",0,0,"WORKINGTON","11kV"]
["Heyrod",{"$error":"#N/A"},null,"PEAK NORTH","6.6kV"]
["Heyside",0,0,"PEAK NORTH","6.6kV"]
["Heywood",0,"No charge for LV connections. Charges applicable until June 2015 . Proj ref d.80011904.799 Heywood 53.25 No charge for LV connections. Charges applicable until June 2015 . Proj ref d.80011904.799 SOUTH LANCS 6.6kV D.80011904 Heywood 33kV Reinforcement 04/05/2010 Expired","SOUTH LANCS","6.6kV"]
["Higher Mill",0,0,"MANCHESTER SOUTH","6.6kV"]
["Higher Walton",0,0,"CHORLEY","11kV"]
["Hill Top T11 & T12",0,0,"SOUTH LANCS","11kV"]
["Hill Top T13",{"$error":"#N/A"},null,"SOUTH LANCS","11kV"]
["Hindley Green",{"$error":"#N/A"},null,"SOUTH LANCS","11kV"]
["Hollinwood",0,0,"PEAK NORTH","6.6kV"]
["Holme Rd",0,0,"CHORLEY","11kV"]
["Holt St",0,0,"SOUTH LANCS","11kV"]
["Hurst",0,0,"PEAK NORTH","6.6kV"]
["Hutton End & Skelton C",0,0,"PENRITH","11kV"]
["Hyde",0,0,"PEAK NORTH","6.6kV"]
["Hyndburn Rd",0,0,"RAWTENSTALL & ACCRINGTON","6.6kV"]
["ICI Hillhouse",{"$error":"#N/A"},null,"PRESTON",{"$error":"#N/A"}]
["Iggesund",{"$error":"#N/A"},null,"WORKINGTON",{"$error":"#N/A"}]
["India St",0,0,"BLACKBURN","6.6kV"]
["Ingleton",0,0,"SETTLE","11kV"]
["Irlam",172.04,"No charge for LV connections. Proj ref d.80016673.799 Irlam 172.04 No charge for LV connections. Proj ref d.80016673.799 MANCHESTER NORTH 6.6kV Project number quoted does not exist - Assumed D.80020970 Irlam Primary s/s Reinforcement 11/02/2015 Live. EXPIRES 10/02/2020","MANCHESTER NORTH","6.6kV"]
["James St",0,0,"CARLISLE","11kV"]
["Jameson Rd NWWA",{"$error":"#N/A"},null,"PRESTON",{"$error":"#N/A"}]
["Kay St",0,0,"RAWTENSTALL & ACCRINGTON","6.6kV"]
["Kelloggs",{"$error":"#N/A"},null,"MANCHESTER NORTH",{"$error":"#N/A"}]
["Kendal",{"$error":"#N/A"},null,"KENDAL","11kV"]
["Keswick",0,0,"PENRITH","11kV"]
["Kingsway",{"$error":"#N/A"},null,"PEAK NORTH","11kV"]
["Kinkry Hill",0,0,"CARLISLE","11kV"]
["Kirkby Lonsdale",0,0,"KENDAL","11kV"]
["Kirkby Moor",0,0,"BARROW","11kV"]
["Kirkby Stephen",0,0,"PENRITH","11kV"]
["Kirkby Thore",0,0,"PENRITH","11kV"]
["Kirkhall Lane",{"$error":"#N/A"},null,"SOUTH LANCS","11kV"]
["Kitt Green",{"$error":"#N/A"},null,"SOUTH LANCS","6.6kV"]
["Knott Mill",0,0,"MANCHESTER NORTH","6.6kV"]
["Lamberhead",0,0,"SOUTH LANCS","6.6kV"]
["Lancaster",0,0,"LANCASTER","11kV"]
["Langley",0,0,"PEAK NORTH","11kV"]
["Langroyd Rd",0,0,"BURNLEY & NELSON","6.6kV"]
["Leigh",0,0,"SOUTH LANCS","11kV"]
["Levenshulme",0,0,"MANCHESTER SOUTH","6.6kV"]
["Leyland National",0,0,"WORKINGTON","11kV"]
["Little Hulton",0,0,"SOUTH LANCS","11kV"]
["Little Salkeld",0,0,"PENRITH","11kV"]
["Littleborough",0,0,"PEAK NORTH","6.6kV"]
["Longford Bridge",0,0,"MANCHESTER NORTH","6.6kV"]
["Longridge",0,"No charge for LV connections. Charges applicable until Sep 2015 Proj ref d.80020410.799 Longridge 59.57 No charge for LV connections. Charges applicable until Sep 2015 Proj ref d.80020410.799 PRESTON 6.6kV D.80020410 BAE Salmesbury 02/09/2011 Expired","PRESTON","6.6kV"]
["Longsight",{"$error":"#N/A"},null,"MANCHESTER SOUTH","6.6kV"]
["Lostock",0,0,"SOUTH LANCS","11kV"]
["Lower Darwen",{"$error":"#N/A"},null,"BLACKBURN","6.6kV"]
["Lyons Rd",0,0,"MANCHESTER NORTH","6.6kV"]
["Manchester Airport",{"$error":"#N/A"},null,"MANCHESTER SOUTH","11kV"]
["Manchester University",{"$error":"#N/A"},null,"MANCHESTER SOUTH","6.6kV"]
["Marple",0,0,"PEAK SOUTH","11kV"]
["Marton",0,0,"BLACKPOOL","6.6kV"]
["Maryport",0,0,"WORKINGTON","11kV"]
["Media City",{"$error":"#N/A"},null,"MANCHESTER NORTH","6.6kV"]
["Melling",0,0,"LANCASTER","11kV"]
["Mereside",0,0,"BLACKPOOL","6.6kV"]
["Middleton Junction",0,0,"PEAK NORTH","11kV"]
["Midway",0,0,"WORKINGTON","11kV"]
["Milnrow",0,0,"PEAK NORTH","6.6kV"]
["Mintsfeet",0,0,"KENDAL","11kV"]
["Monsall",{"$error":"#N/A"},null,"MANCHESTER NORTH","6.6kV"]
["Monton",0,0,"MANCHESTER NORTH","6.6kV"]
["Moorside",0,0,"PRESTON","6.6kV"]
["Morton Park & Pirelli",0,0,"CARLISLE","11kV"]
["Mosley Rd",0,0,"MANCHESTER NORTH","6.6kV"]
["Moss Lane",0,0,"SOUTH LANCS","11kV"]
["Moss Nook Primary",{"$error":"#N/A"},null,"MANCHESTER SOUTH","11kV"]
["Moss Side (Leyland) & Seven Stars",0,0,"CHORLEY","11kV"]
["Moss Side (Longsight)",{"$error":"#N/A"},null,"MANCHESTER SOUTH","6.6kV"]
["Mossley",0,0,"PEAK NORTH","11kV"]
["Mount St",0,0,"MANCHESTER NORTH","6.6kV"]
["Musgrave Rd",0,0,"SOUTH LANCS","6.6kV"]
["Nelson",0,"LV charges are £10.32. All charges apply until 14/10/2015. Proj ref d.80007588.799 Nelson 10.32 LV charges are £10.32. All charges apply until 14/10/2015. Proj ref d.80007588.799 BURNLEY & NELSON 6.6kV D.80007588 Nelson T11&T12 Transformer Tail Repl 27/09/2010 Expired","BURNLEY & NELSON","6.6kV"]
["New Moston",0,0,"MANCHESTER NORTH","6.6kV"]
["Newbiggin on Lune",0,0,"PENRITH","11kV"]
["Newby",0,0,"PENRITH","11kV"]
["Newton",{"$error":"#N/A"},null,"PEAK NORTH","11kV"]
["Newton Heath",0,0,"MANCHESTER NORTH","6.6kV"]
["Newton Le Willows",0,0,"SOUTH LANCS","11kV"]
["Newtongate T11 & T12",0,0,"PENRITH","11kV"]
["Newtongate T13",{"$error":"#N/A"},null,"PENRITH","11kV"]
["Norbreck",0,0,"BLACKPOOL","6.6kV"]
["Norbury",0,0,"PEAK SOUTH","11kV"]
["Northenden",0,0,"MANCHESTER SOUTH","6.6kV"]
["NWGB Partington",0,0,"MANCHESTER SOUTH","6.6kV"]
["Offerton",0,0,"PEAK SOUTH","6.6kV"]
["Openshaw",0,0,"MANCHESTER SOUTH","6.6kV"]
["Ormskirk",0,0,"CHORLEY","11kV"]
["Padiham",{"$error":"#N/A"},null,"11KV","11kV"]
["Peel St & Ribblesdale T13",0,"BEWARE 33kV ISSUES, PLEASE SEEK NETWORK STRATEGY ADVICE","11KV","11kV"]
["Pendleton",0,0,"MANCHESTER NORTH","6.6kV"]
["Petteril Bank",0,0,"CARLISLE","11kV"]
["Phillips Lane",{"$error":"#N/A"},null,"BURNLEY & NELSON","6.6kV"]
["Piccadilly",0,"Please refer to SOEDC data, contributions applyPiccadilly 224.7 Please refer to SOEDC data, contributions apply MANCHESTER NORTH 6.6kV No project number specified - Assumed D.80010717 Manc Cntrl Piccadilly Travis St Rein 28/09/2012 Expired\n","MANCHESTER NORTH","6.6kV"]
["Pimbo",0,0,"SOUTH LANCS","11kV"]
["Portwood",0,0,"PEAK SOUTH","6.6kV"]
["Poulton",0,0,"BLACKPOOL","6.6kV"]
["Poynton",0,0,"PEAK SOUTH","11kV"]
["PPG Intake",{"$error":"#N/A"},null,"SOUTH LANCS",{"$error":"#N/A"}]
["Preesall",0,0,"LANCASTER","11kV"]
["Preston East",{"$error":"#N/A"},null,"PRESTON","6.6kV"]
["Preston Old Rd",0,0,"BLACKPOOL","6.6kV"]
["Prestwich",0,0,"MANCHESTER NORTH","6.6kV"]
["Pringle St",0,0,"BLACKBURN","6.6kV"]
["Quayside",0,0,"MANCHESTER NORTH","11kV"]
["Queens Park",{"$error":"#N/A"},null,"MANCHESTER NORTH","6.6kV"]
["Quernmore Park",{"$error":"#N/A"},null,"LANCASTER",{"$error":"#N/A"}]
["Radcliffe",0,0,"SOUTH LANCS","11kV"]
["Randal St",0,0,"BLACKBURN","6.6kV"]
["Rawtenstall Rd",0,"LV charges are £107.76. Proj ref d.80014565 Rawtenstall Rd 187.42 LV charges are £107.76. Proj ref d.80014565 RAWTENSTALL & ACCRINGTON 6.6kV D.80014565 Rawtenstall Road Reinforcement 31/08/2012 Expired","RAWTENSTALL & ACCRINGTON","6.6kV"]
["Reddish Vale",0,0,"PEAK SOUTH","6.6kV"]
["Ribblesdale T14",{"$error":"#N/A"},null,"11KV","11kV"]
["Ribbleton",0,"LV charges are £189.94. All charges apply until 12/10/2014. Proj ref d.80009716.799 Ribbleton 195.07 LV charges are £189.94. All charges apply until 12/10/2014. Proj ref d.80009716.799 PRESTON 6.6kV D.80009716 Preston East Primary Reinf 04/04/2011 Expired","PRESTON","6.6kV"]
["Ringley",{"$error":"#N/A"},null,"SOUTH LANCS","11kV"]
["Risley",0,0,"SOUTH LANCS","11kV"]
["Roan Edge",{"$error":"#N/A"},null,"KENDAL",{"$error":"#N/A"}]
["Robert Hall St",0,0,"MANCHESTER NORTH","6.6kV"]
["Rochdale Central",0,0,"PEAK NORTH","6.6kV"]
["Roman Rd",0,0,"BLACKBURN","6.6kV"]
["Romiley",0,0,"PEAK SOUTH","11kV"]
["Rossall",0,0,"BLACKPOOL","6.6kV"]
["Royton",0,0,"PEAK NORTH","6.6kV"]
["S.E. Macclesfield",{"$error":"#N/A"},null,"PEAK SOUTH","11kV"]
["S.W. Macclesfield",{"$error":"#N/A"},null,"PEAK SOUTH","11kV"]
["Sale",{"$error":"#N/A"},null,"MANCHESTER SOUTH","6.6kV"]
["Sale Moor",0,0,"MANCHESTER SOUTH","6.6kV"]
["Salford Quays",0,0,"MANCHESTER NORTH","6.6kV"]
["Salwick",{"$error":"#N/A"},null,"PRESTON",{"$error":"#N/A"}]
["Samlesbury",{"$error":"#N/A"},null,"PRESTON","6.6kV"]
["Sandgate",0,0,"BARROW","11kV"]
["Scarisbrick",0,0,"CHORLEY","11kV"]
["Sebergham",0,0,"CARLISLE","11kV"]
["Sedbergh",0,0,"KENDAL","11kV"]
["Selsmire",0,0,"PENRITH","11kV"]
["Settle",0,0,"SETTLE","11kV"]
["Shannon St South",{"$error":"#N/A"},null,"BLACKPOOL","6.6kV"]
["Shap",0,0,"PENRITH","11kV"]
["Shaw",{"$error":"#N/A"},null,"PEAK NORTH","6.6kV"]
["Siddick",0,0,"WORKINGTON","11kV"]
["Silloth",0,0,"CARLISLE","11kV"]
["Skelmersdale",0,0,"SOUTH LANCS","11kV"]
["Slipway",0,0,"WORKINGTON","11kV"]
["Snipe",{"$error":"#N/A"},null,"PEAK NORTH","6.6kV"]
["South Park",{"$error":"#N/A"},null,"BLACKPOOL","11kV"]
["Spa Rd",0,0,"SOUTH LANCS","6.6kV"]
["Spadeadam 11/33kV",{"$error":"#N/A"},null,"CARLISLE","11kV"]
["Spadeadam 132/11kV",{"$error":"#N/A"},null,"CARLISLE","11kV"]
["Spotland",0,0,"PEAK NORTH","6.6kV"]
["Spring Cottage",{"$error":"#N/A"},null,"BURNLEY & NELSON","6.6kV"]
["Spring Garden St 11kV",{"$error":"#N/A"},null,"LANCASTER","11kV"]
["Spring Garden St 6.6kV",{"$error":"#N/A"},null,"LANCASTER","6.6kV"]
["Squires Gate",0,"No charge for LV connections. All charges apply until 01/05/2012. Proj ref d.80010055.799 Squires Gate 36 No charge for LV connections. All charges apply until 01/05/2012. Proj ref d.80010055.799 BLACKPOOL 6.6kV D.80010055 Blackpool Airport Bus Park-rein 23/03/2007 Expired","BLACKPOOL","6.6kV"]
["St Annes",0,0,"BLACKPOOL","6.6kV"]
["St Marys",0,0,"PEAK NORTH","6.6kV"]
["St Marys St",0,0,"PRESTON","6.6kV"]
["St Thomas Rd",0,0,"BLACKPOOL","6.6kV"]
["Stainburn",0,0,"WORKINGTON","11kV"]
["Standish",0,0,"SOUTH LANCS","11kV"]
["Strangeways",0,0,"MANCHESTER NORTH","6.6kV"]
["Strawberry Bank",0,0,"RAWTENSTALL & ACCRINGTON","6.6kV"]
["Stuart St",0,0,"MANCHESTER NORTH","6.6kV"]
["Stubbins",0,"No charge for LV connections. Proj ref d.80014565.799 Stubbins 47.63 No charge for LV connections. Proj ref d.80014565.799 SOUTH LANCS 11kV D.80014565 Rawtenstall Road Reinforcement 31/08/2012 Expired","SOUTH LANCS","11kV"]
["Swinton",0,0,"SOUTH LANCS","11kV"]
["Tame Valley",0,0,"PEAK NORTH","6.6kV"]
["Tardy Gate",0,0,"CHORLEY","11kV"]
["Tarleton",0,"No charge for LV connections. Proj ref d.80015235.799 Tarleton 128.9 No charge for LV connections. Proj ref d.80015235.799 CHORLEY 11kV D.80015235 Tarleton T11 & T12 TX Repl 30/11/2013 Expired","CHORLEY","11kV"]
["TENAX BSP",{"$error":"#N/A"},null,"MANCHESTER SOUTH",{"$error":"#N/A"}]
["The Height",0,0,"MANCHESTER NORTH","6.6kV"]
["The Rock",{"$error":"#N/A"},null,"SOUTH LANCS",{"$error":"#N/A"}]
["Thornton",{"$error":"#N/A"},null,"BLACKPOOL","11kV"]
["Townley St",0,0,"PEAK NORTH","11kV"]
["Trafford",0,0,"MANCHESTER NORTH","6.6kV"]
["Trafford Park North",{"$error":"#N/A"},null,"MANCHESTER NORTH","6.6kV"]
["Trimpell",0,0,"LANCASTER","11kV"]
["Trinity",0,0,"MANCHESTER NORTH","6.6kV"]
["Tulketh",0,0,"PRESTON","6.6kV"]
["Tunstead",{"$error":"#N/A"},null,"PEAK SOUTH",{"$error":"#N/A"}]
["Ulverston",0,0,"BARROW","11kV"]
["Union Rd",0,0,"SOUTH LANCS","6.6kV"]
["Upholland",0,0,"SOUTH LANCS","11kV"]
["Urmston",0,0,"MANCHESTER NORTH","6.6kV"]
["Vickers Central",{"$error":"#N/A"},null,"BARROW",{"$error":"#N/A"}]
["Vickers North",{"$error":"#N/A"},null,"BARROW",{"$error":"#N/A"}]
["Victoria Park",{"$error":"#N/A"},null,"MANCHESTER SOUTH","6.6kV"]
["Warbreck",0,0,"BLACKPOOL","6.6kV"]
["Wardleworth",0,0,"PEAK NORTH","6.6kV"]
["Warton",0,"LV/HV Interactivity applies, refer to G&P","PRESTON","6.6kV"]
["Waterhead",0,0,"PEAK NORTH","6.6kV"]
["Waterswallows",0,0,"PEAK SOUTH","11kV"]
["Weaste",0,0,"MANCHESTER NORTH","6.6kV"]
["Werneth",0,0,"PEAK NORTH","6.6kV"]
["Wesley Place Bacup",{"$error":"#N/A"},null,"RAWTENSTALL & ACCRINGTON","6.6kV"]
["West Didsbury",0,0,"MANCHESTER SOUTH","6.6kV"]
["Westgate",0,0,"LANCASTER","6.6kV"]
["Westhoughton",0,0,"SOUTH LANCS","11kV"]
["Westlinton",0,0,"CARLISLE","11kV"]
["Whalley",0,"BEWARE 33kV ISSUES, PLEASE SEEK NETWORK STRATEGY ADVICE","11KV","11kV"]
["Whalley Range",0,0,"MANCHESTER SOUTH","6.6kV"]
["Whasset",0,0,"KENDAL","11kV"]
["Whinfell",0,0,"PENRITH","11kV"]
["Whittle Le Woods",{"$error":"#N/A"},null,"CHORLEY","11kV"]
["Whitworth",0,0,"PEAK NORTH","6.6kV"]
["Wigton",0,0,"CARLISLE","11kV"]
["Willow Hey",0,0,"SOUTH LANCS","11kV"]
["Willowbank",0,0,"PEAK NORTH","6.6kV"]
["Willowholme",0,0,"CARLISLE","11kV"]
["Wilmslow",0,0,"PEAK SOUTH","11kV"]
["Windermere",0,0,"KENDAL","11kV"]
["Winifred Rd",0,0,"PEAK SOUTH","6.6kV"]
["Withington",0,0,"MANCHESTER SOUTH","6.6kV"]
["Withyfold Drive",{"$error":"#N/A"},null,"PEAK SOUTH","11kV"]
["Woodbine St",0,0,"PEAK NORTH","6.6kV"]
["Woodfield Rd",0,"No charge for LV connections. Proj ref d.80014674.799 Woodfield Rd 65.76 No charge for LV connections. Proj ref d.80014674.799 CHORLEY 11kV D.80014674 Chorley 33kV Network Rein X 02/03/2012 Expired","CHORLEY","11kV"]
["Woodhill Lane",{"$error":"#N/A"},null,"LANCASTER","6.6kV"]
["Woodhouse Park",{"$error":"#N/A"},null,"MANCHESTER SOUTH","11kV"]
["Woodley",0,0,"PEAK SOUTH","11kV"]
["Woolfold",0,0,"SOUTH LANCS","11kV"]
["Wordsworth St",0,0,"SOUTH LANCS","6.6kV"]
["Worsley Mesnes",0,0,"SOUTH LANCS","6.6kV"]
["Wrightington",{"$error":"#N/A"},null,"CHORLEY","11kV"]
["Yealand",0,0,"LANCASTER","11kV"]

{"sheet":"Study request guidance notes","index":10,"n_rows":0,"n_cols":0,"rows_kept":0,"cut":false,"hidden":true,"merged":[]}

{"sheet":"G&P application","index":11,"n_rows":52,"n_cols":11,"rows_kept":52,"cut":false,"hidden":true,"merged":[[43,4,43,5],[1,1,2,3],[11,3,11,5],[13,3,13,4],[21,3,21,5],[25,2,25,3],[25,4,25,5],[30,1,40,5],[43,1,43,3]]}
[null,null,null,null,null,null,null,null,null,null,"Regulatory Classification:"]
[null,null,null,null,null,null,null,null,null,null,"Customer funded feasibility study"]
[null,null,null,null,null,null,null,null,null,null,"Budget Quote<1MVA (10 Working Days)"]
[null,null,null,null,null,null,null,null,null,null,"Budget Quote>1MVA (20 Working Days)"]
[null,"REQUEST FOR G&P WORK",null,null,null,null,null,null,null,null,"Statutory Provision of HV Demand Quote (35 Working Days)"]
[null,null,null,null,null,null,null,null,null,null,"Statutory Provision of HV Generation Quote (65 Working Days)"]
[null,null,null,null,null,null,null,null,null,null,"Statutory Provision of EHV Demand/Generation Quote (65 Working Days)"]
[null,"Requested by: ",null,{"$f":"Input!E6","v":"Peter Range"},"Date:",{"$f":"IF(Input!L3=\"\",\"\",Input!L3)","v":"2019-07-31"},null,null,null,null,"Competitive Provision of HV Demand Quote (20 Working Days)"]
[null,null,null,null,null,null,null,null,null,null,"Competitive Provision of HV Generation Quote (50 Working Days)"]
[null,"Contact Phone Number:",null,{"$f":"Input!H6","v":22018},"Request Type:",null,null,null,null,null,"Competitive Provision of EHV (33kV) Demand Quote (50 Working Days)"]
[null,null,null,null,null,null,null,null,null,null,"Competitive Provision of EHV (33kV) Generation Quote (62 Working Days)"]
[null,"Scheme Title:",null,{"$f":"IF(Input!E3=\"\",\"\",Input!E3)","v":"Stagecoach Sharston Depot, Leestone Road, Wythenshawe, Manchester"},null,null,null,null,null,null,"Competitive Provision of 132kV Demand/Generation (62 Working Days)"]
[null,null,null,null,null,null,null,null,null,null,"Request Type:"]
[null,"D&C WFM Ref:",null,{"$f":"IF(Input!L4=\"\",\"\",Input!L4)","v":"5500153017A"},null,null,null,null,null,null,"Study Only"]
[null,null,null,null,null,null,null,null,null,null,"Extension Only"]
[null,"New Load:",null,{"$f":"Input!L6","v":1500},"New Generation:",{"$f":"Input!O6","v":0},null,null,null,null,"Study and Extension"]
[null,null,null,null,null,null,null,null,null,null,"Indicative Quote"]
[null,"Grid Ref:"," Eastings",null,"Primary:",{"$f":"Input!E14","v":"NORTHENDEN"}]
[null,null,null,null,null,null,null,null,null,null,"Voltage:"]
[null,null,"              Northings",null,"Voltage:",null,null,null,null,null,"LV"]
[null,null,null,null,null,null,null,null,null,null,"6.6kV"]
[null,"Regulatory Classification:",null,null,null,null,null,null,null,null,"11kV"]
[null,null,null,null,null,null,null,null,null,null,"33kV"]
[null,"Is Study Fee Applicable?",null,null,null,null,null,null,null,null,"132kV"]
[]
[null,null,"If 'Yes' which cost is applicable?",null,null,null,null,null,null,null,"Is Study Fee Applicable?"]
[null,null,null,null,null,null,null,null,null,null,"Yes "]
[null,"Application Received:",null,null,"Target Quote Date:",null,null,null,null,null,"No"]
[]
[null,"Supporting Info/Comments",null,null,null,null,null,null,null,null,"If 'Yes' which cost is applicable?"]
[null,null,null,null,null,null,null,null,null,null,"LV Demand upto1MVA "]
[null,null,null,null,null,null,null,null,null,null,"HV Demand up to & including MVA "]
[null,null,null,null,null,null,null,null,null,null,"HV Demand over 2MVA"]
[null,null,null,null,null,null,null,null,null,null,"33kV Demand up to & including 10MVA "]
[null,null,null,null,null,null,null,null,null,null,"33kV Demand >10MVA"]
[null,null,null,null,null,null,null,null,null,null,"132kV Demand "]
[null,null,null,null,null,null,null,null,null,null,"Generation up to & including 1MW "]
[null,null,null,null,null,null,null,null,null,null,"Generation >1MW up to & including 4MW "]
[null,null,null,null,null,null,null,null,null,null,"Generation >4MW up to & including 10MW "]
[null,null,null,null,null,null,null,null,null,null,"Generation >10MW up to & including 40MW"]
[null,null,null,null,null,null,null,null,null,null,"Generation >40MW up to & including 100MW "]
[null,null,null,null,null,null,null,null,null,null,"Generation >100MW  "]
[]
[null,"The WFM SAP number for this work is:    ",null,null,56]
[null,null,null,null,null,null,null,null,null,null,"10 working days"]
[null,"Time Available for Study:",null,null,"Target Completion Date:",null,null,null,null,null,"16 working days"]
[null,null,null,null,null,null,null,null,null,null,"20 working days"]
[null,"Time Available for Quote:",null,null,"Target Completion Date:"]
[]
[]
[]
[null,"version 5 Mar 2012"]

{"sheet":"Cable ratings","index":12,"n_rows":57,"n_cols":6,"rows_kept":57,"cut":false,"hidden":true,"merged":[]}
[null,"RATINGS USED"]
[]
[null,"BELOW ARE THE RATINGS USED FOR THE CALCULATIONS UNDERTAKEN BY 'LOADCHECK' . "]
[null,"Subject to the parameters used being applicable (see below), this table may be used as a crib-sheet for general use."]
[]
[]
[null,"(The information in this table has been taken from the 'Summary of Cable Ratings' on Page 37 "]
[null,"of CP203 ISSUE 4 (12/01/09). Please refer to CP203 for the parameters used)."]
[]
[null,"Size","Continuous","Cyclic","Distribution","Comment"]
[null,"95 XXX",245,277,277,"TRIPLEX"]
[null,"95 PICAS",185,210,245,"ACCAS"]
[null,"95 Cu",245,275,330,"PILC"]
[null,"95 Al",190,215,260,"PILC"]
[null,"300 XXX",461,521,521,"TRIPLEX"]
[null,"300 PICAS",355,400,490,"ACCAS"]
[null,"300 Cu",460,520,665,"PILC"]
[null,"300 Al",365,410,525,"PILC"]
[null,"240 Cu",410,460,460,"PILC"]
[null,"240 Al",325,365,460,"PILC"]
[null,"185 XXX",353,399,399,"TRIPLEX"]
[null,"185 PICAS",270,305,370,"ACCAS"]
[null,"185 Cu",355,400,500,"PILC"]
[null,"185 Al",280,315,390,"PILC"]
[null,"120 Cu",280,315,380,"PILC"]
[null,"120 Al",220,245,300,"PILC"]
[null,"0.5 Cu",530,600,670,"PILC"]
[null,"0.5 Al",420,475,530,"PILC"]
[null,"0.4 Cu",475,535,595,"PILC"]
[null,"0.4 Al",375,420,470,"PILC"]
[null,"0.3 Cu",410,460,500,"PILC"]
[null,"0.3 Al",325,365,390,"PILC"]
[null,"0.25 Cu",370,415,440,"PILC"]
[null,"0.25 Al",290,325,345,"PILC"]
[null,"0.2 Cu",320,360,385,"PILC"]
[null,"0.2 Al",250,280,300,"PILC"]
[null,"0.15 Cu",270,305,320,"PILC"]
[null,"0.15 Al",210,235,250,"PILC"]
[null,"0.1 Cu",220,245,255,"PILC"]
[null,"0.1 Al",170,190,195,"PILC"]
[null,"0.06 Cu",160,175,185,"PILC"]
[null,"0.06 Al",125,135,145,"PILC"]
[null,"0.04 Cu",130,140,145,"PILC"]
[null,"0.04 Al",100,110,110,"PILC"]
[null,"0.025 Cu",92,100,100,"PILC"]
[null,"0.025 Al",72,78,78,"PILC"]
[]
[]
[null,"COLOUR CODE USED IN THIS TABLE:"]
[]
[null,null,null,"  - TRIPLEX"]
[]
[null,null,null,"  - ACCAS"]
[]
[null,null,null,"  - ALUMINIUM CONDUCTOR"]
[]
[null,null,null,"  - COPPER CONDUCTOR"]

{"sheet":"ASL calculation","index":13,"n_rows":59,"n_cols":10,"rows_kept":59,"cut":false,"hidden":true,"merged":[]}
[null,null,"Calculation of Ratings of Auto Sectionalising Links"]
[]
["Job Ref:",{"$f":"Input!L4","v":"5500153017A"}," "]
[]
[]
[]
[null,null,"EXISTING",null,null,null,null,"PROPOSED"]
[null,{"$f":"Input!V9","v":6.6},"kV select O/H line Voltage ",null,null,null,{"$f":"B8","v":6.6},"kV select O/H line Voltage "]
[]
[null,"T/F  kVA Nameplate rating *",null,null,null,null,"T/F  kVA Nameplate rating"]
[null,"1ph T/Fs",null,"3ph T/Fs",null,null,"1ph T/Fs",null,"3ph T/Fs"]
[]
[]
[]
[]
[]
[]
[]
[]
[]
[]
[]
[]
[]
[]
[]
[]
[]
[]
["Totals",{"$f":"SUM(B12:B29)","v":0},"kVA",{"$f":"SUM(D12:D29)","v":0},"kVA","Totals",{"$f":"SUM(G12:G29)","v":0},"kVA",{"$f":"SUM(I12:I29)","v":0},"kVA"]
["FLC",{"$f":"B30/B8","v":0},"Amps",{"$f":"D30/B8/SQRT(3)","v":0},"Amps","FLC",{"$f":"G30/G8","v":0},"Amps",{"$f":"I30/G8/SQRT(3)","v":0},"Amps"]
[]
[null,null,"Total Max Ph Current",{"$f":"B31+D31","v":0},"Amps",null,null,"Total Max Ph Current",{"$f":"G31+I31","v":0},"Amps"]
[null,null,"Mag inrush Current",{"$f":"D33*2.5","v":0},"Amps",null,null,"Mag inrush Current",{"$f":"I33*2.5","v":0},"Amps"]
[]
[null,{"$f":"IF(D34>200,\"** NOT SUITABLE for ASLs**\",\"Rating of ASLs Req    | MIN Fault Level MVA\")","v":"Rating of ASLs Req    | MIN Fault Level MVA"},null,null,null,null,{"$f":"IF(I34>200,\"** NOT SUITABLE for ASLs**\",\"Rating of ASLs Req  | MIN Fault Level MVA\")","v":"Rating of ASLs Req  | MIN Fault Level MVA"}]
[null,"(Pick-up Current)",null,"1ph","3ph",null,"(Pick-up Current)",null,"1ph","3ph"]
[null,{"$f":"IF(D34>0,LOOKUP(D34,C54:C59,D54:D59),\"\")","v":""},"AMPS",{"$f":"IF(D34>0,B38*B8*2/1000,\"\")","v":""},{"$f":"IF(D34>0,B38*B8*2*SQRT(3)/1000,\"\")","v":""},null,{"$f":"IF(I34>0,LOOKUP(I34,C54:C59,D54:D59),\"\")","v":""},"AMPS",{"$f":"IF(I34>0,G38*G8*2/1000,\"\")","v":""},{"$f":"IF(I34>0,G38*G8*2*SQRT(3)/1000,\"\")","v":""}]
[]
[]
[null,"* Enter the namplate rating of all transformers protected by the ASLs "]
[null,"Ensuring that the correct column is used for either single or three phase."]
[]
[null,"The Minimum Fault level is to ensure correct operation of links under fault conditions."]
[null,"This must be measured at the extreme end of the circuits controlled by the ASLs"]
[]
[null,"NB. Before ordering ASL links the type of mounting must be confirmed."]
[]
[null,"For help using this sheet please contact Neville Hartley 81263"]
[]
[null,"N. Hartley int 81263",null,"26/11/2009",null,"Calculations based on EPD321 Para 4.6"]
[]
[]
[null,null,1,25]
[null,null,25,40]
[null,null,40,63]
[null,null,63,100]
[null,null,100,200]
[null,null,200]

{"sheet":"Splitting feeder calculatio (3)","index":14,"n_rows":32,"n_cols":16,"rows_kept":32,"cut":false,"hidden":true,"merged":[[2,2,2,3],[2,5,2,6],[0,1,0,6]]}
["Feeder Name:","Askam - Duddon Road",null,null,null,null,null,null,null,null,null,null,null,{"$f":"Input!U9","v":6600}]
[null,null,null,null,null,null,null,null,null,null,null,null,null,"Diversity"]
["Substation name","Substation number","MD of Tx",null,null,"Diversified load (Amps)",null,null,null,null,null,null,null,{"$f":"C28/C27","v":0.51320023927966729}]
["Duddon Road",616064,500,"kVA",{"$f":"SUM(C4*1000)/($N$1*SQRT(3))","v":43.73865675678983},{"$f":"SUM((C4*1000)/($N$1*SQRT(3)))*$C$30","v":22.446689113355777},null,null,null,null,null,null,null,false,{"$f":"IF(N4=TRUE,F4,0)","v":0},{"$f":"IF(N4=FALSE,F4,0)","v":22.446689113355777}]
["St Georges Square",618006,400,"kVA",34.990925405431867,17.957351290684624,null,null,null,null,null,null,null,false,0,17.957351290684624]
["Haverigg Windfarm 'D'",619460,40,"kVA",3.4990925405431867,1.7957351290684624,null,null,null,null,null,null,null,false,0,1.7957351290684624]
["Back Duke St.",616006,360,"kVA",31.491832864888679,16.161616161616159,null,null,null,null,null,null,null,false,0,16.161616161616159]
["Kings Quarry",616009,415,"kVA",36.303085108135562,18.630751964085295,null,null,null,null,null,null,null,false,0,18.630751964085295]
["Lowther Rd",616007,325,"kVA",28.430126891913392,14.590347923681257,null,null,null,null,null,null,null,false,0,14.590347923681257]
["Moor End",610087,15,"kVA",1.3121597027036951,0.67340067340067344,null,null,null,null,null,null,null,false,0,0.67340067340067344]
["Oxenbows",610078,200,"kVA",17.495462702715933,8.978675645342312,null,null,null,null,null,null,null,false,0,8.978675645342312]
["Moor Cotts",610087,500,"kVA",43.73865675678983,22.446689113355777,null,null,null,null,null,null,null,false,0,22.446689113355777]
["Back Albert St.",616012,800,"kVA",69.981850810863733,35.914702581369248,null,null,null,null,null,null,null,false,0,35.914702581369248]
["Queens Street",616015,600,"kVA",52.4863881081478,26.936026936026934,null,null,null,null,null,null,null,false,0,26.936026936026934]
["Effluent Pump",616222,200,"kVA",17.495462702715933,8.978675645342312,null,null,null,null,null,null,null,false,0,8.978675645342312]
["Wellington Street",616016,100,"kVA",8.7477313513579666,4.489337822671156,null,null,null,null,null,null,null,false,0,4.489337822671156]
["Furness Street",616019,null,"kVA",0,0,null,null,null,null,null,null,null,false,0,0]
["Argyle Street",616014,null,"kVA",0,0,null,null,null,null,null,null,null,false,0,0]
["Hearfields",616232,null,"kVA",0,0,null,null,null,null,null,null,null,false,0,0]
[null,null,null,"kVA",0,0,null,null,null,null,null,null,null,false,0,0]
[null,null,null,"kVA",0,0,null,null,null,null,null,null,null,false,0,0]
[null,null,null,"kVA",0,0,null,null,null,null,null,null,null,false,0,0]
[null,null,null,"kVA",0,0,null,null,null,null,null,null,null,false,0,0]
[null,null,null,"kVA",0,0,null,null,null,null,null,null,null,false,0,0]
[null,null,null,"kVA",0,0,null,null,null,null,null,null,null,false,0,0]
[null,"Total load (MD):",{"$f":"SUM(C4:C25)","v":4455},"kVA",null,null,null,null,null,null,null,null,null,null,{"$f":"SUM(O4:O25)","v":0},{"$f":"SUM(P4:P25)","v":200}]
[null,"Total load (MD):",{"$f":"SUM(C26*1000)/($N$1*SQRT(3))","v":389.7114317029974},"Amps"]
[null,"FLA load on feeder:",200,"Amps"]
[null,"Calculated Diversity:",{"$f":"N3","v":0.51320023927966729},null,null,{"$f":"IF(C29<0.5,\"VERY LOW DIVERSITY\",IF(C29>0.71,\"\",\"LOW DIVERSITY\"))","v":"LOW DIVERSITY"}]
[null,"User Input Diversity:",{"$f":"C29","v":0.51320023927966729}]
[null,"Checked boxes:",{"$f":"O26","v":0},"Amps"]
[null,"Un checked boxes:",{"$f":"P26","v":200},"Amps"]

{"sheet":"Splitting feeder calculatio (2)","index":15,"n_rows":32,"n_cols":16,"rows_kept":32,"cut":false,"hidden":true,"merged":[[2,2,2,3],[2,5,2,6],[0,1,0,6]]}
["Feeder Name:","Askam - Duddon Road",null,null,null,null,null,null,null,null,null,null,null,{"$f":"Input!U9","v":6600}]
[null,null,null,null,null,null,null,null,null,null,null,null,null,"Diversity"]
["Substation name","Substation number","MD of Tx",null,null,"Diversified load (Amps)",null,null,null,null,null,null,null,{"$f":"C28/C27","v":0.51320023927966729}]
["Duddon Road",616064,500,"kVA",{"$f":"SUM(C4*1000)/($N$1*SQRT(3))","v":43.73865675678983},{"$f":"SUM((C4*1000)/($N$1*SQRT(3)))*$C$30","v":22.446689113355777},null,null,null,null,null,null,null,false,{"$f":"IF(N4=TRUE,F4,0)","v":0},{"$f":"IF(N4=FALSE,F4,0)","v":22.446689113355777}]
["St Georges Square",618006,400,"kVA",34.990925405431867,17.957351290684624,null,null,null,null,null,null,null,false,0,17.957351290684624]
["Haverigg Windfarm 'D'",619460,40,"kVA",3.4990925405431867,1.7957351290684624,null,null,null,null,null,null,null,false,0,1.7957351290684624]
["Back Duke St.",616006,360,"kVA",31.491832864888679,16.161616161616159,null,null,null,null,null,null,null,false,0,16.161616161616159]
["Kings Quarry",616009,415,"kVA",36.303085108135562,18.630751964085295,null,null,null,null,null,null,null,false,0,18.630751964085295]
["Lowther Rd",616007,325,"kVA",28.430126891913392,14.590347923681257,null,null,null,null,null,null,null,false,0,14.590347923681257]
["Moor End",610087,15,"kVA",1.3121597027036951,0.67340067340067344,null,null,null,null,null,null,null,false,0,0.67340067340067344]
["Oxenbows",610078,200,"kVA",17.495462702715933,8.978675645342312,null,null,null,null,null,null,null,false,0,8.978675645342312]
["Moor Cotts",610087,500,"kVA",43.73865675678983,22.446689113355777,null,null,null,null,null,null,null,false,0,22.446689113355777]
["Back Albert St.",616012,800,"kVA",69.981850810863733,35.914702581369248,null,null,null,null,null,null,null,false,0,35.914702581369248]
["Queens Street",616015,600,"kVA",52.4863881081478,26.936026936026934,null,null,null,null,null,null,null,false,0,26.936026936026934]
["Effluent Pump",616222,200,"kVA",17.495462702715933,8.978675645342312,null,null,null,null,null,null,null,false,0,8.978675645342312]
["Wellington Street",616016,100,"kVA",8.7477313513579666,4.489337822671156,null,null,null,null,null,null,null,false,0,4.489337822671156]
["Furness Street",616019,null,"kVA",0,0,null,null,null,null,null,null,null,false,0,0]
["Argyle Street",616014,null,"kVA",0,0,null,null,null,null,null,null,null,false,0,0]
["Hearfields",616232,null,"kVA",0,0,null,null,null,null,null,null,null,false,0,0]
[null,null,null,"kVA",0,0,null,null,null,null,null,null,null,false,0,0]
[null,null,null,"kVA",0,0,null,null,null,null,null,null,null,false,0,0]
[null,null,null,"kVA",0,0,null,null,null,null,null,null,null,false,0,0]
[null,null,null,"kVA",0,0,null,null,null,null,null,null,null,false,0,0]
[null,null,null,"kVA",0,0,null,null,null,null,null,null,null,false,0,0]
[null,null,null,"kVA",0,0,null,null,null,null,null,null,null,false,0,0]
[null,"Total load (MD):",{"$f":"SUM(C4:C25)","v":4455},"kVA",null,null,null,null,null,null,null,null,null,null,{"$f":"SUM(O4:O25)","v":0},{"$f":"SUM(P4:P25)","v":200}]
[null,"Total load (MD):",{"$f":"SUM(C26*1000)/($N$1*SQRT(3))","v":389.7114317029974},"Amps"]
[null,"FLA load on feeder:",200,"Amps"]
[null,"Calculated Diversity:",{"$f":"N3","v":0.51320023927966729},null,null,{"$f":"IF(C29<0.5,\"VERY LOW DIVERSITY\",IF(C29>0.71,\"\",\"LOW DIVERSITY\"))","v":"LOW DIVERSITY"}]
[null,"User Input Diversity:",{"$f":"C29","v":0.51320023927966729}]
[null,"Checked boxes:",{"$f":"O26","v":0},"Amps"]
[null,"Un checked boxes:",{"$f":"P26","v":200},"Amps"]

{"sheet":"CAF calculator","index":16,"n_rows":55,"n_cols":8,"rows_kept":55,"cut":false,"hidden":true,"merged":[[0,4,1,6]]}
[null,{"$f":"IF(Input!L4=\"\",\"\",Input!L4)","v":"5500153017A"},"Apportionment for: ",null,{"$f":"IF(Input!E3=\"\",\"\",Input!E3)","v":"Stagecoach Sharston Depot, Leestone Road, Wythenshawe, Manchester"},null,null,{"$f":"IF(Input!L3=\"\",\"\",Input!L3)","v":"2019-07-31"}]
[]
[null,null,"100% to ","VARIABLE","CAF","GROUPS","100% TO"]
[null,"Line No:","CUST","A: T/F","B: HV","C: LV","ENW"]
[null,1]
[null,2]
[null,3]
[null,4]
[null,5]
[null,6]
[null,7]
[null,8]
[null,9]
[null,10]
[null,11]
[null,12]
[null,13]
[null,14]
[null,15]
[null,16]
[null,17]
[null,18]
[null,19]
[null,20]
[null,21]
[null,22]
[null,23]
[null,24,null,null,null,null,null,"GRAND"]
[null,25,null,null,null,null,null,"TOTALS"]
[null,"TOTALS",{"$f":"SUM(C5:C29)","v":0},{"$f":"SUM(D5:D29)","v":0},{"$f":"SUM(E5:E29)","v":0},{"$f":"SUM(F5:F29)","v":0},{"$f":"SUM(G5:G29)","v":0},{"$f":"SUM(C30:G30)","v":0}]
["ENTER","CAF P.U. >",1,1,1,1,0]
["Normal","Cust Charge",{"$f":"C30*C31","v":0},{"$f":"D30*D31","v":0},{"$f":"E30*E31","v":0},{"$f":"F30*F31","v":0},{"$f":"G30*G31","v":0},{"$f":"SUM(C32:G32)","v":0}]
["Values","ENW Chg",{"$f":"C30-C32","v":0},{"$f":"D30-D32","v":0},{"$f":"E30-E32","v":0},{"$f":"F30-F32","v":0},{"$f":"G30-G32","v":0},{"$f":"SUM(C33:G33)","v":0}]
[]
[null,null,"\"Variable CAF\" total £",{"$f":"SUM(D30:F30)","v":0},null,null,"Variable CAF \"Cust Charge\" £",{"$f":"SUM(D32:F32)","v":0}]
[]
[]
[null,null,null,null,"Total generation capacity in kW: ",null,"CAP £:",{"$f":"200*F38","v":0}]
[]
[null,null,{"$f":"IF(AND(H38>0,H38<D35),\" GEN CAP applies. - CAF to be \",\"Only used if Generator   >\")","v":"Only used if Generator   >"},null,null,{"$f":"IF(AND(H38>0,H38<D35),H35,\" \")","v":" "},"Customer"]
[null,null,{"$f":"IF(AND(H38>0,H38<D35),\"  based on values shown:\",\"                 CAP Applies  >\")","v":"                 CAP Applies  >"},null,null,{"$f":"IF(AND(H38>0,H38<D35),D35,\" \")","v":" "},"Total"]
[]
[null,null,null,null," Average CAF PU. is therefore: CUSTOMER:",{"$f":"IF(AND(H38>0,H38<D35),F40/F41,\" \")","v":" "},"ENW:",{"$f":"IF(AND(H38>0,H38<D35),1-F43,\" \")","v":" "}]
[]
[null,null,null,null,"Amount Chargable to ENW £:",{"$f":"IF(AND(H38>0,H38<D35),H38*H43,\" \")","v":" "}]
[]
[]
[null,null,null,null,null,"ENW",null,"CUSTOMER"]
[null,null,null,null,"Cost Chargeable in Full To Customer:",{"$f":"C33","v":0},null,{"$f":"C32","v":0}]
[null,null,null,null,"Cost Chargeable in Full To ENW:",{"$f":"G33","v":0},null,{"$f":"G32","v":0}]
[null,null,null,null,"Cost Apportioned:",{"$f":"IF(AND(H38>0,H38<D35),F45,SUM(D33:F33))","v":0},null,{"$f":"D35-F51","v":0}]
[null,null,null,null,"TOTALS:",{"$f":"SUM(F49:F51)","v":0},null,{"$f":"SUM(H49:H51)","v":0}]
[]
[null,null,null,null,null,null,"TOTAL COST OF REINFORCEMENT:",{"$f":"SUM(C30:G30)","v":0}]
[null,null,null,null,null,null,{"$f":"IF(AND(H38>0,H38<D35),\" Value to use in WFM Apportionment>\",\"Only used if Generator CAP Applies >\")","v":"Only used if Generator CAP Applies >"},{"$f":"IF(AND(H38>0,H38<D35),H51/D35,\" \")","v":" "}]

{"sheet":"CAF calculator instructions","index":17,"n_rows":55,"n_cols":8,"rows_kept":55,"cut":false,"hidden":true,"merged":[]}
[null,"Y******","Apportionment for: ",null,null,null,null,{"$f":"TODAY()","v":"2020-09-25"}]
[]
[null,null,"100% to ","VARIABLE","CAF","GROUPS","100% TO"]
[null,"Line No:","CUST","A: T/F","B: HV","C: LV","ENW"]
[null,1]
[null,2]
[null,3]
[null,4]
[null,5]
[null,6]
[null,7]
[null,8]
[null,9]
[null,10]
[null,11]
[null,12]
[null,13]
[null,14]
[null,15]
[null,16]
[null,17]
[null,18]
[null,19]
[null,20]
[null,21]
[null,22]
[null,23]
[null,24,null,null,null,null,null,"GRAND"]
[null,25,null,null,null,null,null,"TOTALS"]
[null,"TOTALS",{"$f":"SUM(C5:C29)","v":0},{"$f":"SUM(D5:D29)","v":0},{"$f":"SUM(E5:E29)","v":0},{"$f":"SUM(F5:F29)","v":0},{"$f":"SUM(G5:G29)","v":0},{"$f":"SUM(C30:G30)","v":0}]
["ENTER","CAF P.U. >",1,1,1,1,0]
["Normal","Cust Charge",{"$f":"C30*C31","v":0},{"$f":"D30*D31","v":0},{"$f":"E30*E31","v":0},{"$f":"F30*F31","v":0},{"$f":"G30*G31","v":0},{"$f":"SUM(C32:G32)","v":0}]
["Values","ENW Chg",{"$f":"C30-C32","v":0},{"$f":"D30-D32","v":0},{"$f":"E30-E32","v":0},{"$f":"F30-F32","v":0},{"$f":"G30-G32","v":0},{"$f":"SUM(C33:G33)","v":0}]
[]
[null,null,"\"Variable CAF\" total £",{"$f":"SUM(D30:F30)","v":0},null,null,"Variable CAF \"Cust Charge\" £",{"$f":"SUM(D32:F32)","v":0}]
[]
[]
[null,null,null,null,"Total generation capacity in kW: ",null,"CAP £:",{"$f":"200*F38","v":0}]
[]
[null,null,{"$f":"IF(AND(H38>0,H38<D35),\" GEN CAP applies. - CAF to be \",\"Only used if Generator   >\")","v":"Only used if Generator   >"},null,null,{"$f":"IF(AND(H38>0,H38<D35),H35,\" \")","v":" "},"Customer"]
[null,null,{"$f":"IF(AND(H38>0,H38<D35),\"  based on values shown:\",\"                 CAP Applies  >\")","v":"                 CAP Applies  >"},null,null,{"$f":"IF(AND(H38>0,H38<D35),D35,\" \")","v":" "},"Total"]
[]
[null,null,null,null," Average CAF PU. is therefore: CUSTOMER:",{"$f":"IF(AND(H38>0,H38<D35),F40/F41,\" \")","v":" "},"ENW:",{"$f":"IF(AND(H38>0,H38<D35),1-F43,\" \")","v":" "}]
[]
[null,null,null,null,"Amount Chargable to ENW £:",{"$f":"IF(AND(H38>0,H38<D35),H38*H43,\" \")","v":" "}]
[]
[]
[null,null,null,null,null,"ENW",null,"CUSTOMER"]
[null,null,null,null,"Cost Chargeable in Full To Customer:",{"$f":"C33","v":0},null,{"$f":"C32","v":0}]
[null,null,null,null,"Cost Chargeable in Full To ENW:",{"$f":"G33","v":0},null,{"$f":"G32","v":0}]
[null,null,null,null,"Cost Apportioned:",{"$f":"IF(AND(H38>0,H38<D35),F45,SUM(D33:F33))","v":0},null,{"$f":"D35-F51","v":0}]
[null,null,null,null,"TOTALS:",{"$f":"SUM(F49:F51)","v":0},null,{"$f":"SUM(H49:H51)","v":0}]
[]
[null,null,null,null,null,null,"TOTAL COST OF REINFORCEMENT:",{"$f":"SUM(C30:G30)","v":0}]
[null,null,null,null,null,null,null,{"$f":"IF(AND(H38>0,H38<D35),H51/D35,\" \")","v":" "}]

{"sheet":"HV Circuit Lookup DATA","index":18,"n_rows":33695,"n_cols":4,"rows_kept":4500,"cut":true,"hidden":true,"merged":[],"bounds":{"rows_first":2000,"rows_last":500,"rows_between":2000,"halvings":0}}
["DistrTx","Circuit","PrimarySiteName","DG Lookup"]
[171971,"F583 WHITWORTH ART GALLERY/TOMMY JOHNS","ARDWICK","Ardwick"]
[171989,"F583 WHITWORTH ART GALLERY/TOMMY JOHNS","ARDWICK","Ardwick"]
[177459,"F583 WHITWORTH ART GALLERY/TOMMY JOHNS","ARDWICK","Ardwick"]
[177793,"F583 WHITWORTH ART GALLERY/TOMMY JOHNS","ARDWICK","Ardwick"]
[178625,"F583 WHITWORTH ART GALLERY/TOMMY JOHNS","ARDWICK","Ardwick"]
[166154,"F3084 METROLINK PICCADILLY","ARDWICK","Ardwick"]
[166161,"F3084 METROLINK PICCADILLY","ARDWICK","Ardwick"]
[167119,"F3084 METROLINK PICCADILLY","ARDWICK","Ardwick"]
[172511,"F3084 METROLINK PICCADILLY","ARDWICK","Ardwick"]
[166148,"F1982 ARDWICK NWK","ARDWICK","Ardwick"]
[171071,"F1982 ARDWICK NWK","ARDWICK","Ardwick"]
[171202,"F1982 ARDWICK NWK","ARDWICK","Ardwick"]
[171778,"F1982 ARDWICK NWK","ARDWICK","Ardwick"]
[171980,"F1982 ARDWICK NWK","ARDWICK","Ardwick"]
[171987,"F1982 ARDWICK NWK","ARDWICK","Ardwick"]
[171988,"F1982 ARDWICK NWK","ARDWICK","Ardwick"]
[171996,"F1982 ARDWICK NWK","ARDWICK","Ardwick"]
[171998,"F1982 ARDWICK NWK","ARDWICK","Ardwick"]
[171099,"F833 APSLEY GROVE/BRYDON AVE","ARDWICK","Ardwick"]
[171249,"F833 APSLEY GROVE/BRYDON AVE","ARDWICK","Ardwick"]
[177108,"F833 APSLEY GROVE/BRYDON AVE","ARDWICK","Ardwick"]
[177797,"F833 APSLEY GROVE/BRYDON AVE","ARDWICK","Ardwick"]
[171021,"F991 HANOVER MILL/ABC ARDWICK","ARDWICK","Ardwick"]
[171039,"F991 HANOVER MILL/ABC ARDWICK","ARDWICK","Ardwick"]
[171540,"F991 HANOVER MILL/ABC ARDWICK","ARDWICK","Ardwick"]
[171547,"F991 HANOVER MILL/ABC ARDWICK","ARDWICK","Ardwick"]
[172017,"F991 HANOVER MILL/ABC ARDWICK","ARDWICK","Ardwick"]
[172026,"F991 HANOVER MILL/ABC ARDWICK","ARDWICK","Ardwick"]
[171090,"F3061 JMB ACOMB ST/PENCROFT WAY","ARDWICK","Ardwick"]
[172252,"F3061 JMB ACOMB ST/PENCROFT WAY","ARDWICK","Ardwick"]
[172579,"F3061 JMB ACOMB ST/PENCROFT WAY","ARDWICK","Ardwick"]
[172615,"F3061 JMB ACOMB ST/PENCROFT WAY","ARDWICK","Ardwick"]
[177249,"F3061 JMB ACOMB ST/PENCROFT WAY","ARDWICK","Ardwick"]
[177310,"F3061 JMB ACOMB ST/PENCROFT WAY","ARDWICK","Ardwick"]
[178780,"F3061 JMB ACOMB ST/PENCROFT WAY","ARDWICK","Ardwick"]
[178868,"F3061 JMB ACOMB ST/PENCROFT WAY","ARDWICK","Ardwick"]
[166159,"F996 CAKEBREAD ST","ARDWICK","Ardwick"]
[171277,"F996 CAKEBREAD ST","ARDWICK","Ardwick"]
[171336,"F996 CAKEBREAD ST","ARDWICK","Ardwick"]
[172241,"F996 CAKEBREAD ST","ARDWICK","Ardwick"]
[177418,"F996 CAKEBREAD ST","ARDWICK","Ardwick"]
[166724,"F464 MONTANA HS/PRINCESS ST 144","ARDWICK","Ardwick"]
[167694,"F464 MONTANA HS/PRINCESS ST 144","ARDWICK","Ardwick"]
[167502,"F3810 PICCADILLY STN","ARDWICK","Ardwick"]
[171355,"F2995 GOODWOOD AVE/LARCHWOOD CL","ASHTON ON MERSEY","Ashton On Mersey"]
[171473,"F2995 GOODWOOD AVE/LARCHWOOD CL","ASHTON ON MERSEY","Ashton On Mersey"]
[171799,"F2995 GOODWOOD AVE/LARCHWOOD CL","ASHTON ON MERSEY","Ashton On Mersey"]
[171007,"F2577 CARRINGTON LN","ASHTON ON MERSEY","Ashton On Mersey"]
[171163,"F2577 CARRINGTON LN","ASHTON ON MERSEY","Ashton On Mersey"]
[171267,"F2577 CARRINGTON LN","ASHTON ON MERSEY","Ashton On Mersey"]
[171457,"F2577 CARRINGTON LN","ASHTON ON MERSEY","Ashton On Mersey"]
[171489,"F2577 CARRINGTON LN","ASHTON ON MERSEY","Ashton On Mersey"]
[171579,"F2577 CARRINGTON LN","ASHTON ON MERSEY","Ashton On Mersey"]
[171602,"F2577 CARRINGTON LN","ASHTON ON MERSEY","Ashton On Mersey"]
[171396,"F1408 KENILWORTH RD","ASHTON ON MERSEY","Ashton On Mersey"]
[171455,"F1408 KENILWORTH RD","ASHTON ON MERSEY","Ashton On Mersey"]
[171841,"F1408 KENILWORTH RD","ASHTON ON MERSEY","Ashton On Mersey"]
[172472,"F1408 KENILWORTH RD","ASHTON ON MERSEY","Ashton On Mersey"]
[178206,"F1408 KENILWORTH RD","ASHTON ON MERSEY","Ashton On Mersey"]
[178219,"F1408 KENILWORTH RD","ASHTON ON MERSEY","Ashton On Mersey"]
[178220,"F1408 KENILWORTH RD","ASHTON ON MERSEY","Ashton On Mersey"]
[171164,"F1409 TAVISTOCK RD","ASHTON ON MERSEY","Ashton On Mersey"]
[171474,"F1409 TAVISTOCK RD","ASHTON ON MERSEY","Ashton On Mersey"]
[171509,"F1409 TAVISTOCK RD","ASHTON ON MERSEY","Ashton On Mersey"]
[171517,"F1409 TAVISTOCK RD","ASHTON ON MERSEY","Ashton On Mersey"]
[171519,"F1409 TAVISTOCK RD","ASHTON ON MERSEY","Ashton On Mersey"]
[171779,"F1409 TAVISTOCK RD","ASHTON ON MERSEY","Ashton On Mersey"]
[171812,"F1409 TAVISTOCK RD","ASHTON ON MERSEY","Ashton On Mersey"]
[178066,"F1409 TAVISTOCK RD","ASHTON ON MERSEY","Ashton On Mersey"]
[171032,"F1410 BUCKFAST RD","ASHTON ON MERSEY","Ashton On Mersey"]
[171146,"F1410 BUCKFAST RD","ASHTON ON MERSEY","Ashton On Mersey"]
[171348,"F1410 BUCKFAST RD","ASHTON ON MERSEY","Ashton On Mersey"]
[171408,"F1410 BUCKFAST RD","ASHTON ON MERSEY","Ashton On Mersey"]
[171696,"F1410 BUCKFAST RD","ASHTON ON MERSEY","Ashton On Mersey"]
[171031,"F1411 CHAPEL LN","ASHTON ON MERSEY","Ashton On Mersey"]
[171183,"F1411 CHAPEL LN","ASHTON ON MERSEY","Ashton On Mersey"]
[171245,"F1411 CHAPEL LN","ASHTON ON MERSEY","Ashton On Mersey"]
[171505,"F1411 CHAPEL LN","ASHTON ON MERSEY","Ashton On Mersey"]
[177507,"F1411 CHAPEL LN","ASHTON ON MERSEY","Ashton On Mersey"]
[178252,"F1411 CHAPEL LN","ASHTON ON MERSEY","Ashton On Mersey"]
[171258,"F1412 HARBORO RD","ASHTON ON MERSEY","Ashton On Mersey"]
[171377,"F1412 HARBORO RD","ASHTON ON MERSEY","Ashton On Mersey"]
[171397,"F1412 HARBORO RD","ASHTON ON MERSEY","Ashton On Mersey"]
[171437,"F1412 HARBORO RD","ASHTON ON MERSEY","Ashton On Mersey"]
[171544,"F1412 HARBORO RD","ASHTON ON MERSEY","Ashton On Mersey"]
[171582,"F1412 HARBORO RD","ASHTON ON MERSEY","Ashton On Mersey"]
[178119,"F1412 HARBORO RD","ASHTON ON MERSEY","Ashton On Mersey"]
[178455,"F1412 HARBORO RD","ASHTON ON MERSEY","Ashton On Mersey"]
[178670,"F1412 HARBORO RD","ASHTON ON MERSEY","Ashton On Mersey"]
[171084,"L83 GLEBELANDS RD (BAGULEY)","BAGULEY","Baguley"]
[171293,"L83 GLEBELANDS RD (BAGULEY)","BAGULEY","Baguley"]
[171320,"L83 GLEBELANDS RD (BAGULEY)","BAGULEY","Baguley"]
[171347,"L83 GLEBELANDS RD (BAGULEY)","BAGULEY","Baguley"]
[171667,"L83 GLEBELANDS RD (BAGULEY)","BAGULEY","Baguley"]
[171733,"L83 GLEBELANDS RD (BAGULEY)","BAGULEY","Baguley"]
[172266,"L83 GLEBELANDS RD (BAGULEY)","BAGULEY","Baguley"]
[177557,"L83 GLEBELANDS RD (BAGULEY)","BAGULEY","Baguley"]
[178132,"L83 GLEBELANDS RD (BAGULEY)","BAGULEY","Baguley"]
[178615,"L83 GLEBELANDS RD (BAGULEY)","BAGULEY","Baguley"]
[178619,"L83 GLEBELANDS RD (BAGULEY)","BAGULEY","Baguley"]
[171627,"L347 WYTHENSHAWE HOSP 1998/NTL","BAGULEY","Baguley"]
[171883,"L347 WYTHENSHAWE HOSP 1998/NTL","BAGULEY","Baguley"]
[172405,"L347 WYTHENSHAWE HOSP 1998/NTL","BAGULEY","Baguley"]
[177242,"L347 WYTHENSHAWE HOSP 1998/NTL","BAGULEY","Baguley"]
[177243,"L347 WYTHENSHAWE HOSP 1998/NTL","BAGULEY","Baguley"]
[177244,"L347 WYTHENSHAWE HOSP 1998/NTL","BAGULEY","Baguley"]
[177966,"L347 WYTHENSHAWE HOSP 1998/NTL","BAGULEY","Baguley"]
[178093,"L347 WYTHENSHAWE HOSP 1998/NTL","BAGULEY","Baguley"]
[178294,"L347 WYTHENSHAWE HOSP 1998/NTL","BAGULEY","Baguley"]
[171020,"L258 BAGULEY LOCAL SW STN","BAGULEY","Baguley"]
[171030,"L258 BAGULEY LOCAL SW STN","BAGULEY","Baguley"]
[171148,"L258 BAGULEY LOCAL SW STN","BAGULEY","Baguley"]
[171168,"L258 BAGULEY LOCAL SW STN","BAGULEY","Baguley"]
[171213,"L258 BAGULEY LOCAL SW STN","BAGULEY","Baguley"]
[171301,"L258 BAGULEY LOCAL SW STN","BAGULEY","Baguley"]
[171306,"L258 BAGULEY LOCAL SW STN","BAGULEY","Baguley"]
[171522,"L258 BAGULEY LOCAL SW STN","BAGULEY","Baguley"]
[171715,"L258 BAGULEY LOCAL SW STN","BAGULEY","Baguley"]
[171768,"L258 BAGULEY LOCAL SW STN","BAGULEY","Baguley"]
[171802,"L258 BAGULEY LOCAL SW STN","BAGULEY","Baguley"]
[171834,"L258 BAGULEY LOCAL SW STN","BAGULEY","Baguley"]
[171847,"L258 BAGULEY LOCAL SW STN","BAGULEY","Baguley"]
[171865,"L258 BAGULEY LOCAL SW STN","BAGULEY","Baguley"]
[171867,"L258 BAGULEY LOCAL SW STN","BAGULEY","Baguley"]
[172279,"L258 BAGULEY LOCAL SW STN","BAGULEY","Baguley"]
[172602,"L258 BAGULEY LOCAL SW STN","BAGULEY","Baguley"]
[172611,"L258 BAGULEY LOCAL SW STN","BAGULEY","Baguley"]
[177114,"L258 BAGULEY LOCAL SW STN","BAGULEY","Baguley"]
[177276,"L258 BAGULEY LOCAL SW STN","BAGULEY","Baguley"]
[177653,"L258 BAGULEY LOCAL SW STN","BAGULEY","Baguley"]
[171372,"L381 MOOR RD BAGULEY/DRESSER RAND","BAGULEY","Baguley"]
[171493,"L381 MOOR RD BAGULEY/DRESSER RAND","BAGULEY","Baguley"]
[171539,"L381 MOOR RD BAGULEY/DRESSER RAND","BAGULEY","Baguley"]
[171548,"L381 MOOR RD BAGULEY/DRESSER RAND","BAGULEY","Baguley"]
[171588,"L381 MOOR RD BAGULEY/DRESSER RAND","BAGULEY","Baguley"]
[171766,"L381 MOOR RD BAGULEY/DRESSER RAND","BAGULEY","Baguley"]
[177362,"L381 MOOR RD BAGULEY/DRESSER RAND","BAGULEY","Baguley"]
[177843,"L381 MOOR RD BAGULEY/DRESSER RAND","BAGULEY","Baguley"]
[178011,"L381 MOOR RD BAGULEY/DRESSER RAND","BAGULEY","Baguley"]
[178344,"L381 MOOR RD BAGULEY/DRESSER RAND","BAGULEY","Baguley"]
[171175,"L1717 NTL/CEGB TIMPSON RD","BAGULEY","Baguley"]
[171803,"L1717 NTL/CEGB TIMPSON RD","BAGULEY","Baguley"]
[172414,"L1717 NTL/CEGB TIMPSON RD","BAGULEY","Baguley"]
[177331,"L1717 NTL/CEGB TIMPSON RD","BAGULEY","Baguley"]
[171076,"L372 ROTALAC PLASTICS","BAGULEY","Baguley"]
[171106,"L372 ROTALAC PLASTICS","BAGULEY","Baguley"]
[171153,"L372 ROTALAC PLASTICS","BAGULEY","Baguley"]
[171243,"L372 ROTALAC PLASTICS","BAGULEY","Baguley"]
[171337,"L372 ROTALAC PLASTICS","BAGULEY","Baguley"]
[171663,"L372 ROTALAC PLASTICS","BAGULEY","Baguley"]
[171709,"L372 ROTALAC PLASTICS","BAGULEY","Baguley"]
[171716,"L372 ROTALAC PLASTICS","BAGULEY","Baguley"]
[172269,"L372 ROTALAC PLASTICS","BAGULEY","Baguley"]
[172493,"L372 ROTALAC PLASTICS","BAGULEY","Baguley"]
[172509,"L372 ROTALAC PLASTICS","BAGULEY","Baguley"]
[172546,"L372 ROTALAC PLASTICS","BAGULEY","Baguley"]
[177640,"L372 ROTALAC PLASTICS","BAGULEY","Baguley"]
[177721,"L372 ROTALAC PLASTICS","BAGULEY","Baguley"]
[177998,"L372 ROTALAC PLASTICS","BAGULEY","Baguley"]
[178437,"L372 ROTALAC PLASTICS","BAGULEY","Baguley"]
[178545,"L372 ROTALAC PLASTICS","BAGULEY","Baguley"]
[178623,"L372 ROTALAC PLASTICS","BAGULEY","Baguley"]
[171083,"L380 COMPASS POINT","BAGULEY","Baguley"]
[171679,"L380 COMPASS POINT","BAGULEY","Baguley"]
[171681,"L380 COMPASS POINT","BAGULEY","Baguley"]
[177238,"L380 COMPASS POINT","BAGULEY","Baguley"]
[177836,"L380 COMPASS POINT","BAGULEY","Baguley"]
[178153,"L380 COMPASS POINT","BAGULEY","Baguley"]
[178360,"L380 COMPASS POINT","BAGULEY","Baguley"]
[171229,"L348 FOURACRES RD/DRESSER RAND","BAGULEY","Baguley"]
[171312,"L348 FOURACRES RD/DRESSER RAND","BAGULEY","Baguley"]
[171321,"L348 FOURACRES RD/DRESSER RAND","BAGULEY","Baguley"]
[171370,"L348 FOURACRES RD/DRESSER RAND","BAGULEY","Baguley"]
[171616,"L348 FOURACRES RD/DRESSER RAND","BAGULEY","Baguley"]
[171710,"L348 FOURACRES RD/DRESSER RAND","BAGULEY","Baguley"]
[177701,"L348 FOURACRES RD/DRESSER RAND","BAGULEY","Baguley"]
[178120,"L348 FOURACRES RD/DRESSER RAND","BAGULEY","Baguley"]
[178192,"L348 FOURACRES RD/DRESSER RAND","BAGULEY","Baguley"]
[171012,"L231 BENCHILL NETWORK","BENCHILL","Benchill"]
[171079,"L231 BENCHILL NETWORK","BENCHILL","Benchill"]
[171375,"L231 BENCHILL NETWORK","BENCHILL","Benchill"]
[177307,"L231 BENCHILL NETWORK","BENCHILL","Benchill"]
[171087,"L401 HOLLYHEDGE RD 2A","BENCHILL","Benchill"]
[171105,"L401 HOLLYHEDGE RD 2A","BENCHILL","Benchill"]
[171420,"L401 HOLLYHEDGE RD 2A","BENCHILL","Benchill"]
[171430,"L401 HOLLYHEDGE RD 2A","BENCHILL","Benchill"]
[171606,"L401 HOLLYHEDGE RD 2A","BENCHILL","Benchill"]
[178606,"L401 HOLLYHEDGE RD 2A","BENCHILL","Benchill"]
[171426,"L202 HOLLYHEDGE RD/BENCHILL CT","BENCHILL","Benchill"]
[171701,"L202 HOLLYHEDGE RD/BENCHILL CT","BENCHILL","Benchill"]
[177838,"L202 HOLLYHEDGE RD/BENCHILL CT","BENCHILL","Benchill"]
[171100,"L1989 WEST RD/NIELDS BROW","BOWDON","Bowdon"]
[171104,"L1989 WEST RD/NIELDS BROW","BOWDON","Bowdon"]
[171256,"L1989 WEST RD/NIELDS BROW","BOWDON","Bowdon"]
[171360,"L1989 WEST RD/NIELDS BROW","BOWDON","Bowdon"]
[171363,"L1989 WEST RD/NIELDS BROW","BOWDON","Bowdon"]
[171367,"L1989 WEST RD/NIELDS BROW","BOWDON","Bowdon"]
[171471,"L1989 WEST RD/NIELDS BROW","BOWDON","Bowdon"]
[171563,"L1989 WEST RD/NIELDS BROW","BOWDON","Bowdon"]
[171601,"L1989 WEST RD/NIELDS BROW","BOWDON","Bowdon"]
[171608,"L1989 WEST RD/NIELDS BROW","BOWDON","Bowdon"]
[171757,"L1989 WEST RD/NIELDS BROW","BOWDON","Bowdon"]
[171791,"L1989 WEST RD/NIELDS BROW","BOWDON","Bowdon"]
[171795,"L1989 WEST RD/NIELDS BROW","BOWDON","Bowdon"]
[171828,"L1989 WEST RD/NIELDS BROW","BOWDON","Bowdon"]
[171848,"L1989 WEST RD/NIELDS BROW","BOWDON","Bowdon"]
[172043,"L1989 WEST RD/NIELDS BROW","BOWDON","Bowdon"]
[172064,"L1989 WEST RD/NIELDS BROW","BOWDON","Bowdon"]
[172226,"L1989 WEST RD/NIELDS BROW","BOWDON","Bowdon"]
[172228,"L1989 WEST RD/NIELDS BROW","BOWDON","Bowdon"]
[172497,"L1989 WEST RD/NIELDS BROW","BOWDON","Bowdon"]
[172519,"L1989 WEST RD/NIELDS BROW","BOWDON","Bowdon"]
[174024,"L1989 WEST RD/NIELDS BROW","BOWDON","Bowdon"]
[171011,"L1987 QUEENS RD HALE/BROWN ST","BOWDON","Bowdon"]
[171386,"L1987 QUEENS RD HALE/BROWN ST","BOWDON","Bowdon"]
[171631,"L1987 QUEENS RD HALE/BROWN ST","BOWDON","Bowdon"]
[171755,"L1987 QUEENS RD HALE/BROWN ST","BOWDON","Bowdon"]
[172373,"L1987 QUEENS RD HALE/BROWN ST","BOWDON","Bowdon"]
[172381,"L1987 QUEENS RD HALE/BROWN ST","BOWDON","Bowdon"]
[172604,"L1987 QUEENS RD HALE/BROWN ST","BOWDON","Bowdon"]
[177349,"L1987 QUEENS RD HALE/BROWN ST","BOWDON","Bowdon"]
[177673,"L1987 QUEENS RD HALE/BROWN ST","BOWDON","Bowdon"]
[177723,"L1987 QUEENS RD HALE/BROWN ST","BOWDON","Bowdon"]
[177953,"L1987 QUEENS RD HALE/BROWN ST","BOWDON","Bowdon"]
[171029,"L1988 ASHLEY RD (NO 125)","BOWDON","Bowdon"]
[171047,"L1988 ASHLEY RD (NO 125)","BOWDON","Bowdon"]
[171069,"L1988 ASHLEY RD (NO 125)","BOWDON","Bowdon"]
[171288,"L1988 ASHLEY RD (NO 125)","BOWDON","Bowdon"]
[171487,"L1988 ASHLEY RD (NO 125)","BOWDON","Bowdon"]
[171488,"L1988 ASHLEY RD (NO 125)","BOWDON","Bowdon"]
[172274,"L1988 ASHLEY RD (NO 125)","BOWDON","Bowdon"]
[177357,"L1988 ASHLEY RD (NO 125)","BOWDON","Bowdon"]
[177577,"L1988 ASHLEY RD (NO 125)","BOWDON","Bowdon"]
[171101,"L1986 BOWDON O/D","BOWDON","Bowdon"]
[171385,"L1986 BOWDON O/D","BOWDON","Bowdon"]
[171404,"L1986 BOWDON O/D","BOWDON","Bowdon"]
[171743,"L1986 BOWDON O/D","BOWDON","Bowdon"]
[172236,"L1986 BOWDON O/D","BOWDON","Bowdon"]
[179059,"L1986 BOWDON O/D","BOWDON","Bowdon"]
[179138,"L1986 BOWDON O/D","BOWDON","Bowdon"]
[171024,"L1985 CECIL RD","BOWDON","Bowdon"]
[171028,"L1985 CECIL RD","BOWDON","Bowdon"]
[171102,"L1985 CECIL RD","BOWDON","Bowdon"]
[171122,"L1985 CECIL RD","BOWDON","Bowdon"]
[171173,"L1985 CECIL RD","BOWDON","Bowdon"]
[171388,"L1985 CECIL RD","BOWDON","Bowdon"]
[171644,"L1985 CECIL RD","BOWDON","Bowdon"]
[171796,"L1985 CECIL RD","BOWDON","Bowdon"]
[171831,"L1985 CECIL RD","BOWDON","Bowdon"]
[177629,"L1985 CECIL RD","BOWDON","Bowdon"]
[177736,"L1985 CECIL RD","BOWDON","Bowdon"]
[178381,"L1985 CECIL RD","BOWDON","Bowdon"]
[178652,"F2 ICL GORTON","BRADFORD","Bradford"]
[171708,"F30 GPO MILL ST","BRADFORD","Bradford"]
[171454,"F784 COLLIERY ST","BRADFORD","Bradford"]
[177107,"F784 COLLIERY ST","BRADFORD","Bradford"]
[178474,"F784 COLLIERY ST","BRADFORD","Bradford"]
[171759,"F28 GREY MARE LN","BRADFORD","Bradford"]
[177490,"F28 GREY MARE LN","BRADFORD","Bradford"]
[171777,"F10 MONASTERY OF ST FRANCIS","BRADFORD","Bradford"]
[178121,"F10 MONASTERY OF ST FRANCIS","BRADFORD","Bradford"]
[171248,"F4 MARCHMONT CL/REDGATE LN/BRIDGEND CL","BRADFORD","Bradford"]
[178488,"F4 MARCHMONT CL/REDGATE LN/BRIDGEND CL","BRADFORD","Bradford"]
[171387,"F806 CRAYBRIDGE RD","BRADFORD","Bradford"]
[171874,"F806 CRAYBRIDGE RD","BRADFORD","Bradford"]
[172429,"F806 CRAYBRIDGE RD","BRADFORD","Bradford"]
[172545,"F806 CRAYBRIDGE RD","BRADFORD","Bradford"]
[172481,"F16 K2 ASHTON OLD RD","BRADFORD","Bradford"]
[172523,"F16 K2 ASHTON OLD RD","BRADFORD","Bradford"]
[177440,"F16 K2 ASHTON OLD RD","BRADFORD","Bradford"]
[172072,"F14 KIRKSTEAD CL/CLOWES ST ARDWICK","BRADFORD","Bradford"]
[178683,"F14 KIRKSTEAD CL/CLOWES ST ARDWICK","BRADFORD","Bradford"]
[178815,"F14 KIRKSTEAD CL/CLOWES ST ARDWICK","BRADFORD","Bradford"]
[171160,"F97 VALANCE CL","BRADFORD","Bradford"]
[171444,"F97 VALANCE CL","BRADFORD","Bradford"]
[172083,"F97 VALANCE CL","BRADFORD","Bradford"]
[172387,"F97 VALANCE CL","BRADFORD","Bradford"]
[172395,"F97 VALANCE CL","BRADFORD","Bradford"]
[177804,"F97 VALANCE CL","BRADFORD","Bradford"]
[171161,"F591 GORTON RD","BRADFORD","Bradford"]
[171727,"F591 GORTON RD","BRADFORD","Bradford"]
[172059,"F591 GORTON RD","BRADFORD","Bradford"]
[172066,"F591 GORTON RD","BRADFORD","Bradford"]
[172221,"F591 GORTON RD","BRADFORD","Bradford"]
[172441,"F591 GORTON RD","BRADFORD","Bradford"]
[172498,"F591 GORTON RD","BRADFORD","Bradford"]
[178759,"F591 GORTON RD","BRADFORD","Bradford"]
[178928,"F591 GORTON RD","BRADFORD","Bradford"]
[172087,"F904 ROTUNDA CLAYTON","BRADFORD","Bradford"]
[178131,"F904 ROTUNDA CLAYTON","BRADFORD","Bradford"]
[178382,"F904 ROTUNDA CLAYTON","BRADFORD","Bradford"]
[166186,"F15 GREY MARE LN ACADEMY","BRADFORD","Bradford"]
[167967,"F15 GREY MARE LN ACADEMY","BRADFORD","Bradford"]
[172053,"F15 GREY MARE LN ACADEMY","BRADFORD","Bradford"]
[172428,"F15 GREY MARE LN ACADEMY","BRADFORD","Bradford"]
[177941,"F15 GREY MARE LN ACADEMY","BRADFORD","Bradford"]
[177963,"F15 GREY MARE LN ACADEMY","BRADFORD","Bradford"]
[178332,"F15 GREY MARE LN ACADEMY","BRADFORD","Bradford"]
[178335,"F15 GREY MARE LN ACADEMY","BRADFORD","Bradford"]
[171327,"F506 ANDERSONS/BOB MASSEY CL","BRADFORD","Bradford"]
[177993,"F508 WOLVERTON ST","BRADFORD","Bradford"]
[178531,"F508 WOLVERTON ST","BRADFORD","Bradford"]
[171010,"F5 COLD STORE","BRADFORD","Bradford"]
[172088,"F5 COLD STORE","BRADFORD","Bradford"]
[178141,"F5 COLD STORE","BRADFORD","Bradford"]
[178584,"F106 RAIL DEPOT POTTERY LN","BRADFORD","Bradford"]
[172147,"F1589 ELLEN ST","DROYLSDEN EAST","Droylsden East"]
[172156,"F1589 ELLEN ST","DROYLSDEN EAST","Droylsden East"]
[172163,"F1589 ELLEN ST","DROYLSDEN EAST","Droylsden East"]
[172212,"F1589 ELLEN ST","DROYLSDEN EAST","Droylsden East"]
[172391,"F1589 ELLEN ST","DROYLSDEN EAST","Droylsden East"]
[171747,"F71 DROYLSDEN MARKET NO1","DROYLSDEN EAST","Droylsden East"]
[177520,"F71 DROYLSDEN MARKET NO1","DROYLSDEN EAST","Droylsden East"]
[177587,"F71 DROYLSDEN MARKET NO1","DROYLSDEN EAST","Droylsden East"]
[171465,"F1284 WEST DR","DROYLSDEN EAST","Droylsden East"]
[172114,"F1284 WEST DR","DROYLSDEN EAST","Droylsden East"]
[172121,"F1284 WEST DR","DROYLSDEN EAST","Droylsden East"]
[172125,"F1284 WEST DR","DROYLSDEN EAST","Droylsden East"]
[172129,"F1284 WEST DR","DROYLSDEN EAST","Droylsden East"]
[172218,"F1284 WEST DR","DROYLSDEN EAST","Droylsden East"]
[177227,"F1284 WEST DR","DROYLSDEN EAST","Droylsden East"]
[177471,"F1284 WEST DR","DROYLSDEN EAST","Droylsden East"]
[177981,"F1284 WEST DR","DROYLSDEN EAST","Droylsden East"]
[172160,"F210 AUDENSHAW STANDBY PUMP STN","DROYLSDEN EAST","Droylsden East"]
[172170,"F210 AUDENSHAW STANDBY PUMP STN","DROYLSDEN EAST","Droylsden East"]
[172190,"F210 AUDENSHAW STANDBY PUMP STN","DROYLSDEN EAST","Droylsden East"]
[172191,"F210 AUDENSHAW STANDBY PUMP STN","DROYLSDEN EAST","Droylsden East"]
[177230,"F210 AUDENSHAW STANDBY PUMP STN","DROYLSDEN EAST","Droylsden East"]
[171628,"F869 MEDLOCK LEISURE CTR","DROYLSDEN EAST","Droylsden East"]
[172150,"F869 MEDLOCK LEISURE CTR","DROYLSDEN EAST","Droylsden East"]
[172396,"F869 MEDLOCK LEISURE CTR","DROYLSDEN EAST","Droylsden East"]
[174037,"F869 MEDLOCK LEISURE CTR","DROYLSDEN EAST","Droylsden East"]
[177048,"F869 MEDLOCK LEISURE CTR","DROYLSDEN EAST","Droylsden East"]
[177144,"F869 MEDLOCK LEISURE CTR","DROYLSDEN EAST","Droylsden East"]
[177229,"F869 MEDLOCK LEISURE CTR","DROYLSDEN EAST","Droylsden East"]
[177398,"F869 MEDLOCK LEISURE CTR","DROYLSDEN EAST","Droylsden East"]
[177810,"F869 MEDLOCK LEISURE CTR","DROYLSDEN EAST","Droylsden East"]
[178422,"F543 WILLIAMSON LN","DROYLSDEN EAST","Droylsden East"]
[172148,"F264 KERSHAW LN N","DROYLSDEN EAST","Droylsden East"]
[172149,"F264 KERSHAW LN N","DROYLSDEN EAST","Droylsden East"]
[172262,"F264 KERSHAW LN N","DROYLSDEN EAST","Droylsden East"]
[172550,"F264 KERSHAW LN N","DROYLSDEN EAST","Droylsden East"]
[177567,"F264 KERSHAW LN N","DROYLSDEN EAST","Droylsden East"]
[171357,"F1945 MARKET ST","DROYLSDEN EAST","Droylsden East"]
[171371,"F1945 MARKET ST","DROYLSDEN EAST","Droylsden East"]
[171440,"F1945 MARKET ST","DROYLSDEN EAST","Droylsden East"]
[171494,"F1945 MARKET ST","DROYLSDEN EAST","Droylsden East"]
[171723,"F1945 MARKET ST","DROYLSDEN EAST","Droylsden East"]
[171745,"F1945 MARKET ST","DROYLSDEN EAST","Droylsden East"]
[172124,"F1945 MARKET ST","DROYLSDEN EAST","Droylsden East"]
[172126,"F1945 MARKET ST","DROYLSDEN EAST","Droylsden East"]
[172132,"F1945 MARKET ST","DROYLSDEN EAST","Droylsden East"]
[172142,"F1945 MARKET ST","DROYLSDEN EAST","Droylsden East"]
[172145,"F1945 MARKET ST","DROYLSDEN EAST","Droylsden East"]
[172558,"F1945 MARKET ST","DROYLSDEN EAST","Droylsden East"]
[171603,"F2151 THE WHARF DROYLSDEN","DROYLSDEN EAST","Droylsden East"]
[172344,"F2151 THE WHARF DROYLSDEN","DROYLSDEN EAST","Droylsden East"]
[178231,"F2151 THE WHARF DROYLSDEN","DROYLSDEN EAST","Droylsden East"]
[171056,"F518 RYECROFT HALL/PIZZA HUT","DROYLSDEN EAST","Droylsden East"]
[172157,"F518 RYECROFT HALL/PIZZA HUT","DROYLSDEN EAST","Droylsden East"]
[172504,"F518 RYECROFT HALL/PIZZA HUT","DROYLSDEN EAST","Droylsden East"]
[178027,"F518 RYECROFT HALL/PIZZA HUT","DROYLSDEN EAST","Droylsden East"]
[172127,"F1040 CRAVEN ST DROYLSDEN","DROYLSDEN EAST","Droylsden East"]
[172131,"F1040 CRAVEN ST DROYLSDEN","DROYLSDEN EAST","Droylsden East"]
[177228,"F1040 CRAVEN ST DROYLSDEN","DROYLSDEN EAST","Droylsden East"]
[171672,"F851 FOLD ST","DROYLSDEN EAST","Droylsden East"]
[171713,"F851 FOLD ST","DROYLSDEN EAST","Droylsden East"]
[171808,"F851 FOLD ST","DROYLSDEN EAST","Droylsden East"]
[172155,"F851 FOLD ST","DROYLSDEN EAST","Droylsden East"]
[171095,"L944 MONMOUTH RD","CHEADLE HULME","Cheadle Hulme"]
[171199,"L944 MONMOUTH RD","CHEADLE HULME","Cheadle Hulme"]
[171244,"L944 MONMOUTH RD","CHEADLE HULME","Cheadle Hulme"]
[171331,"L944 MONMOUTH RD","CHEADLE HULME","Cheadle Hulme"]
[171521,"L944 MONMOUTH RD","CHEADLE HULME","Cheadle Hulme"]
[171554,"L944 MONMOUTH RD","CHEADLE HULME","Cheadle Hulme"]
[171643,"L944 MONMOUTH RD","CHEADLE HULME","Cheadle Hulme"]
[171645,"L944 MONMOUTH RD","CHEADLE HULME","Cheadle Hulme"]
[171714,"L944 MONMOUTH RD","CHEADLE HULME","Cheadle Hulme"]
[171762,"L944 MONMOUTH RD","CHEADLE HULME","Cheadle Hulme"]
[171888,"L944 MONMOUTH RD","CHEADLE HULME","Cheadle Hulme"]
[172567,"L944 MONMOUTH RD","CHEADLE HULME","Cheadle Hulme"]
[178575,"L944 MONMOUTH RD","CHEADLE HULME","Cheadle Hulme"]
[171054,"L2028 SWANN LN T21/CHEADLE RD","CHEADLE HULME","Cheadle Hulme"]
[171191,"L2028 SWANN LN T21/CHEADLE RD","CHEADLE HULME","Cheadle Hulme"]
[171193,"L2028 SWANN LN T21/CHEADLE RD","CHEADLE HULME","Cheadle Hulme"]
[171350,"L2028 SWANN LN T21/CHEADLE RD","CHEADLE HULME","Cheadle Hulme"]
[171705,"L2028 SWANN LN T21/CHEADLE RD","CHEADLE HULME","Cheadle Hulme"]
[178799,"L2028 SWANN LN T21/CHEADLE RD","CHEADLE HULME","Cheadle Hulme"]
[171205,"NoCircuit","CHEADLE HULME","Cheadle Hulme"]
[171260,"NoCircuit","CHEADLE HULME","Cheadle Hulme"]
[171535,"NoCircuit","CHEADLE HULME","Cheadle Hulme"]
[171612,"NoCircuit","CHEADLE HULME","Cheadle Hulme"]
[171877,"NoCircuit","CHEADLE HULME","Cheadle Hulme"]
[171879,"NoCircuit","CHEADLE HULME","Cheadle Hulme"]
[171114,"NoCircuit","CHEADLE HULME","Cheadle Hulme"]
[171238,"NoCircuit","CHEADLE HULME","Cheadle Hulme"]
[171775,"NoCircuit","CHEADLE HULME","Cheadle Hulme"]
[171817,"NoCircuit","CHEADLE HULME","Cheadle Hulme"]
[171838,"NoCircuit","CHEADLE HULME","Cheadle Hulme"]
[171880,"NoCircuit","CHEADLE HULME","Cheadle Hulme"]
[172247,"NoCircuit","CHEADLE HULME","Cheadle Hulme"]
[171053,"NoCircuit","CHEADLE HULME","Cheadle Hulme"]
[171145,"NoCircuit","CHEADLE HULME","Cheadle Hulme"]
[171198,"NoCircuit","CHEADLE HULME","Cheadle Hulme"]
[171218,"NoCircuit","CHEADLE HULME","Cheadle Hulme"]
[171409,"NoCircuit","CHEADLE HULME","Cheadle Hulme"]
[171415,"NoCircuit","CHEADLE HULME","Cheadle Hulme"]
[171859,"NoCircuit","CHEADLE HULME","Cheadle Hulme"]
[177358,"NoCircuit","CHEADLE HULME","Cheadle Hulme"]
[178171,"NoCircuit","CHEADLE HULME","Cheadle Hulme"]
[171851,"F416 YORK RD","CHORLTON","Chorlton"]
[171901,"F416 YORK RD","CHORLTON","Chorlton"]
[171905,"F416 YORK RD","CHORLTON","Chorlton"]
[171909,"F416 YORK RD","CHORLTON","Chorlton"]
[172411,"F416 YORK RD","CHORLTON","Chorlton"]
[177452,"F416 YORK RD","CHORLTON","Chorlton"]
[171381,"F3211 KINGSHILL RD","CHORLTON","Chorlton"]
[171897,"F3211 KINGSHILL RD","CHORLTON","Chorlton"]
[171908,"F3211 KINGSHILL RD","CHORLTON","Chorlton"]
[171910,"F3211 KINGSHILL RD","CHORLTON","Chorlton"]
[171916,"F3211 KINGSHILL RD","CHORLTON","Chorlton"]
[171108,"F3212 BROOKBURN RD","CHORLTON","Chorlton"]
[171492,"F3212 BROOKBURN RD","CHORLTON","Chorlton"]
[172214,"F3212 BROOKBURN RD","CHORLTON","Chorlton"]
[172219,"F3212 BROOKBURN RD","CHORLTON","Chorlton"]
[174035,"F3212 BROOKBURN RD","CHORLTON","Chorlton"]
[178277,"F3212 BROOKBURN RD","CHORLTON","Chorlton"]
[178732,"F3212 BROOKBURN RD","CHORLTON","Chorlton"]
[171276,"F698 WHITELOW RD APPTS/SIBSON RD","CHORLTON","Chorlton"]
[171900,"F698 WHITELOW RD APPTS/SIBSON RD","CHORLTON","Chorlton"]
[171904,"F698 WHITELOW RD APPTS/SIBSON RD","CHORLTON","Chorlton"]
[171907,"F698 WHITELOW RD APPTS/SIBSON RD","CHORLTON","Chorlton"]
[172276,"F698 WHITELOW RD APPTS/SIBSON RD","CHORLTON","Chorlton"]
[177752,"F698 WHITELOW RD APPTS/SIBSON RD","CHORLTON","Chorlton"]
[171156,"F1551 SWINFIELD AVE","CHORLTON","Chorlton"]
[171479,"F1551 SWINFIELD AVE","CHORLTON","Chorlton"]
[171894,"F1551 SWINFIELD AVE","CHORLTON","Chorlton"]
[171042,"F1693 HACKNESS RD","CHORLTON","Chorlton"]
[171080,"F1693 HACKNESS RD","CHORLTON","Chorlton"]
[171162,"F1693 HACKNESS RD","CHORLTON","Chorlton"]
[171771,"F1693 HACKNESS RD","CHORLTON","Chorlton"]
[171895,"F1693 HACKNESS RD","CHORLTON","Chorlton"]
[171896,"F1693 HACKNESS RD","CHORLTON","Chorlton"]
[171832,"F551 TAYLOR LN","DENTON EAST","Denton East"]
[172169,"F551 TAYLOR LN","DENTON EAST","Denton East"]
[178432,"F551 TAYLOR LN","DENTON EAST","Denton East"]
[172180,"F1461 CROWN POINT NORTH NO3","DENTON EAST","Denton East"]
[177610,"F1461 CROWN POINT NORTH NO3","DENTON EAST","Denton East"]
[177611,"F1461 CROWN POINT NORTH NO3","DENTON EAST","Denton East"]
[171383,"F46 TOWN LN (NO 52)/VICTORIA ST (DENTO","DENTON EAST","Denton East"]
[172175,"F46 TOWN LN (NO 52)/VICTORIA ST (DENTO","DENTON EAST","Denton East"]
[172181,"F46 TOWN LN (NO 52)/VICTORIA ST (DENTO","DENTON EAST","Denton East"]
[172184,"F46 TOWN LN (NO 52)/VICTORIA ST (DENTO","DENTON EAST","Denton East"]
[172187,"F46 TOWN LN (NO 52)/VICTORIA ST (DENTO","DENTON EAST","Denton East"]
[172371,"F46 TOWN LN (NO 52)/VICTORIA ST (DENTO","DENTON EAST","Denton East"]
[172189,"F132 MOUNT PLEASANT/KING ST","DENTON EAST","Denton East"]
[172199,"F132 MOUNT PLEASANT/KING ST","DENTON EAST","Denton East"]
[172203,"F132 MOUNT PLEASANT/KING ST","DENTON EAST","Denton East"]
[172207,"F132 MOUNT PLEASANT/KING ST","DENTON EAST","Denton East"]
[177960,"F132 MOUNT PLEASANT/KING ST","DENTON EAST","Denton East"]
[171092,"F1285 AYLESBURY AVE","DENTON EAST","Denton East"]
[171187,"F1285 AYLESBURY AVE","DENTON EAST","Denton East"]
[171221,"F1285 AYLESBURY AVE","DENTON EAST","Denton East"]
[172192,"F1285 AYLESBURY AVE","DENTON EAST","Denton East"]
[172200,"F1285 AYLESBURY AVE","DENTON EAST","Denton East"]
[172208,"F1285 AYLESBURY AVE","DENTON EAST","Denton East"]
[172178,"DENTON E NWK T2","DENTON EAST","Denton East"]
[171151,"F1462 TWO TREES LN","DENTON EAST","Denton East"]
[171410,"F1462 TWO TREES LN","DENTON EAST","Denton East"]
[171523,"F1462 TWO TREES LN","DENTON EAST","Denton East"]
[171678,"F1462 TWO TREES LN","DENTON EAST","Denton East"]
[172196,"F1462 TWO TREES LN","DENTON EAST","Denton East"]
[172201,"F1462 TWO TREES LN","DENTON EAST","Denton East"]
[172206,"F1462 TWO TREES LN","DENTON EAST","Denton East"]
[172210,"F1462 TWO TREES LN","DENTON EAST","Denton East"]
[172242,"F1462 TWO TREES LN","DENTON EAST","Denton East"]
[177946,"F1462 TWO TREES LN","DENTON EAST","Denton East"]
[171188,"F92 BIRCH GR","DENTON EAST","Denton East"]
[171823,"F92 BIRCH GR","DENTON EAST","Denton East"]
[172165,"F92 BIRCH GR","DENTON EAST","Denton East"]
[172167,"F92 BIRCH GR","DENTON EAST","Denton East"]
[172173,"F92 BIRCH GR","DENTON EAST","Denton East"]
[171177,"F3976 WILDE ST/GOVT TRAINING CTR","DENTON EAST","Denton East"]
[171729,"F3976 WILDE ST/GOVT TRAINING CTR","DENTON EAST","Denton East"]
[171878,"F3976 WILDE ST/GOVT TRAINING CTR","DENTON EAST","Denton East"]
[172198,"F3976 WILDE ST/GOVT TRAINING CTR","DENTON EAST","Denton East"]
[177222,"F3976 WILDE ST/GOVT TRAINING CTR","DENTON EAST","Denton East"]
[177225,"F3976 WILDE ST/GOVT TRAINING CTR","DENTON EAST","Denton East"]
[177536,"F3976 WILDE ST/GOVT TRAINING CTR","DENTON EAST","Denton East"]
[177729,"F3976 WILDE ST/GOVT TRAINING CTR","DENTON EAST","Denton East"]
[178214,"F3976 WILDE ST/GOVT TRAINING CTR","DENTON EAST","Denton East"]
[171346,"F47 CORONATION ST","DENTON WEST","Denton West"]
[172161,"F47 CORONATION ST","DENTON WEST","Denton West"]
[172216,"F47 CORONATION ST","DENTON WEST","Denton West"]
[177470,"F47 CORONATION ST","DENTON WEST","Denton West"]
[177634,"F47 CORONATION ST","DENTON WEST","Denton West"]
[178613,"F47 CORONATION ST","DENTON WEST","Denton West"]
[171019,"F3168 WRIGHT ROBINSON SPORTS COL","DENTON WEST","Denton West"]
[171043,"F3168 WRIGHT ROBINSON SPORTS COL","DENTON WEST","Denton West"]
[171158,"F3168 WRIGHT ROBINSON SPORTS COL","DENTON WEST","Denton West"]
[171668,"F3168 WRIGHT ROBINSON SPORTS COL","DENTON WEST","Denton West"]
[178050,"F3168 WRIGHT ROBINSON SPORTS COL","DENTON WEST","Denton West"]
[171499,"F243 GRANADA RD","DENTON WEST","Denton West"]
[171657,"F243 GRANADA RD","DENTON WEST","Denton West"]
[171730,"F243 GRANADA RD","DENTON WEST","Denton West"]
[171862,"F243 GRANADA RD","DENTON WEST","Denton West"]
[172140,"F243 GRANADA RD","DENTON WEST","Denton West"]
[178016,"F243 GRANADA RD","DENTON WEST","Denton West"]
[172162,"F549 E PASS & CO/PARKWAY DENTON","DENTON WEST","Denton West"]
[177739,"F549 E PASS & CO/PARKWAY DENTON","DENTON WEST","Denton West"]
[177754,"F549 E PASS & CO/PARKWAY DENTON","DENTON WEST","Denton West"]
[171506,"F1519 DEBDALE PK","DENTON WEST","Denton West"]
[171516,"F1519 DEBDALE PK","DENTON WEST","Denton West"]
[177064,"F1519 DEBDALE PK","DENTON WEST","Denton West"]
[172144,"F1332 ASHBROOK AVE","DENTON WEST","Denton West"]
[172146,"F1332 ASHBROOK AVE","DENTON WEST","Denton West"]
[172143,"F149 KENSINGTON GR","DENTON WEST","Denton West"]
[172365,"F149 KENSINGTON GR","DENTON WEST","Denton West"]
[172393,"F149 KENSINGTON GR","DENTON WEST","Denton West"]
[177593,"F149 KENSINGTON GR","DENTON WEST","Denton West"]
[178552,"F149 KENSINGTON GR","DENTON WEST","Denton West"]
[171081,"F1460 DENTON WEST NETWORK","DENTON WEST","Denton West"]
[171534,"F1460 DENTON WEST NETWORK","DENTON WEST","Denton West"]
[172130,"F1460 DENTON WEST NETWORK","DENTON WEST","Denton West"]
[172222,"F1460 DENTON WEST NETWORK","DENTON WEST","Denton West"]
[171462,"F547 CORNHILL LN","DENTON WEST","Denton West"]
[172137,"F547 CORNHILL LN","DENTON WEST","Denton West"]
[171287,"F351 GORTON/DEAN RD GORTON/CHAPMAN ST","DENTON WEST","Denton West"]
[171724,"F351 GORTON/DEAN RD GORTON/CHAPMAN ST","DENTON WEST","Denton West"]
[171819,"F351 GORTON/DEAN RD GORTON/CHAPMAN ST","DENTON WEST","Denton West"]
[171873,"F351 GORTON/DEAN RD GORTON/CHAPMAN ST","DENTON WEST","Denton West"]
[178230,"F351 GORTON/DEAN RD GORTON/CHAPMAN ST","DENTON WEST","Denton West"]
[178248,"F351 GORTON/DEAN RD GORTON/CHAPMAN ST","DENTON WEST","Denton West"]
[171093,"F1560 SCHOOL LN (DIDSBURY)/WHITEHALL","DIDSBURY","Didsbury"]
[171351,"F1560 SCHOOL LN (DIDSBURY)/WHITEHALL","DIDSBURY","Didsbury"]
[171624,"F1560 SCHOOL LN (DIDSBURY)/WHITEHALL","DIDSBURY","Didsbury"]
[172014,"F1560 SCHOOL LN (DIDSBURY)/WHITEHALL","DIDSBURY","Didsbury"]
[172020,"F1560 SCHOOL LN (DIDSBURY)/WHITEHALL","DIDSBURY","Didsbury"]
[172259,"F1560 SCHOOL LN (DIDSBURY)/WHITEHALL","DIDSBURY","Didsbury"]
[177568,"F1560 SCHOOL LN (DIDSBURY)/WHITEHALL","DIDSBURY","Didsbury"]
[171999,"F158 STATION APPROACH/SHIRLEY INST (NO","DIDSBURY","Didsbury"]
[172389,"F158 STATION APPROACH/SHIRLEY INST (NO","DIDSBURY","Didsbury"]
[177809,"F158 STATION APPROACH/SHIRLEY INST (NO","DIDSBURY","Didsbury"]
[177958,"F158 STATION APPROACH/SHIRLEY INST (NO","DIDSBURY","Didsbury"]
[178788,"F158 STATION APPROACH/SHIRLEY INST (NO","DIDSBURY","Didsbury"]
[171966,"F1085 PARKFIELD CT","DIDSBURY","Didsbury"]
[172384,"F1085 PARKFIELD CT","DIDSBURY","Didsbury"]
[178331,"F1085 PARKFIELD CT","DIDSBURY","Didsbury"]
[171979,"F167 WILMSLOW RD RETAIL PK","DIDSBURY","Didsbury"]
[171982,"F167 WILMSLOW RD RETAIL PK","DIDSBURY","Didsbury"]
[172588,"F167 WILMSLOW RD RETAIL PK","DIDSBURY","Didsbury"]
[177270,"F167 WILMSLOW RD RETAIL PK","DIDSBURY","Didsbury"]
[171308,"F2280 GAWSWORTH AVE/PARRSWOOD RD 2","DIDSBURY","Didsbury"]
[171700,"F2280 GAWSWORTH AVE/PARRSWOOD RD 2","DIDSBURY","Didsbury"]
[171984,"F2280 GAWSWORTH AVE/PARRSWOOD RD 2","DIDSBURY","Didsbury"]
[171991,"F2280 GAWSWORTH AVE/PARRSWOOD RD 2","DIDSBURY","Didsbury"]
[171993,"F2280 GAWSWORTH AVE/PARRSWOOD RD 2","DIDSBURY","Didsbury"]
[172003,"F2280 GAWSWORTH AVE/PARRSWOOD RD 2","DIDSBURY","Didsbury"]
[172009,"F2280 GAWSWORTH AVE/PARRSWOOD RD 2","DIDSBURY","Didsbury"]
[172024,"F2280 GAWSWORTH AVE/PARRSWOOD RD 2","DIDSBURY","Didsbury"]
[171526,"F130 WILMSLOW RD 726/OAK RD","DIDSBURY","Didsbury"]
[171739,"F130 WILMSLOW RD 726/OAK RD","DIDSBURY","Didsbury"]
[171995,"F130 WILMSLOW RD 726/OAK RD","DIDSBURY","Didsbury"]
[172432,"F130 WILMSLOW RD 726/OAK RD","DIDSBURY","Didsbury"]
[177625,"F130 WILMSLOW RD 726/OAK RD","DIDSBURY","Didsbury"]
[171405,"F310 DISBURY NWK","DIDSBURY","Didsbury"]
[171958,"F310 DISBURY NWK","DIDSBURY","Didsbury"]
[171992,"F310 DISBURY NWK","DIDSBURY","Didsbury"]
[171141,"F1559 MARTON AVE","DIDSBURY","Didsbury"]
[171692,"F1559 MARTON AVE","DIDSBURY","Didsbury"]
[172005,"F1559 MARTON AVE","DIDSBURY","Didsbury"]
[172421,"F1559 MARTON AVE","DIDSBURY","Didsbury"]
[172540,"F1559 MARTON AVE","DIDSBURY","Didsbury"]
[177073,"F1559 MARTON AVE","DIDSBURY","Didsbury"]
[177280,"F1559 MARTON AVE","DIDSBURY","Didsbury"]
[177556,"F1559 MARTON AVE","DIDSBURY","Didsbury"]
[178015,"F1559 MARTON AVE","DIDSBURY","Didsbury"]
[171118,"F1561 PRINCES AVE","DIDSBURY","Didsbury"]
[171296,"F1561 PRINCES AVE","DIDSBURY","Didsbury"]
[171297,"F1561 PRINCES AVE","DIDSBURY","Didsbury"]
[172006,"F1561 PRINCES AVE","DIDSBURY","Didsbury"]
[172038,"F1561 PRINCES AVE","DIDSBURY","Didsbury"]
[177040,"F1561 PRINCES AVE","DIDSBURY","Didsbury"]
[177853,"F1561 PRINCES AVE","DIDSBURY","Didsbury"]
[172031,"F1956 BARLOW RC HIGH SCH","DIDSBURY","Didsbury"]
[177208,"F1956 BARLOW RC HIGH SCH","DIDSBURY","Didsbury"]
[177250,"F1956 BARLOW RC HIGH SCH","DIDSBURY","Didsbury"]
[177390,"F1956 BARLOW RC HIGH SCH","DIDSBURY","Didsbury"]
[178430,"F1956 BARLOW RC HIGH SCH","DIDSBURY","Didsbury"]
[178495,"F1956 BARLOW RC HIGH SCH","DIDSBURY","Didsbury"]
[178554,"F1956 BARLOW RC HIGH SCH","DIDSBURY","Didsbury"]
[171130,"F3996 SIEMENS","WEST DIDSBURY","West Didsbury"]
[172422,"F3996 SIEMENS","WEST DIDSBURY","West Didsbury"]
[171954,"F182 SIEMENS RD","WEST DIDSBURY","West Didsbury"]
[178503,"F182 SIEMENS RD","WEST DIDSBURY","West Didsbury"]
[171143,"F856 PRINCESS RD/CHRISTIE FIELDS NO 1","WEST DIDSBURY","West Didsbury"]
[171501,"F856 PRINCESS RD/CHRISTIE FIELDS NO 1","WEST DIDSBURY","West Didsbury"]
[171911,"F856 PRINCESS RD/CHRISTIE FIELDS NO 1","WEST DIDSBURY","West Didsbury"]
[171946,"F856 PRINCESS RD/CHRISTIE FIELDS NO 1","WEST DIDSBURY","West Didsbury"]
[171956,"F856 PRINCESS RD/CHRISTIE FIELDS NO 1","WEST DIDSBURY","West Didsbury"]
[174036,"F856 PRINCESS RD/CHRISTIE FIELDS NO 1","WEST DIDSBURY","West Didsbury"]
[177172,"F856 PRINCESS RD/CHRISTIE FIELDS NO 1","WEST DIDSBURY","West Didsbury"]
[178512,"F856 PRINCESS RD/CHRISTIE FIELDS NO 1","WEST DIDSBURY","West Didsbury"]
[177623,"F138 SPIRE HOSPITAL","WEST DIDSBURY","West Didsbury"]
[177907,"F138 SPIRE HOSPITAL","WEST DIDSBURY","West Didsbury"]
[178336,"F138 SPIRE HOSPITAL","WEST DIDSBURY","West Didsbury"]
[178340,"F138 SPIRE HOSPITAL","WEST DIDSBURY","West Didsbury"]
[178481,"F138 SPIRE HOSPITAL","WEST DIDSBURY","West Didsbury"]
[172193,"F34 WEST DISDBURY NETWORK","WEST DIDSBURY","West Didsbury"]
[177594,"F34 WEST DISDBURY NETWORK","WEST DIDSBURY","West Didsbury"]
[177881,"F34 WEST DISDBURY NETWORK","WEST DIDSBURY","West Didsbury"]
[178026,"F34 WEST DISDBURY NETWORK","WEST DIDSBURY","West Didsbury"]
[171569,"F234 PRINCESS RD (NO 532)","WEST DIDSBURY","West Didsbury"]
[171914,"F234 PRINCESS RD (NO 532)","WEST DIDSBURY","West Didsbury"]
[171918,"F234 PRINCESS RD (NO 532)","WEST DIDSBURY","West Didsbury"]
[171920,"F234 PRINCESS RD (NO 532)","WEST DIDSBURY","West Didsbury"]
[171068,"F176 LORETO HIGH SCH","WEST DIDSBURY","West Didsbury"]
[171913,"F176 LORETO HIGH SCH","WEST DIDSBURY","West Didsbury"]
[171917,"F176 LORETO HIGH SCH","WEST DIDSBURY","West Didsbury"]
[177344,"F176 LORETO HIGH SCH","WEST DIDSBURY","West Didsbury"]
[177462,"F176 LORETO HIGH SCH","WEST DIDSBURY","West Didsbury"]
[178369,"F176 LORETO HIGH SCH","WEST DIDSBURY","West Didsbury"]
[178396,"F176 LORETO HIGH SCH","WEST DIDSBURY","West Didsbury"]
[171303,"F207 BURTON RD / ELIZABETH SLINGER RD","WEST DIDSBURY","West Didsbury"]
[171443,"F207 BURTON RD / ELIZABETH SLINGER RD","WEST DIDSBURY","West Didsbury"]
[171652,"F207 BURTON RD / ELIZABETH SLINGER RD","WEST DIDSBURY","West Didsbury"]
[171976,"F207 BURTON RD / ELIZABETH SLINGER RD","WEST DIDSBURY","West Didsbury"]
[171977,"F207 BURTON RD / ELIZABETH SLINGER RD","WEST DIDSBURY","West Didsbury"]
[171623,"F208 CHRISTIE FIELDS NO2","WEST DIDSBURY","West Didsbury"]
[171943,"F208 CHRISTIE FIELDS NO2","WEST DIDSBURY","West Didsbury"]
[171945,"F208 CHRISTIE FIELDS NO2","WEST DIDSBURY","West Didsbury"]
[171950,"F208 CHRISTIE FIELDS NO2","WEST DIDSBURY","West Didsbury"]
[171951,"F208 CHRISTIE FIELDS NO2","WEST DIDSBURY","West Didsbury"]
[177695,"F208 CHRISTIE FIELDS NO2","WEST DIDSBURY","West Didsbury"]
[177852,"F208 CHRISTIE FIELDS NO2","WEST DIDSBURY","West Didsbury"]
[178067,"F208 CHRISTIE FIELDS NO2","WEST DIDSBURY","West Didsbury"]
[171201,"F2850 VICTORIA RD FLATS","FALLOWFIELD","Fallowfield"]
[171968,"F2850 VICTORIA RD FLATS","FALLOWFIELD","Fallowfield"]
[172010,"F2850 VICTORIA RD FLATS","FALLOWFIELD","Fallowfield"]
[171810,"F1915 PLATT CT","FALLOWFIELD","Fallowfield"]
[172023,"F1915 PLATT CT","FALLOWFIELD","Fallowfield"]
[172240,"F1915 PLATT CT","FALLOWFIELD","Fallowfield"]
[177834,"F1915 PLATT CT","FALLOWFIELD","Fallowfield"]
[178210,"F1915 PLATT CT","FALLOWFIELD","Fallowfield"]
[171263,"F2851 SAINSBURYS (FALLOWFIELD)","FALLOWFIELD","Fallowfield"]
[172601,"F2851 SAINSBURYS (FALLOWFIELD)","FALLOWFIELD","Fallowfield"]
[177049,"F2851 SAINSBURYS (FALLOWFIELD)","FALLOWFIELD","Fallowfield"]
[177190,"F2851 SAINSBURYS (FALLOWFIELD)","FALLOWFIELD","Fallowfield"]
[177971,"F2851 SAINSBURYS (FALLOWFIELD)","FALLOWFIELD","Fallowfield"]
[178072,"F2851 SAINSBURYS (FALLOWFIELD)","FALLOWFIELD","Fallowfield"]
[178532,"F2851 SAINSBURYS (FALLOWFIELD)","FALLOWFIELD","Fallowfield"]
[172004,"F1911 OWENS PARK TOWER/CROMWELL RANGE","FALLOWFIELD","Fallowfield"]
[172012,"F1911 OWENS PARK TOWER/CROMWELL RANGE","FALLOWFIELD","Fallowfield"]
[172470,"F1911 OWENS PARK TOWER/CROMWELL RANGE","FALLOWFIELD","Fallowfield"]
[172488,"F1911 OWENS PARK TOWER/CROMWELL RANGE","FALLOWFIELD","Fallowfield"]
[172585,"F1911 OWENS PARK TOWER/CROMWELL RANGE","FALLOWFIELD","Fallowfield"]
[177882,"F1911 OWENS PARK TOWER/CROMWELL RANGE","FALLOWFIELD","Fallowfield"]
[171666,"F2852 FALLOWFIELD NETWORK","FALLOWFIELD","Fallowfield"]
[171798,"F2852 FALLOWFIELD NETWORK","FALLOWFIELD","Fallowfield"]
[172039,"F2852 FALLOWFIELD NETWORK","FALLOWFIELD","Fallowfield"]
[172048,"F2852 FALLOWFIELD NETWORK","FALLOWFIELD","Fallowfield"]
[171797,"F950 REDMERE GR","FALLOWFIELD","Fallowfield"]
[171961,"F950 REDMERE GR","FALLOWFIELD","Fallowfield"]
[171965,"F950 REDMERE GR","FALLOWFIELD","Fallowfield"]
[171986,"F950 REDMERE GR","FALLOWFIELD","Fallowfield"]
[172021,"F950 REDMERE GR","FALLOWFIELD","Fallowfield"]
[172430,"F950 REDMERE GR","FALLOWFIELD","Fallowfield"]
[172612,"F950 REDMERE GR","FALLOWFIELD","Fallowfield"]
[177079,"F950 REDMERE GR","FALLOWFIELD","Fallowfield"]
[177340,"F950 REDMERE GR","FALLOWFIELD","Fallowfield"]
[177498,"F950 REDMERE GR","FALLOWFIELD","Fallowfield"]
[171839,"F575 HOLLINGS COLLEGE/ LANGLEY RD","FALLOWFIELD","Fallowfield"]
[172022,"F575 HOLLINGS COLLEGE/ LANGLEY RD","FALLOWFIELD","Fallowfield"]
[177878,"F575 HOLLINGS COLLEGE/ LANGLEY RD","FALLOWFIELD","Fallowfield"]
[178457,"F575 HOLLINGS COLLEGE/ LANGLEY RD","FALLOWFIELD","Fallowfield"]
[172001,"F492 WYNNSTAY GR","FALLOWFIELD","Fallowfield"]
[172007,"F492 WYNNSTAY GR","FALLOWFIELD","Fallowfield"]
[172016,"F492 WYNNSTAY GR","FALLOWFIELD","Fallowfield"]
[177402,"F492 WYNNSTAY GR","FALLOWFIELD","Fallowfield"]
[178806,"F492 WYNNSTAY GR","FALLOWFIELD","Fallowfield"]
[172033,"F172 WHITWORTH LN/THE FIRS","FALLOWFIELD","Fallowfield"]
[172035,"F172 WHITWORTH LN/THE FIRS","FALLOWFIELD","Fallowfield"]
[172044,"F172 WHITWORTH LN/THE FIRS","FALLOWFIELD","Fallowfield"]
[172562,"F172 WHITWORTH LN/THE FIRS","FALLOWFIELD","Fallowfield"]
[178398,"F172 WHITWORTH LN/THE FIRS","FALLOWFIELD","Fallowfield"]
[171333,"F1805 GATLEY REC","GATLEY","Gatley"]
[171290,"F2641 FOXLAND RD / TROUTBECK RD","GATLEY","Gatley"]
[171507,"F2641 FOXLAND RD / TROUTBECK RD","GATLEY","Gatley"]
[171551,"F2641 FOXLAND RD / TROUTBECK RD","GATLEY","Gatley"]
[171552,"F2641 FOXLAND RD / TROUTBECK RD","GATLEY","Gatley"]
[171811,"F2641 FOXLAND RD / TROUTBECK RD","GATLEY","Gatley"]
[171886,"F2641 FOXLAND RD / TROUTBECK RD","GATLEY","Gatley"]
[171233,"L2084 T21 UPAVON RD","GATLEY","Gatley"]
[171354,"L2084 T21 UPAVON RD","GATLEY","Gatley"]
[171478,"L2084 T21 UPAVON RD","GATLEY","Gatley"]
[171820,"L2084 T21 UPAVON RD","GATLEY","Gatley"]
[171134,"F2083 CHURCH RD","GATLEY","Gatley"]
[171206,"F2083 CHURCH RD","GATLEY","Gatley"]
[171313,"F2083 CHURCH RD","GATLEY","Gatley"]
[171429,"F2083 CHURCH RD","GATLEY","Gatley"]
[177110,"F2083 CHURCH RD","GATLEY","Gatley"]
[177091,"F3456 SHARSTON GREEN BUS PK NO1","GATLEY","Gatley"]
[177702,"F3456 SHARSTON GREEN BUS PK NO1","GATLEY","Gatley"]
[171170,"L1755 FAIRFIELD RD","GREEN LN","Green Lane (Altrincham)"]
[171285,"L1755 FAIRFIELD RD","GREEN LN","Green Lane (Altrincham)"]
[171300,"L1755 FAIRFIELD RD","GREEN LN","Green Lane (Altrincham)"]
[171374,"L1755 FAIRFIELD RD","GREEN LN","Green Lane (Altrincham)"]
[171649,"L1755 FAIRFIELD RD","GREEN LN","Green Lane (Altrincham)"]
[177699,"L1755 FAIRFIELD RD","GREEN LN","Green Lane (Altrincham)"]
[178514,"L1755 FAIRFIELD RD","GREEN LN","Green Lane (Altrincham)"]
[171282,"L1032 HIGHFIELD RD/GREEN LN N","GREEN LN","Green Lane (Altrincham)"]
[171400,"L1032 HIGHFIELD RD/GREEN LN N","GREEN LN","Green Lane (Altrincham)"]
[171424,"L1032 HIGHFIELD RD/GREEN LN N","GREEN LN","Green Lane (Altrincham)"]
[171451,"L1032 HIGHFIELD RD/GREEN LN N","GREEN LN","Green Lane (Altrincham)"]
[171510,"L1032 HIGHFIELD RD/GREEN LN N","GREEN LN","Green Lane (Altrincham)"]
[171549,"L1032 HIGHFIELD RD/GREEN LN N","GREEN LN","Green Lane (Altrincham)"]
[172308,"L1032 HIGHFIELD RD/GREEN LN N","GREEN LN","Green Lane (Altrincham)"]
[171009,"L2682 GREEN LN DISTRIBUTION","GREEN LN","Green Lane (Altrincham)"]
[171352,"L2682 GREEN LN DISTRIBUTION","GREEN LN","Green Lane (Altrincham)"]
[171368,"L2682 GREEN LN DISTRIBUTION","GREEN LN","Green Lane (Altrincham)"]
[171580,"L2682 GREEN LN DISTRIBUTION","GREEN LN","Green Lane (Altrincham)"]
[171864,"L2682 GREEN LN DISTRIBUTION","GREEN LN","Green Lane (Altrincham)"]
[172253,"L2682 GREEN LN DISTRIBUTION","GREEN LN","Green Lane (Altrincham)"]
[177478,"L2682 GREEN LN DISTRIBUTION","GREEN LN","Green Lane (Altrincham)"]
[177573,"L2682 GREEN LN DISTRIBUTION","GREEN LN","Green Lane (Altrincham)"]
[178426,"L2682 GREEN LN DISTRIBUTION","GREEN LN","Green Lane (Altrincham)"]
[178443,"L2682 GREEN LN DISTRIBUTION","GREEN LN","Green Lane (Altrincham)"]
[171117,"L1035 GROVE LN/OLD MEADOW LN","GREEN LN","Green Lane (Altrincham)"]
[171345,"L1035 GROVE LN/OLD MEADOW LN","GREEN LN","Green Lane (Altrincham)"]
[171379,"L1035 GROVE LN/OLD MEADOW LN","GREEN LN","Green Lane (Altrincham)"]
[171585,"L1035 GROVE LN/OLD MEADOW LN","GREEN LN","Green Lane (Altrincham)"]
[171805,"L1035 GROVE LN/OLD MEADOW LN","GREEN LN","Green Lane (Altrincham)"]
[171858,"L1035 GROVE LN/OLD MEADOW LN","GREEN LN","Green Lane (Altrincham)"]
[172363,"L1035 GROVE LN/OLD MEADOW LN","GREEN LN","Green Lane (Altrincham)"]
[171091,"L1034 WOOD LN","GREEN LN","Green Lane (Altrincham)"]
[171399,"L1034 WOOD LN","GREEN LN","Green Lane (Altrincham)"]
[171556,"L1034 WOOD LN","GREEN LN","Green Lane (Altrincham)"]
[171562,"L1034 WOOD LN","GREEN LN","Green Lane (Altrincham)"]
[171717,"L1034 WOOD LN","GREEN LN","Green Lane (Altrincham)"]
[171801,"L1034 WOOD LN","GREEN LN","Green Lane (Altrincham)"]
[171825,"L1034 WOOD LN","GREEN LN","Green Lane (Altrincham)"]
[171845,"L1034 WOOD LN","GREEN LN","Green Lane (Altrincham)"]
[171846,"L1034 WOOD LN","GREEN LN","Green Lane (Altrincham)"]
[171857,"L1034 WOOD LN","GREEN LN","Green Lane (Altrincham)"]
[171866,"L1034 WOOD LN","GREEN LN","Green Lane (Altrincham)"]
[172246,"L1034 WOOD LN","GREEN LN","Green Lane (Altrincham)"]
[177706,"L1034 WOOD LN","GREEN LN","Green Lane (Altrincham)"]
[171255,"L1033 GREEN LN SCH","GREEN LN","Green Lane (Altrincham)"]
[171369,"L1033 GREEN LN SCH","GREEN LN","Green Lane (Altrincham)"]
[171416,"L1033 GREEN LN SCH","GREEN LN","Green Lane (Altrincham)"]
[172225,"L1033 GREEN LN SCH","GREEN LN","Green Lane (Altrincham)"]
[178201,"L1033 GREEN LN SCH","GREEN LN","Green Lane (Altrincham)"]
[178919,"L1033 GREEN LN SCH","GREEN LN","Green Lane (Altrincham)"]
[171132,"L690 HOWARDS CT","GREEN LN","Green Lane (Altrincham)"]
[171299,"L690 HOWARDS CT","GREEN LN","Green Lane (Altrincham)"]
[171341,"L690 HOWARDS CT","GREEN LN","Green Lane (Altrincham)"]
[171380,"L690 HOWARDS CT","GREEN LN","Green Lane (Altrincham)"]
[171470,"L690 HOWARDS CT","GREEN LN","Green Lane (Altrincham)"]
[171545,"L690 HOWARDS CT","GREEN LN","Green Lane (Altrincham)"]
[171597,"L690 HOWARDS CT","GREEN LN","Green Lane (Altrincham)"]
[171600,"L690 HOWARDS CT","GREEN LN","Green Lane (Altrincham)"]
[171604,"L690 HOWARDS CT","GREEN LN","Green Lane (Altrincham)"]
[171658,"L690 HOWARDS CT","GREEN LN","Green Lane (Altrincham)"]
[171659,"L690 HOWARDS CT","GREEN LN","Green Lane (Altrincham)"]
[171670,"L690 HOWARDS CT","GREEN LN","Green Lane (Altrincham)"]
[171776,"L690 HOWARDS CT","GREEN LN","Green Lane (Altrincham)"]
[172552,"L690 HOWARDS CT","GREEN LN","Green Lane (Altrincham)"]
[177368,"L690 HOWARDS CT","GREEN LN","Green Lane (Altrincham)"]
[171052,"F1807 FRANCES ST","HIGHER MILL","Higher Mill"]
[171136,"F1807 FRANCES ST","HIGHER MILL","Higher Mill"]
[171326,"F1807 FRANCES ST","HIGHER MILL","Higher Mill"]
[171362,"F1807 FRANCES ST","HIGHER MILL","Higher Mill"]
[171453,"F1807 FRANCES ST","HIGHER MILL","Higher Mill"]
[171550,"F1807 FRANCES ST","HIGHER MILL","Higher Mill"]
[171630,"F1807 FRANCES ST","HIGHER MILL","Higher Mill"]
[171632,"F1807 FRANCES ST","HIGHER MILL","Higher Mill"]
[171633,"F1807 FRANCES ST","HIGHER MILL","Higher Mill"]
[171638,"F1807 FRANCES ST","HIGHER MILL","Higher Mill"]
[171764,"F1807 FRANCES ST","HIGHER MILL","Higher Mill"]
[172473,"F1807 FRANCES ST","HIGHER MILL","Higher Mill"]
[171142,"F2816 BROWNLEY RD","HIGHER MILL","Higher Mill"]
[171447,"F2816 BROWNLEY RD","HIGHER MILL","Higher Mill"]
[171720,"F2816 BROWNLEY RD","HIGHER MILL","Higher Mill"]
[172423,"F2816 BROWNLEY RD","HIGHER MILL","Higher Mill"]
[172606,"F2816 BROWNLEY RD","HIGHER MILL","Higher Mill"]
[177221,"F2816 BROWNLEY RD","HIGHER MILL","Higher Mill"]
[177284,"F2816 BROWNLEY RD","HIGHER MILL","Higher Mill"]
[177327,"F2816 BROWNLEY RD","HIGHER MILL","Higher Mill"]
[177429,"F2816 BROWNLEY RD","HIGHER MILL","Higher Mill"]
[178101,"F2816 BROWNLEY RD","HIGHER MILL","Higher Mill"]
[171140,"F1936 BROOKLYN CRES","HIGHER MILL","Higher Mill"]
[172352,"F1936 BROOKLYN CRES","HIGHER MILL","Higher Mill"]
[172383,"F1936 BROOKLYN CRES","HIGHER MILL","Higher Mill"]
[172594,"F1936 BROOKLYN CRES","HIGHER MILL","Higher Mill"]
[174000,"F1936 BROOKLYN CRES","HIGHER MILL","Higher Mill"]
[171166,"F279 HIGH ST CHEADLE","HIGHER MILL","Higher Mill"]
[171325,"F279 HIGH ST CHEADLE","HIGHER MILL","Higher Mill"]
[171419,"F279 HIGH ST CHEADLE","HIGHER MILL","Higher Mill"]
[171564,"F279 HIGH ST CHEADLE","HIGHER MILL","Higher Mill"]
[171577,"F279 HIGH ST CHEADLE","HIGHER MILL","Higher Mill"]
[172356,"F279 HIGH ST CHEADLE","HIGHER MILL","Higher Mill"]
[172386,"F279 HIGH ST CHEADLE","HIGHER MILL","Higher Mill"]
[171121,"F1535 FOXLAND RD SCH","HIGHER MILL","Higher Mill"]
[171273,"F1535 FOXLAND RD SCH","HIGHER MILL","Higher Mill"]
[171324,"F1535 FOXLAND RD SCH","HIGHER MILL","Higher Mill"]
[171572,"F1535 FOXLAND RD SCH","HIGHER MILL","Higher Mill"]
[171863,"F1535 FOXLAND RD SCH","HIGHER MILL","Higher Mill"]
[172270,"F1535 FOXLAND RD SCH","HIGHER MILL","Higher Mill"]
[172483,"F1535 FOXLAND RD SCH","HIGHER MILL","Higher Mill"]
[177332,"F1535 FOXLAND RD SCH","HIGHER MILL","Higher Mill"]
[177381,"F1535 FOXLAND RD SCH","HIGHER MILL","Higher Mill"]
[178012,"F1535 FOXLAND RD SCH","HIGHER MILL","Higher Mill"]
[171129,"F1078 BROADWAY","HIGHER MILL","Higher Mill"]
[171189,"F1078 BROADWAY","HIGHER MILL","Higher Mill"]
[171304,"F1078 BROADWAY","HIGHER MILL","Higher Mill"]
[171826,"F1078 BROADWAY","HIGHER MILL","Higher Mill"]
[172378,"F1078 BROADWAY","HIGHER MILL","Higher Mill"]
[177033,"F1078 BROADWAY","HIGHER MILL","Higher Mill"]
[171289,"F395 KINGSWAY SCHOOL HILL","HIGHER MILL","Higher Mill"]
[171292,"F395 KINGSWAY SCHOOL HILL","HIGHER MILL","Higher Mill"]
[171464,"F395 KINGSWAY SCHOOL HILL","HIGHER MILL","Higher Mill"]
[171578,"F395 KINGSWAY SCHOOL HILL","HIGHER MILL","Higher Mill"]
[171734,"F395 KINGSWAY SCHOOL HILL","HIGHER MILL","Higher Mill"]
[171816,"F395 KINGSWAY SCHOOL HILL","HIGHER MILL","Higher Mill"]
[171001,"F278 HIGH ST CHEADLE","HIGHER MILL","Higher Mill"]
[171018,"F278 HIGH ST CHEADLE","HIGHER MILL","Higher Mill"]
[171226,"F278 HIGH ST CHEADLE","HIGHER MILL","Higher Mill"]
[171334,"F278 HIGH ST CHEADLE","HIGHER MILL","Higher Mill"]
[171392,"F278 HIGH ST CHEADLE","HIGHER MILL","Higher Mill"]
[177908,"F278 HIGH ST CHEADLE","HIGHER MILL","Higher Mill"]
[178498,"F278 HIGH ST CHEADLE","HIGHER MILL","Higher Mill"]
[171078,"F1094 KINGSWAY GATLEY","HIGHER MILL","Higher Mill"]
[171335,"F1094 KINGSWAY GATLEY","HIGHER MILL","Higher Mill"]
[171461,"F1094 KINGSWAY GATLEY","HIGHER MILL","Higher Mill"]
[171610,"F1094 KINGSWAY GATLEY","HIGHER MILL","Higher Mill"]
[171702,"F1094 KINGSWAY GATLEY","HIGHER MILL","Higher Mill"]
[172614,"F1094 KINGSWAY GATLEY","HIGHER MILL","Higher Mill"]
[171195,"F2842 CHERINGTON RD","HIGHER MILL","Higher Mill"]
[171323,"F2842 CHERINGTON RD","HIGHER MILL","Higher Mill"]
[171103,"F1734 EAST RD","LEVENSHULME","Levenshulme"]
[171180,"F1734 EAST RD","LEVENSHULME","Levenshulme"]
[171596,"F1734 EAST RD","LEVENSHULME","Levenshulme"]
[171750,"F1734 EAST RD","LEVENSHULME","Levenshulme"]
[171120,"F50 BARLOW RD","LEVENSHULME","Levenshulme"]
[171654,"F50 BARLOW RD","LEVENSHULME","Levenshulme"]
[172211,"F50 BARLOW RD","LEVENSHULME","Levenshulme"]
[177579,"F50 BARLOW RD","LEVENSHULME","Levenshulme"]
[178523,"F50 BARLOW RD","LEVENSHULME","Levenshulme"]
[171270,"F803 BROOM LN","LEVENSHULME","Levenshulme"]
[171274,"F803 BROOM LN","LEVENSHULME","Levenshulme"]
[172075,"F1676 MIDWAY HOTEL","LEVENSHULME","Levenshulme"]
[172081,"F1676 MIDWAY HOTEL","LEVENSHULME","Levenshulme"]
[171384,"F1528 ERRWOOD RD","LEVENSHULME","Levenshulme"]
[171480,"F1528 ERRWOOD RD","LEVENSHULME","Levenshulme"]
[171629,"F1528 ERRWOOD RD","LEVENSHULME","Levenshulme"]
[171742,"F1528 ERRWOOD RD","LEVENSHULME","Levenshulme"]
[172037,"F1528 ERRWOOD RD","LEVENSHULME","Levenshulme"]
[177880,"F1528 ERRWOOD RD","LEVENSHULME","Levenshulme"]
[172086,"F599 MANDERVILLE ST","LEVENSHULME","Levenshulme"]
[177062,"F599 MANDERVILLE ST","LEVENSHULME","Levenshulme"]
[171144,"F265 CLIFTONA WORKS","LEVENSHULME","Levenshulme"]
[171439,"F265 CLIFTONA WORKS","LEVENSHULME","Levenshulme"]
[171459,"F265 CLIFTONA WORKS","LEVENSHULME","Levenshulme"]
[172102,"F265 CLIFTONA WORKS","LEVENSHULME","Levenshulme"]
[178464,"F265 CLIFTONA WORKS","LEVENSHULME","Levenshulme"]
[172067,"F1474 YEW TREE AVE","LEVENSHULME","Levenshulme"]
[172077,"F1474 YEW TREE AVE","LEVENSHULME","Levenshulme"]
[177648,"F1474 YEW TREE AVE","LEVENSHULME","Levenshulme"]
[171738,"F147 AVON RD BURNAGE/LEVENSHULME SCH E","LEVENSHULME","Levenshulme"]
[172217,"F147 AVON RD BURNAGE/LEVENSHULME SCH E","LEVENSHULME","Levenshulme"]
[178282,"F147 AVON RD BURNAGE/LEVENSHULME SCH E","LEVENSHULME","Levenshulme"]
[172085,"LEVENSHULME NWK T2","LEVENSHULME","Levenshulme"]
[177328,"F460 NEWCASTLE ST","MANCHESTER UNI","Manchester University"]
[177654,"F482 U OF M NO7 CHEMISTRY","MANCHESTER UNI","Manchester University"]
[166946,"F458 U OF M NO31 JAMES CHADWICK","MANCHESTER UNI","Manchester University"]
[172293,"F193 U OF M NO25 ALAN TURING","MANCHESTER UNI","Manchester University"]
[178078,"F193 U OF M NO25 ALAN TURING","MANCHESTER UNI","Manchester University"]
[178079,"F193 U OF M NO25 ALAN TURING","MANCHESTER UNI","Manchester University"]
[177817,"F2572 U OF M NO44 GRAPHENE INST","MANCHESTER UNI","Manchester University"]
[178080,"F2572 U OF M NO44 GRAPHENE INST","MANCHESTER UNI","Manchester University"]
[172291,"F2570 U OF M NO20 MUSEUM","MANCHESTER UNI","Manchester University"]
[172294,"F2570 U OF M NO20 MUSEUM","MANCHESTER UNI","Manchester University"]
[177141,"F2570 U OF M NO20 MUSEUM","MANCHESTER UNI","Manchester University"]
[177929,"F2570 U OF M NO20 MUSEUM","MANCHESTER UNI","Manchester University"]
[178077,"F2570 U OF M NO20 MUSEUM","MANCHESTER UNI","Manchester University"]
[179120,"F2570 U OF M NO20 MUSEUM","MANCHESTER UNI","Manchester University"]
[177637,"F994 U OF M NO21 SMITH EAST","MANCHESTER UNI","Manchester University"]
[166939,"F2573 U OF M NO32 PARISER","MANCHESTER UNI","Manchester University"]
[168376,"F2573 U OF M NO32 PARISER","MANCHESTER UNI","Manchester University"]
[177407,"F631 FRANK ST","MANCHESTER UNI","Manchester University"]
[178199,"F631 FRANK ST","MANCHESTER UNI","Manchester University"]
[172281,"F1202 U OF M NO17 CENTRIFUGE/U OF M NO","MANCHESTER UNI","Manchester University"]
[172289,"F1202 U OF M NO17 CENTRIFUGE/U OF M NO","MANCHESTER UNI","Manchester University"]
[172297,"F1202 U OF M NO17 CENTRIFUGE/U OF M NO","MANCHESTER UNI","Manchester University"]
[172299,"F1202 U OF M NO17 CENTRIFUGE/U OF M NO","MANCHESTER UNI","Manchester University"]
[178379,"F1202 U OF M NO17 CENTRIFUGE/U OF M NO","MANCHESTER UNI","Manchester University"]
[178525,"F1202 U OF M NO17 CENTRIFUGE/U OF M NO","MANCHESTER UNI","Manchester University"]
[172282,"F2571 U OF M NO8 SCHUSTER","MANCHESTER UNI","Manchester University"]
[172285,"F2571 U OF M NO8 SCHUSTER","MANCHESTER UNI","Manchester University"]
[172288,"F2571 U OF M NO8 SCHUSTER","MANCHESTER UNI","Manchester University"]
[172295,"F2574 U OF M NO15 STOPFORD E","MANCHESTER UNI","Manchester University"]
[172296,"F2574 U OF M NO15 STOPFORD E","MANCHESTER UNI","Manchester University"]
[178209,"F2574 U OF M NO15 STOPFORD E","MANCHESTER UNI","Manchester University"]
[171005,"L17 MANCHESTER AIRPORT INTAKE A","MANCHESTER AIRPORT","Manchester Airport"]
[171228,"L17 MANCHESTER AIRPORT INTAKE A","MANCHESTER AIRPORT","Manchester Airport"]
[171642,"L17 MANCHESTER AIRPORT INTAKE A","MANCHESTER AIRPORT","Manchester Airport"]
[172019,"L17 MANCHESTER AIRPORT INTAKE A","MANCHESTER AIRPORT","Manchester Airport"]
[172317,"L17 MANCHESTER AIRPORT INTAKE A","MANCHESTER AIRPORT","Manchester Airport"]
[172335,"L17 MANCHESTER AIRPORT INTAKE A","MANCHESTER AIRPORT","Manchester Airport"]
[172426,"L17 MANCHESTER AIRPORT INTAKE A","MANCHESTER AIRPORT","Manchester Airport"]
[172538,"L17 MANCHESTER AIRPORT INTAKE A","MANCHESTER AIRPORT","Manchester Airport"]
[172573,"L17 MANCHESTER AIRPORT INTAKE A","MANCHESTER AIRPORT","Manchester Airport"]
[177904,"L17 MANCHESTER AIRPORT INTAKE A","MANCHESTER AIRPORT","Manchester Airport"]
[177905,"L17 MANCHESTER AIRPORT INTAKE A","MANCHESTER AIRPORT","Manchester Airport"]
[178222,"L17 MANCHESTER AIRPORT INTAKE A","MANCHESTER AIRPORT","Manchester Airport"]
[178299,"L17 MANCHESTER AIRPORT INTAKE A","MANCHESTER AIRPORT","Manchester Airport"]
[171096,"L29 MANCHESTER AIRPORT INTAKE B","MANCHESTER AIRPORT","Manchester Airport"]
[171234,"L29 MANCHESTER AIRPORT INTAKE B","MANCHESTER AIRPORT","Manchester Airport"]
[171251,"L29 MANCHESTER AIRPORT INTAKE B","MANCHESTER AIRPORT","Manchester Airport"]
[171469,"L29 MANCHESTER AIRPORT INTAKE B","MANCHESTER AIRPORT","Manchester Airport"]
[171753,"L29 MANCHESTER AIRPORT INTAKE B","MANCHESTER AIRPORT","Manchester Airport"]
[172322,"L29 MANCHESTER AIRPORT INTAKE B","MANCHESTER AIRPORT","Manchester Airport"]
[172324,"L29 MANCHESTER AIRPORT INTAKE B","MANCHESTER AIRPORT","Manchester Airport"]
[172325,"L29 MANCHESTER AIRPORT INTAKE B","MANCHESTER AIRPORT","Manchester Airport"]
[172327,"L29 MANCHESTER AIRPORT INTAKE B","MANCHESTER AIRPORT","Manchester Airport"]
[172331,"L29 MANCHESTER AIRPORT INTAKE B","MANCHESTER AIRPORT","Manchester Airport"]
[172339,"L29 MANCHESTER AIRPORT INTAKE B","MANCHESTER AIRPORT","Manchester Airport"]
[172340,"L29 MANCHESTER AIRPORT INTAKE B","MANCHESTER AIRPORT","Manchester Airport"]
[172342,"L29 MANCHESTER AIRPORT INTAKE B","MANCHESTER AIRPORT","Manchester Airport"]
[172343,"L29 MANCHESTER AIRPORT INTAKE B","MANCHESTER AIRPORT","Manchester Airport"]
[172375,"L29 MANCHESTER AIRPORT INTAKE B","MANCHESTER AIRPORT","Manchester Airport"]
[172424,"L29 MANCHESTER AIRPORT INTAKE B","MANCHESTER AIRPORT","Manchester Airport"]
[172572,"L29 MANCHESTER AIRPORT INTAKE B","MANCHESTER AIRPORT","Manchester Airport"]
[172574,"L29 MANCHESTER AIRPORT INTAKE B","MANCHESTER AIRPORT","Manchester Airport"]
[172578,"L29 MANCHESTER AIRPORT INTAKE B","MANCHESTER AIRPORT","Manchester Airport"]
[177223,"L29 MANCHESTER AIRPORT INTAKE B","MANCHESTER AIRPORT","Manchester Airport"]
[177497,"L29 MANCHESTER AIRPORT INTAKE B","MANCHESTER AIRPORT","Manchester Airport"]
[178859,"F584 SYNERGY HS PENCROFT WAY","MOSS SIDE","Moss Side (Longsight)"]
[172597,"F91 ROOK ST","MOSS SIDE","Moss Side (Longsight)"]
[177031,"F91 ROOK ST","MOSS SIDE","Moss Side (Longsight)"]
[177269,"F91 ROOK ST","MOSS SIDE","Moss Side (Longsight)"]
[177624,"F91 ROOK ST","MOSS SIDE","Moss Side (Longsight)"]
[177656,"F91 ROOK ST","MOSS SIDE","Moss Side (Longsight)"]
[178010,"F91 ROOK ST","MOSS SIDE","Moss Side (Longsight)"]
[178133,"F1355 DUCIE HIGH SCH","MOSS SIDE","Moss Side (Longsight)"]
[172315,"F99 HARP LAGER","MOSS SIDE","Moss Side (Longsight)"]
[172316,"F99 HARP LAGER","MOSS SIDE","Moss Side (Longsight)"]
[171262,"F1053 MOSS LN E","MOSS SIDE","Moss Side (Longsight)"]
[171340,"F1053 MOSS LN E","MOSS SIDE","Moss Side (Longsight)"]
[171962,"F1053 MOSS LN E","MOSS SIDE","Moss Side (Longsight)"]
[171974,"F1053 MOSS LN E","MOSS SIDE","Moss Side (Longsight)"]
[177755,"F3632 BIRLEY FIELDS NO2/TOMLINSON ST","MOSS SIDE","Moss Side (Longsight)"]
[177999,"F3632 BIRLEY FIELDS NO2/TOMLINSON ST","MOSS SIDE","Moss Side (Longsight)"]
[165979,"F1672 OXFORD ST","MOSS SIDE","Moss Side (Longsight)"]
[165980,"F1672 OXFORD ST","MOSS SIDE","Moss Side (Longsight)"]
[165982,"F1672 OXFORD ST","MOSS SIDE","Moss Side (Longsight)"]
[168672,"F1672 OXFORD ST","MOSS SIDE","Moss Side (Longsight)"]
[171089,"F1090 BOWES ST","MOSS SIDE","Moss Side (Longsight)"]
[171220,"F1090 BOWES ST","MOSS SIDE","Moss Side (Longsight)"]
[171949,"F1090 BOWES ST","MOSS SIDE","Moss Side (Longsight)"]
[172420,"F1090 BOWES ST","MOSS SIDE","Moss Side (Longsight)"]
[177553,"F1090 BOWES ST","MOSS SIDE","Moss Side (Longsight)"]
[178309,"F1090 BOWES ST","MOSS SIDE","Moss Side (Longsight)"]
[171947,"F1156 MOSS SIDE DIST CTR S","MOSS SIDE","Moss Side (Longsight)"]
[177805,"F1156 MOSS SIDE DIST CTR S","MOSS SIDE","Moss Side (Longsight)"]
[177996,"F1156 MOSS SIDE DIST CTR S","MOSS SIDE","Moss Side (Longsight)"]
[178411,"F4494 LONGLEY LN WASTE","NORTHENDEN","Northenden"]
[171167,"F4500 LEESTONE RD","NORTHENDEN","Northenden"]
[171442,"F4500 LEESTONE RD","NORTHENDEN","Northenden"]
[177547,"F4500 LEESTONE RD","NORTHENDEN","Northenden"]
[178413,"F4500 LEESTONE RD","NORTHENDEN","Northenden"]
[171431,"F1886 POST HS HOTEL","NORTHENDEN","Northenden"]
[171456,"F1886 POST HS HOTEL","NORTHENDEN","Northenden"]
[171498,"F1886 POST HS HOTEL","NORTHENDEN","Northenden"]
[171621,"F1886 POST HS HOTEL","NORTHENDEN","Northenden"]
[171150,"L1885 T21 YEW TREE LN","NORTHENDEN","Northenden"]
[171178,"L1885 T21 YEW TREE LN","NORTHENDEN","Northenden"]
[171302,"L1885 T21 YEW TREE LN","NORTHENDEN","Northenden"]
[171542,"L1885 T21 YEW TREE LN","NORTHENDEN","Northenden"]
[171590,"L1885 T21 YEW TREE LN","NORTHENDEN","Northenden"]
[171695,"L1885 T21 YEW TREE LN","NORTHENDEN","Northenden"]
[171746,"L1885 T21 YEW TREE LN","NORTHENDEN","Northenden"]
[171887,"L1885 T21 YEW TREE LN","NORTHENDEN","Northenden"]
[172586,"L1885 T21 YEW TREE LN","NORTHENDEN","Northenden"]
[177202,"L1885 T21 YEW TREE LN","NORTHENDEN","Northenden"]
[177622,"L1885 T21 YEW TREE LN","NORTHENDEN","Northenden"]
[171014,"L228 T22 ALTRINCHAM RD","NORTHENDEN","Northenden"]
[171389,"L228 T22 ALTRINCHAM RD","NORTHENDEN","Northenden"]
[171609,"L228 T22 ALTRINCHAM RD","NORTHENDEN","Northenden"]
[171536,"F2006 ST HILDAS RD","NORTHENDEN","Northenden"]
[171752,"F2006 ST HILDAS RD","NORTHENDEN","Northenden"]
[171682,"F1887 ROYLE GRN RD (25)","NORTHENDEN","Northenden"]
[171683,"F1887 ROYLE GRN RD (25)","NORTHENDEN","Northenden"]
[171722,"F1887 ROYLE GRN RD (25)","NORTHENDEN","Northenden"]
[171849,"F1887 ROYLE GRN RD (25)","NORTHENDEN","Northenden"]
[171850,"F1887 ROYLE GRN RD (25)","NORTHENDEN","Northenden"]
[172526,"F1887 ROYLE GRN RD (25)","NORTHENDEN","Northenden"]
[172528,"F1887 ROYLE GRN RD (25)","NORTHENDEN","Northenden"]
[178447,"F1887 ROYLE GRN RD (25)","NORTHENDEN","Northenden"]
[178491,"F2607 COMMON LN","NWGB PARTINGTON","NWGB Partington"]
[178650,"F2607 COMMON LN","NWGB PARTINGTON","NWGB Partington"]
[171026,"F2601 BROADWAY/MANCHESTER RD PAPER MIL","NWGB PARTINGTON","NWGB Partington"]
[171131,"F2601 BROADWAY/MANCHESTER RD PAPER MIL","NWGB PARTINGTON","NWGB Partington"]
[171149,"F2601 BROADWAY/MANCHESTER RD PAPER MIL","NWGB PARTINGTON","NWGB Partington"]
[171219,"F2601 BROADWAY/MANCHESTER RD PAPER MIL","NWGB PARTINGTON","NWGB Partington"]
[171490,"F2601 BROADWAY/MANCHESTER RD PAPER MIL","NWGB PARTINGTON","NWGB Partington"]
[171614,"F2601 BROADWAY/MANCHESTER RD PAPER MIL","NWGB PARTINGTON","NWGB Partington"]
[172051,"F2601 BROADWAY/MANCHESTER RD PAPER MIL","NWGB PARTINGTON","NWGB Partington"]
[171040,"F881 MOSS LN","NWGB PARTINGTON","NWGB Partington"]
[171115,"F881 MOSS LN","NWGB PARTINGTON","NWGB Partington"]
[171235,"F881 MOSS LN","NWGB PARTINGTON","NWGB Partington"]
[171295,"F881 MOSS LN","NWGB PARTINGTON","NWGB Partington"]
[171543,"F881 MOSS LN","NWGB PARTINGTON","NWGB Partington"]
[171689,"F881 MOSS LN","NWGB PARTINGTON","NWGB Partington"]
[177454,"F881 MOSS LN","NWGB PARTINGTON","NWGB Partington"]
[178467,"F881 MOSS LN","NWGB PARTINGTON","NWGB Partington"]
[171049,"F2834 NATIONAL GRID COMMON LN","NWGB PARTINGTON","NWGB Partington"]
[171393,"F2834 NATIONAL GRID COMMON LN","NWGB PARTINGTON","NWGB Partington"]
[171514,"F2834 NATIONAL GRID COMMON LN","NWGB PARTINGTON","NWGB Partington"]
[171648,"F2834 NATIONAL GRID COMMON LN","NWGB PARTINGTON","NWGB Partington"]
[171690,"F2834 NATIONAL GRID COMMON LN","NWGB PARTINGTON","NWGB Partington"]
[178502,"F2834 NATIONAL GRID COMMON LN","NWGB PARTINGTON","NWGB Partington"]
[171179,"F2606 MANCHESTER RD PAPER MILL/SHELL M","NWGB PARTINGTON","NWGB Partington"]
[171316,"F2606 MANCHESTER RD PAPER MILL/SHELL M","NWGB PARTINGTON","NWGB Partington"]
[171515,"F2606 MANCHESTER RD PAPER MILL/SHELL M","NWGB PARTINGTON","NWGB Partington"]
[171530,"F2606 MANCHESTER RD PAPER MILL/SHELL M","NWGB PARTINGTON","NWGB Partington"]
[172111,"F2606 MANCHESTER RD PAPER MILL/SHELL M","NWGB PARTINGTON","NWGB Partington"]
[172565,"F2606 MANCHESTER RD PAPER MILL/SHELL M","NWGB PARTINGTON","NWGB Partington"]
[178402,"F2606 MANCHESTER RD PAPER MILL/SHELL M","NWGB PARTINGTON","NWGB Partington"]
[178435,"F2606 MANCHESTER RD PAPER MILL/SHELL M","NWGB PARTINGTON","NWGB Partington"]
[172108,"F3854 OPENSHAW NWK","OPENSHAW","Openshaw"]
[171458,"F1516 WIMPORY ST","OPENSHAW","Openshaw"]
[171463,"F1516 WIMPORY ST","OPENSHAW","Openshaw"]
[171815,"F1516 WIMPORY ST","OPENSHAW","Openshaw"]
[172110,"F1516 WIMPORY ST","OPENSHAW","Openshaw"]
[172113,"F1516 WIMPORY ST","OPENSHAW","Openshaw"]
[172418,"F1516 WIMPORY ST","OPENSHAW","Openshaw"]
[177877,"F1516 WIMPORY ST","OPENSHAW","Openshaw"]
[178124,"F1516 WIMPORY ST","OPENSHAW","Openshaw"]
[179005,"F1516 WIMPORY ST","OPENSHAW","Openshaw"]
[171116,"F31 HAMMERSTONE RD","OPENSHAW","Openshaw"]
[171674,"F31 HAMMERSTONE RD","OPENSHAW","Openshaw"]
[171787,"F31 HAMMERSTONE RD","OPENSHAW","Openshaw"]
[178428,"F31 HAMMERSTONE RD","OPENSHAW","Openshaw"]
[171017,"F1745 VINE ST","OPENSHAW","Openshaw"]
[171075,"F1745 VINE ST","OPENSHAW","Openshaw"]
[171482,"F1745 VINE ST","OPENSHAW","Openshaw"]
[172120,"F1745 VINE ST","OPENSHAW","Openshaw"]
[172128,"F1745 VINE ST","OPENSHAW","Openshaw"]
[172098,"F1448 VICTORIA ST","OPENSHAW","Openshaw"]
[172103,"F1448 VICTORIA ST","OPENSHAW","Openshaw"]
[171707,"F51 WRIGHT & GREEN","OPENSHAW","Openshaw"]
[172094,"F51 WRIGHT & GREEN","OPENSHAW","Openshaw"]
[172097,"F51 WRIGHT & GREEN","OPENSHAW","Openshaw"]
[172101,"F51 WRIGHT & GREEN","OPENSHAW","Openshaw"]
[172106,"F51 WRIGHT & GREEN","OPENSHAW","Openshaw"]
[172542,"F51 WRIGHT & GREEN","OPENSHAW","Openshaw"]
[178137,"F51 WRIGHT & GREEN","OPENSHAW","Openshaw"]
[172503,"F805 PARKHOUSE ST/SHELDON BAKERY","OPENSHAW","Openshaw"]
[171356,"F1457 OGDEN LN","OPENSHAW","Openshaw"]
[177955,"F1457 OGDEN LN","OPENSHAW","Openshaw"]
[177070,"F2162 PRESBAR PROD CRABTREE LN","OPENSHAW","Openshaw"]
[177215,"F2162 PRESBAR PROD CRABTREE LN","OPENSHAW","Openshaw"]
[178499,"F2162 PRESBAR PROD CRABTREE LN","OPENSHAW","Openshaw"]
[171576,"F1430 WHOLESALE MKT NO1","OPENSHAW","Openshaw"]
[177385,"F1430 WHOLESALE MKT NO1","OPENSHAW","Openshaw"]
[177386,"F1430 WHOLESALE MKT NO1","OPENSHAW","Openshaw"]
[177388,"F1430 WHOLESALE MKT NO1","OPENSHAW","Openshaw"]
[177806,"F1430 WHOLESALE MKT NO1","OPENSHAW","Openshaw"]
[178822,"F1430 WHOLESALE MKT NO1","OPENSHAW","Openshaw"]
[172122,"F1047 TURTON ST","OPENSHAW","Openshaw"]
[172496,"F1047 TURTON ST","OPENSHAW","Openshaw"]
[178508,"F1047 TURTON ST","OPENSHAW","Openshaw"]
[178570,"F1047 TURTON ST","OPENSHAW","Openshaw"]
[171438,"F214 ASHTON OLD RD","OPENSHAW","Openshaw"]
[172499,"F214 ASHTON OLD RD","OPENSHAW","Openshaw"]
[177214,"F214 ASHTON OLD RD","OPENSHAW","Openshaw"]
[177479,"F214 ASHTON OLD RD","OPENSHAW","Openshaw"]
[171318,"F1882 SALCOMBE RD","OPENSHAW","Openshaw"]
[171840,"F1882 SALCOMBE RD","OPENSHAW","Openshaw"]
[172116,"F1882 SALCOMBE RD","OPENSHAW","Openshaw"]
[172117,"F1882 SALCOMBE RD","OPENSHAW","Openshaw"]
[172118,"F1882 SALCOMBE RD","OPENSHAW","Openshaw"]
[172596,"F1882 SALCOMBE RD","OPENSHAW","Openshaw"]
[177074,"F1882 SALCOMBE RD","OPENSHAW","Openshaw"]
[178431,"F1882 SALCOMBE RD","OPENSHAW","Openshaw"]
[171137,"F2578 NORTH PARADE","SALE MOOR","Sale Moor"]
[171138,"F2578 NORTH PARADE","SALE MOOR","Sale Moor"]
[171139,"F2578 NORTH PARADE","SALE MOOR","Sale Moor"]
[171566,"F2578 NORTH PARADE","SALE MOOR","Sale Moor"]
[171568,"F2578 NORTH PARADE","SALE MOOR","Sale Moor"]
[171731,"F2578 NORTH PARADE","SALE MOOR","Sale Moor"]
[171856,"F2578 NORTH PARADE","SALE MOOR","Sale Moor"]
[171868,"F2578 NORTH PARADE","SALE MOOR","Sale Moor"]
[171567,"F1438 NORRIS BUDWORTH","SALE MOOR","Sale Moor"]
[171698,"F1438 NORRIS BUDWORTH","SALE MOOR","Sale Moor"]
[172078,"F1438 NORRIS BUDWORTH","SALE MOOR","Sale Moor"]
[172265,"F1438 NORRIS BUDWORTH","SALE MOOR","Sale Moor"]
[171048,"F1440 CROFT RD","SALE MOOR","Sale Moor"]
[171232,"F1440 CROFT RD","SALE MOOR","Sale Moor"]
[171783,"F1440 CROFT RD","SALE MOOR","Sale Moor"]
[171835,"F1440 CROFT RD","SALE MOOR","Sale Moor"]
[171240,"F1439 DERBYSHIRE RD S","SALE MOOR","Sale Moor"]
[171264,"F1439 DERBYSHIRE RD S","SALE MOOR","Sale Moor"]
[171483,"F1441 SALE HOTEL","SALE MOOR","Sale Moor"]
[171527,"F1441 SALE HOTEL","SALE MOOR","Sale Moor"]
[171694,"F1441 SALE HOTEL","SALE MOOR","Sale Moor"]
[171736,"F1441 SALE HOTEL","SALE MOOR","Sale Moor"]
[171394,"F2579 MARSLAND RD (NO 55)","SALE MOOR","Sale Moor"]
[171525,"F2579 MARSLAND RD (NO 55)","SALE MOOR","Sale Moor"]
[171560,"F2579 MARSLAND RD (NO 55)","SALE MOOR","Sale Moor"]
[171570,"F2579 MARSLAND RD (NO 55)","SALE MOOR","Sale Moor"]
[171571,"F2579 MARSLAND RD (NO 55)","SALE MOOR","Sale Moor"]
[171699,"F2579 MARSLAND RD (NO 55)","SALE MOOR","Sale Moor"]
[172168,"F2579 MARSLAND RD (NO 55)","SALE MOOR","Sale Moor"]
[172603,"F2579 MARSLAND RD (NO 55)","SALE MOOR","Sale Moor"]
[177032,"F2579 MARSLAND RD (NO 55)","SALE MOOR","Sale Moor"]
[177604,"F2579 MARSLAND RD (NO 55)","SALE MOOR","Sale Moor"]
[178501,"F2579 MARSLAND RD (NO 55)","SALE MOOR","Sale Moor"]
[171450,"F118 COATBRIDGE ST/CANTRELL ST","STUART ST","Stuart St"]
[171574,"F118 COATBRIDGE ST/CANTRELL ST","STUART ST","Stuart St"]
[172115,"F118 COATBRIDGE ST/CANTRELL ST","STUART ST","Stuart St"]
[167802,"F55 STUART ST NWK","STUART ST","Stuart St"]
[177098,"F55 STUART ST NWK","STUART ST","Stuart St"]
[177450,"F55 STUART ST NWK","STUART ST","Stuart St"]
[166206,"F9 HELSTON ST","STUART ST","Stuart St"]
[167036,"F9 HELSTON ST","STUART ST","Stuart St"]
[166202,"F26 LORD NORTH ST","STUART ST","Stuart St"]
[166205,"F26 LORD NORTH ST","STUART ST","Stuart St"]
[166396,"F26 LORD NORTH ST","STUART ST","Stuart St"]
[168394,"F4593 GRIMSHAW LN","STUART ST","Stuart St"]
[166191,"F39 SPORTS CITY NO1","STUART ST","Stuart St"]
[166204,"F39 SPORTS CITY NO1","STUART ST","Stuart St"]
[168387,"F39 SPORTS CITY NO1","STUART ST","Stuart St"]
[171027,"F39 SPORTS CITY NO1","STUART ST","Stuart St"]
[177460,"F39 SPORTS CITY NO1","STUART ST","Stuart St"]
[165289,"F117 STILLWATER DR","STUART ST","Stuart St"]
[165290,"F117 STILLWATER DR","STUART ST","Stuart St"]
[167982,"F117 STILLWATER DR","STUART ST","Stuart St"]
[171064,"F95 ANCHOR CHEMICAL/CLAYTON LN","STUART ST","Stuart St"]
[172355,"F95 ANCHOR CHEMICAL/CLAYTON LN","STUART ST","Stuart St"]
[178573,"F95 ANCHOR CHEMICAL/CLAYTON LN","STUART ST","Stuart St"]
[171065,"F96 ANDERSONS","STUART ST","Stuart St"]
[171317,"F96 ANDERSONS","STUART ST","Stuart St"]
[171786,"F96 ANDERSONS","STUART ST","Stuart St"]
[172600,"F4095 TRAINCARE FACILITY/VELODROME","STUART ST","Stuart St"]
[168530,"F80 WEIR PUMPS","STUART ST","Stuart St"]
[168535,"F80 WEIR PUMPS","STUART ST","Stuart St"]
[168543,"F80 WEIR PUMPS","STUART ST","Stuart St"]
[166466,"F27 HEALDS DAIRY LORD N CONS/HEALDS DA","STUART ST","Stuart St"]
[166467,"F27 HEALDS DAIRY LORD N CONS/HEALDS DA","STUART ST","Stuart St"]
[322829,"ICL ASHTON","SNIPE PRY","Snipe"]
[326719,"ICL ASHTON","SNIPE PRY","Snipe"]
[328749,"ICL ASHTON","SNIPE PRY","Snipe"]
[328550,"GMP ALEXANDRIA WAY","SNIPE PRY","Snipe"]
[328973,"GMP ALEXANDRIA WAY","SNIPE PRY","Snipe"]
[329227,"GMP ALEXANDRIA WAY","SNIPE PRY","Snipe"]
[329229,"GMP ALEXANDRIA WAY","SNIPE PRY","Snipe"]
[171751,"F1320 HOOLEY HILL/ST ANNES RD AUDENSHA","SNIPE PRY","Snipe"]
[171844,"F1320 HOOLEY HILL/ST ANNES RD AUDENSHA","SNIPE PRY","Snipe"]
[172153,"F1320 HOOLEY HILL/ST ANNES RD AUDENSHA","SNIPE PRY","Snipe"]
[172166,"F1320 HOOLEY HILL/ST ANNES RD AUDENSHA","SNIPE PRY","Snipe"]
[172172,"F1320 HOOLEY HILL/ST ANNES RD AUDENSHA","SNIPE PRY","Snipe"]
[172232,"F1320 HOOLEY HILL/ST ANNES RD AUDENSHA","SNIPE PRY","Snipe"]
[172354,"F1320 HOOLEY HILL/ST ANNES RD AUDENSHA","SNIPE PRY","Snipe"]
[172598,"F1320 HOOLEY HILL/ST ANNES RD AUDENSHA","SNIPE PRY","Snipe"]
[177157,"F1320 HOOLEY HILL/ST ANNES RD AUDENSHA","SNIPE PRY","Snipe"]
[177578,"F1320 HOOLEY HILL/ST ANNES RD AUDENSHA","SNIPE PRY","Snipe"]
[171204,"F520 YORK ST/MOUNT PLEASANT ST","SNIPE PRY","Snipe"]
[171319,"F520 YORK ST/MOUNT PLEASANT ST","SNIPE PRY","Snipe"]
[171763,"F520 YORK ST/MOUNT PLEASANT ST","SNIPE PRY","Snipe"]
[171767,"F520 YORK ST/MOUNT PLEASANT ST","SNIPE PRY","Snipe"]
[172171,"F520 YORK ST/MOUNT PLEASANT ST","SNIPE PRY","Snipe"]
[172182,"F520 YORK ST/MOUNT PLEASANT ST","SNIPE PRY","Snipe"]
[172183,"F520 YORK ST/MOUNT PLEASANT ST","SNIPE PRY","Snipe"]
[172195,"F520 YORK ST/MOUNT PLEASANT ST","SNIPE PRY","Snipe"]
[172197,"F520 YORK ST/MOUNT PLEASANT ST","SNIPE PRY","Snipe"]
[172564,"F520 YORK ST/MOUNT PLEASANT ST","SNIPE PRY","Snipe"]
[177400,"F520 YORK ST/MOUNT PLEASANT ST","SNIPE PRY","Snipe"]
[177851,"F520 YORK ST/MOUNT PLEASANT ST","SNIPE PRY","Snipe"]
[320317,"CROWTHORN RD","SNIPE PRY","Snipe"]
[320787,"CROWTHORN RD","SNIPE PRY","Snipe"]
[320793,"CROWTHORN RD","SNIPE PRY","Snipe"]
[323836,"CROWTHORN RD","SNIPE PRY","Snipe"]
[328350,"CROWTHORN RD","SNIPE PRY","Snipe"]
[171472,"F3965 STANHOPE ST","SNIPE PRY","Snipe"]
[171677,"F3965 STANHOPE ST","SNIPE PRY","Snipe"]
[171925,"F3965 STANHOPE ST","SNIPE PRY","Snipe"]
[172177,"F3965 STANHOPE ST","SNIPE PRY","Snipe"]
[172194,"F3965 STANHOPE ST","SNIPE PRY","Snipe"]
[172202,"F3965 STANHOPE ST","SNIPE PRY","Snipe"]
[172204,"F3965 STANHOPE ST","SNIPE PRY","Snipe"]
[172205,"F3965 STANHOPE ST","SNIPE PRY","Snipe"]
[172209,"F3965 STANHOPE ST","SNIPE PRY","Snipe"]
[172349,"F3965 STANHOPE ST","SNIPE PRY","Snipe"]
[327851,"LAPWING WAY","SNIPE PRY","Snipe"]
[328607,"LAPWING WAY","SNIPE PRY","Snipe"]
[328608,"LAPWING WAY","SNIPE PRY","Snipe"]
[328609,"LAPWING WAY","SNIPE PRY","Snipe"]
[328707,"LAPWING WAY","SNIPE PRY","Snipe"]
[328806,"LAPWING WAY","SNIPE PRY","Snipe"]
[328892,"LAPWING WAY","SNIPE PRY","Snipe"]
[328963,"LAPWING WAY","SNIPE PRY","Snipe"]
[178492,"F4372 BIRCH ST METROLINK","SNIPE PRY","Snipe"]
[171057,"F1697 CLARENDON RD WHALLEY RANGE","WHALLEY RANGE","Whalley Range"]
[171422,"F1697 CLARENDON RD WHALLEY RANGE","WHALLEY RANGE","Whalley Range"]
[171520,"F1697 CLARENDON RD WHALLEY RANGE","WHALLEY RANGE","Whalley Range"]
[172263,"F1697 CLARENDON RD WHALLEY RANGE","WHALLEY RANGE","Whalley Range"]
[177879,"F1697 CLARENDON RD WHALLEY RANGE","WHALLEY RANGE","Whalley Range"]
[171227,"F1062 REGENTS CT","WHALLEY RANGE","Whalley Range"]
[171284,"F1062 REGENTS CT","WHALLEY RANGE","Whalley Range"]
[171476,"F1062 REGENTS CT","WHALLEY RANGE","Whalley Range"]
[171617,"F1062 REGENTS CT","WHALLEY RANGE","Whalley Range"]
[171899,"F1062 REGENTS CT","WHALLEY RANGE","Whalley Range"]
[171902,"F1062 REGENTS CT","WHALLEY RANGE","Whalley Range"]
[177560,"F1062 REGENTS CT","WHALLEY RANGE","Whalley Range"]
[177897,"F1062 REGENTS CT","WHALLEY RANGE","Whalley Range"]
[165967,"F1699 DUDLEY RD ADJ NO 51","WHALLEY RANGE","Whalley Range"]
[165971,"F1699 DUDLEY RD ADJ NO 51","WHALLEY RANGE","Whalley Range"]
[171432,"F1699 DUDLEY RD ADJ NO 51","WHALLEY RANGE","Whalley Range"]
[171906,"F1699 DUDLEY RD ADJ NO 51","WHALLEY RANGE","Whalley Range"]
[171912,"F1699 DUDLEY RD ADJ NO 51","WHALLEY RANGE","Whalley Range"]
[171915,"F1699 DUDLEY RD ADJ NO 51","WHALLEY RANGE","Whalley Range"]
[177612,"F1699 DUDLEY RD ADJ NO 51","WHALLEY RANGE","Whalley Range"]
[177698,"F1699 DUDLEY RD ADJ NO 51","WHALLEY RANGE","Whalley Range"]
[178479,"F1699 DUDLEY RD ADJ NO 51","WHALLEY RANGE","Whalley Range"]
[171192,"F345 WITHINGTON RD/DUDLEY RD (NO 2)","WHALLEY RANGE","Whalley Range"]
[171926,"F345 WITHINGTON RD/DUDLEY RD (NO 2)","WHALLEY RANGE","Whalley Range"]
[171941,"F345 WITHINGTON RD/DUDLEY RD (NO 2)","WHALLEY RANGE","Whalley Range"]
[172069,"F345 WITHINGTON RD/DUDLEY RD (NO 2)","WHALLEY RANGE","Whalley Range"]
[172412,"F345 WITHINGTON RD/DUDLEY RD (NO 2)","WHALLEY RANGE","Whalley Range"]
[177621,"F345 WITHINGTON RD/DUDLEY RD (NO 2)","WHALLEY RANGE","Whalley Range"]
[177772,"F345 WITHINGTON RD/DUDLEY RD (NO 2)","WHALLEY RANGE","Whalley Range"]
[178769,"F345 WITHINGTON RD/DUDLEY RD (NO 2)","WHALLEY RANGE","Whalley Range"]
[171929,"F346 MANLEY RD/RANGE RD","WHALLEY RANGE","Whalley Range"]
[171930,"F346 MANLEY RD/RANGE RD","WHALLEY RANGE","Whalley Range"]
[171932,"F346 MANLEY RD/RANGE RD","WHALLEY RANGE","Whalley Range"]
[171939,"F346 MANLEY RD/RANGE RD","WHALLEY RANGE","Whalley Range"]
[171957,"F346 MANLEY RD/RANGE RD","WHALLEY RANGE","Whalley Range"]
[178114,"F346 MANLEY RD/RANGE RD","WHALLEY RANGE","Whalley Range"]
[171990,"F1791 THE CIRCUIT","WITHINGTON","Withington"]
[171983,"F500 VENTURA CL/MAULDETH RD W (NO88)","WITHINGTON","Withington"]
[177708,"F500 VENTURA CL/MAULDETH RD W (NO88)","WITHINGTON","Withington"]
[171773,"F371 LADYBARN PK","WITHINGTON","Withington"]
[172036,"F371 LADYBARN PK","WITHINGTON","Withington"]
[172062,"F371 LADYBARN PK","WITHINGTON","Withington"]
[172220,"F371 LADYBARN PK","WITHINGTON","Withington"]
[172447,"F371 LADYBARN PK","WITHINGTON","Withington"]
[171034,"F180 KINGSLEA RD","WITHINGTON","Withington"]
[171239,"F180 KINGSLEA RD","WITHINGTON","Withington"]
[172015,"F180 KINGSLEA RD","WITHINGTON","Withington"]
[177664,"F180 KINGSLEA RD","WITHINGTON","Withington"]
[171004,"F2562 REAR 61 PALATINE RD","WITHINGTON","Withington"]
[171315,"F2562 REAR 61 PALATINE RD","WITHINGTON","Withington"]
[171967,"F2562 REAR 61 PALATINE RD","WITHINGTON","Withington"]
[177574,"F2562 REAR 61 PALATINE RD","WITHINGTON","Withington"]
[171051,"F1475 YEW TREE RD (NO 340)","WITHINGTON","Withington"]
[171305,"F1475 YEW TREE RD (NO 340)","WITHINGTON","Withington"]
[171800,"F1475 YEW TREE RD (NO 340)","WITHINGTON","Withington"]
[171953,"F1475 YEW TREE RD (NO 340)","WITHINGTON","Withington"]
[171985,"F1475 YEW TREE RD (NO 340)","WITHINGTON","Withington"]
[177672,"F1475 YEW TREE RD (NO 340)","WITHINGTON","Withington"]
[177916,"F1475 YEW TREE RD (NO 340)","WITHINGTON","Withington"]
[171133,"F1766 BARRY CT","WITHINGTON","Withington"]
[171310,"F3414 UPPER KENT RD/KENT RD E","WITHINGTON","Withington"]
[172011,"F3414 UPPER KENT RD/KENT RD E","WITHINGTON","Withington"]
[172041,"F3414 UPPER KENT RD/KENT RD E","WITHINGTON","Withington"]
[172590,"F3414 UPPER KENT RD/KENT RD E","WITHINGTON","Withington"]
[177081,"F3414 UPPER KENT RD/KENT RD E","WITHINGTON","Withington"]
[177279,"F3414 UPPER KENT RD/KENT RD E","WITHINGTON","Withington"]
[177483,"F3414 UPPER KENT RD/KENT RD E","WITHINGTON","Withington"]
[178268,"F3414 UPPER KENT RD/KENT RD E","WITHINGTON","Withington"]
[171994,"WITHINGTON NWK T2","WITHINGTON","Withington"]
[171023,"F896 OAK RD (WITHINGTON)/HEATON RD","WITHINGTON","Withington"]
[171814,"F896 OAK RD (WITHINGTON)/HEATON RD","WITHINGTON","Withington"]
[172030,"F896 OAK RD (WITHINGTON)/HEATON RD","WITHINGTON","Withington"]
[171427,"L392 BENCHILL/HOLLYHEDGE RD BROWNLEY C","WOODHOUSE PK","Woodhouse Park"]
[172314,"L392 BENCHILL/HOLLYHEDGE RD BROWNLEY C","WOODHOUSE PK","Woodhouse Park"]
[178407,"L392 BENCHILL/HOLLYHEDGE RD BROWNLEY C","WOODHOUSE PK","Woodhouse Park"]
[178709,"L392 BENCHILL/HOLLYHEDGE RD BROWNLEY C","WOODHOUSE PK","Woodhouse Park"]
[172000,"L366 KINGSLEY HALL RINGWAY","WOODHOUSE PK","Woodhouse Park"]
[172568,"L366 KINGSLEY HALL RINGWAY","WOODHOUSE PK","Woodhouse Park"]
[171224,"L1524 CORNISHWAY (NO 178)/STONEACRE RD","WOODHOUSE PK","Woodhouse Park"]
[171646,"L1524 CORNISHWAY (NO 178)/STONEACRE RD","WOODHOUSE PK","Woodhouse Park"]
[171765,"L1524 CORNISHWAY (NO 178)/STONEACRE RD","WOODHOUSE PK","Woodhouse Park"]
[178527,"L1524 CORNISHWAY (NO 178)/STONEACRE RD","WOODHOUSE PK","Woodhouse Park"]
[171003,"L1526 AINLEY RD","WOODHOUSE PK","Woodhouse Park"]
[171085,"L1526 AINLEY RD","WOODHOUSE PK","Woodhouse Park"]
[171558,"L1526 AINLEY RD","WOODHOUSE PK","Woodhouse Park"]
[171830,"L1526 AINLEY RD","WOODHOUSE PK","Woodhouse Park"]
[177742,"L1526 AINLEY RD","WOODHOUSE PK","Woodhouse Park"]
[171406,"L1527 RUDDPARK RD","WOODHOUSE PK","Woodhouse Park"]
[171619,"L1527 RUDDPARK RD","WOODHOUSE PK","Woodhouse Park"]
[171671,"L1527 RUDDPARK RD","WOODHOUSE PK","Woodhouse Park"]
[171676,"L1527 RUDDPARK RD","WOODHOUSE PK","Woodhouse Park"]
[171687,"L1527 RUDDPARK RD","WOODHOUSE PK","Woodhouse Park"]
[171829,"L1527 RUDDPARK RD","WOODHOUSE PK","Woodhouse Park"]
[171881,"L1527 RUDDPARK RD","WOODHOUSE PK","Woodhouse Park"]
[172310,"L1527 RUDDPARK RD","WOODHOUSE PK","Woodhouse Park"]
[178449,"L1527 RUDDPARK RD","WOODHOUSE PK","Woodhouse Park"]
[171343,"L3038 CIVIC CTR THEATRE","WOODHOUSE PK","Woodhouse Park"]
[171376,"L3038 CIVIC CTR THEATRE","WOODHOUSE PK","Woodhouse Park"]
[171622,"L3038 CIVIC CTR THEATRE","WOODHOUSE PK","Woodhouse Park"]
[172521,"L3038 CIVIC CTR THEATRE","WOODHOUSE PK","Woodhouse Park"]
[177687,"L3038 CIVIC CTR THEATRE","WOODHOUSE PK","Woodhouse Park"]
[178357,"L3038 CIVIC CTR THEATRE","WOODHOUSE PK","Woodhouse Park"]
[171207,"L985 CIVIC CTR","WOODHOUSE PK","Woodhouse Park"]
[171237,"L985 CIVIC CTR","WOODHOUSE PK","Woodhouse Park"]
[171664,"L985 CIVIC CTR","WOODHOUSE PK","Woodhouse Park"]
[171016,"L1525 PORTWAY/KINGSGATE RD","WOODHOUSE PK","Woodhouse Park"]
[171322,"L1525 PORTWAY/KINGSGATE RD","WOODHOUSE PK","Woodhouse Park"]
[171620,"L1525 PORTWAY/KINGSGATE RD","WOODHOUSE PK","Woodhouse Park"]
[172151,"L1525 PORTWAY/KINGSGATE RD","WOODHOUSE PK","Woodhouse Park"]
[171035,"L2238 KEARNS/ALTRINCHAM RET PK NO 3","BROADHEATH","Broadheath"]
[171060,"L2238 KEARNS/ALTRINCHAM RET PK NO 3","BROADHEATH","Broadheath"]
[171061,"L2238 KEARNS/ALTRINCHAM RET PK NO 3","BROADHEATH","Broadheath"]
[171269,"L2238 KEARNS/ALTRINCHAM RET PK NO 3","BROADHEATH","Broadheath"]
[171395,"L2238 KEARNS/ALTRINCHAM RET PK NO 3","BROADHEATH","Broadheath"]
[171449,"L2238 KEARNS/ALTRINCHAM RET PK NO 3","BROADHEATH","Broadheath"]
[171594,"L2238 KEARNS/ALTRINCHAM RET PK NO 3","BROADHEATH","Broadheath"]
[172613,"L2238 KEARNS/ALTRINCHAM RET PK NO 3","BROADHEATH","Broadheath"]
[177346,"L2238 KEARNS/ALTRINCHAM RET PK NO 3","BROADHEATH","Broadheath"]
[171098,"L2242 BROADHEATH O/D","BROADHEATH","Broadheath"]
[171128,"L2242 BROADHEATH O/D","BROADHEATH","Broadheath"]
[171265,"L2242 BROADHEATH O/D","BROADHEATH","Broadheath"]
[171421,"L2242 BROADHEATH O/D","BROADHEATH","Broadheath"]
[171587,"L2242 BROADHEATH O/D","BROADHEATH","Broadheath"]
[171806,"L2242 BROADHEATH O/D","BROADHEATH","Broadheath"]
[171807,"L2242 BROADHEATH O/D","BROADHEATH","Broadheath"]
[178373,"L2242 BROADHEATH O/D","BROADHEATH","Broadheath"]
[178472,"L2242 BROADHEATH O/D","BROADHEATH","Broadheath"]
[171113,"L3060 HARCOURT RD/NAVIGATION RD","BROADHEATH","Broadheath"]
[171398,"L3060 HARCOURT RD/NAVIGATION RD","BROADHEATH","Broadheath"]
[171413,"L3060 HARCOURT RD/NAVIGATION RD","BROADHEATH","Broadheath"]
[171565,"L3060 HARCOURT RD/NAVIGATION RD","BROADHEATH","Broadheath"]
[171573,"L3060 HARCOURT RD/NAVIGATION RD","BROADHEATH","Broadheath"]
[171637,"L3060 HARCOURT RD/NAVIGATION RD","BROADHEATH","Broadheath"]
[171748,"L3060 HARCOURT RD/NAVIGATION RD","BROADHEATH","Broadheath"]
[171754,"L3060 HARCOURT RD/NAVIGATION RD","BROADHEATH","Broadheath"]
[171761,"L3060 HARCOURT RD/NAVIGATION RD","BROADHEATH","Broadheath"]
[171875,"L3060 HARCOURT RD/NAVIGATION RD","BROADHEATH","Broadheath"]
[172244,"L3060 HARCOURT RD/NAVIGATION RD","BROADHEATH","Broadheath"]
[172251,"L3060 HARCOURT RD/NAVIGATION RD","BROADHEATH","Broadheath"]
[172275,"L3060 HARCOURT RD/NAVIGATION RD","BROADHEATH","Broadheath"]
[172374,"L3060 HARCOURT RD/NAVIGATION RD","BROADHEATH","Broadheath"]
[172537,"L3060 HARCOURT RD/NAVIGATION RD","BROADHEATH","Broadheath"]
[171015,"L3123 ATLANTIC ST NO3","BROADHEATH","Broadheath"]
[171171,"L3123 ATLANTIC ST NO3","BROADHEATH","Broadheath"]
[171194,"L3123 ATLANTIC ST NO3","BROADHEATH","Broadheath"]
[171294,"L3123 ATLANTIC ST NO3","BROADHEATH","Broadheath"]
[171435,"L3123 ATLANTIC ST NO3","BROADHEATH","Broadheath"]
[171436,"L3123 ATLANTIC ST NO3","BROADHEATH","Broadheath"]
[171484,"L3123 ATLANTIC ST NO3","BROADHEATH","Broadheath"]
[171852,"L3123 ATLANTIC ST NO3","BROADHEATH","Broadheath"]
[171872,"L3123 ATLANTIC ST NO3","BROADHEATH","Broadheath"]
[174007,"L3123 ATLANTIC ST NO3","BROADHEATH","Broadheath"]
[174029,"L3123 ATLANTIC ST NO3","BROADHEATH","Broadheath"]
[177101,"L3123 ATLANTIC ST NO3","BROADHEATH","Broadheath"]
[178065,"L3123 ATLANTIC ST NO3","BROADHEATH","Broadheath"]
[178265,"L3123 ATLANTIC ST NO3","BROADHEATH","Broadheath"]
[178541,"L3123 ATLANTIC ST NO3","BROADHEATH","Broadheath"]
[178817,"L3123 ATLANTIC ST NO3","BROADHEATH","Broadheath"]
[171197,"L2247 T21/WOODCOTE RD","BROADHEATH","Broadheath"]
[171212,"L2247 T21/WOODCOTE RD","BROADHEATH","Broadheath"]
[171222,"L2247 T21/WOODCOTE RD","BROADHEATH","Broadheath"]
[171309,"L2247 T21/WOODCOTE RD","BROADHEATH","Broadheath"]
[171531,"L2247 T21/WOODCOTE RD","BROADHEATH","Broadheath"]
[171593,"L2247 T21/WOODCOTE RD","BROADHEATH","Broadheath"]
[171639,"L2247 T21/WOODCOTE RD","BROADHEATH","Broadheath"]
[171790,"L2247 T21/WOODCOTE RD","BROADHEATH","Broadheath"]
[171833,"L2247 T21/WOODCOTE RD","BROADHEATH","Broadheath"]
[171842,"L2247 T21/WOODCOTE RD","BROADHEATH","Broadheath"]
[171869,"L2247 T21/WOODCOTE RD","BROADHEATH","Broadheath"]
[172362,"L2247 T21/WOODCOTE RD","BROADHEATH","Broadheath"]
[171094,"L2246 MANCHESTER RD","BROADHEATH","Broadheath"]
[171330,"L2246 MANCHESTER RD","BROADHEATH","Broadheath"]
[171407,"L2246 MANCHESTER RD","BROADHEATH","Broadheath"]
[171512,"L2246 MANCHESTER RD","BROADHEATH","Broadheath"]
[171598,"L2246 MANCHESTER RD","BROADHEATH","Broadheath"]
[171605,"L2246 MANCHESTER RD","BROADHEATH","Broadheath"]
[171935,"L2246 MANCHESTER RD","BROADHEATH","Broadheath"]
[172543,"L2246 MANCHESTER RD","BROADHEATH","Broadheath"]
[177281,"L2246 MANCHESTER RD","BROADHEATH","Broadheath"]
[177773,"L2246 MANCHESTER RD","BROADHEATH","Broadheath"]
[171250,"L2245 ALTRINCHAM RET PK NO 1","BROADHEATH","Broadheath"]
[171737,"L2245 ALTRINCHAM RET PK NO 1","BROADHEATH","Broadheath"]
[171843,"L2245 ALTRINCHAM RET PK NO 1","BROADHEATH","Broadheath"]
[172239,"L2245 ALTRINCHAM RET PK NO 1","BROADHEATH","Broadheath"]
[172541,"L2245 ALTRINCHAM RET PK NO 1","BROADHEATH","Broadheath"]
[171110,"L2241 B&Q ATLANTIC ST","BROADHEATH","Broadheath"]
[171127,"L2241 B&Q ATLANTIC ST","BROADHEATH","Broadheath"]
[171691,"L2241 B&Q ATLANTIC ST","BROADHEATH","Broadheath"]
[177493,"L2241 B&Q ATLANTIC ST","BROADHEATH","Broadheath"]
[178194,"L2241 B&Q ATLANTIC ST","BROADHEATH","Broadheath"]
[178520,"L2241 B&Q ATLANTIC ST","BROADHEATH","Broadheath"]
[178667,"L2241 B&Q ATLANTIC ST","BROADHEATH","Broadheath"]
[171062,"L3088 ATLANTIC ST (MADANS)","BROADHEATH","Broadheath"]
[171231,"L3088 ATLANTIC ST (MADANS)","BROADHEATH","Broadheath"]
[171242,"L3088 ATLANTIC ST (MADANS)","BROADHEATH","Broadheath"]
[172313,"L3088 ATLANTIC ST (MADANS)","BROADHEATH","Broadheath"]
[172555,"L3088 ATLANTIC ST (MADANS)","BROADHEATH","Broadheath"]
[174001,"L3088 ATLANTIC ST (MADANS)","BROADHEATH","Broadheath"]
[174002,"L3088 ATLANTIC ST (MADANS)","BROADHEATH","Broadheath"]
[174026,"L3088 ATLANTIC ST (MADANS)","BROADHEATH","Broadheath"]
[174033,"L3088 ATLANTIC ST (MADANS)","BROADHEATH","Broadheath"]
[174034,"L3088 ATLANTIC ST (MADANS)","BROADHEATH","Broadheath"]
[177324,"L3088 ATLANTIC ST (MADANS)","BROADHEATH","Broadheath"]
[177325,"L3088 ATLANTIC ST (MADANS)","BROADHEATH","Broadheath"]
[177485,"L3088 ATLANTIC ST (MADANS)","BROADHEATH","Broadheath"]
[177815,"L3088 ATLANTIC ST (MADANS)","BROADHEATH","Broadheath"]
[178195,"L3088 ATLANTIC ST (MADANS)","BROADHEATH","Broadheath"]
[178292,"L3088 ATLANTIC ST (MADANS)","BROADHEATH","Broadheath"]
[178341,"L3088 ATLANTIC ST (MADANS)","BROADHEATH","Broadheath"]
[178397,"L3088 ATLANTIC ST (MADANS)","BROADHEATH","Broadheath"]
[171045,"L2243 THE FLEET","BROADHEATH","Broadheath"]
[171185,"L2243 THE FLEET","BROADHEATH","Broadheath"]
[171418,"L2243 THE FLEET","BROADHEATH","Broadheath"]
[171792,"L2243 THE FLEET","BROADHEATH","Broadheath"]
[171793,"L2243 THE FLEET","BROADHEATH","Broadheath"]
[171818,"L2243 THE FLEET","BROADHEATH","Broadheath"]
[171882,"L2243 THE FLEET","BROADHEATH","Broadheath"]
[172357,"L2243 THE FLEET","BROADHEATH","Broadheath"]
[177973,"L2243 THE FLEET","BROADHEATH","Broadheath"]
[178228,"L2243 THE FLEET","BROADHEATH","Broadheath"]
[171046,"L2240 RECORD ELECTRICAL","BROADHEATH","Broadheath"]
[171050,"L2240 RECORD ELECTRICAL","BROADHEATH","Broadheath"]
[171097,"L2240 RECORD ELECTRICAL","BROADHEATH","Broadheath"]
[171109,"L2240 RECORD ELECTRICAL","BROADHEATH","Broadheath"]
[171203,"L2240 RECORD ELECTRICAL","BROADHEATH","Broadheath"]
[171261,"L2240 RECORD ELECTRICAL","BROADHEATH","Broadheath"]
[171271,"L2240 RECORD ELECTRICAL","BROADHEATH","Broadheath"]
[171403,"L2240 RECORD ELECTRICAL","BROADHEATH","Broadheath"]
[171529,"L2240 RECORD ELECTRICAL","BROADHEATH","Broadheath"]
[171586,"L2240 RECORD ELECTRICAL","BROADHEATH","Broadheath"]
[171647,"L2240 RECORD ELECTRICAL","BROADHEATH","Broadheath"]
[171706,"L2240 RECORD ELECTRICAL","BROADHEATH","Broadheath"]
[171712,"L2240 RECORD ELECTRICAL","BROADHEATH","Broadheath"]
[171781,"L2240 RECORD ELECTRICAL","BROADHEATH","Broadheath"]
[171871,"L2240 RECORD ELECTRICAL","BROADHEATH","Broadheath"]
[172058,"L2240 RECORD ELECTRICAL","BROADHEATH","Broadheath"]
[172227,"L2240 RECORD ELECTRICAL","BROADHEATH","Broadheath"]
[172229,"L2240 RECORD ELECTRICAL","BROADHEATH","Broadheath"]
[172361,"L2240 RECORD ELECTRICAL","BROADHEATH","Broadheath"]
[172392,"L2240 RECORD ELECTRICAL","BROADHEATH","Broadheath"]
[174011,"L2240 RECORD ELECTRICAL","BROADHEATH","Broadheath"]
[174012,"L2240 RECORD ELECTRICAL","BROADHEATH","Broadheath"]
[174025,"L2240 RECORD ELECTRICAL","BROADHEATH","Broadheath"]
[174028,"L2240 RECORD ELECTRICAL","BROADHEATH","Broadheath"]
[174032,"L2240 RECORD ELECTRICAL","BROADHEATH","Broadheath"]
[177201,"L2240 RECORD ELECTRICAL","BROADHEATH","Broadheath"]
[177233,"L2240 RECORD ELECTRICAL","BROADHEATH","Broadheath"]
[177329,"L2240 RECORD ELECTRICAL","BROADHEATH","Broadheath"]
[177511,"L2240 RECORD ELECTRICAL","BROADHEATH","Broadheath"]
[177761,"L2240 RECORD ELECTRICAL","BROADHEATH","Broadheath"]
[178227,"L2240 RECORD ELECTRICAL","BROADHEATH","Broadheath"]
[178365,"L2240 RECORD ELECTRICAL","BROADHEATH","Broadheath"]
[178482,"L2240 RECORD ELECTRICAL","BROADHEATH","Broadheath"]
[178945,"L2240 RECORD ELECTRICAL","BROADHEATH","Broadheath"]
[171466,"L2239 P I CASTINGS/BUDENBERG HSE/NOVA","BROADHEATH","Broadheath"]
[171491,"L2239 P I CASTINGS/BUDENBERG HSE/NOVA","BROADHEATH","Broadheath"]
[171595,"L2239 P I CASTINGS/BUDENBERG HSE/NOVA","BROADHEATH","Broadheath"]
[172520,"L2239 P I CASTINGS/BUDENBERG HSE/NOVA","BROADHEATH","Broadheath"]
[177710,"L2239 P I CASTINGS/BUDENBERG HSE/NOVA","BROADHEATH","Broadheath"]
[171266,"F595 PLYMOUTH GROVE 208","LONGSIGHT PRY","Longsight"]
[172042,"F595 PLYMOUTH GROVE 208","LONGSIGHT PRY","Longsight"]
[172071,"F595 PLYMOUTH GROVE 208","LONGSIGHT PRY","Longsight"]
[177401,"F595 PLYMOUTH GROVE 208","LONGSIGHT PRY","Longsight"]
[171538,"F593 WARMINGTON DR","LONGSIGHT PRY","Longsight"]
[172476,"F593 WARMINGTON DR","LONGSIGHT PRY","Longsight"]
[178075,"F1723 MARCHMONT CL","LONGSIGHT PRY","Longsight"]
[177341,"F800 EPSD NEW BANK ST","LONGSIGHT PRY","Longsight"]
[178608,"F800 EPSD NEW BANK ST","LONGSIGHT PRY","Longsight"]
[177523,"F579 HATHERSAGE RD OPP 193","LONGSIGHT PRY","Longsight"]
[178465,"F579 HATHERSAGE RD OPP 193","LONGSIGHT PRY","Longsight"]
[171088,"F503 ASPINALL ST","LONGSIGHT PRY","Longsight"]
[172018,"F503 ASPINALL ST","LONGSIGHT PRY","Longsight"]
[177436,"F503 ASPINALL ST","LONGSIGHT PRY","Longsight"]
[171022,"F4067 Q3 APTS","LONGSIGHT PRY","Longsight"]
[172027,"F4067 Q3 APTS","LONGSIGHT PRY","Longsight"]
[172599,"F4067 Q3 APTS","LONGSIGHT PRY","Longsight"]
[177343,"F4067 Q3 APTS","LONGSIGHT PRY","Longsight"]
[177833,"F4067 Q3 APTS","LONGSIGHT PRY","Longsight"]
[177850,"F4067 Q3 APTS","LONGSIGHT PRY","Longsight"]
[178477,"F4067 Q3 APTS","LONGSIGHT PRY","Longsight"]
[171082,"F809 AKED CL","LONGSIGHT PRY","Longsight"]
[172047,"F809 AKED CL","LONGSIGHT PRY","Longsight"]
[172049,"F809 AKED CL","LONGSIGHT PRY","Longsight"]
[172054,"F809 AKED CL","LONGSIGHT PRY","Longsight"]
[172056,"F809 AKED CL","LONGSIGHT PRY","Longsight"]
[178837,"F809 AKED CL","LONGSIGHT PRY","Longsight"]
[171257,"F143 RICHMOND GR","LONGSIGHT PRY","Longsight"]
[172046,"F143 RICHMOND GR","LONGSIGHT PRY","Longsight"]
[177726,"F143 RICHMOND GR","LONGSIGHT PRY","Longsight"]
[171107,"F596 RAINFORTH ST/ASDA/BR NEW BANK ST","LONGSIGHT PRY","Longsight"]
[171358,"F596 RAINFORTH ST/ASDA/BR NEW BANK ST","LONGSIGHT PRY","Longsight"]
[172061,"F596 RAINFORTH ST/ASDA/BR NEW BANK ST","LONGSIGHT PRY","Longsight"]
[178221,"F596 RAINFORTH ST/ASDA/BR NEW BANK ST","LONGSIGHT PRY","Longsight"]
[171740,"F3085 KIRKMANSHULME LN","LONGSIGHT PRY","Longsight"]
[171936,"F3085 KIRKMANSHULME LN","LONGSIGHT PRY","Longsight"]
[172082,"F3085 KIRKMANSHULME LN","LONGSIGHT PRY","Longsight"]
[172093,"F3085 KIRKMANSHULME LN","LONGSIGHT PRY","Longsight"]
[172260,"F3085 KIRKMANSHULME LN","LONGSIGHT PRY","Longsight"]
[172261,"F3085 KIRKMANSHULME LN","LONGSIGHT PRY","Longsight"]
[172409,"F3085 KIRKMANSHULME LN","LONGSIGHT PRY","Longsight"]
[177443,"F3085 KIRKMANSHULME LN","LONGSIGHT PRY","Longsight"]
[177521,"F3085 KIRKMANSHULME LN","LONGSIGHT PRY","Longsight"]
[171059,"F223 VICTORIA HALLS","LONGSIGHT PRY","Longsight"]
[171196,"F223 VICTORIA HALLS","LONGSIGHT PRY","Longsight"]
[171279,"F223 VICTORIA HALLS","LONGSIGHT PRY","Longsight"]
[171281,"F223 VICTORIA HALLS","LONGSIGHT PRY","Longsight"]
[171541,"F223 VICTORIA HALLS","LONGSIGHT PRY","Longsight"]
[172045,"F223 VICTORIA HALLS","LONGSIGHT PRY","Longsight"]
[172052,"F223 VICTORIA HALLS","LONGSIGHT PRY","Longsight"]
[172399,"F223 VICTORIA HALLS","LONGSIGHT PRY","Longsight"]
[177345,"F223 VICTORIA HALLS","LONGSIGHT PRY","Longsight"]
[171067,"F1417 BAX RD","LONGSIGHT PRY","Longsight"]
[171496,"F1417 BAX RD","LONGSIGHT PRY","Longsight"]
[171625,"F1417 BAX RD","LONGSIGHT PRY","Longsight"]
[172105,"F1417 BAX RD","LONGSIGHT PRY","Longsight"]
[178175,"F1417 BAX RD","LONGSIGHT PRY","Longsight"]
[171246,"F719 SALE NETWORK","SALE PRY","Sale"]
[171247,"F719 SALE NETWORK","SALE PRY","Sale"]
[171401,"F719 SALE NETWORK","SALE PRY","Sale"]
[172152,"F719 SALE NETWORK","SALE PRY","Sale"]
[172372,"F719 SALE NETWORK","SALE PRY","Sale"]
[177467,"F719 SALE NETWORK","SALE PRY","Sale"]
[171184,"F2403 PARK AVE","SALE PRY","Sale"]
[171412,"F2403 PARK AVE","SALE PRY","Sale"]
[171468,"F2403 PARK AVE","SALE PRY","Sale"]
[171583,"F2403 PARK AVE","SALE PRY","Sale"]
[171784,"F2403 PARK AVE","SALE PRY","Sale"]
[172215,"F2403 PARK AVE","SALE PRY","Sale"]
[172309,"F2403 PARK AVE","SALE PRY","Sale"]
[177136,"F2403 PARK AVE","SALE PRY","Sale"]
[165827,"F1765 CROSS ST CITYGATE","SALE PRY","Sale"]
[165828,"F1765 CROSS ST CITYGATE","SALE PRY","Sale"]
[165842,"F1765 CROSS ST CITYGATE","SALE PRY","Sale"]
[165868,"F1765 CROSS ST CITYGATE","SALE PRY","Sale"]
[165880,"F1765 CROSS ST CITYGATE","SALE PRY","Sale"]
[166750,"F1765 CROSS ST CITYGATE","SALE PRY","Sale"]
[167255,"F1765 CROSS ST CITYGATE","SALE PRY","Sale"]
[172413,"F1765 CROSS ST CITYGATE","SALE PRY","Sale"]
[165887,"F4369 CHESTER RD GEN/M60 STRETFORD","SALE PRY","Sale"]
[165891,"F4369 CHESTER RD GEN/M60 STRETFORD","SALE PRY","Sale"]
[165892,"F4369 CHESTER RD GEN/M60 STRETFORD","SALE PRY","Sale"]
[166654,"F4369 CHESTER RD GEN/M60 STRETFORD","SALE PRY","Sale"]
[171125,"F2400 BROAD RD (NO 1)","SALE PRY","Sale"]
[171584,"F2400 BROAD RD (NO 1)","SALE PRY","Sale"]
[171760,"F2400 BROAD RD (NO 1)","SALE PRY","Sale"]
[171782,"F2400 BROAD RD (NO 1)","SALE PRY","Sale"]
[172264,"F2400 BROAD RD (NO 1)","SALE PRY","Sale"]
[177333,"F2400 BROAD RD (NO 1)","SALE PRY","Sale"]
[177505,"F2400 BROAD RD (NO 1)","SALE PRY","Sale"]
[178102,"F2400 BROAD RD (NO 1)","SALE PRY","Sale"]
[171186,"F2402 SALE TOWN CENTRE","SALE PRY","Sale"]
[171210,"F2402 SALE TOWN CENTRE","SALE PRY","Sale"]
[171876,"F2402 SALE TOWN CENTRE","SALE PRY","Sale"]
[177572,"F2402 SALE TOWN CENTRE","SALE PRY","Sale"]
[178330,"F2402 SALE TOWN CENTRE","SALE PRY","Sale"]
[171072,"F2404 HOPE RD BRINDLEY","SALE PRY","Sale"]
[171417,"F2404 HOPE RD BRINDLEY","SALE PRY","Sale"]
[171836,"F2404 HOPE RD BRINDLEY","SALE PRY","Sale"]
[171837,"F2404 HOPE RD BRINDLEY","SALE PRY","Sale"]
[177463,"F2404 HOPE RD BRINDLEY","SALE PRY","Sale"]
[171524,"F2401 SALE SHOPPING PRECINCT","SALE PRY","Sale"]
[171665,"F2401 SALE SHOPPING PRECINCT","SALE PRY","Sale"]
[171697,"F2401 SALE SHOPPING PRECINCT","SALE PRY","Sale"]
[171749,"F2401 SALE SHOPPING PRECINCT","SALE PRY","Sale"]
[172235,"F2401 SALE SHOPPING PRECINCT","SALE PRY","Sale"]
[172554,"F1103 SAINSBURYS (SALE)","SALE PRY","Sale"]
[166158,"F4129 GIDDINGS RD","EASTLANDS","Eastlands"]
[166169,"F4129 GIDDINGS RD","EASTLANDS","Eastlands"]
[166170,"F4129 GIDDINGS RD","EASTLANDS","Eastlands"]
[166171,"F4129 GIDDINGS RD","EASTLANDS","Eastlands"]
[166621,"F4129 GIDDINGS RD","EASTLANDS","Eastlands"]
[166638,"F4129 GIDDINGS RD","EASTLANDS","Eastlands"]
[166671,"F4129 GIDDINGS RD","EASTLANDS","Eastlands"]
[166710,"F4129 GIDDINGS RD","EASTLANDS","Eastlands"]
[167347,"F3615 MANCHESTER STADIUM","EASTLANDS","Eastlands"]
[167393,"F3505 MANCHESTER SPORTS CENTRE/B.E","EASTLANDS","Eastlands"]
[167399,"F3505 MANCHESTER SPORTS CENTRE/B.E","EASTLANDS","Eastlands"]
[167444,"F3505 MANCHESTER SPORTS CENTRE/B.E","EASTLANDS","Eastlands"]
[167617,"F3505 MANCHESTER SPORTS CENTRE/B.E","EASTLANDS","Eastlands"]
[167816,"F3505 MANCHESTER SPORTS CENTRE/B.E","EASTLANDS","Eastlands"]
[166201,"F3616 KEYMER ST","EASTLANDS","Eastlands"]
[166564,"F3616 KEYMER ST","EASTLANDS","Eastlands"]
[167503,"F3616 KEYMER ST","EASTLANDS","Eastlands"]
[167514,"F3616 KEYMER ST","EASTLANDS","Eastlands"]
[167928,"F3616 KEYMER ST","EASTLANDS","Eastlands"]
[168063,"F3616 KEYMER ST","EASTLANDS","Eastlands"]
[166183,"F25 SALVATION ARMY","EASTLANDS","Eastlands"]
[166688,"F25 SALVATION ARMY","EASTLANDS","Eastlands"]
[168173,"F25 SALVATION ARMY","EASTLANDS","Eastlands"]
[168480,"F25 SALVATION ARMY","EASTLANDS","Eastlands"]
[166176,"F4130 LWR VICKERS ST","EASTLANDS","Eastlands"]
[166180,"F4130 LWR VICKERS ST","EASTLANDS","Eastlands"]
[166181,"F4130 LWR VICKERS ST","EASTLANDS","Eastlands"]
[166182,"F4130 LWR VICKERS ST","EASTLANDS","Eastlands"]
[166189,"F4130 LWR VICKERS ST","EASTLANDS","Eastlands"]
[166193,"F4130 LWR VICKERS ST","EASTLANDS","Eastlands"]
[166197,"F4130 LWR VICKERS ST","EASTLANDS","Eastlands"]
[166797,"F4130 LWR VICKERS ST","EASTLANDS","Eastlands"]
[166894,"F4130 LWR VICKERS ST","EASTLANDS","Eastlands"]
[167889,"F4132 GT ANCOATS ST","EASTLANDS","Eastlands"]
[167890,"F4132 GT ANCOATS ST","EASTLANDS","Eastlands"]
[167947,"F4132 GT ANCOATS ST","EASTLANDS","Eastlands"]
[168091,"F4132 GT ANCOATS ST","EASTLANDS","Eastlands"]
[168253,"F4132 GT ANCOATS ST","EASTLANDS","Eastlands"]
[171241,"L3663 STANLEY RD (CHEADLE)","MOSS NOOK GRID","Moss Nook Primary"]
[171278,"L3663 STANLEY RD (CHEADLE)","MOSS NOOK GRID","Moss Nook Primary"]
[171378,"L3663 STANLEY RD (CHEADLE)","MOSS NOOK GRID","Moss Nook Primary"]
[171391,"L3663 STANLEY RD (CHEADLE)","MOSS NOOK GRID","Moss Nook Primary"]
[171688,"L3663 STANLEY RD (CHEADLE)","MOSS NOOK GRID","Moss Nook Primary"]
[171758,"L3663 STANLEY RD (CHEADLE)","MOSS NOOK GRID","Moss Nook Primary"]
[172238,"L3663 STANLEY RD (CHEADLE)","MOSS NOOK GRID","Moss Nook Primary"]
[177969,"L3663 STANLEY RD (CHEADLE)","MOSS NOOK GRID","Moss Nook Primary"]
[178068,"L3663 STANLEY RD (CHEADLE)","MOSS NOOK GRID","Moss Nook Primary"]
[178313,"L3663 STANLEY RD (CHEADLE)","MOSS NOOK GRID","Moss Nook Primary"]
[171236,"L3664 BOLSHAW RD/OUTWOOD FM/RAILTRACK","MOSS NOOK GRID","Moss Nook Primary"]
[171253,"L3664 BOLSHAW RD/OUTWOOD FM/RAILTRACK","MOSS NOOK GRID","Moss Nook Primary"]
[171373,"L3664 BOLSHAW RD/OUTWOOD FM/RAILTRACK","MOSS NOOK GRID","Moss Nook Primary"]
[171559,"L3664 BOLSHAW RD/OUTWOOD FM/RAILTRACK","MOSS NOOK GRID","Moss Nook Primary"]
[171591,"L3664 BOLSHAW RD/OUTWOOD FM/RAILTRACK","MOSS NOOK GRID","Moss Nook Primary"]
[171592,"L3664 BOLSHAW RD/OUTWOOD FM/RAILTRACK","MOSS NOOK GRID","Moss Nook Primary"]
[171861,"L3664 BOLSHAW RD/OUTWOOD FM/RAILTRACK","MOSS NOOK GRID","Moss Nook Primary"]
[172364,"L3664 BOLSHAW RD/OUTWOOD FM/RAILTRACK","MOSS NOOK GRID","Moss Nook Primary"]
[172513,"L3664 BOLSHAW RD/OUTWOOD FM/RAILTRACK","MOSS NOOK GRID","Moss Nook Primary"]
[338659,"L3664 BOLSHAW RD/OUTWOOD FM/RAILTRACK","MOSS NOOK GRID","Moss Nook Primary"]
[171661,"L3665 RINGWAY RD (NO18)","MOSS NOOK GRID","Moss Nook Primary"]
[171119,"L3666 MIOC/TRIDENT BUS PK","MOSS NOOK GRID","Moss Nook Primary"]
[171338,"L3666 MIOC/TRIDENT BUS PK","MOSS NOOK GRID","Moss Nook Primary"]
[171555,"L3666 MIOC/TRIDENT BUS PK","MOSS NOOK GRID","Moss Nook Primary"]
[171613,"L3666 MIOC/TRIDENT BUS PK","MOSS NOOK GRID","Moss Nook Primary"]
[171653,"L3666 MIOC/TRIDENT BUS PK","MOSS NOOK GRID","Moss Nook Primary"]
[171774,"L3666 MIOC/TRIDENT BUS PK","MOSS NOOK GRID","Moss Nook Primary"]
[171893,"L3666 MIOC/TRIDENT BUS PK","MOSS NOOK GRID","Moss Nook Primary"]
[172277,"L3666 MIOC/TRIDENT BUS PK","MOSS NOOK GRID","Moss Nook Primary"]
[172415,"L3666 MIOC/TRIDENT BUS PK","MOSS NOOK GRID","Moss Nook Primary"]
[172455,"L3666 MIOC/TRIDENT BUS PK","MOSS NOOK GRID","Moss Nook Primary"]
[172512,"L3666 MIOC/TRIDENT BUS PK","MOSS NOOK GRID","Moss Nook Primary"]
[177266,"L3666 MIOC/TRIDENT BUS PK","MOSS NOOK GRID","Moss Nook Primary"]
[177283,"L3605 LONGSTONE RD","MOSS NOOK GRID","Moss Nook Primary"]
[177321,"L3605 LONGSTONE RD","MOSS NOOK GRID","Moss Nook Primary"]
[177413,"L3605 LONGSTONE RD","MOSS NOOK GRID","Moss Nook Primary"]
[177414,"L3605 LONGSTONE RD","MOSS NOOK GRID","Moss Nook Primary"]
[178259,"L3605 LONGSTONE RD","MOSS NOOK GRID","Moss Nook Primary"]
[171112,"L3656 RESIDENTIAL AVE","MOSS NOOK GRID","Moss Nook Primary"]
[171311,"L3656 RESIDENTIAL AVE","MOSS NOOK GRID","Moss Nook Primary"]
[171414,"L3656 RESIDENTIAL AVE","MOSS NOOK GRID","Moss Nook Primary"]
[171423,"L3656 RESIDENTIAL AVE","MOSS NOOK GRID","Moss Nook Primary"]
[171855,"L3656 RESIDENTIAL AVE","MOSS NOOK GRID","Moss Nook Primary"]
[172482,"L3656 RESIDENTIAL AVE","MOSS NOOK GRID","Moss Nook Primary"]
[172525,"L3656 RESIDENTIAL AVE","MOSS NOOK GRID","Moss Nook Primary"]
[172584,"L3656 RESIDENTIAL AVE","MOSS NOOK GRID","Moss Nook Primary"]
[177116,"L3656 RESIDENTIAL AVE","MOSS NOOK GRID","Moss Nook Primary"]
[177153,"L3656 RESIDENTIAL AVE","MOSS NOOK GRID","Moss Nook Primary"]
[177224,"L3656 RESIDENTIAL AVE","MOSS NOOK GRID","Moss Nook Primary"]
[177449,"L3656 RESIDENTIAL AVE","MOSS NOOK GRID","Moss Nook Primary"]
[177531,"L3656 RESIDENTIAL AVE","MOSS NOOK GRID","Moss Nook Primary"]
[178122,"L3656 RESIDENTIAL AVE","MOSS NOOK GRID","Moss Nook Primary"]
[178217,"L3656 RESIDENTIAL AVE","MOSS NOOK GRID","Moss Nook Primary"]
[178318,"L3656 RESIDENTIAL AVE","MOSS NOOK GRID","Moss Nook Primary"]
[171041,"L3657 GPO FINNEY LN/GREENCOURTS","MOSS NOOK GRID","Moss Nook Primary"]
[171077,"L3657 GPO FINNEY LN/GREENCOURTS","MOSS NOOK GRID","Moss Nook Primary"]
[171230,"L3657 GPO FINNEY LN/GREENCOURTS","MOSS NOOK GRID","Moss Nook Primary"]
[171359,"L3657 GPO FINNEY LN/GREENCOURTS","MOSS NOOK GRID","Moss Nook Primary"]
[171511,"L3657 GPO FINNEY LN/GREENCOURTS","MOSS NOOK GRID","Moss Nook Primary"]
[171634,"L3657 GPO FINNEY LN/GREENCOURTS","MOSS NOOK GRID","Moss Nook Primary"]
[171635,"L3657 GPO FINNEY LN/GREENCOURTS","MOSS NOOK GRID","Moss Nook Primary"]
[171636,"L3657 GPO FINNEY LN/GREENCOURTS","MOSS NOOK GRID","Moss Nook Primary"]
[172439,"L3657 GPO FINNEY LN/GREENCOURTS","MOSS NOOK GRID","Moss Nook Primary"]
[171693,"L3658 AVIS","MOSS NOOK GRID","Moss Nook Primary"]
[172502,"L3658 AVIS","MOSS NOOK GRID","Moss Nook Primary"]
[178639,"L3658 AVIS","MOSS NOOK GRID","Moss Nook Primary"]
[171169,"L3659 MCR AIRPORT/RINGWAY RD W NO 1","MOSS NOOK GRID","Moss Nook Primary"]
[171223,"L3659 MCR AIRPORT/RINGWAY RD W NO 1","MOSS NOOK GRID","Moss Nook Primary"]
[171460,"L3659 MCR AIRPORT/RINGWAY RD W NO 1","MOSS NOOK GRID","Moss Nook Primary"]
[177304,"L3659 MCR AIRPORT/RINGWAY RD W NO 1","MOSS NOOK GRID","Moss Nook Primary"]
[178321,"L3659 MCR AIRPORT/RINGWAY RD W NO 1","MOSS NOOK GRID","Moss Nook Primary"]
[177424,"L3661 MATTHEWS FM CHP GENERATION","MOSS NOOK GRID","Moss Nook Primary"]
[171159,"L1635 GOLDIE AVE/SIMONSWAY/ATLAS PK 4","MOSS NOOK GRID","Moss Nook Primary"]
[171557,"L1635 GOLDIE AVE/SIMONSWAY/ATLAS PK 4","MOSS NOOK GRID","Moss Nook Primary"]
[171211,"F4072 THE BOULEVARD LONGSIGHT","VICTORIA PK PRY","Victoria Park"]
[172580,"F4072 THE BOULEVARD LONGSIGHT","VICTORIA PK PRY","Victoria Park"]
[177142,"F4072 THE BOULEVARD LONGSIGHT","VICTORIA PK PRY","Victoria Park"]
[177614,"F4072 THE BOULEVARD LONGSIGHT","VICTORIA PK PRY","Victoria Park"]
[178392,"F4072 THE BOULEVARD LONGSIGHT","VICTORIA PK PRY","Victoria Park"]
[178620,"F4072 THE BOULEVARD LONGSIGHT","VICTORIA PK PRY","Victoria Park"]
[178633,"F4072 THE BOULEVARD LONGSIGHT","VICTORIA PK PRY","Victoria Park"]
[178637,"F4072 THE BOULEVARD LONGSIGHT","VICTORIA PK PRY","Victoria Park"]
[172025,"F4075 MCR UNI BIOSCIENCE/PLATT HALL","VICTORIA PK PRY","Victoria Park"]
[172028,"F4075 MCR UNI BIOSCIENCE/PLATT HALL","VICTORIA PK PRY","Victoria Park"]
[178031,"F4075 MCR UNI BIOSCIENCE/PLATT HALL","VICTORIA PK PRY","Victoria Park"]
[178719,"F4075 MCR UNI BIOSCIENCE/PLATT HALL","VICTORIA PK PRY","Victoria Park"]
[171660,"F4076 MJH MAIN INTAKE HV/M1","VICTORIA PK PRY","Victoria Park"]
[177356,"F4076 MJH MAIN INTAKE HV/M1","VICTORIA PK PRY","Victoria Park"]
[177562,"F4076 MJH MAIN INTAKE HV/M1","VICTORIA PK PRY","Victoria Park"]
[178111,"F4076 MJH MAIN INTAKE HV/M1","VICTORIA PK PRY","Victoria Park"]
[178112,"F4076 MJH MAIN INTAKE HV/M1","VICTORIA PK PRY","Victoria Park"]
[178181,"F4076 MJH MAIN INTAKE HV/M1","VICTORIA PK PRY","Victoria Park"]
[177537,"F4077 MJH MAIN INTAKE HV/M2","VICTORIA PK PRY","Victoria Park"]
[178107,"F4077 MJH MAIN INTAKE HV/M2","VICTORIA PK PRY","Victoria Park"]
[178108,"F4077 MJH MAIN INTAKE HV/M2","VICTORIA PK PRY","Victoria Park"]
[178109,"F4077 MJH MAIN INTAKE HV/M2","VICTORIA PK PRY","Victoria Park"]
[178110,"F4077 MJH MAIN INTAKE HV/M2","VICTORIA PK PRY","Victoria Park"]
[178113,"F4077 MJH MAIN INTAKE HV/M2","VICTORIA PK PRY","Victoria Park"]
[178372,"F4077 MJH MAIN INTAKE HV/M2","VICTORIA PK PRY","Victoria Park"]
[178553,"F4077 MJH MAIN INTAKE HV/M2","VICTORIA PK PRY","Victoria Park"]
[171964,"F4074 POLY CENTRAL BLDG/M/U CAMBRIDGE","VICTORIA PK PRY","Victoria Park"]
[177615,"F4074 POLY CENTRAL BLDG/M/U CAMBRIDGE","VICTORIA PK PRY","Victoria Park"]
[177712,"F4074 POLY CENTRAL BLDG/M/U CAMBRIDGE","VICTORIA PK PRY","Victoria Park"]
[171969,"F4071 BOOTH ST WEST RETAIL","VICTORIA PK PRY","Victoria Park"]
[172561,"F4071 BOOTH ST WEST RETAIL","VICTORIA PK PRY","Victoria Park"]
[177380,"F4071 BOOTH ST WEST RETAIL","VICTORIA PK PRY","Victoria Park"]
[178401,"F4071 BOOTH ST WEST RETAIL","VICTORIA PK PRY","Victoria Park"]
[172408,"NoCircuit","NoPrimary","Victoria Park"]
[177776,"NoCircuit","NoPrimary","Victoria Park"]
[178403,"NoCircuit","NoPrimary","Victoria Park"]
[172407,"NoCircuit","NoPrimary","Victoria Park"]
[178571,"NoCircuit","NoPrimary","Victoria Park"]
[167193,"F578 ST JAMES ST","DICKINSON ST PRY","Dickinson St"]
[167290,"F578 ST JAMES ST","DICKINSON ST PRY","Dickinson St"]
[167822,"F578 ST JAMES ST","DICKINSON ST PRY","Dickinson St"]
[166045,"F146 NO 44 OXFORD ST","DICKINSON ST PRY","Dickinson St"]
[166791,"F146 NO 44 OXFORD ST","DICKINSON ST PRY","Dickinson St"]
[166810,"F146 NO 44 OXFORD ST","DICKINSON ST PRY","Dickinson St"]
[167300,"F146 NO 44 OXFORD ST","DICKINSON ST PRY","Dickinson St"]
[166067,"F386 TOWN HALL EXT/TUSCANY HS","DICKINSON ST PRY","Dickinson St"]
[167069,"F386 TOWN HALL EXT/TUSCANY HS","DICKINSON ST PRY","Dickinson St"]
[167632,"F386 TOWN HALL EXT/TUSCANY HS","DICKINSON ST PRY","Dickinson St"]
[168260,"F472 NO1 PICCADILLY GDNS","DICKINSON ST PRY","Dickinson St"]
[177530,"F472 NO1 PICCADILLY GDNS","DICKINSON ST PRY","Dickinson St"]
[166782,"F88 HULME ST NO2","DICKINSON ST PRY","Dickinson St"]
[167339,"F88 HULME ST NO2","DICKINSON ST PRY","Dickinson St"]
[167726,"F88 HULME ST NO2","DICKINSON ST PRY","Dickinson St"]
[167875,"F88 HULME ST NO2","DICKINSON ST PRY","Dickinson St"]
[168345,"F88 HULME ST NO2","DICKINSON ST PRY","Dickinson St"]
[167437,"F1021 PICCADILLY PLAZA","DICKINSON ST PRY","Dickinson St"]
[168155,"F1021 PICCADILLY PLAZA","DICKINSON ST PRY","Dickinson St"]
[166076,"F454 PRINCESS ST 109","DICKINSON ST PRY","Dickinson St"]
[166717,"F454 PRINCESS ST 109","DICKINSON ST PRY","Dickinson St"]
[166993,"F454 PRINCESS ST 109","DICKINSON ST PRY","Dickinson St"]
[167613,"F454 PRINCESS ST 109","DICKINSON ST PRY","Dickinson St"]
[166049,"F387 MANCHESTER TOWN HALL","DICKINSON ST PRY","Dickinson St"]
[166068,"F387 MANCHESTER TOWN HALL","DICKINSON ST PRY","Dickinson St"]
[166080,"F387 MANCHESTER TOWN HALL","DICKINSON ST PRY","Dickinson St"]
[166081,"F387 MANCHESTER TOWN HALL","DICKINSON ST PRY","Dickinson St"]
[167207,"F387 MANCHESTER TOWN HALL","DICKINSON ST PRY","Dickinson St"]
[169023,"F387 MANCHESTER TOWN HALL","DICKINSON ST PRY","Dickinson St"]
[166104,"F318 BANK OF ENGLAND","DICKINSON ST PRY","Dickinson St"]
[166978,"F318 BANK OF ENGLAND","DICKINSON ST PRY","Dickinson St"]
[167291,"F318 BANK OF ENGLAND","DICKINSON ST PRY","Dickinson St"]
[167582,"F318 BANK OF ENGLAND","DICKINSON ST PRY","Dickinson St"]
[168180,"F318 BANK OF ENGLAND","DICKINSON ST PRY","Dickinson St"]
[168450,"F318 BANK OF ENGLAND","DICKINSON ST PRY","Dickinson St"]
[166079,"DICKINSON ST NWK T5","DICKINSON ST PRY","Dickinson St"]
[166881,"F3628 THE PIAZZA/TOWN HALL EXT/PRINCES","DICKINSON ST PRY","Dickinson St"]
[167309,"F3628 THE PIAZZA/TOWN HALL EXT/PRINCES","DICKINSON ST PRY","Dickinson St"]
[167326,"F3628 THE PIAZZA/TOWN HALL EXT/PRINCES","DICKINSON ST PRY","Dickinson St"]
[166057,"F2295 ATWOOD ST","DICKINSON ST PRY","Dickinson St"]
[166093,"F2295 ATWOOD ST","DICKINSON ST PRY","Dickinson St"]
[167423,"F2295 ATWOOD ST","DICKINSON ST PRY","Dickinson St"]
[168106,"F2295 ATWOOD ST","DICKINSON ST PRY","Dickinson St"]
[168778,"F2295 ATWOOD ST","DICKINSON ST PRY","Dickinson St"]
[167379,"F2296 CAMBRIDGE ST HULME/WILMOTT ST/FI","DICKINSON ST PRY","Dickinson St"]
[167253,"F456 CHINA HS","DICKINSON ST PRY","Dickinson St"]
[167508,"F456 CHINA HS","DICKINSON ST PRY","Dickinson St"]
[166047,"F320 MEDLOCK ST MCR CITY CTR/ST JAMES","DICKINSON ST PRY","Dickinson St"]
[166077,"F320 MEDLOCK ST MCR CITY CTR/ST JAMES","DICKINSON ST PRY","Dickinson St"]
[166030,"F188 BOOTLE ST","DICKINSON ST PRY","Dickinson St"]
[166143,"F300 CROWN COURTS","DICKINSON ST PRY","Dickinson St"]
[166831,"F300 CROWN COURTS","DICKINSON ST PRY","Dickinson St"]
[167316,"F300 CROWN COURTS","DICKINSON ST PRY","Dickinson St"]
[167499,"F300 CROWN COURTS","DICKINSON ST PRY","Dickinson St"]
[168247,"F300 CROWN COURTS","DICKINSON ST PRY","Dickinson St"]
[166103,"F4350 CHORLTON ST/CHAIN ST","CENTRAL MANCHESTER","Central Manchester"]
[166105,"F4350 CHORLTON ST/CHAIN ST","CENTRAL MANCHESTER","Central Manchester"]
[166112,"F4350 CHORLTON ST/CHAIN ST","CENTRAL MANCHESTER","Central Manchester"]
[166116,"F4350 CHORLTON ST/CHAIN ST","CENTRAL MANCHESTER","Central Manchester"]
[166118,"F4350 CHORLTON ST/CHAIN ST","CENTRAL MANCHESTER","Central Manchester"]
[166121,"F4350 CHORLTON ST/CHAIN ST","CENTRAL MANCHESTER","Central Manchester"]
[167870,"F4350 CHORLTON ST/CHAIN ST","CENTRAL MANCHESTER","Central Manchester"]
[166100,"F4343 MINSHULL ST","CENTRAL MANCHESTER","Central Manchester"]
[166101,"F4343 MINSHULL ST","CENTRAL MANCHESTER","Central Manchester"]
[166134,"F4343 MINSHULL ST","CENTRAL MANCHESTER","Central Manchester"]
[166735,"F4343 MINSHULL ST","CENTRAL MANCHESTER","Central Manchester"]
[167447,"F4343 MINSHULL ST","CENTRAL MANCHESTER","Central Manchester"]
[168143,"F4343 MINSHULL ST","CENTRAL MANCHESTER","Central Manchester"]
[168648,"F4343 MINSHULL ST","CENTRAL MANCHESTER","Central Manchester"]
[166655,"F4351 RAILTRACK TWR BLK STORE ST","CENTRAL MANCHESTER","Central Manchester"]
[167288,"F4351 RAILTRACK TWR BLK STORE ST","CENTRAL MANCHESTER","Central Manchester"]
[167466,"F4351 RAILTRACK TWR BLK STORE ST","CENTRAL MANCHESTER","Central Manchester"]
[167644,"F4351 RAILTRACK TWR BLK STORE ST","CENTRAL MANCHESTER","Central Manchester"]
[167728,"F4351 RAILTRACK TWR BLK STORE ST","CENTRAL MANCHESTER","Central Manchester"]
[168088,"F4351 RAILTRACK TWR BLK STORE ST","CENTRAL MANCHESTER","Central Manchester"]
[168556,"F4351 RAILTRACK TWR BLK STORE ST","CENTRAL MANCHESTER","Central Manchester"]
[167627,"F4344 BERRY ST NO1","CENTRAL MANCHESTER","Central Manchester"]
[168086,"F4344 BERRY ST NO1","CENTRAL MANCHESTER","Central Manchester"]
[168087,"F4344 BERRY ST NO1","CENTRAL MANCHESTER","Central Manchester"]
[167874,"F4346 PICCADILLY TRIANGLE","CENTRAL MANCHESTER","Central Manchester"]
[166115,"F4354 BRAZIL ST","CENTRAL MANCHESTER","Central Manchester"]
[166117,"F4354 BRAZIL ST","CENTRAL MANCHESTER","Central Manchester"]
[166343,"F4354 BRAZIL ST","CENTRAL MANCHESTER","Central Manchester"]
[166502,"F4354 BRAZIL ST","CENTRAL MANCHESTER","Central Manchester"]
[166778,"F4354 BRAZIL ST","CENTRAL MANCHESTER","Central Manchester"]
[166898,"F4354 BRAZIL ST","CENTRAL MANCHESTER","Central Manchester"]
[168176,"F4354 BRAZIL ST","CENTRAL MANCHESTER","Central Manchester"]
[171981,"F4354 BRAZIL ST","CENTRAL MANCHESTER","Central Manchester"]
[166141,"F4347 VELVET CT","CENTRAL MANCHESTER","Central Manchester"]
[166650,"F4347 VELVET CT","CENTRAL MANCHESTER","Central Manchester"]
[166683,"F4347 VELVET CT","CENTRAL MANCHESTER","Central Manchester"]
[166768,"F4347 VELVET CT","CENTRAL MANCHESTER","Central Manchester"]
[167000,"F4347 VELVET CT","CENTRAL MANCHESTER","Central Manchester"]
[167179,"F4347 VELVET CT","CENTRAL MANCHESTER","Central Manchester"]
[166137,"F4355 CITY INN PICCADILLY/LENA ST","CENTRAL MANCHESTER","Central Manchester"]
[166138,"F4355 CITY INN PICCADILLY/LENA ST","CENTRAL MANCHESTER","Central Manchester"]
[167914,"F4355 CITY INN PICCADILLY/LENA ST","CENTRAL MANCHESTER","Central Manchester"]
[168045,"F4355 CITY INN PICCADILLY/LENA ST","CENTRAL MANCHESTER","Central Manchester"]
[168074,"F4355 CITY INN PICCADILLY/LENA ST","CENTRAL MANCHESTER","Central Manchester"]
[168478,"F4355 CITY INN PICCADILLY/LENA ST","CENTRAL MANCHESTER","Central Manchester"]
[166140,"F4162 MARSHALL ST","ANCOATS NORTH","Ancoats North T14"]
[167105,"F4162 MARSHALL ST","ANCOATS NORTH","Ancoats North T14"]
[168485,"F4162 MARSHALL ST","ANCOATS NORTH","Ancoats North T14"]
[168049,"F4164 CROWNE PLAZA","ANCOATS NORTH","Ancoats North T14"]
[168451,"F4164 CROWNE PLAZA","ANCOATS NORTH","Ancoats North T14"]
[166128,"F447 EXPRESS HS","ANCOATS NORTH","Ancoats North T14"]
[166130,"F447 EXPRESS HS","ANCOATS NORTH","Ancoats North T14"]
[166139,"F447 EXPRESS HS","ANCOATS NORTH","Ancoats North T14"]
[166855,"F447 EXPRESS HS","ANCOATS NORTH","Ancoats North T14"]
[167405,"F447 EXPRESS HS","ANCOATS NORTH","Ancoats North T14"]
[168324,"F447 EXPRESS HS","ANCOATS NORTH","Ancoats North T14"]
[168661,"F447 EXPRESS HS","ANCOATS NORTH","Ancoats North T14"]
[165702,"F195 WING YIP","ANCOATS NORTH","Ancoats North T14"]
[166230,"F195 WING YIP","ANCOATS NORTH","Ancoats North T14"]
[166395,"F195 WING YIP","ANCOATS NORTH","Ancoats North T14"]
[166616,"F195 WING YIP","ANCOATS NORTH","Ancoats North T14"]
[166956,"F195 WING YIP","ANCOATS NORTH","Ancoats North T14"]
[166142,"F553 GPO HOULDSWORTH ST","ANCOATS NORTH","Ancoats North T14"]
[166145,"F553 GPO HOULDSWORTH ST","ANCOATS NORTH","Ancoats North T14"]
[167286,"F553 GPO HOULDSWORTH ST","ANCOATS NORTH","Ancoats North T14"]
[167465,"F553 GPO HOULDSWORTH ST","ANCOATS NORTH","Ancoats North T14"]
[167607,"F553 GPO HOULDSWORTH ST","ANCOATS NORTH","Ancoats North T14"]
[167689,"F553 GPO HOULDSWORTH ST","ANCOATS NORTH","Ancoats North T14"]
[167749,"F553 GPO HOULDSWORTH ST","ANCOATS NORTH","Ancoats North T14"]
[168940,"F553 GPO HOULDSWORTH ST","ANCOATS NORTH","Ancoats North T14"]
[169025,"F553 GPO HOULDSWORTH ST","ANCOATS NORTH","Ancoats North T14"]
[166127,"F826 SILK ST","ANCOATS NORTH","Ancoats North T11 & T12"]
[166133,"F826 SILK ST","ANCOATS NORTH","Ancoats North T11 & T12"]
[166153,"F826 SILK ST","ANCOATS NORTH","Ancoats North T11 & T12"]
[167419,"F826 SILK ST","ANCOATS NORTH","Ancoats North T11 & T12"]
[167704,"F826 SILK ST","ANCOATS NORTH","Ancoats North T11 & T12"]
[167962,"F826 SILK ST","ANCOATS NORTH","Ancoats North T11 & T12"]
[166126,"F133 SIMPSON ST/ROYAL MAIL MLSO","ANCOATS NORTH","Ancoats North T11 & T12"]
[167995,"F133 SIMPSON ST/ROYAL MAIL MLSO","ANCOATS NORTH","Ancoats North T11 & T12"]
[166929,"F4339 CIS TOWER","ANCOATS NORTH","Ancoats North T11 & T12"]
[168197,"F4339 CIS TOWER","ANCOATS NORTH","Ancoats North T11 & T12"]
[168069,"F89 FERNIE ST NO1","ANCOATS NORTH","Ancoats North T11 & T12"]
[168161,"F89 FERNIE ST NO1","ANCOATS NORTH","Ancoats North T11 & T12"]
[167420,"F471 COPPERAS ST/MARTLESHAM WALK","ANCOATS NORTH","Ancoats North T11 & T12"]
[167421,"F471 COPPERAS ST/MARTLESHAM WALK","ANCOATS NORTH","Ancoats North T11 & T12"]
[167512,"F471 COPPERAS ST/MARTLESHAM WALK","ANCOATS NORTH","Ancoats North T11 & T12"]
[167696,"F471 COPPERAS ST/MARTLESHAM WALK","ANCOATS NORTH","Ancoats North T11 & T12"]
[167906,"F471 COPPERAS ST/MARTLESHAM WALK","ANCOATS NORTH","Ancoats North T11 & T12"]
[167289,"F136 LOOM ST","ANCOATS NORTH","Ancoats North T11 & T12"]
[168421,"F136 LOOM ST","ANCOATS NORTH","Ancoats North T11 & T12"]
[166416,"F842 NTH BENGAL ST","ANCOATS NORTH","Ancoats North T11 & T12"]
[167513,"F842 NTH BENGAL ST","ANCOATS NORTH","Ancoats North T11 & T12"]
[167910,"F842 NTH BENGAL ST","ANCOATS NORTH","Ancoats North T11 & T12"]
[167911,"F842 NTH BENGAL ST","ANCOATS NORTH","Ancoats North T11 & T12"]
[166172,"F1066 RADIUM ST","ANCOATS NORTH","Ancoats North T11 & T12"]
[166190,"F1066 RADIUM ST","ANCOATS NORTH","Ancoats North T11 & T12"]
[166195,"F1066 RADIUM ST","ANCOATS NORTH","Ancoats North T11 & T12"]
[168236,"F1066 RADIUM ST","ANCOATS NORTH","Ancoats North T11 & T12"]
[168610,"F1066 RADIUM ST","ANCOATS NORTH","Ancoats North T11 & T12"]
[166163,"F33 BUTLER CT/GUN ST","ANCOATS NORTH","Ancoats North T11 & T12"]
[166167,"F33 BUTLER CT/GUN ST","ANCOATS NORTH","Ancoats North T11 & T12"]
[166168,"F33 BUTLER CT/GUN ST","ANCOATS NORTH","Ancoats North T11 & T12"]
[166546,"F33 BUTLER CT/GUN ST","ANCOATS NORTH","Ancoats North T11 & T12"]
[166553,"F33 BUTLER CT/GUN ST","ANCOATS NORTH","Ancoats North T11 & T12"]
[166558,"F33 BUTLER CT/GUN ST","ANCOATS NORTH","Ancoats North T11 & T12"]
[166736,"F134 ROYAL MAIL MLSO","ANCOATS NORTH","Ancoats North T11 & T12"]
[166147,"F469 BENDIX ST","ANCOATS NORTH","Ancoats North T11 & T12"]
[167690,"F469 BENDIX ST","ANCOATS NORTH","Ancoats North T11 & T12"]
[167883,"F469 BENDIX ST","ANCOATS NORTH","Ancoats North T11 & T12"]
[167884,"F469 BENDIX ST","ANCOATS NORTH","Ancoats North T11 & T12"]
[167949,"F469 BENDIX ST","ANCOATS NORTH","Ancoats North T11 & T12"]
[168163,"F1795 SCOTLAND RD OFFICES","ANCOATS NORTH","Ancoats North T11 & T12"]
[168295,"F1795 SCOTLAND RD OFFICES","ANCOATS NORTH","Ancoats North T11 & T12"]
[168302,"F1795 SCOTLAND RD OFFICES","ANCOATS NORTH","Ancoats North T11 & T12"]
[166185,"F1465 NEW ISLINGTON","ANCOATS NORTH","Ancoats North T11 & T12"]
[167306,"F1465 NEW ISLINGTON","ANCOATS NORTH","Ancoats North T11 & T12"]
[166166,"F467 VESTA ST","ANCOATS NORTH","Ancoats North T11 & T12"]
[166490,"F467 VESTA ST","ANCOATS NORTH","Ancoats North T11 & T12"]
[168083,"F467 VESTA ST","ANCOATS NORTH","Ancoats North T11 & T12"]
[168254,"F467 VESTA ST","ANCOATS NORTH","Ancoats North T11 & T12"]
[168649,"F819 GUN ST","ANCOATS NORTH","Ancoats North T11 & T12"]
[166164,"F697 NAVAL ST","ANCOATS NORTH","Ancoats North T11 & T12"]
[166173,"F697 NAVAL ST","ANCOATS NORTH","Ancoats North T11 & T12"]
[166174,"F697 NAVAL ST","ANCOATS NORTH","Ancoats North T11 & T12"]
[168073,"F697 NAVAL ST","ANCOATS NORTH","Ancoats North T11 & T12"]
[168540,"F697 NAVAL ST","ANCOATS NORTH","Ancoats North T11 & T12"]
[166178,"F3716 POLAND ST","ANCOATS NORTH","Ancoats North T11 & T12"]
[166184,"F3716 POLAND ST","ANCOATS NORTH","Ancoats North T11 & T12"]
[166187,"F3716 POLAND ST","ANCOATS NORTH","Ancoats North T11 & T12"]
[166192,"F3716 POLAND ST","ANCOATS NORTH","Ancoats North T11 & T12"]
[166203,"F3716 POLAND ST","ANCOATS NORTH","Ancoats North T11 & T12"]
[166437,"F3716 POLAND ST","ANCOATS NORTH","Ancoats North T11 & T12"]
[167376,"F3716 POLAND ST","ANCOATS NORTH","Ancoats North T11 & T12"]
[168563,"F4656 THE GATEWAY","MONSALL PRY","Monsall"]
[165226,"F4024 CHEVINGTON DR/FUJITSU NO3","MONSALL PRY","Monsall"]
[168551,"F4664 THE GATEWAY","MONSALL PRY","Monsall"]
[167688,"F1141 MCR TOBACCO/B&Q (REDCLYFFE RD)","BARTON DOCK RD","Barton Dock Rd"]
[165840,"F627 PARK BUS RD DEPOT/STRETFORD FIRE","BARTON DOCK RD","Barton Dock Rd"]
[165875,"F627 PARK BUS RD DEPOT/STRETFORD FIRE","BARTON DOCK RD","Barton Dock Rd"]
[166549,"F627 PARK BUS RD DEPOT/STRETFORD FIRE","BARTON DOCK RD","Barton Dock Rd"]
[167102,"F627 PARK BUS RD DEPOT/STRETFORD FIRE","BARTON DOCK RD","Barton Dock Rd"]
[167618,"F627 PARK BUS RD DEPOT/STRETFORD FIRE","BARTON DOCK RD","Barton Dock Rd"]
[168319,"F627 PARK BUS RD DEPOT/STRETFORD FIRE","BARTON DOCK RD","Barton Dock Rd"]
[165814,"F1872 BARTON DOCK RD O/D","BARTON DOCK RD","Barton Dock Rd"]
[165820,"F1872 BARTON DOCK RD O/D","BARTON DOCK RD","Barton Dock Rd"]
[168634,"F1872 BARTON DOCK RD O/D","BARTON DOCK RD","Barton Dock Rd"]
[167019,"F629 HIBERNIA WAY","BARTON DOCK RD","Barton Dock Rd"]
[167711,"F626 ST MODWENS/ADBASTON RD","BARTON DOCK RD","Barton Dock Rd"]
[167943,"F633 COBRA CT NO1","BARTON DOCK RD","Barton Dock Rd"]
[167944,"F633 COBRA CT NO1","BARTON DOCK RD","Barton Dock Rd"]
[168054,"F633 COBRA CT NO1","BARTON DOCK RD","Barton Dock Rd"]
[168342,"F633 COBRA CT NO1","BARTON DOCK RD","Barton Dock Rd"]
[168534,"F633 COBRA CT NO1","BARTON DOCK RD","Barton Dock Rd"]
[165819,"F4360 ADIDAS MOSLEY RD/RAGLAN RD STRET","BARTON DOCK RD","Barton Dock Rd"]
[165847,"F4360 ADIDAS MOSLEY RD/RAGLAN RD STRET","BARTON DOCK RD","Barton Dock Rd"]
[165863,"F4360 ADIDAS MOSLEY RD/RAGLAN RD STRET","BARTON DOCK RD","Barton Dock Rd"]
[168184,"F4360 ADIDAS MOSLEY RD/RAGLAN RD STRET","BARTON DOCK RD","Barton Dock Rd"]
[165806,"F1128 MANCHESTER TOBACCO/MERCURY PK AP","BARTON DOCK RD","Barton Dock Rd"]
[165815,"F1128 MANCHESTER TOBACCO/MERCURY PK AP","BARTON DOCK RD","Barton Dock Rd"]
[166530,"F1128 MANCHESTER TOBACCO/MERCURY PK AP","BARTON DOCK RD","Barton Dock Rd"]
[166561,"F1128 MANCHESTER TOBACCO/MERCURY PK AP","BARTON DOCK RD","Barton Dock Rd"]
[166913,"F1128 MANCHESTER TOBACCO/MERCURY PK AP","BARTON DOCK RD","Barton Dock Rd"]
[167135,"F1128 MANCHESTER TOBACCO/MERCURY PK AP","BARTON DOCK RD","Barton Dock Rd"]
[168064,"F1422 THE FURROWS","BARTON DOCK RD","Barton Dock Rd"]
[168104,"F1422 THE FURROWS","BARTON DOCK RD","Barton Dock Rd"]
[168446,"F1422 THE FURROWS","BARTON DOCK RD","Barton Dock Rd"]
[165839,"F635 WESTINGHOUSE RD","BARTON DOCK RD","Barton Dock Rd"]
[165843,"F635 WESTINGHOUSE RD","BARTON DOCK RD","Barton Dock Rd"]
[165852,"F635 WESTINGHOUSE RD","BARTON DOCK RD","Barton Dock Rd"]
[167837,"F635 WESTINGHOUSE RD","BARTON DOCK RD","Barton Dock Rd"]
[165150,"F2201 BLACKLEY NEW RD/SCE","BLACKLEY","Blackley"]
[165190,"F2201 BLACKLEY NEW RD/SCE","BLACKLEY","Blackley"]
[165166,"F4013 LAKESIDE NO1","BLACKLEY","Blackley"]
[165177,"F4013 LAKESIDE NO1","BLACKLEY","Blackley"]
[165182,"F4013 LAKESIDE NO1","BLACKLEY","Blackley"]
[165185,"F4013 LAKESIDE NO1","BLACKLEY","Blackley"]
[165187,"F4013 LAKESIDE NO1","BLACKLEY","Blackley"]
[165191,"F4013 LAKESIDE NO1","BLACKLEY","Blackley"]
[165193,"F4013 LAKESIDE NO1","BLACKLEY","Blackley"]
[165196,"F4013 LAKESIDE NO1","BLACKLEY","Blackley"]
[166769,"F4013 LAKESIDE NO1","BLACKLEY","Blackley"]
[167763,"F4013 LAKESIDE NO1","BLACKLEY","Blackley"]
[167764,"F4013 LAKESIDE NO1","BLACKLEY","Blackley"]
[167765,"F4013 LAKESIDE NO1","BLACKLEY","Blackley"]
[167766,"F4013 LAKESIDE NO1","BLACKLEY","Blackley"]
[168352,"F4013 LAKESIDE NO1","BLACKLEY","Blackley"]
[168549,"F4013 LAKESIDE NO1","BLACKLEY","Blackley"]
[165044,"F2203 WINDSOR RD PRES/SANDYHILL RD","BLACKLEY","Blackley"]
[165050,"F2203 WINDSOR RD PRES/SANDYHILL RD","BLACKLEY","Blackley"]
[165083,"F2203 WINDSOR RD PRES/SANDYHILL RD","BLACKLEY","Blackley"]
[165107,"F2203 WINDSOR RD PRES/SANDYHILL RD","BLACKLEY","Blackley"]
[165122,"F2203 WINDSOR RD PRES/SANDYHILL RD","BLACKLEY","Blackley"]
[165168,"F2203 WINDSOR RD PRES/SANDYHILL RD","BLACKLEY","Blackley"]
[165180,"F2203 WINDSOR RD PRES/SANDYHILL RD","BLACKLEY","Blackley"]
[166409,"F2203 WINDSOR RD PRES/SANDYHILL RD","BLACKLEY","Blackley"]
[168439,"F2203 WINDSOR RD PRES/SANDYHILL RD","BLACKLEY","Blackley"]
[165141,"F4036 ROCHBANK RD","BLACKLEY","Blackley"]
[165160,"F4036 ROCHBANK RD","BLACKLEY","Blackley"]
[165167,"F4036 ROCHBANK RD","BLACKLEY","Blackley"]
[165173,"F4036 ROCHBANK RD","BLACKLEY","Blackley"]
[165181,"F4036 ROCHBANK RD","BLACKLEY","Blackley"]
[167792,"F4036 ROCHBANK RD","BLACKLEY","Blackley"]
[168496,"F4036 ROCHBANK RD","BLACKLEY","Blackley"]
[168255,"F2949 DELAUNAYS RD COMPUTER CTR","BLACKLEY","Blackley"]
[165200,"F2205 ICI ARTS SECT C","BLACKLEY","Blackley"]
[165145,"F1647 CHEETHAM HILL/TESCO CHEETHAM HIL","BLACKLEY","Blackley"]
[165153,"F1647 CHEETHAM HILL/TESCO CHEETHAM HIL","BLACKLEY","Blackley"]
[165194,"F1647 CHEETHAM HILL/TESCO CHEETHAM HIL","BLACKLEY","Blackley"]
[166705,"F1647 CHEETHAM HILL/TESCO CHEETHAM HIL","BLACKLEY","Blackley"]
[168237,"F1647 CHEETHAM HILL/TESCO CHEETHAM HIL","BLACKLEY","Blackley"]
[165140,"F2204 MIDDLETON RD PUMP STN","BLACKLEY","Blackley"]
[165142,"F2204 MIDDLETON RD PUMP STN","BLACKLEY","Blackley"]
[165169,"F2204 MIDDLETON RD PUMP STN","BLACKLEY","Blackley"]
[165174,"F2204 MIDDLETON RD PUMP STN","BLACKLEY","Blackley"]
[167744,"F2204 MIDDLETON RD PUMP STN","BLACKLEY","Blackley"]
[168001,"F2204 MIDDLETON RD PUMP STN","BLACKLEY","Blackley"]
[168781,"F2204 MIDDLETON RD PUMP STN","BLACKLEY","Blackley"]
[165125,"F432 MIDDLETON RD 279","BLACKLEY","Blackley"]
[165130,"F432 MIDDLETON RD 279","BLACKLEY","Blackley"]
[165135,"F432 MIDDLETON RD 279","BLACKLEY","Blackley"]
[165149,"F432 MIDDLETON RD 279","BLACKLEY","Blackley"]
[166262,"F432 MIDDLETON RD 279","BLACKLEY","Blackley"]
[168445,"F432 MIDDLETON RD 279","BLACKLEY","Blackley"]
[167784,"F3986 ARNDALE NO 19","CANNON ST","Cannon St"]
[167787,"F3986 ARNDALE NO 19","CANNON ST","Cannon St"]
[166403,"F170 MILLER ST/MCR INT HANOVER ST NO2","CANNON ST","Cannon St"]
[167636,"F175 PALL MALL HS","CANNON ST","Cannon St"]
[166062,"F1691 ARNDALE ICL","CANNON ST","Cannon St"]
[167722,"F2725 BARNFIELD","CHASSEN RD","Chassen Rd"]
[168386,"F2748 DARTFORD RD/SHAWE HALL","CHASSEN RD","Chassen Rd"]
[165051,"F1321 COKE ST","CHEETHAM HILL","Cheetham Hill"]
[165099,"F1321 COKE ST","CHEETHAM HILL","Cheetham Hill"]
[165151,"F532 CHEETHAM HILL SHOP CTR/SEYMOUR RD","CHEETHAM HILL","Cheetham Hill"]
[165089,"F1327 ALBERT AVE 188","CHEETHAM HILL","Cheetham Hill"]
[167252,"F1817 RAILWAY RD SW STN","CHESTER RD","Chester Rd T11 & T12"]
[167050,"F1480 WHITE CITY NO3","CHESTER RD","Chester Rd T11 & T12"]
[165943,"F641 WARWICK RD","CHESTER RD","Chester Rd T13"]
[168096,"L3042 BARTON SQ NO 1","DUMPLINGTON","Dumplington"]
[168809,"L1266 UNIT 2 TWINING RD","DUMPLINGTON","Dumplington"]
[166036,"F189 MULBERRY ST 19/B.E","DEANSGATE","Deansgate"]
[166489,"F483 BK BRIDGE ST","DEANSGATE","Deansgate"]
[165357,"F1358 BEN BRIERLY WHARF","FAILSWORTH","Failsworth"]
[165352,"F159 HARDMAN LN","FAILSWORTH","Failsworth"]
[166250,"F315 PIFCO","FAILSWORTH","Failsworth"]
[165248,"F4043 WALKER ST","HARPURHEY","Harpurhey"]
[165224,"F1832 CHAPEL CT","HARPURHEY","Harpurhey"]
[165225,"F861 MIDDLETON OLD RD","HARPURHEY","Harpurhey"]
[165231,"F75 COULSDEN DR","HARPURHEY","Harpurhey"]
[165383,"F1174 ROSEWAY AVE","IRLAM","Irlam"]
[166844,"F2504 DEAN RD EMBEDDED","IRLAM","Irlam"]
[165403,"F1566 MONA WAY","IRLAM","Irlam"]
[166515,"F3145 TRAMWAY RD","IRLAM","Irlam"]
[168017,"F3145 TRAMWAY RD","IRLAM","Irlam"]
[167486,"F295 AIR MUSEUM","KNOTT MILL","Knott Mill"]
[167021,"F968 SILVER ST","KNOTT MILL","Knott Mill"]
[171611,"F2828 360 DEGREES","KNOTT MILL","Knott Mill"]
[167260,"F2381 DEANSGATE QUAY","KNOTT MILL","Knott Mill"]
[167541,"F58 CASTLE ST","KNOTT MILL","Knott Mill"]
[166357,"F4009 LIQUORICE PK NO1","LYONS RD","Lyons Rd"]
[166660,"F1005 DAILY TELEGRAPH","LYONS RD","Lyons Rd"]
[165817,"F2217 RICHMOND RD","LYONS RD","Lyons Rd"]
[166398,"F2217 RICHMOND RD","LYONS RD","Lyons Rd"]
[166955,"F740 MONTON BRIDGE","MONTON","Monton"]
[164445,"F714 ANSON RD","MONTON","Monton"]
[165432,"F713 EDGEWARE RD","MONTON","Monton"]
[169326,"F2862 MARSHALL WKS","MOSLEY RD","Mosley Rd"]
[165835,"F606 BRIXTON NO2/WASHINGTON MILLS","MOSLEY RD","Mosley Rd"]
[166444,"F1888 TENAX RD S/ASHBURTON TENAX","MOSLEY RD","Mosley Rd"]
[168438,"F706 REGINALD ST/LORNE ST","MOUNT ST","Mount St"]
[168125,"F702 ECCLES HEALTH CTR","MOUNT ST","Mount St"]
[167856,"F700 STANLEY RD ECCLES","MOUNT ST","Mount St"]
[165285,"F3073 NEW MOSTON NWK","NEW MOSTON","New Moston"]
[165322,"F1581 NUTHURST RD 88","NEW MOSTON","New Moston"]
[165304,"F2097 MAY ST","NEWTON HEATH","Newton Heath"]
[165324,"F870 BROOKDALE PK","NEWTON HEATH","Newton Heath"]
[166375,"F2147 CLARENDON PK","PENDLETON","Pendleton"]
[167046,"F2494 W EGERTON ST/DENBIGH PL","PENDLETON","Pendleton"]
[167122,"F1205 COUSINS FURNITURE","PENDLETON","Pendleton"]
[166132,"F1421 NATIONWIDE ANGLIA LEVER ST","PICCADILLY","Piccadilly"]
[166037,"F937 CONCERT LN","PICCADILLY","Piccadilly"]
[168418,"F2051 SPRING GDNS NO26","PICCADILLY","Piccadilly"]
[166500,"F2533 PRESTWICH NETWORK","PRESTWICH","Prestwich"]
[165079,"F2836 ST MARYS RD","PRESTWICH","Prestwich"]
[167864,"F1598 FAIRFAX RD","PRESTWICH","Prestwich"]
[166200,"F864 SEAMARK/NEW ST","QUEENS PK","Queens Park"]
[165265,"F293 MONSALL MILL","QUEENS PK","Queens Park"]
[167317,"F530 NMGH NO1 HT SWITCHROOM","QUEENS PK","Queens Park"]
[165230,"F446 HAYDEN CT","QUEENS PK","Queens Park"]
[166431,"F779 GLEN ST DOCK OFFICE","ROBERT HALL ST","Robert Hall St"]
[168082,"F767 BATLEYS CASH & CARRY","ROBERT HALL ST","Robert Hall St"]
[166607,"F771 EXCHANGE QUAYS NO 1","ROBERT HALL ST","Robert Hall St"]
[165623,"F3138 WEST PK ST/CARMEL CL","ROBERT HALL ST","Robert Hall St"]
[167681,"F4197 MANCHESTER FORT B & Q","STRANGEWAYS","Strangeways"]
[167175,"F2093 CHEETWOOD RD","STRANGEWAYS","Strangeways"]
[167747,"F822 115 CORPORATION ST/STRANGEWAYS NT","STRANGEWAYS","Strangeways"]
[165095,"F1618 BOND ST/WATERLOO RD 135","STRANGEWAYS","Strangeways"]
[165524,"F2103 QUEEN ST","THE HEIGHT","The Height"]
[165007,"F1152 LONGTON RD","THE HEIGHT","The Height"]
[168304,"SCE (EX F663 BROOKE BOND/TENAX RD R)","TRAFFORD PK N","Trafford Park North"]
[166728,"F609 BECK & POLLITZER","TRAFFORD","Trafford"]
[166880,"F3722 MUFC UNITED RD","TRAFFORD","Trafford"]
[165959,"F637 WHITE CITY WAY NO2","TRAFFORD","Trafford"]
[165785,"F1680 LOSTOCK RD","URMSTON","Urmston"]
[165811,"F1682 LEWIS URMSTON","URMSTON","Urmston"]
[165752,"F1687 DOVER PK","URMSTON","Urmston"]
[166932,"F1687 DOVER PK","URMSTON","Urmston"]
[168044,"F1833 SALFORD INNOVATION FORUM/SALFORD","FREDERICK RD","Frederick Rd"]
[167474,"F1203 LISSADEL ST","FREDERICK RD","Frederick Rd"]
[167131,"F1207 WINSTER AVE/BE","FREDERICK RD","Frederick Rd"]
[166509,"F1400 METROLINK STRET/STEPHENSON RD","LONGFORD BRIDGE","Longford Bridge"]
[165958,"F670 QUADRANT","LONGFORD BRIDGE","Longford Bridge"]
[165907,"F647 NWGB STRETFORD","LONGFORD BRIDGE","Longford Bridge"]
[166539,"F791 WELLINGTON ST","BLACKFRIARS","Blackfriars"]
[165694,"F1181 TOWNBURY HS/BURY ST","BLACKFRIARS","Blackfriars"]
[166777,"F1295 CENTENARY PK","WEASTE","Weaste"]
[168711,"F1294 MARKEM SYSTEMS","WEASTE","Weaste"]
[165541,"F1297 WEASTE RD S/MODE WHEEL RD/READY","WEASTE","Weaste"]
[168245,"F3468 METROPLEX NO 1","SALFORD QUAYS","Salford Quays"]
[166512,"F3472 DALLAS CT NO2","SALFORD QUAYS","Salford Quays"]
[172556,"F3550 CHEPSTOW HS/GMEX METROLINK","BRIDGEWATER","Bridgewater"]
[166517,"F3793 WHITWORTH ST W 19/PETROS GRAIN S","BRIDGEWATER","Bridgewater"]
[168783,"F4118 WILBURN ST APTS/NO1 REGENT RD AP","TRINITY","Trinity"]
[167990,"F3834 HARDMAN SQ NO3","TRINITY","Trinity"]
[231545,"BENTINCK ST/WHITLAND AVE /STAPLETON","MUSGRAVE RD","Musgrave Rd"]
[231231,"OAKWOOD DR/CARLTON RD","MUSGRAVE RD","Musgrave Rd"]
[231091,"MORRISONS MORNINGTON RD","MUSGRAVE RD","Musgrave Rd"]
[231165,"BARK ST NO120","SPA RD","Spa Rd"]
[231903,"BARK ST NO120","SPA RD","Spa Rd"]
[231136,"SPA RD LOCAL","SPA RD","Spa Rd"]
[238132,"WHITE LION BROW","SPA RD","Spa Rd"]
[231044,"CANNON ST","SPA RD","Spa Rd"]
[231042,"MAYOR ST","SPA RD","Spa Rd"]
[238706,"N.W.G.B SPA RD","SPA RD","Spa Rd"]
[231941,"CAMPBELL ST LOCAL","CAMPBELL ST","Campbell St"]
[238089,"BOLTON JTIC/BISHOPS RD","CAMPBELL ST","Campbell St"]
[231278,"WATSONS ADELAIDE ST","BARBARA ST","Barbara St"]
[231092,"NEBO ST","BARBARA ST","Barbara St"]
[231104,"BARBARA ST LOCAL","BARBARA ST","Barbara St"]
[231208,"ADJ NO2 LANCASTER WALK","WORDSWORTH ST","Wordsworth St"]
[231966,"ADJ NO2 LANCASTER WALK","WORDSWORTH ST","Wordsworth St"]
[231214,"ASTLEY BROOK","WORDSWORTH ST","Wordsworth St"]
[231233,"HOLDEN MILL APTS","WORDSWORTH ST","Wordsworth St"]
[238109,"BERTHA ST","WORDSWORTH ST","Wordsworth St"]
[231185,"THORNS RD/TEMPLE RD","WORDSWORTH ST","Wordsworth St"]
[231520,"FAIRFIELDS","COX GREEN","Cox Green"]
[231981,"RAMWELLS BROW/DUNSCAR IND EST/HR RIDIN","COX GREEN","Cox Green"]
[231527,"CLARENDEN GARDENS","COX GREEN","Cox Green"]
[231701,"CLARENDEN GARDENS","COX GREEN","Cox Green"]
[238545,"CLARENDEN GARDENS","COX GREEN","Cox Green"]
[238364,"HALL COPPICE","COX GREEN","Cox Green"]
[231344,"QUEENS AVE","COX GREEN","Cox Green"]
[231599,"NWWA LONGSIGHT PK","HARWOOD","Harwood"]
[231635,"ASHDENE CRES","HARWOOD","Harwood"]
[231806,"ASHDENE CRES","HARWOOD","Harwood"]
[231648,"GREENROYD AVE","HARWOOD","Harwood"]
[231490,"STITCH MI LN","HARWOOD","Harwood"]
[232412,"STITCH MI LN","HARWOOD","Harwood"]
[238338,"STITCH MI LN","HARWOOD","Harwood"]
[231419,"MOBBERLEY RD","HARWOOD","Harwood"]
[231025,"JOHNSON ST OFFICE BLOCK","BRADSHAWGATE","Bradshawgate"]
[231323,"BRADSHAWGATE BOLTON","BRADSHAWGATE","Bradshawgate"]
[231158,"HENRY ST","BRADSHAWGATE","Bradshawgate"]
[231667,"STANLEY RD/HORWICH CASTINGS/BRIT RAIL","CROWN LN","Crown Lane"]
[231743,"ESSEX STONECRAFT","CROWN LN","Crown Lane"]
[414667,"BLACKROD IND EST A","CROWN LN","Crown Lane"]
[414340,"RIVINGTON VIEW BUS PK","CROWN LN","Crown Lane"]
[414822,"RIVINGTON VIEW BUS PK","CROWN LN","Crown Lane"]
[211746,"STATION RD/NEW ST","CROWN LN","Crown Lane"]
[414215,"CROWN LN LOCAL 11KV SW STN","CROWN LN","Crown Lane"]
[419926,"CROWN LN LOCAL 11KV SW STN","CROWN LN","Crown Lane"]
[238125,"AMEC/LYNSTOCK WAY","LOSTOCK","Lostock"]
[231368,"VERNONS","LOSTOCK","Lostock"]
[231584,"VERNONS","LOSTOCK","Lostock"]
[231888,"VERNONS","LOSTOCK","Lostock"]
[231280,"REGENT RD/LOSTOCK WTW","LOSTOCK","Lostock"]
[233005,"BRITISH AEROSPACE NO 2","LOSTOCK","Lostock"]
[231318,"TESCO FILLING STN","LOSTOCK","Lostock"]
[238887,"GT BANK RD NO 2","LOSTOCK","Lostock"]
[231167,"D&S FOODS UNION RD","UNION RD","Union Rd"]
[231414,"D&S FOODS UNION RD","UNION RD","Union Rd"]
[231784,"SLATERS LITTLE BOLTON/WATERS MTG RD","UNION RD","Union Rd"]
[238192,"DENVALE MILL/LAZARETTE WAY","UNION RD","Union Rd"]
[231354,"HEALTH & LEISURE CTR/ADCO","UNION RD","Union Rd"]
[232463,"GOULDS","HEYWOOD","Heywood"]
[232172,"BOOTS DRUG","HEYWOOD","Heywood"]
[232573,"BURNSIDE CL/HORNBY ST","HEYWOOD","Heywood"]
[232526,"MOORFIELD CHASE","FARNWORTH","Farnworth"]
[238727,"TESCO LONGCAUSEWAY","FARNWORTH","Farnworth"]
[231078,"EDITH ST","FARNWORTH","Farnworth"]
[232039,"PORRITTS NO 1","STUBBINS","Stubbins"]
[232031,"CUBA MILL/CONISTON CL","STUBBINS","Stubbins"]
[232579,"CUBA MILL/CONISTON CL","STUBBINS","Stubbins"]
[232046,"HOLT ST W LOCAL","HOLT ST","Holt St"]
[232036,"NUTTALL LN/WHITTINGHAM DR","HOLT ST","Holt St"]
[238386,"BRIDGE ST/REGENT ST","HOLT ST","Holt St"]
[231305,"HOLCOMBE BROOK","HOLT ST","Holt St"]
[232435,"HOLCOMBE BROOK","HOLT ST","Holt St"]
[232022,"HOLCOMBE VILL","HOLT ST","Holt St"]
[232533,"HOLCOMBE VILL","HOLT ST","Holt St"]
[232889,"VALLEY CL","WOOLFOLD","Woolfold"]
[232436,"PARKERS ELTON","WOOLFOLD","Woolfold"]
[232640,"HORRIDGE & CORNALL","WOOLFOLD","Woolfold"]
[232926,"MAGISTRATES COURT","CHAMBERHALL","Chamberhall"]
[232086,"CROSTONS RD","CHAMBERHALL","Chamberhall"]
[238311,"LR BANK ST","CHAMBERHALL","Chamberhall"]
[234007,"HARVARD RD","CHAMBERHALL","Chamberhall"]
[232018,"PERCY ST","CHAMBERHALL","Chamberhall"]
[232454,"PERCY ST","CHAMBERHALL","Chamberhall"]
[232550,"PERCY ST","CHAMBERHALL","Chamberhall"]
[232796,"PERCY ST","CHAMBERHALL","Chamberhall"]
[232162,"WOODHEY CL","RADCLIFFE","Radcliffe"]
[232865,"WOODHEY CL","RADCLIFFE","Radcliffe"]
[232832,"HARPER FOLD RD","RADCLIFFE","Radcliffe"]
[232298,"ASDA","RADCLIFFE","Radcliffe"]
[238318,"LOMAX ST T1 AUTO TRAN","RADCLIFFE","Radcliffe"]
[232993,"SUNNYBANK MILL","RADCLIFFE","Radcliffe"]
[232637,"SION ST","RADCLIFFE","Radcliffe"]
[232402,"COVENTRY RD/SALISBURY RD","RADCLIFFE","Radcliffe"]
[232072,"GREENBROOK ST BURY/HALSALLS","BURY TOWN CENTRE","Bury Town Centre"]
[238631,"TITHEBARN ST E","BURY TOWN CENTRE","Bury Town Centre"]
[232337,"ROCHDALE RD","BURY TOWN CENTRE","Bury Town Centre"]
[232099,"BACK DERBY ST","BURY TOWN CENTRE","Bury Town Centre"]
[232554,"BACK DERBY ST","BURY TOWN CENTRE","Bury Town Centre"]
[232510,"BANFF GR/ANGUS AVE","HEADY HILL","Heady Hill"]
[232514,"BURY OLD RD","HEADY HILL","Heady Hill"]
[234000,"LIVESEY LN","HEADY HILL","Heady Hill"]
[232388,"HEAP BRIDGE LOCAL","HEAP BRIDGE","Heap Bridge"]
[232518,"OUR LADY OF LOURDES","HEAP BRIDGE","Heap Bridge"]
[232261,"RANDALE DR S","MOSS LN","Moss Lane"]
[238012,"RANDALE DR S","MOSS LN","Moss Lane"]
[232596,"MORLEY ST","MOSS LN","Moss Lane"]
[232688,"CUNNINGHAM DR","MOSS LN","Moss Lane"]
[232482,"EGERTON RD","MOSS LN","Moss Lane"]
[232898,"KARA FOODS","MOSS LN","Moss Lane"]
[232821,"BOROUGH AVE/JOHN WILDS","DUMERS LN","Dumers Lane"]
[232652,"RON WOODS DUMERS LN/HAMPSON MILL LN","DUMERS LN","Dumers Lane"]
[232266,"RINGLEY MEADOWS/STONECLOUGH RISE","RINGLEY PRY","Ringley"]
[238069,"RINGLEY MEADOWS/STONECLOUGH RISE","RINGLEY PRY","Ringley"]
[212909,"BLUEBELL AVE","HAYDOCK PRY","Haydock"]
[212911,"BLUEBELL AVE","HAYDOCK PRY","Haydock"]
[212944,"PENNY LN/DIXON CL","HAYDOCK PRY","Haydock"]
[211958,"POST HS/HAYDOCK SW STN","HAYDOCK PRY","Haydock"]
[214437,"ATLAS COPCO/PENNY LN IND UNITS","HAYDOCK PRY","Haydock"]
[212901,"KENYONS LN","HAYDOCK PRY","Haydock"]
[211140,"WILLOW HEY S","WILLOW HEY","Willow Hey"]
[218791,"POLYTHENE DRUMS","WILLOW HEY","Willow Hey"]
[211111,"GPO EXCHANGE","WILLOW HEY","Willow Hey"]
[414727,"GPO EXCHANGE","WILLOW HEY","Willow Hey"]
[419622,"GPO EXCHANGE","WILLOW HEY","Willow Hey"]
[211136,"THE WINSTERS","WILLOW HEY","Willow Hey"]
[211327,"ALDERLEY WEST","PIMBO","Pimbo"]
[211370,"DIGMOOR RD/THE DAIRY PIMBO PLACE","PIMBO","Pimbo"]
[213302,"PILLING PL","PIMBO","Pimbo"]
[211348,"ALDERLEY E/THE DAIRY PIMBO PLACE","PIMBO","Pimbo"]
[213103,"WHITELEDGE RD/WOODLANDS EQUEST","PIMBO","Pimbo"]
[211510,"DELPHSIDE CL","UPHOLLAND","Upholland"]
[211527,"DELPHSIDE CL","UPHOLLAND","Upholland"]
[211511,"SEFTON AVE","UPHOLLAND","Upholland"]
[211522,"SEFTON AVE","UPHOLLAND","Upholland"]
[213409,"GROVE RD/GANTLEY RD/SMETHURST RD","UPHOLLAND","Upholland"]
[213602,"UPHOLLAND SEC MOD SCH","UPHOLLAND","Upholland"]
[213502,"ALMA HILL","UPHOLLAND","Upholland"]
[212952,"FOUNDRY LN","LAMBERHEAD","Lamberhead"]
[212303,"LORD & SHARMAN/CULCROSS AVE","LAMBERHEAD","Lamberhead"]
[213912,"FINDLEY COOK RD","LAMBERHEAD","Lamberhead"]
[218380,"AVALON PACKAGING/MARTLAND PK","KITT GRN","Kitt Green"]
[211811,"NORLEY QUARRY","KITT GRN","Kitt Green"]
[218200,"NORLEY QUARRY","KITT GRN","Kitt Green"]
[212332,"RUSHWOOD PK","STANDISH","Standish"]
[211663,"HAMPSTEAD RD","STANDISH","Standish"]
[214009,"GREEN LN/RECTORY LN","STANDISH","Standish"]
[214011,"GREEN LN/RECTORY LN","STANDISH","Standish"]
[212014,"GROVE LN","STANDISH","Standish"]
[211702,"MILES LN E/MILES LN","STANDISH","Standish"]
[214021,"WIGAN INFIRMARY/MARYLEBONE PK/BE","GIDLOW","Gidlow"]
[214404,"WIGAN INFIRMARY/MARYLEBONE PK/BE","GIDLOW","Gidlow"]
[211669,"GIDLOW LN","GIDLOW","Gidlow"]
[218895,"BACK BARNSLEY ST","GIDLOW","Gidlow"]
[212117,"MOSS ST","GIDLOW","Gidlow"]
[211646,"MORRISONS (WIGAN)","GIDLOW","Gidlow"]
[212310,"HOWDEN DR","WORSLEY MESNES","Worsley Mesnes"]
[212374,"HUXLEY PL","WORSLEY MESNES","Worsley Mesnes"]
[212335,"WORSLEY MESNES O/D","WORSLEY MESNES","Worsley Mesnes"]
[212347,"FROG LN/MIRY LN","GREEN ST","Green St T11"]
[218347,"TRENCHERFIELD NO3","GREEN ST","Green St T11"]
[214408,"CHAPEL LN","GREEN ST","Green St T11"]
[212306,"WOOD ST","GREEN ST","Green St T12 & T13"]
[212509,"BOUNDARY ST","GREEN ST","Green St T12 & T13"]
[212531,"BOUNDARY ST","GREEN ST","Green St T12 & T13"]
[212366,"BRIT WATERWAYS/GOWER ST/BACK SCOT LN","GREEN ST","Green St T12 & T13"]
[212504,"BUILDING 1 WESTWOOD PK","GREEN ST","Green St T12 & T13"]
[212415,"MELLING & BATH","WESTHOUGHTON BSP","Westhoughton"]
[211759,"SAINSBURYS WESTHOUGHTON/WELLINGTON ST","WESTHOUGHTON BSP","Westhoughton"]
[214812,"SAINSBURYS WESTHOUGHTON/WELLINGTON ST","WESTHOUGHTON BSP","Westhoughton"]
[212851,"GLAZEBURY DR","WESTHOUGHTON BSP","Westhoughton"]
[231886,"GLAZEBURY DR","WESTHOUGHTON BSP","Westhoughton"]
[231771,"LOCK LN","WESTHOUGHTON BSP","Westhoughton"]
[212819,"ABBEYLEA DR/CHERWELL RD","WESTHOUGHTON BSP","Westhoughton"]
[218393,"CHANTRY WALK/MATHERS JAM","ASHTON","Ashton (Golborne)"]
[211951,"LEVERTONS/EAST THREE SISTERS RD","ASHTON","Ashton (Golborne)"]
[211908,"WENTWORTH RD","ASHTON","Ashton (Golborne)"]
[211937,"BURNS CL","ASHTON","Ashton (Golborne)"]
[211942,"BURNS CL","ASHTON","Ashton (Golborne)"]
[219074,"TENBURY/CRANBROOK RD/CANSFIELD GR","ASHTON","Ashton (Golborne)"]
[212702,"VICTORIA FM","HINDLEY GRN","Hindley Green"]
[212739,"KIRKPATRICKS NO1","HINDLEY GRN","Hindley Green"]
[217412,"TURNERS","HINDLEY GRN","Hindley Green"]
[218741,"MORRISONS SALE WAY/DICKENSON ST","HINDLEY GRN","Hindley Green"]
[212841,"INGERSOLL RAND","HINDLEY GRN","Hindley Green"]
[212609,"LIVERPOOL RD","HINDLEY GRN","Hindley Green"]
[214417,"PENNINGTON ST/KIRKPATRICKS","HINDLEY GRN","Hindley Green"]
[415616,"RODCO/TABBYS NOOK","SKELMERSDALE","Skelmersdale"]
[414655,"WASHWAY FM A","SKELMERSDALE","Skelmersdale"]
[415962,"WASHWAY FM A","SKELMERSDALE","Skelmersdale"]
[211214,"FAWCETT/IRWELL","SKELMERSDALE","Skelmersdale"]
[213203,"SKELMERSDALE SW STN","SKELMERSDALE","Skelmersdale"]
[415314,"DEANS LN ETW","SKELMERSDALE","Skelmersdale"]
[418210,"DEANS LN ETW","SKELMERSDALE","Skelmersdale"]
[218438,"FRAM GERRARD SAND PIT","CLIFTON JUNCTION","Clifton Junction"]
[217214,"ROWNTREES","CLIFTON JUNCTION","Clifton Junction"]
[216400,"MEL NORWEB (NO2)","CLIFTON JUNCTION","Clifton Junction"]
[216955,"ALDI SWINTON","SWINTON","Swinton"]
[216846,"GMPA SWINTON","SWINTON","Swinton"]
[216239,"HAZELHURST MILL","CARR ST","Carr St"]
[217141,"INTEC HS","CARR ST","Carr St"]
[216155,"ARTHUR ST","CARR ST","Carr St"]
[216005,"ACORN ST","NEWTON LE WILLOWS","Newton Le Willows"]
[218355,"BORRON RD/MAKERFIELD DR","NEWTON LE WILLOWS","Newton Le Willows"]
[216138,"CROW LN E","NEWTON LE WILLOWS","Newton Le Willows"]
[214435,"HOPE ACADEMY ASHTON RD/MILL LN/TUTOR B","NEWTON LE WILLOWS","Newton Le Willows"]
[216274,"STONECROSS PARK IND EST/BRIAR RD","GOLBORNE","Golborne"]
[217638,"STONECROSS PARK IND EST/BRIAR RD","GOLBORNE","Golborne"]
[218442,"ASHTON RD/GRIMSHAW ST","GOLBORNE","Golborne"]
[217326,"KNOWSLEY AVE","GOLBORNE","Golborne"]
[217024,"NOOK LN/CARLSBERG TETLEY DEPOT","GOLBORNE","Golborne"]
[217025,"NOOK LN/CARLSBERG TETLEY DEPOT","GOLBORNE","Golborne"]
[212650,"MILLINGFORD IND EST/SLAG LN","GOLBORNE","Golborne"]
[216957,"MILLINGFORD IND EST/SLAG LN","GOLBORNE","Golborne"]
[216923,"VIMTO/HIGHWAYS AGENCY/","GOLBORNE","Golborne"]
[217199,"REMAND CENTRE/SILVER LN GEN NO3","RISLEY","Risley"]
[216006,"SILVER LN GEN NO5/SILVER LN GEN NO1","RISLEY","Risley"]
[217068,"SILVER LN GEN NO5/SILVER LN GEN NO1","RISLEY","Risley"]
[218582,"SILVER LN GEN NO5/SILVER LN GEN NO1","RISLEY","Risley"]
[216174,"TRIDENT PK","RISLEY","Risley"]
[218096,"TRIDENT PK","RISLEY","Risley"]
[218635,"ELLESMERE AVE","CULCHETH","Culcheth"]
[216398,"LODGE DR A","CULCHETH","Culcheth"]
[216539,"JACKSON AVE","CULCHETH","Culcheth"]
[216391,"HENRY ST","BEDFORD","Bedford"]
[217381,"HENRY ST","BEDFORD","Bedford"]
[216122,"CHAPEL ST","BEDFORD","Bedford"]
[216181,"CHAPEL ST","BEDFORD","Bedford"]
[216826,"CHAPEL ST","BEDFORD","Bedford"]
[218061,"CHAPEL ST","BEDFORD","Bedford"]
[216535,"MILL LN LAUNDRY","BEDFORD","Bedford"]
[216237,"CHARLES ST","KIRKHALL LN","Kirkhall Lane"]
[216280,"BK ORCHARD LN","KIRKHALL LN","Kirkhall Lane"]
[216173,"BACK YATES ST","KIRKHALL LN","Kirkhall Lane"]
[217306,"JOHN ST B","ATHERTON TC","Atherton Town Centre"]
[217297,"BRADSHAW ST","ATHERTON TC","Atherton Town Centre"]
[216258,"COLLIER BROOK","ATHERTON TC","Atherton Town Centre"]
[231842,"COLLIER BROOK","ATHERTON TC","Atherton Town Centre"]
[216634,"YORK ST SW STN","ATHERTON TC","Atherton Town Centre"]
[217403,"THOMAS ST/HOLLAND ST","ATHERTON TC","Atherton Town Centre"]
[212517,"ENA MILL","ATHERTON TC","Atherton Town Centre"]
[218485,"ENA MILL","ATHERTON TC","Atherton Town Centre"]
[217520,"WICHEAVES CRES","LITTLE HULTON","Little Hulton"]
[216286,"ARMITAGE AVE SW STN","LITTLE HULTON","Little Hulton"]
[218395,"WYNNE ST/CLEGGS LN","LITTLE HULTON","Little Hulton"]
[217500,"WICHBROOK RD","LITTLE HULTON","Little Hulton"]
[216657,"HAYSBROOK AVE SW STN","LITTLE HULTON","Little Hulton"]
[218609,"WALTER ST","HILL TOP","Hill Top T11 & T12"]
[216934,"MEADOWSIDE AVE","HILL TOP","Hill Top T11 & T12"]
[217220,"TESCO WALKDEN","HILL TOP","Hill Top T11 & T12"]
[217122,"MOUNTAIN ST SW STN","HILL TOP","Hill Top T11 & T12"]
[217518,"WESTMEADE RD/BULRUSH CL","HILL TOP","Hill Top T11 & T12"]
[216129,"BRACKLEY ST","HILL TOP","Hill Top T11 & T12"]
[217639,"WESLEY CT SW STN","HILL TOP","Hill Top T13"]
[216922,"ARKHOLME","HILL TOP","Hill Top T13"]
[218848,"ARKHOLME","HILL TOP","Hill Top T13"]
[310004,"TOWNLEY ST DIST","TOWNLEY ST","Townley St"]
[311303,"MOSSWAY/WRIGHT AND GREEN","TOWNLEY ST","Townley St"]
[314161,"BOARSHAW RD/LEVERS ARMS","TOWNLEY ST","Townley St"]
[314164,"BOARSHAW RD/LEVERS ARMS","TOWNLEY ST","Townley St"]
[312539,"BRIAR MILL/MILL POND CL","SHAW PRY","Shaw"]
[328596,"BRIAR MILL/MILL POND CL","SHAW PRY","Shaw"]
[327239,"ST GABRIELS/SALTS ST","SHAW PRY","Shaw"]
[313206,"SHAW PRY NETWORK","SHAW PRY","Shaw"]
[329065,"CARDIGAN ST","ROYTON","Royton"]
[310820,"OLDHAM ACADEMY N","ROYTON","Royton"]
[327739,"SHEEPFOOT LN/PICKFORD WALK","ROYTON","Royton"]
[313373,"FIR MILL/COIN ST","ROYTON","Royton"]
[311228,"J W LEES","MIDDLETON JUNCTION","Middleton Junction"]
[313969,"MARSDEN ST","MIDDLETON JUNCTION","Middleton Junction"]
[326958,"BRITISH VINEGAR/FERNDOWN AVE","MIDDLETON JUNCTION","Middleton Junction"]
[310066,"MOOR CL","MIDDLETON JUNCTION","Middleton Junction"]
[310488,"RIBBLE PACKAGING","GREENHILL","Greenhill"]
[310416,"ELI LEES","GREENHILL","Greenhill"]
[329125,"ELDON ST","GREENHILL","Greenhill"]
[310365,"BALFOUR ST","GREENHILL","Greenhill"]
[310415,"DRONSFIELD","GREENHILL","Greenhill"]
[328767,"PINNACLE SHEET METAL","CHADDERTON","Chadderton"]
[327217,"BAE INT FDR NO3/IND LATEX/BAE CAR PK","CHADDERTON","Chadderton"]
[329344,"BROADWAY BUS PK","CHADDERTON","Chadderton"]
[310505,"FOLD GRN","CHADDERTON","Chadderton"]
[328553,"HMSO NETWORK","CHADDERTON","Chadderton"]
[320704,"MCCARTHY & STONE/DAWSON ST/MARKET ST","HYDE","Hyde"]
[322944,"MCCARTHY & STONE/DAWSON ST/MARKET ST","HYDE","Hyde"]
[320059,"WOOD ST/MOUNT ST","HYDE","Hyde"]
[328244,"ASDA HYDE","HYDE","Hyde"]
[323391,"THORNLEY ST","HYDE","Hyde"]
[328203,"DUKINFIELD TOWN HALL","TAME VALLEY","Tame Valley"]
[320915,"GROSVENOR ST","TAME VALLEY","Tame Valley"]
[321060,"MAPLE AVE","TAME VALLEY","Tame Valley"]
[321010,"STAMFORD PK/BELVEDERE DR","TAME VALLEY","Tame Valley"]
[323985,"STAMFORD PK/BELVEDERE DR","TAME VALLEY","Tame Valley"]
[322595,"SPRINGS LN/HALL GRN/WHITELANDS MILL","TAME VALLEY","Tame Valley"]
[333616,"LAMBETH RD","REDDISH VALE","Reddish Vale"]
[336886,"SAFEWAYS REDDISH","REDDISH VALE","Reddish Vale"]
[337501,"HIGGINSON RD","REDDISH VALE","Reddish Vale"]
[323654,"STALYBRIDGE 275 NETWORK","HEYROD PRY","Heyrod"]
[328797,"HARGREAVES","HEYROD PRY","Heyrod"]
[328966,"MILLBROOK","HEYROD PRY","Heyrod"]
[328599,"COCKER HILL","HEYROD PRY","Heyrod"]
[331741,"MOSS RD/HOUGH CHAPEL/ABS098","ALDERLEY","Alderley & Chelford"]
[332133,"ALDERLEY DISTRIBUTION","ALDERLEY","Alderley & Chelford"]
[334140,"ALDERLEY DISTRIBUTION","ALDERLEY","Alderley & Chelford"]
[333965,"ALDERLEY PK DIST NO 1","ALDERLEY","Alderley & Chelford"]
[333614,"REFUGE ASSURANCE","ALDERLEY","Alderley & Chelford"]
[332178,"DUKE ST","ALDERLEY","Alderley & Chelford"]
[335722,"DUKE ST","ALDERLEY","Alderley & Chelford"]
[337188,"DUKE ST","ALDERLEY","Alderley & Chelford"]
[339119,"DUKE ST","ALDERLEY","Alderley & Chelford"]
[322520,"BARNFIELD RD","NEWTON","Newton"]
[326760,"BARNFIELD RD","NEWTON","Newton"]
[311213,"BURLINGTON AVE/EARL MILL","BELGRAVE","Belgrave"]
[328589,"ROSARY CL/QUANTOCK DR","BELGRAVE","Belgrave"]
[321008,"GLOSSOP LOCAL SW STN","GLOSSOP","Glossop"]
[326494,"GLOSSOP LOCAL SW STN","GLOSSOP","Glossop"]
[323393,"SIMMONDLEY LN","GLOSSOP","Glossop"]
[322709,"PIKES LN","GLOSSOP","Glossop"]
[323608,"ARUNDEL ST","GLOSSOP","Glossop"]
[328256,"CARR BANK","GLOSSOP","Glossop"]
[332854,"BIRCHFIELD RD/SEWAGE WKS GEN","CHEADLE HEATH","Cheadle Heath"]
[178009,"F1937 AIRTOURS/BIRDHALL LN ITALIA BLDG","CHEADLE HEATH","Cheadle Heath"]
[331304,"WINIFRED RD NETWORK","WINIFRED RD","Winifred Rd"]
[338532,"SHAW RD S","WINIFRED RD","Winifred Rd"]
[339367,"SHAW RD S","WINIFRED RD","Winifred Rd"]
[335361,"NoCircuit","WINIFRED RD","Winifred Rd"]
[335239,"NoCircuit","WINIFRED RD","Winifred Rd"]
[339514,"HIBBERT LN","MARPLE","Marple"]
[330276,"BROOKLANDS CL","HEATON NORRIS","Heaton Norris"]
[331338,"HALESDEN RD","HEATON NORRIS","Heaton Norris"]
[336938,"TIVIOT WAY NO 1","HEATON NORRIS","Heaton Norris"]
[331752,"BRIDEWELL","BOLLINGTON","Bollington"]
[333346,"BRIDEWELL","BOLLINGTON","Bollington"]
[335520,"BRIDEWELL","BOLLINGTON","Bollington"]
[332965,"SWANSCOE AVE","BOLLINGTON","Bollington"]
[331665,"LEAT PL","BOLLINGTON","Bollington"]
[336926,"LEAT PL","BOLLINGTON","Bollington"]
[331747,"CLARENCE MILL/ABS089 CLARENCE COTTS/","BOLLINGTON","Bollington"]
[331907,"CLARENCE MILL/ABS089 CLARENCE COTTS/","BOLLINGTON","Bollington"]
[334069,"CLARENCE MILL/ABS089 CLARENCE COTTS/","BOLLINGTON","Bollington"]
[334245,"CLARENCE MILL/ABS089 CLARENCE COTTS/","BOLLINGTON","Bollington"]
[336770,"CLARENCE MILL/ABS089 CLARENCE COTTS/","BOLLINGTON","Bollington"]
[331897,"LOWERHOUSE MILL/ABS134 LOWERHOUSE MILL","BOLLINGTON","Bollington"]
[336730,"LOWERHOUSE MILL/ABS134 LOWERHOUSE MILL","BOLLINGTON","Bollington"]
[331550,"PEVERIL RD","ASHWOOD DALE","Ashwood Dale"]
[333497,"STADEN LN NO1","ASHWOOD DALE","Ashwood Dale"]
[331287,"SYLVAN PK","ASHWOOD DALE","Ashwood Dale"]
[337045,"BAKEWELL RD","ASHWOOD DALE","Ashwood Dale"]
[331889,"MONSAL GR VIA AUTO T/F","ASHWOOD DALE","Ashwood Dale"]
[335623,"ABS007 WATERSWALLOWS RD","WATERSWALLOWS","Waterswallows"]
[333903,"LIGHTWOOD RD/GLENMOOR RD/","WATERSWALLOWS","Waterswallows"]
[331945,"WATERSWALLOWS IND EST","WATERSWALLOWS","Waterswallows"]
[333050,"WATERSWALLOWS IND EST","WATERSWALLOWS","Waterswallows"]
[335527,"WATERSWALLOWS IND EST","WATERSWALLOWS","Waterswallows"]
[332233,"TOM THORN","WATERSWALLOWS","Waterswallows"]
[330151,"NORWOOD RD/BUXTON RD/STEPPING HILL INT","GREEN LN","Green Lane (Hazel Grove)"]
[333240,"MCCARTHY & STONE HAZEL GR","GREEN LN","Green Lane (Hazel Grove)"]
[332932,"UNIT 38","GREEN LN","Green Lane (Hazel Grove)"]
[331324,"HAZEL GROVE CO-OP","GREEN LN","Green Lane (Hazel Grove)"]
[333227,"N W PRINTERS","GREEN LN","Green Lane (Hazel Grove)"]
[331706,"VINE TAVERN","GOWHOLE","Gowhole"]
[332042,"VINE TAVERN","GOWHOLE","Gowhole"]
[333439,"VINE TAVERN","GOWHOLE","Gowhole"]
[335748,"VINE TAVERN","GOWHOLE","Gowhole"]
[337517,"VINE TAVERN","GOWHOLE","Gowhole"]
[331883,"BRITTANIA TRADING EST/WESTERN LN TEED","GOWHOLE","Gowhole"]
[332748,"BRITTANIA TRADING EST/WESTERN LN TEED","GOWHOLE","Gowhole"]
[336711,"BRITTANIA TRADING EST/WESTERN LN TEED","GOWHOLE","Gowhole"]
[332344,"FURNESS VALE IND EST/GOWHOLE OHL","GOWHOLE","Gowhole"]
[331487,"NEW ST","GOWHOLE","Gowhole"]
[331562,"NEW ST","GOWHOLE","Gowhole"]
[332481,"NEW ST","GOWHOLE","Gowhole"]
[332531,"NEW ST","GOWHOLE","Gowhole"]
[333513,"NEW ST","GOWHOLE","Gowhole"]
[336000,"NEW ST","GOWHOLE","Gowhole"]
[338879,"NEW ST","GOWHOLE","Gowhole"]
[331707,"FURNESS VALE","GOWHOLE","Gowhole"]
[333321,"FURNESS VALE","GOWHOLE","Gowhole"]
[338069,"FURNESS VALE","GOWHOLE","Gowhole"]
[332121,"GOWHOLE NETWORK","GOWHOLE","Gowhole"]
[333095,"GOWHOLE NETWORK","GOWHOLE","Gowhole"]
[337544,"GOWHOLE NETWORK","GOWHOLE","Gowhole"]
[331044,"KNOWLES BWKS/ABS021/ROTATIONAL MLDGS","GOWHOLE","Gowhole"]
[333526,"KNOWLES BWKS/ABS021/ROTATIONAL MLDGS","GOWHOLE","Gowhole"]
[332490,"HAWK GREEN DIST","HAWK GREEN","Hawk Green"]
[331559,"JACKSONS EDGE RD/WYBERSLEY RD","HAWK GREEN","Hawk Green"]
[330828,"STRINES RD","HAWK GREEN","Hawk Green"]
[333422,"STRINES RD","HAWK GREEN","Hawk Green"]
[331386,"WINDLEHURST RD","HAWK GREEN","Hawk Green"]
[332372,"WINDLEHURST RD","HAWK GREEN","Hawk Green"]
[336849,"WINDLEHURST RD","HAWK GREEN","Hawk Green"]
[331332,"RIDGE TOP RD","HAWK GREEN","Hawk Green"]
[332140,"RIDGE TOP RD","HAWK GREEN","Hawk Green"]
[333931,"RIDGE TOP RD","HAWK GREEN","Hawk Green"]
[331743,"QUEENSWAY","POYNTON","Poynton"]
[332511,"BURTON DR","POYNTON","Poynton"]
[335594,"GALLOWAYS THIRD AVE/GRAYMARSH DR","POYNTON","Poynton"]
[332800,"POYNTON PRY DISTN","POYNTON","Poynton"]
[332323,"SALISBURY PL / TYTHERINGTON PK RD","WITHYFOLD DR","Withyfold Drive"]
[334071,"SALISBURY PL / TYTHERINGTON PK RD","WITHYFOLD DR","Withyfold Drive"]
[338541,"SALISBURY PL / TYTHERINGTON PK RD","WITHYFOLD DR","Withyfold Drive"]
[335932,"QUEENS AVE","WITHYFOLD DR","Withyfold Drive"]
[338460,"M6 PAPERS/MOWBRAYS","WITHYFOLD DR","Withyfold Drive"]
[331462,"LOWER HEYES","WITHYFOLD DR","Withyfold Drive"]
[331631,"LOWER HEYES","WITHYFOLD DR","Withyfold Drive"]
[337236,"BEECH BRIDGE","WITHYFOLD DR","Withyfold Drive"]
[338440,"SANDALWOOD CT","WITHYFOLD DR","Withyfold Drive"]
[313478,"B&Q WESTHULME AVE/WESTHULME AVE","WILLOWBANK","Willowbank"]
[328675,"B&Q WESTHULME AVE/WESTHULME AVE","WILLOWBANK","Willowbank"]
[328382,"ELK MILL RETAIL PK/OLDHAM DIST OFFICE","WILLOWBANK","Willowbank"]
[323477,"TESCO HATTERSLEY","HATTERSLEY PRY","Hattersley"]
[320975,"STRINGER AVE","HATTERSLEY PRY","Hattersley"]
[327509,"STRINGER AVE","HATTERSLEY PRY","Hattersley"]
[322583,"CALLINGTON DR","HATTERSLEY PRY","Hattersley"]
[326748,"CALLINGTON DR","HATTERSLEY PRY","Hattersley"]
[322981,"FURTHER LN","HATTERSLEY PRY","Hattersley"]
[333840,"GROVE AVE","WILMSLOW","Wilmslow"]
[336873,"GROVE AVE","WILMSLOW","Wilmslow"]
[331354,"CANTERBURY GRANGE/HAWTHORN ST","WILMSLOW","Wilmslow"]
[338011,"CANTERBURY GRANGE/HAWTHORN ST","WILMSLOW","Wilmslow"]
[335726,"BRIDGEHOLME MILL/DANESWAY/BOWDEN LN 2/","FERODO","Ferodo"]
[332410,"CHAPEL MAIN/MARRIOT PL","FERODO","Ferodo"]
[331620,"PARK VIEW DR","FERODO","Ferodo"]
[332056,"PARK VIEW DR","FERODO","Ferodo"]
[333023,"PARK VIEW DR","FERODO","Ferodo"]
[335676,"PARK VIEW DR","FERODO","Ferodo"]
[338615,"PARK VIEW DR","FERODO","Ferodo"]
[331715,"FRITH VIEW","FERODO","Ferodo"]
[333492,"FRITH VIEW","FERODO","Ferodo"]
[336956,"FRITH VIEW","FERODO","Ferodo"]
[334202,"NORRIS HILL PK","HEATON MOOR","Heaton Moor"]
[330017,"ALEXANDRA RD","HEATON MOOR","Heaton Moor"]
[330204,"MAULDETH RD","HEATON MOOR","Heaton Moor"]
[331735,"IVYMEADE","SOUTH WEST MACC","S.W. Macclesfield"]
[333057,"IVYMEADE","SOUTH WEST MACC","S.W. Macclesfield"]
[335314,"IVYMEADE","SOUTH WEST MACC","S.W. Macclesfield"]
[337258,"IVYMEADE","SOUTH WEST MACC","S.W. Macclesfield"]
[331456,"PENNINGTONS LN","SOUTH WEST MACC","S.W. Macclesfield"]
[331724,"PENNINGTONS LN","SOUTH WEST MACC","S.W. Macclesfield"]
[331911,"PENNINGTONS LN","SOUTH WEST MACC","S.W. Macclesfield"]
[332438,"PENNINGTONS LN","SOUTH WEST MACC","S.W. Macclesfield"]
[333039,"PENNINGTONS LN","SOUTH WEST MACC","S.W. Macclesfield"]
[334017,"PENNINGTONS LN","SOUTH WEST MACC","S.W. Macclesfield"]
[335433,"PENNINGTONS LN","SOUTH WEST MACC","S.W. Macclesfield"]
[336090,"PENNINGTONS LN","SOUTH WEST MACC","S.W. Macclesfield"]
[332837,"PARKMOUNT","SOUTH WEST MACC","S.W. Macclesfield"]
[331914,"CAMBRIDGE RD","SOUTH WEST MACC","S.W. Macclesfield"]
[338236,"ATHEY ST","SOUTH WEST MACC","S.W. Macclesfield"]
[328948,"JUNCTION ST","DUKINFIELD","Dukinfield"]
[328623,"CUNDY ST/JOHNSON BROOK","DUKINFIELD","Dukinfield"]
[327916,"ROBINSON KERSHAW NO2/DUNKIRK LN","DUKINFIELD","Dukinfield"]
[334165,"WATERLOO RD","BRAMHALL","Bramhall"]
[333130,"BRAMHALL NETWORK","BRAMHALL","Bramhall"]
[332860,"BRADDA MT/CHESTNUT CT","BRAMHALL","Bramhall"]
[328468,"3663 SALMONFIELDS","HEYSIDE","Heyside"]
[313899,"SEDDON MOTORS","HEYSIDE","Heyside"]
[313275,"COP RD SECT B","HEYSIDE","Heyside"]
[311201,"NEWBRECK WELDING","WATERHEAD","Waterhead"]
[310926,"HOLGATE ST","WATERHEAD","Waterhead"]
[310848,"DOLIVEIRA CT","LANGLEY","Langley"]
[312757,"HR WOOD ST/HAWESWATER DR","LANGLEY","Langley"]
[314085,"KAY ST","LANGLEY","Langley"]
[314058,"WOOD ST/WOODHILL CL","LANGLEY","Langley"]
[322320,"WINSTER MEWS/BROOKFIELD/CPA DINTING","HADFIELD","Hadfield"]
[323350,"HR BARN","HADFIELD","Hadfield"]
[322314,"GREEN LN","HADFIELD","Hadfield"]
[327778,"GREEN LN","HADFIELD","Hadfield"]
[327545,"WESLEY ST","HADFIELD","Hadfield"]
[321262,"MERSEY BANK","HADFIELD","Hadfield"]
[324289,"MERSEY BANK","HADFIELD","Hadfield"]
[327290,"MERSEY BANK","HADFIELD","Hadfield"]
[331329,"GRAHAM RD","OFFERTON","Offerton"]
[333126,"SYDNEY ST VIA AUTO TX T2","OFFERTON","Offerton"]
[323474,"GAMBREL BANK","HURST","Hurst"]
[323537,"NOOK LN","HURST","Hurst"]
[328848,"NOOK LN","HURST","Hurst"]
[322763,"KINGS RD","HURST","Hurst"]
[338689,"DEANWAY TRADING EST/BROOKE PK NO2","HANDFORTH","Handforth"]
[339397,"MARKS & SPENCER (B)","HANDFORTH","Handforth"]
[334016,"BULKELEY RD FDR NO1","HANDFORTH","Handforth"]
[332285,"TRACKSIDE","HANDFORTH","Handforth"]
[335378,"TRACKSIDE","HANDFORTH","Handforth"]
[333625,"PARKGATE WAY","HANDFORTH","Handforth"]
[312318,"GREGSON ST","ST MARYS","St Marys"]
[330101,"ABS004 CHADKIRK ROMILEY/CPA CHADKIRK/","ROMILEY","Romiley"]
[331859,"ABS004 CHADKIRK ROMILEY/CPA CHADKIRK/","ROMILEY","Romiley"]
[333968,"CLEGG GATE/VERNON RD","ROMILEY","Romiley"]
[339132,"URWICK RD","ROMILEY","Romiley"]
[330232,"ROMILEY DEPOT","ROMILEY","Romiley"]
[331394,"GILBERT BANK","ROMILEY","Romiley"]
[321995,"THREE COUNTIES RD","MOSSLEY","Mossley"]
[323123,"WELLIHOLE","MOSSLEY","Mossley"]
[323623,"HANOVER ST","MOSSLEY","Mossley"]
[322563,"WATERTON LN","MOSSLEY","Mossley"]
[320647,"COVER HILL/THORNLEY PK","MOSSLEY","Mossley"]
[327342,"COVER HILL/THORNLEY PK","MOSSLEY","Mossley"]
[331458,"LONDON RD EAST","SOUTH EAST MACC","S.E. Macclesfield"]
[331950,"LONDON RD EAST","SOUTH EAST MACC","S.E. Macclesfield"]
[337794,"LONDON RD EAST","SOUTH EAST MACC","S.E. Macclesfield"]
[339349,"LONDON RD EAST","SOUTH EAST MACC","S.E. Macclesfield"]
[336964,"JACKSON ST","SOUTH EAST MACC","S.E. Macclesfield"]
[331666,"GEORGE ST","SOUTH EAST MACC","S.E. Macclesfield"]
[332896,"GEORGE ST","SOUTH EAST MACC","S.E. Macclesfield"]
[337130,"GEORGE ST","SOUTH EAST MACC","S.E. Macclesfield"]
[331583,"SLACK ST","SOUTH EAST MACC","S.E. Macclesfield"]
[331848,"SLACK ST","SOUTH EAST MACC","S.E. Macclesfield"]
[332082,"SLACK ST","SOUTH EAST MACC","S.E. Macclesfield"]
[333002,"SLACK ST","SOUTH EAST MACC","S.E. Macclesfield"]
[333677,"SLACK ST","SOUTH EAST MACC","S.E. Macclesfield"]
[335323,"SLACK ST","SOUTH EAST MACC","S.E. Macclesfield"]
[336733,"SLACK ST","SOUTH EAST MACC","S.E. Macclesfield"]
[337672,"SLACK ST","SOUTH EAST MACC","S.E. Macclesfield"]
[337051,"EATON LN","SOUTH EAST MACC","S.E. Macclesfield"]
[331915,"MILL LN","NORBURY","Norbury"]
[335811,"MILL LN","NORBURY","Norbury"]
[331476,"BRIDLE WAY","NORBURY","Norbury"]
[331868,"BRIDLE WAY","NORBURY","Norbury"]
[338180,"HORSFIELD WAY NO3","WOODLEY","Woodley"]
[335876,"TRAVELLERS CALL","WOODLEY","Woodley"]
[330291,"WOODSTOCK RD","WOODLEY","Woodley"]
[332866,"HEBDEN AVE","WOODLEY","Woodley"]
[330305,"HOLLYWOOD PK","BRINKSWAY","Brinksway"]
[331305,"GORSEY BANK RD/POSNETT ST","BRINKSWAY","Brinksway"]
[338877,"YEW ST NO2","BRINKSWAY","Brinksway"]
[312662,"RAYMOND AVE","WERNETH","Werneth"]
[315348,"DEAMALAY RD/ENGINE ST","WERNETH","Werneth"]
[320233,"BROWNHILL DISTRIBUTION","GREENFIELD PRY","Greenfield"]
[320976,"BROWNHILL DISTRIBUTION","GREENFIELD PRY","Greenfield"]
[327279,"BROWNHILL DISTRIBUTION","GREENFIELD PRY","Greenfield"]
[327392,"BROWNHILL DISTRIBUTION","GREENFIELD PRY","Greenfield"]
[320740,"FRENCHES MARINA","GREENFIELD PRY","Greenfield"]
[323688,"FRENCHES MARINA","GREENFIELD PRY","Greenfield"]
[323854,"FRENCHES MARINA","GREENFIELD PRY","Greenfield"]
[328680,"FRENCHES MARINA","GREENFIELD PRY","Greenfield"]
[321079,"CARR BARN","GREENFIELD PRY","Greenfield"]
[327010,"CARR BARN","GREENFIELD PRY","Greenfield"]
[331419,"SIDDINGTON / ABS 056 MILL LN FM","CHELFORD","Chelford"]
[332165,"SIDDINGTON / ABS 056 MILL LN FM","CHELFORD","Chelford"]
[333157,"SIDDINGTON / ABS 056 MILL LN FM","CHELFORD","Chelford"]
[335529,"SIDDINGTON / ABS 056 MILL LN FM","CHELFORD","Chelford"]
[332464,"DINGLE BANK SAND QUARRY/","CHELFORD","Chelford"]
[330903,"CHELFORD/ABS 058 ASTLE LN","CHELFORD","Chelford"]
[338753,"CHELFORD/ABS 058 ASTLE LN","CHELFORD","Chelford"]
[327261,"DALE JOINERY/ARROW MILL","CASTLETON","Castleton"]
[314301,"ROYLELANDS/HIGHFIELD/KILWORTH ST","CASTLETON","Castleton"]
[314410,"MALCOLM ST","CASTLETON","Castleton"]
[232386,"OXFORD AVE","ROCHDALE CENTRAL","Rochdale Central"]
[314772,"HOLLAND RISE","ROCHDALE CENTRAL","Rochdale Central"]
[314773,"HOLLAND RISE","ROCHDALE CENTRAL","Rochdale Central"]
[329193,"HIGH LEVEL RD","ROCHDALE CENTRAL","Rochdale Central"]
[328974,"BROADFIELD SCHOOL/DOWLING ST","ROCHDALE CENTRAL","Rochdale Central"]
[314657,"MITCHELL HEY MILL","ROCHDALE CENTRAL","Rochdale Central"]
[314485,"GAS ST","ROCHDALE CENTRAL","Rochdale Central"]
[314324,"BELFIELD HSG","MILNROW","Milnrow"]
[315156,"STOCK GR","MILNROW","Milnrow"]
[314619,"ALBERT MILL","MILNROW","Milnrow"]
[314371,"BIRCH WASTE/LEYFIELD RD","MILNROW","Milnrow"]
[314658,"GRANGE AVE","MILNROW","Milnrow"]
[314473,"STUBLEY MILL RD","LITTLEBOROUGH","Littleborough"]
[314487,"MIDGEHOLES/DEARNLEY","LITTLEBOROUGH","Littleborough"]
[317866,"MIDGEHOLES/DEARNLEY","LITTLEBOROUGH","Littleborough"]
[315087,"PLYSU INTAKE/GREENVALE BUS CTR","LITTLEBOROUGH","Littleborough"]
[314627,"HOLLINGWORTH RD","LITTLEBOROUGH","Littleborough"]
[327129,"RAILWAY ST/RIVER ST","LITTLEBOROUGH","Littleborough"]
[314561,"LAURELS DR","LITTLEBOROUGH","Littleborough"]
[314649,"LAURELS DR","LITTLEBOROUGH","Littleborough"]
[314974,"TOP O TH LANE","SPOTLAND","Spotland"]
[314381,"CUTGATE","SPOTLAND","Spotland"]
[314444,"CLAYFIELD DR","SPOTLAND","Spotland"]
[327114,"CLAYFIELD DR","SPOTLAND","Spotland"]
[314708,"BROOKS END","SPOTLAND","Spotland"]
[327041,"BROOKS END","SPOTLAND","Spotland"]
[327533,"DITTON MEAD CL","WARDLEWORTH","Wardleworth"]
[329161,"BELFIELD RD","WARDLEWORTH","Wardleworth"]
[315737,"CLIFF ST","WARDLEWORTH","Wardleworth"]
[314961,"EDWARD ST FACIT/STATION RD","WHITWORTH","Whitworth"]
[314420,"OLD LN/OAK HS FM","WHITWORTH","Whitworth"]
[314679,"DANIEL ST","WHITWORTH","Whitworth"]
[314316,"KINGS RD","WOODBINE ST","Woodbine St"]
[314555,"HEALING ST","WOODBINE ST","Woodbine St"]
[327682,"NORWICH ST MILL","WOODBINE ST","Woodbine St"]
[314505,"ORAMA/HIGH LEVEL RD METROLINK","WOODBINE ST","Woodbine St"]
[314461,"MATTERSONS","GALE","Gale"]
[314429,"QUARRY MILL","GALE","Gale"]
[314346,"BROADLEY VIEW","GALE","Gale"]
[314894,"GALE PRY NETWORK T1","GALE","Gale"]
[330148,"NEWDAYS","PORTWOOD","Portwood"]
[338711,"MILLGATE DEPOT","PORTWOOD","Portwood"]
[333198,"STOCKPORT COOP/GT PORTWOOD ST","PORTWOOD","Portwood"]
[338704,"GASWORKS/WHARF ST","PORTWOOD","Portwood"]
[322739,"ALFORD ST PUMPING STN","HOLLINWOOD","Hollinwood"]
[328523,"LONG LN/MORRISONS","HOLLINWOOD","Hollinwood"]
[323643,"CRANBROOK GARDENS/DALES BROW","ASHTON-UNDER-LYNE","Ashton Under Lyne T11 & T12"]
[323272,"KNOWLE AVE/MOSS SIDE FM OH LINE","ASHTON-UNDER-LYNE","Ashton Under Lyne T11 & T12"]
[325281,"WELLINGTON ST/CAVENDISH ST","ASHTON-UNDER-LYNE","Ashton Under Lyne T11 & T12"]
[322615,"DALE ST E","ASHTON-UNDER-LYNE","Ashton Under Lyne T11 & T12"]
[320563,"COWHILL LN/OLDHAM RD RET PK/ASHTON M H","ASHTON-UNDER-LYNE","Ashton Under Lyne T11 & T12"]
[328016,"COWHILL LN/OLDHAM RD RET PK/ASHTON M H","ASHTON-UNDER-LYNE","Ashton Under Lyne T11 & T12"]
[326710,"BANK ST","ASHTON-UNDER-LYNE","Ashton Under Lyne T13"]
[451219,"GREENBANK GAS","BLACKBURN","Blackburn"]
[451102,"LIVESEYS/PEEL CENTRE","BLACKBURN","Blackburn"]
[450868,"IMPERIAL MILL","BLACKBURN","Blackburn"]
[450210,"FAIRHAVEN RD","ROMAN RD (NEW)","Roman Rd"]
[451086,"EVERTON","ROMAN RD (NEW)","Roman Rd"]
[451305,"CARNFORTH CL/ROMAN RD LOCAL","ROMAN RD (NEW)","Roman Rd"]
[451655,"WHINNEY HILL GENERATION","CLAYTON","BLACKBURN RD CLAYTON"]
[450520,"WELLINGTON ST","CLAYTON","BLACKBURN RD CLAYTON"]
[450281,"ROYAL MILL","CLAYTON","BLACKBURN RD CLAYTON"]
[450093,"CARNARVON RD/COLRIDGE ST","GRIFFIN","Griffin"]
[450781,"CARNARVON RD/COLRIDGE ST","GRIFFIN","Griffin"]
[450242,"REVIDGE RD/BEARDWOOD BROW","GRIFFIN","Griffin"]
[450300,"REVIDGE RD/BEARDWOOD BROW","GRIFFIN","Griffin"]
[450634,"REVIDGE RD/BEARDWOOD BROW","GRIFFIN","Griffin"]
[459994,"REVIDGE RD/BEARDWOOD BROW","GRIFFIN","Griffin"]
[450676,"PASTURE HS GEORGE ST W","GRIFFIN","Griffin"]
[451225,"REDLAM","GRIFFIN","Griffin"]
[451484,"BEARDWOOD HOSP","GRIFFIN","Griffin"]
[450610,"BEEHIVE MILL/BEDFORD ST","EXCHANGE ST","Exchange St"]
[450379,"MT PLEASANT ST/EXCHANGE ST NWK","EXCHANGE ST","Exchange St"]
[450774,"MT PLEASANT ST/EXCHANGE ST NWK","EXCHANGE ST","Exchange St"]
[452046,"POLICE ST/ICI DUCKWORTH ST","EXCHANGE ST","Exchange St"]
[451938,"ARGYLE ST/HOLLINS GR","EXCHANGE ST","Exchange St"]
[450347,"PALATINE MILL","GREAT HARWOOD","Great Harwood"]
[451314,"PALATINE MILL","GREAT HARWOOD","Great Harwood"]
[450688,"TESCO QUEEN ST","GREAT HARWOOD","Great Harwood"]
[450003,"CHURCH LOCAL/HENRY ST/LR ANTLEY ST","CHURCH","Church"]
[451155,"CHURCH LOCAL/HENRY ST/LR ANTLEY ST","CHURCH","Church"]
[450527,"WHITEWELL RD","STRAWBERRY BANK","Strawberry Bank"]
[450532,"NUTTER RD/PIONEER WKS/ADDISON CT","STRAWBERRY BANK","Strawberry Bank"]
[451521,"NUTTER RD/PIONEER WKS/ADDISON CT","STRAWBERRY BANK","Strawberry Bank"]
[450599,"ARNDALE CTR","HYNDBURN RD","Hyndburn Rd"]
[451671,"HYNDBURN RD LOCAL","HYNDBURN RD","Hyndburn Rd"]
[450206,"LABURNUM RD","CLARENDON RD","Clarendon Rd"]
[450582,"SUNNY BOWER","CLARENDON RD","Clarendon Rd"]
[450054,"FLORENCE MILL","CLARENDON RD","Clarendon Rd"]
[450431,"FLORENCE MILL","CLARENDON RD","Clarendon Rd"]
[451177,"FLORENCE MILL","CLARENDON RD","Clarendon Rd"]
[452072,"FLORENCE MILL","CLARENDON RD","Clarendon Rd"]
[450395,"FIELDEN ARMS","FENISCOWLES","Feniscowles"]
[451117,"FIELDEN ARMS","FENISCOWLES","Feniscowles"]
[450314,"DAVY FIELD BROW","LOWER DARWEN BSP","Lower Darwen"]
[451342,"DAVY FIELD BROW","LOWER DARWEN BSP","Lower Darwen"]
[452119,"NEPTUNE WAY/B.E","LOWER DARWEN BSP","Lower Darwen"]
[459816,"DONAGHADEE CARPETS","LOWER DARWEN BSP","Lower Darwen"]
[452312,"WOLSTENHOLME BRONZE POWDERS 2","LOWER DARWEN BSP","Lower Darwen"]
[450659,"ST ANDREWS ST","RANDAL ST","Randal St"]
[452029,"RANDAL ST LOCAL","RANDAL ST","Randal St"]
[450897,"CAPITA","RANDAL ST","Randal St"]
[450262,"PALMER ST","RANDAL ST","Randal St"]
[450952,"PALMER ST","RANDAL ST","Randal St"]
[451268,"CROASDALE SQ","PRINGLE ST","Pringle St"]
[450788,"FURTHERGATE MILL","PRINGLE ST","Pringle St"]
[451505,"BOTTOMGATE / STERLING DR","PRINGLE ST","Pringle St"]
[450451,"NEWFIELD SCHOOL/ENNERDALE AVE","PRINGLE ST","Pringle St"]
[450296,"QUEENS TERR","ALBION ST","Albion St"]
[459936,"QUEENS TERR","ALBION ST","Albion St"]
[451528,"ALBION ST HOUSING","ALBION ST","Albion St"]
[450104,"EWOOD MILL","ALBION ST","Albion St"]
[452067,"EWOOD MILL","ALBION ST","Albion St"]
[450442,"ALICE ST / PLOVER TERR","KAY ST","Kay St"]
[450463,"ALICE ST / PLOVER TERR","KAY ST","Kay St"]
[450960,"BROOK ST","KAY ST","Kay St"]
[459796,"VICTORIA ST","KAY ST","Kay St"]
[450238,"SIMPSON ST","KAY ST","Kay St"]
[451573,"SIMPSON ST","KAY ST","Kay St"]
[450236,"SOUGH RD","INDIA ST","India St"]
[450955,"RATCLIFFE ST","INDIA ST","India St"]
[450505,"POLE LN","INDIA ST","India St"]
[451232,"POLE LN","INDIA ST","India St"]
[458015,"BARNOLDSWICK RD","PHILLIPS LN","Phillips Lane"]
[458620,"BARNOLDSWICK RD","PHILLIPS LN","Phillips Lane"]
[458022,"TATTON ST","PHILLIPS LN","Phillips Lane"]
[452269,"THOMAS ST","PHILLIPS LN","Phillips Lane"]
[458552,"NORPOL","NELSON","Nelson"]
[458059,"CHATHAM ST","NELSON","Nelson"]
[458469,"CHATHAM ST","NELSON","Nelson"]
[458523,"CHATHAM ST","NELSON","Nelson"]
[458533,"CHATHAM ST","NELSON","Nelson"]
[458541,"ALBERT MILLS","NELSON","Nelson"]
[451152,"HEY ST","NELSON","Nelson"]
[458734,"HALLAM RD","NELSON","Nelson"]
[458277,"BANKFIELD/CURZON SQ CAR PK/THE MALL","BURNLEY CENTRE","Burnley Centre"]
[458108,"COAL ST","BURNLEY CENTRE","Burnley Centre"]
[458393,"SCE (EX POLICE HQ)","BURNLEY CENTRE","Burnley Centre"]
[459031,"SCE (EX MARKET SQ CAR PK)","BURNLEY CENTRE","Burnley Centre"]
[458450,"CHURCHILL WAY/CHURCHILL WAY NORTH","SPRING COTT","Spring Cottage"]
[458529,"CHURCHILL WAY/CHURCHILL WAY NORTH","SPRING COTT","Spring Cottage"]
[459565,"MACAWS NO 1","SPRING COTT","Spring Cottage"]
[458535,"WHITEFIELD MILL","SPRING COTT","Spring Cottage"]
[458125,"ELM ST","BURNLEY NORTH","Burnley North"]
[458978,"BARDEN EST","BURNLEY NORTH","Burnley North"]
[451140,"ST PHILIPS ST","BURNLEY NORTH","Burnley North"]
[452239,"BANCROFT CT","HEASANDFORD","Heasandford"]
[458781,"HEASANDFORD MILL","HEASANDFORD","Heasandford"]
[458537,"HIGHGATE","CLOVER HILL","Clover Hill"]
[458589,"RAILWAY ST","CLOVER HILL","Clover Hill"]
[458415,"VALE ST","CLOVER HILL","Clover Hill"]
[458597,"VALE ST","CLOVER HILL","Clover Hill"]
[459880,"VALE ST","CLOVER HILL","Clover Hill"]
[458680,"LYALL ST","ATHLETIC ST","Athletic St"]
[458330,"HOLMSLEY ST","ATHLETIC ST","Athletic St"]
[458945,"BROWNHILL AVE","ATHLETIC ST","Athletic St"]
[458285,"BRUNSHAW CO-OP","ATHLETIC ST","Athletic St"]
[459559,"BRUNSHAW CO-OP","ATHLETIC ST","Athletic St"]
[458382,"LODGE VILLA/BARNES CT","ATHLETIC ST","Athletic St"]
[459103,"LODGE VILLA/BARNES CT","ATHLETIC ST","Athletic St"]
[458245,"LUCAS WIDOW HILL/BALDERSTONE LN","BURNLEY GSP","Burnley"]
[459159,"LUCAS WIDOW HILL/BALDERSTONE LN","BURNLEY GSP","Burnley"]
[459101,"CHESSINGTON GRN","BURNLEY GSP","Burnley"]
[458364,"LEAMINGTON AVE","BURNLEY GSP","Burnley"]
[459469,"ABINGER ST","BURNLEY GSP","Burnley"]
[458274,"BALDERSTONE WIDOW HILL JCT","BURNLEY GSP","Burnley"]
[458712,"TUNNEL ST/HARGHER CLOUGH MILL","COG LN","Cog Lane"]
[458716,"BRUSH ST","COG LN","Cog Lane"]
[458112,"PETER WARD/PHOENIX WAY","COG LN","Cog Lane"]
[459979,"BK 127 COG LN/BK HAROLD ST","COG LN","Cog Lane"]
[458762,"CALDERBROOK AVE/HARGHER CLOUGH M","COG LN","Cog Lane"]
[458021,"DOCKRAY ST/ST STEPHENS WAY/STANROYD RD","LANGROYD RD","Langroyd Rd"]
[458720,"VARLEY ST","LANGROYD RD","Langroyd Rd"]
[451017,"SAINSBURYS COLNE","LANGROYD RD","Langroyd Rd"]
[458605,"GREENHILL MILL/BE","LANGROYD RD","Langroyd Rd"]
[458975,"GT HOLME MILL/BE","LANGROYD RD","Langroyd Rd"]
[458640,"BYRON RD HOSTEL","LANGROYD RD","Langroyd Rd"]
[459250,"BYRON RD HOSTEL","LANGROYD RD","Langroyd Rd"]
[459251,"BYRON RD HOSTEL","LANGROYD RD","Langroyd Rd"]
[458024,"CHARLES ST","LANGROYD RD","Langroyd Rd"]
[458094,"CHARLES ST","LANGROYD RD","Langroyd Rd"]
[458789,"CHARLES ST","LANGROYD RD","Langroyd Rd"]
[459881,"CHARLES ST","LANGROYD RD","Langroyd Rd"]
[458319,"ALTHAM BUS PK/SIMONSTONE","PADIHAM BSP","Padiham"]
[459175,"ALTHAM BUS PK/SIMONSTONE","PADIHAM BSP","Padiham"]
[451293,"FENNEY FOLD FM ABS/PADIHAM TOWN NO1","PADIHAM BSP","Padiham"]
[458593,"FENNEY FOLD FM ABS/PADIHAM TOWN NO1","PADIHAM BSP","Padiham"]
[459148,"FENNEY FOLD FM ABS/PADIHAM TOWN NO1","PADIHAM BSP","Padiham"]
[450713,"GRAHAM & BROWN","PADIHAM BSP","Padiham"]
[458271,"PADIHAM TOWN NO 2/PITT ST","PADIHAM BSP","Padiham"]
[455544,"BROOKS MILL","PEEL ST","Peel St & Ribblesdale T13"]
[456901,"JUBILEE MILL/BOLLAND PROSPECT","PEEL ST","Peel St & Ribblesdale T13"]
[455733,"QUEENS RD HOSTEL","PEEL ST","Peel St & Ribblesdale T13"]
[455146,"BROOKES LN SW HS","WHALLEY","Whalley"]
[455655,"BROOKES LN SW HS","WHALLEY","Whalley"]
[458257,"BROOKES LN SW HS","WHALLEY","Whalley"]
[458336,"BROOKES LN SW HS","WHALLEY","Whalley"]
[459597,"BROOKES LN SW HS","WHALLEY","Whalley"]
[455033,"BRIDGE TERR/CALDERSTONES TRUST","WHALLEY","Whalley"]
[455141,"BRIDGE TERR/CALDERSTONES TRUST","WHALLEY","Whalley"]
[455296,"BRIDGE TERR/CALDERSTONES TRUST","WHALLEY","Whalley"]
[455608,"BRIDGE TERR/CALDERSTONES TRUST","WHALLEY","Whalley"]
[455911,"BRIDGE TERR/CALDERSTONES TRUST","WHALLEY","Whalley"]
[456857,"BRIDGE TERR/CALDERSTONES TRUST","WHALLEY","Whalley"]
[459646,"BRIDGE TERR/CALDERSTONES TRUST","WHALLEY","Whalley"]
[451762,"ACCRINGTON RD SW STN","WHALLEY","Whalley"]
[450731,"MANOR RD OD","WHALLEY","Whalley"]
[451311,"MANOR RD OD","WHALLEY","Whalley"]
[455151,"BROOKES LN","WHALLEY","Whalley"]
[451209,"T11","BOLTON BY BOWLAND","Bolton By Bowland"]
[455018,"T11","BOLTON BY BOWLAND","Bolton By Bowland"]
[455120,"T11","BOLTON BY BOWLAND","Bolton By Bowland"]
[455322,"T11","BOLTON BY BOWLAND","Bolton By Bowland"]
[455329,"T11","BOLTON BY BOWLAND","Bolton By Bowland"]
[455440,"T11","BOLTON BY BOWLAND","Bolton By Bowland"]
[455446,"T11","BOLTON BY BOWLAND","Bolton By Bowland"]
[455519,"T11","BOLTON BY BOWLAND","Bolton By Bowland"]
[455588,"T11","BOLTON BY BOWLAND","Bolton By Bowland"]
[455801,"T11","BOLTON BY BOWLAND","Bolton By Bowland"]
[455955,"T11","BOLTON BY BOWLAND","Bolton By Bowland"]
[456978,"T11","BOLTON BY BOWLAND","Bolton By Bowland"]
[457193,"T11","BOLTON BY BOWLAND","Bolton By Bowland"]
[455011,"PIMLICO RD","RIBBLESDALE","Peel St & Ribblesdale T13"]
[455358,"PIMLICO RD","RIBBLESDALE","Peel St & Ribblesdale T13"]
[455392,"PIMLICO RD","RIBBLESDALE","Peel St & Ribblesdale T13"]
[455701,"PIMLICO RD","RIBBLESDALE","Peel St & Ribblesdale T13"]
[455715,"PIMLICO RD","RIBBLESDALE","Peel St & Ribblesdale T13"]
[457001,"PIMLICO RD","RIBBLESDALE","Peel St & Ribblesdale T13"]
[455086,"HAWTHORN PL/RIBBLESDALE LOCAL/PIMLICO","RIBBLESDALE","Peel St & Ribblesdale T13"]
[455010,"BANKFIELD","RIBBLESDALE","Ribblesdale T14"]
[455357,"BANKFIELD","RIBBLESDALE","Ribblesdale T14"]
[456931,"BANKFIELD","RIBBLESDALE","Ribblesdale T14"]
[459891,"BANKFIELD","RIBBLESDALE","Ribblesdale T14"]
[459638,"WEST BRADFORD ABS","RIBBLESDALE","Ribblesdale T14"]
[455119,"WADDOW PK","RIBBLESDALE","Ribblesdale T14"]
[455364,"WADDOW PK","RIBBLESDALE","Ribblesdale T14"]
[455592,"WADDOW PK","RIBBLESDALE","Ribblesdale T14"]
[455745,"WADDOW PK","RIBBLESDALE","Ribblesdale T14"]
[456856,"WADDOW PK","RIBBLESDALE","Ribblesdale T14"]
[459972,"WADDOW PK","RIBBLESDALE","Ribblesdale T14"]
[454033,"ACRE/GROVE MILL","PRINNY HILL","Prinny Hill"]
[451299,"SPRING LN","PRINNY HILL","Prinny Hill"]
[450058,"CARRS IND","PRINNY HILL","Prinny Hill"]
[450932,"GRANE IND PK","GRANE RD","Grane Rd"]
[451859,"WOOLPACK","RAWTENSTALL RD","Rawtenstall Rd"]
[453278,"WOOLPACK","RAWTENSTALL RD","Rawtenstall Rd"]
[454095,"BRYNBELLA DR","RAWTENSTALL RD","Rawtenstall Rd"]
[453292,"DURIE & MILLER","RAWTENSTALL RD","Rawtenstall Rd"]
[453057,"UNION RD","RAWTENSTALL RD","Rawtenstall Rd"]
[453214,"RYDAL RD","RAWTENSTALL RD","Rawtenstall Rd"]
[453080,"HR CLOUGHFOLD","HAREHOLME","Hareholme"]
[452095,"THE CENTRE","HAREHOLME","Hareholme"]
[451362,"CLARKEHOLME","HAREHOLME","Hareholme"]
[453029,"CLARKEHOLME","HAREHOLME","Hareholme"]
[453187,"CLARKEHOLME","HAREHOLME","Hareholme"]
[453151,"WATERBARN","HAREHOLME","Hareholme"]
[453001,"HAREHOLME NETWORK","HAREHOLME","Hareholme"]
[453020,"CONSTABLE LEE","HAREHOLME","Hareholme"]
[453037,"CONSTABLE LEE","HAREHOLME","Hareholme"]
[453934,"GLEN TOP/CRAWSHAWBOOTH NO1","HAREHOLME","Hareholme"]
[453949,"STANSFIELD RD/RAWTENSTALL RD","HAREHOLME","Hareholme"]
[453035,"GAGHILLS","HAREHOLME","Hareholme"]
[451608,"BROADCLOUGH","WESLEY PL","Wesley Place Bacup"]
[453137,"ROCKCLIFFE MILL","WESLEY PL","Wesley Place Bacup"]
[453184,"JJ ORMEROD OLIVE MILL","WESLEY PL","Wesley Place Bacup"]
[451291,"PARK RD IND EST","WESLEY PL","Wesley Place Bacup"]
[423532,"ALBANY RD","ANSDELL","Ansdell"]
[423233,"CHURCH LODGE/LARCHWOOD CL","ANSDELL","Ansdell"]
[423313,"SOUTH HEY","ANSDELL","Ansdell"]
[423531,"FOSBROOKE HS/FIRSWOOD CL","ANSDELL","Ansdell"]
[423250,"BISPHAM HEALTH AND LEISURE","BISPHAM PRY","Bispham"]
[428212,"BACK COLLINS AVE","BISPHAM PRY","Bispham"]
[423271,"RED BANK RD","BISPHAM PRY","Bispham"]
[423688,"WARBRECK DR O/D","BISPHAM PRY","Bispham"]
[423998,"HOLROYD CT","BISPHAM PRY","Bispham"]
[423382,"C AND S","CECIL ST","Cecil St"]
[423121,"SPENCER CT","CECIL ST","Cecil St"]
[423367,"VICTORIA HOTEL","CLEVELEYS","Cleveleys"]
[423607,"THORNTON GATE","CLEVELEYS","Cleveleys"]
[423533,"HOLMEFIELD AVE","CLEVELEYS","Cleveleys"]
[423457,"ASDA FLEETWOOD","COPSE RD","Copse Rd"]
[423474,"ADDISON RD","COPSE RD","Copse Rd"]
[429802,"NORTH FLEET/LOFTHOUSE LTD SW","COPSE RD","Copse Rd"]
[423722,"LINDEL RD","COPSE RD","Copse Rd"]
[423228,"HAVEN RD","SOUTH PK","South Park"]
[420114,"STATION RD (LYTHAM)","SOUTH PK","South Park"]
[420035,"ASHWORTH RD/BRUNEL WAY","MARTON","Marton"]
[427272,"MIDGELAND RD","MARTON","Marton"]
[423192,"WILD LN PUMP STN","MARTON","Marton"]
[427157,"WILD LN PUMP STN","MARTON","Marton"]
[427352,"WILD LN PUMP STN","MARTON","Marton"]
[423480,"NORBRECK EAST SW STN SW01","NORBRECK","Norbreck"]
[423305,"RUSSELL AVE","NORBRECK","Norbreck"]
[423011,"FAIRFIELD RD SW/ALDON RD O.D/TODDERSTA","POULTON","Poulton"]
[423243,"CARR HEAD LN","POULTON","Poulton"]
[423613,"CARR HEAD LN","POULTON","Poulton"]
[423280,"CARR CL","POULTON","Poulton"]
[423074,"CHAPEL CT","POULTON","Poulton"]
[423741,"SHARMAN AVE","ST ANNES","St Annes"]
[427202,"ST GEORGES (ST ANNES)","ST ANNES","St Annes"]
[423215,"ST PATRICKS RD S","ST THOMAS RD","St Thomas Rd"]
[428246,"LINKS RD LYTHAM","ST THOMAS RD","St Thomas Rd"]
[427920,"PAVILION","BLACKPOOL","Blackpool"]
[428228,"PIER ST","BLACKPOOL","Blackpool"]
[418190,"MARKET SITE/MUNICIPAL BLDG BP","BLACKPOOL","Blackpool"]
[423030,"MANCHESTER SQ 'A'","SHANNON ST SOUTH","Shannon St South"]
[423574,"SIMPSON ST","SHANNON ST SOUTH","Shannon St South"]
[420931,"VICTORIA/SOUTH SHORE ACADEMY","SHANNON ST SOUTH","Shannon St South"]
[423509,"SQUIRES GATE IND EST/APC AMY JOHNSON W","SQUIRES GATE","Squires Gate"]
[420075,"SQUIRES GATE LOCAL","SQUIRES GATE","Squires Gate"]
[423767,"SUPREME PLASTICS","SQUIRES GATE","Squires Gate"]
[423356,"WOODLANDS AVE","THORNTON PRY","Thornton"]
[420158,"HASTINGS RD","THORNTON PRY","Thornton"]
[423500,"ELMWOOD DR","THORNTON PRY","Thornton"]
[423569,"AINSDALE AVE","THORNTON PRY","Thornton"]
[423691,"HOO HILL","WARBRECK","Warbreck"]
[423472,"MOH WARBRECK HILL RD","WARBRECK","Warbreck"]
[420045,"WEYMOUTH RD","PRESTON OLD RD","Preston Old Rd"]
[429896,"SOUTH PK DR","PRESTON OLD RD","Preston Old Rd"]
[423745,"SUNNINGDALE AVE","ROSSALL","Rossall"]
[429604,"WHITEHILL LODGE","MERESIDE","Mereside"]
[427958,"ELTERWATER PL","MERESIDE","Mereside"]
[423730,"MEREPARK LEISURE CENTRE","MERESIDE","Mereside"]
[420056,"HALLAM WAY NO2","MERESIDE","Mereside"]
[415862,"WHITEFIELD MEADOW","BAMBER BRIDGE","Bamber Bridge"]
[414661,"BAMBER BR LOCAL","BAMBER BRIDGE","Bamber Bridge"]
[417980,"RENSHAW DR","BAMBER BRIDGE","Bamber Bridge"]
[415101,"ST MARYS RC SCHOOL","BAMBER BRIDGE","Bamber Bridge"]
[415339,"FROOM ST SW STN/MONTCLIFFE RD","BOTANY BAY","Botany Bay"]
[417350,"FROOM ST SW STN/MONTCLIFFE RD","BOTANY BAY","Botany Bay"]
[415407,"MOSS LN LEISURE/BLACKBURN RD","BOTANY BAY","Botany Bay"]
[414722,"SCHOOL LN/BRINSCALL HALL","BOTANY BAY","Botany Bay"]
[415598,"SCHOOL LN/BRINSCALL HALL","BOTANY BAY","Botany Bay"]
[415991,"BALSHAWS GRAM SCH","BOW LN","Bow Lane"]
[411040,"LEYLAND BUS PK PHASE 2","BOW LN","Bow Lane"]
[415849,"MERCURY MOTEL/WHERNSIDE WAY","BOW LN","Bow Lane"]
[416044,"MERCURY MOTEL/WHERNSIDE WAY","BOW LN","Bow Lane"]
[415001,"SOUTH RINGS HOTEL/CENTURION WAY","BOW LN","Bow Lane"]
[415165,"SOUTH RINGS HOTEL/CENTURION WAY","BOW LN","Bow Lane"]
[415523,"BURSCOUGH BRIDGE O/D","BURSCOUGH BRIDGE","Burscough Bridge"]
[411342,"RED CAT LN BURSCOUGH","BURSCOUGH BRIDGE","Burscough Bridge"]
[414491,"NEW LN","BURSCOUGH BRIDGE","Burscough Bridge"]
[415738,"NEW LN","BURSCOUGH BRIDGE","Burscough Bridge"]
[414611,"THE WHARF BURSCOUGH","BURSCOUGH BRIDGE","Burscough Bridge"]
[415946,"THE WHARF BURSCOUGH","BURSCOUGH BRIDGE","Burscough Bridge"]
[415130,"CROSTON MOSS ABS/","HANGING BRIDGE","Hanging Bridge"]
[414551,"RUFFORD MARINA","HANGING BRIDGE","Hanging Bridge"]
[414172,"HOLMESWOOD","HANGING BRIDGE","Hanging Bridge"]
[414504,"HOLMESWOOD","HANGING BRIDGE","Hanging Bridge"]
[415319,"HOLMESWOOD","HANGING BRIDGE","Hanging Bridge"]
[411330,"BANKS FM SOLLOM/","HANGING BRIDGE","Hanging Bridge"]
[415794,"FYLDE ICE","HIGHER WALTON","Higher Walton"]
[418236,"WHITBREADS","HIGHER WALTON","Higher Walton"]
[414397,"HOGHTON LN","HIGHER WALTON","Higher Walton"]
[415104,"HOGHTON LN","HIGHER WALTON","Higher Walton"]
[414165,"KITTLINGBORNE/SIRLOIN","HIGHER WALTON","Higher Walton"]
[415355,"KITTLINGBORNE/SIRLOIN","HIGHER WALTON","Higher Walton"]
[415766,"KITTLINGBORNE/SIRLOIN","HIGHER WALTON","Higher Walton"]
[415989,"HIGHER WALTON LOCAL","HIGHER WALTON","Higher Walton"]
[415602,"COUPES FOUNDRY/BANNISTER HALL LN","HIGHER WALTON","Higher Walton"]
[414849,"THORNTON DR","HIGHER WALTON","Higher Walton"]
[414147,"THE CASTLE","HIGHER WALTON","Higher Walton"]
[415392,"THE CASTLE","HIGHER WALTON","Higher Walton"]
[418191,"THE CASTLE","HIGHER WALTON","Higher Walton"]
[414646,"BLUNDELL LN/QUEENSWAY","HOLME RD","Holme Rd"]
[415508,"VALLEY RD PUMP STN","HOLME RD","Holme Rd"]
[415085,"HOLME RD O/D","HOLME RD","Holme Rd"]
[414449,"GASKELL RD","HOLME RD","Holme Rd"]
[411105,"PENWORTHAM GIS/HOLME RD TERMINAL PUMP","HOLME RD","Holme Rd"]
[414695,"PRIORY LN","HOLME RD","Holme Rd"]
[414696,"PRIORY LN","HOLME RD","Holme Rd"]
[415092,"GREEN LN","ORMSKIRK","Ormskirk"]
[415190,"GREEN LN","ORMSKIRK","Ormskirk"]
[414068,"SAFEWAY (ORMSKIRK)","ORMSKIRK","Ormskirk"]
[414390,"SAFEWAY (ORMSKIRK)","ORMSKIRK","Ormskirk"]
[415081,"SAFEWAY (ORMSKIRK)","ORMSKIRK","Ormskirk"]
[415664,"SAFEWAY (ORMSKIRK)","ORMSKIRK","Ormskirk"]
[414222,"MOORGATE","ORMSKIRK","Ormskirk"]
[411023,"MATRIX PLOT 3000","BUCKSHAW PRY","Buckshaw"]
[415429,"WOLSELEY REVOLUTION PK/CANNONSWOOD","BUCKSHAW PRY","Buckshaw"]
[414148,"BOUNDARY LN/NEW HS NURSERY","TARLETON","Tarleton"]
[414468,"BOUNDARY LN/NEW HS NURSERY","TARLETON","Tarleton"]
[415995,"BOUNDARY LN/NEW HS NURSERY","TARLETON","Tarleton"]
[419804,"BOUNDARY LN/NEW HS NURSERY","TARLETON","Tarleton"]
[414663,"TARLETON LOCAL","TARLETON","Tarleton"]
[415786,"TARLETON LOCAL","TARLETON","Tarleton"]
[419954,"TARLETON LOCAL","TARLETON","Tarleton"]
[414456,"HAUNDERS LN ABS/PLOCKS FM LIVERPOOL RD","TARLETON","Tarleton"]
[415437,"HAUNDERS LN ABS/PLOCKS FM LIVERPOOL RD","TARLETON","Tarleton"]
[417358,"HAUNDERS LN ABS/PLOCKS FM LIVERPOOL RD","TARLETON","Tarleton"]
[414591,"WINDGATE","TARLETON","Tarleton"]
[414022,"WHITTLE KIOSK","WHITTLE-LE-WOODS","Whittle Le Woods"]
[415516,"WHITTLE KIOSK","WHITTLE-LE-WOODS","Whittle Le Woods"]
[415159,"CLAYTON HALL GENERATION/WHITTLE ETW AB","WHITTLE-LE-WOODS","Whittle Le Woods"]
[415082,"CHURCH HILL","WHITTLE-LE-WOODS","Whittle Le Woods"]
[415304,"CROOKS QUARRY / WHEELTON","WHITTLE-LE-WOODS","Whittle Le Woods"]
[414187,"WHITTLE SPRINGS/LUCAS LN","WHITTLE-LE-WOODS","Whittle Le Woods"]
[417988,"WHITTLE SPRINGS/LUCAS LN","WHITTLE-LE-WOODS","Whittle Le Woods"]
[415844,"ACKHURST RD / ACKHURST IND EST","WOODFIELD RD","Woodfield Rd"]
[411015,"CHORLEY POLICE HQ","WOODFIELD RD","Woodfield Rd"]
[414639,"GAS BOARD","WOODFIELD RD","Woodfield Rd"]
[414883,"BRITISH LEYLAND/COMMON BANK EMPLOY ARE","WOODFIELD RD","Woodfield Rd"]
[414904,"BRITISH LEYLAND/COMMON BANK EMPLOY ARE","WOODFIELD RD","Woodfield Rd"]
[414486,"ST MICHAELS SCH / HALL GATE / DEERFOLD","WOODFIELD RD","Woodfield Rd"]
[414876,"ST MICHAELS SCH / HALL GATE / DEERFOLD","WOODFIELD RD","Woodfield Rd"]
[414892,"ECCLESTON S/PARK HALL SW","WRIGHTINGTON PRY","Wrightington"]
[415631,"ECCLESTON S/PARK HALL SW","WRIGHTINGTON PRY","Wrightington"]
[414674,"COPPULL MOOR/SPENDMORE LN W","WRIGHTINGTON PRY","Wrightington"]
[414670,"WOOD LN","WRIGHTINGTON PRY","Wrightington"]
[415248,"WOOD LN","WRIGHTINGTON PRY","Wrightington"]
[414618,"BROADHEY LN/HAWETT HILL ABS/","WRIGHTINGTON PRY","Wrightington"]
[415228,"BROADHEY LN/HAWETT HILL ABS/","WRIGHTINGTON PRY","Wrightington"]
[415771,"BROADHEY LN/HAWETT HILL ABS/","WRIGHTINGTON PRY","Wrightington"]
[411108,"LASSELL HS FM","WRIGHTINGTON PRY","Wrightington"]
[414769,"RIDLEY LN","WRIGHTINGTON PRY","Wrightington"]
[414951,"RIDLEY LN","WRIGHTINGTON PRY","Wrightington"]
[410194,"BAXIS CLUB ST NO 1","TARDY GATE","Tardy Gate"]
[414732,"COOTE LN SW HS","TARDY GATE","Tardy Gate"]
[414926,"COOTE LN SW HS","TARDY GATE","Tardy Gate"]
[415515,"COOTE LN SW HS","TARDY GATE","Tardy Gate"]
[414997,"LEYLAND RD/EMILY ST","TARDY GATE","Tardy Gate"]
[414200,"PEACOCK HALL","SEVEN STARS","Seven Stars"]
[415434,"PEACOCK HALL","SEVEN STARS","Seven Stars"]
[414597,"THORNHILL RD","SEVEN STARS","Seven Stars"]
[418058,"THORNHILL RD","SEVEN STARS","Seven Stars"]
[415542,"MOSS SIDE/AGED PERSONS W PADDOCK/MOSS","SEVEN STARS","Seven Stars"]
[414168,"MORRIS DANCERS/BLACK MOSS DEPOT","SCARISBRICK","Scarisbrick"]
[414686,"MORRIS DANCERS/BLACK MOSS DEPOT","SCARISBRICK","Scarisbrick"]
[415611,"MORRIS DANCERS/BLACK MOSS DEPOT","SCARISBRICK","Scarisbrick"]
[415943,"SHIRDLEY HILL/BLACK BROOK ABS","SCARISBRICK","Scarisbrick"]
[414171,"RENACRES LN ABS/RENACRES HALL","SCARISBRICK","Scarisbrick"]
[418089,"RENACRES LN ABS/RENACRES HALL","SCARISBRICK","Scarisbrick"]
[414602,"TOROTRACK DEV/SCHWANS","MOSS SIDE","Moss Side (Leyland)"]
[415465,"GORING ST SW STN","CHORLEY SOUTH","Chorley South"]
[418050,"DUKE ST/RYLANDS RD","CHORLEY SOUTH","Chorley South"]
[414295,"ECCLESTON PK","CHORLEY SOUTH","Chorley South"]
[410077,"PILLING LN","CHORLEY SOUTH","Chorley South"]
[411206,"SHERBOURNE ST/COPPULL","CHORLEY SOUTH","Chorley South"]
[410064,"SKILL CENTRE","PRESTON EAST PRY","Preston East"]
[410452,"SKILL CENTRE","PRESTON EAST PRY","Preston East"]
[410743,"FIR TREES/ALDER RD/RED SCAR WEST","PRESTON EAST PRY","Preston East"]
[410468,"GRIMSARGH HS ABS/FELL VIEW SOLAR FM","PRESTON EAST PRY","Preston East"]
[410735,"LANCASHIRE WAY/BLUEBELL COMMERCIAL","PRESTON EAST PRY","Preston East"]
[417908,"MODELBOARD","PRESTON EAST PRY","Preston East"]
[410344,"MARINERS WAY/NORBRECK DR","ASHTON","Ashton (Ribble)"]
[410455,"PARKFIELD CRES/HAWTHORN CRES","ASHTON","Ashton (Ribble)"]
[410943,"PARKFIELD CRES/HAWTHORN CRES","ASHTON","Ashton (Ribble)"]
[410343,"MARSDEN RD","ASHTON","Ashton (Ribble)"]
[418161,"LEA RD","ASHTON","Ashton (Ribble)"]
[410795,"OXFORD ST N","AVENHAM","Avenham"]
[410690,"ANCHOR CT","AVENHAM","Avenham"]
[410845,"ANCHOR CT","AVENHAM","Avenham"]
[410190,"LANSDOWN HILL S","BLACKBULL","Blackbull"]
[410906,"LANSDOWN HILL S","BLACKBULL","Blackbull"]
[410310,"ASHWOOD RD","BLACKBULL","Blackbull"]
[410484,"ASHWOOD RD","BLACKBULL","Blackbull"]
[417881,"ASHWOOD RD","BLACKBULL","Blackbull"]
[410657,"HURSTWAY","BLACKBULL","Blackbull"]
[410250,"CCA STN/PITMAN WAY N/T1 CHESWICK","BLACKBULL","Blackbull"]
[410842,"MORRISONS WEST VIEW","DODGSON RD","Dodgson Rd"]
[410903,"CASTLETON RD","DODGSON RD","Dodgson Rd"]
[410883,"DOUGLAS ST O.D","DOUGLAS ST","Douglas St"]
[417224,"WEST STRAND RD RETAIL","DOUGLAS ST","Douglas St"]
[417173,"POWIS RD","DOUGLAS ST","Douglas St"]
[410316,"HALL CROSS 6.6KV LOCAL","HALL CROSS","Hall Cross"]
[410048,"KIRKHAM RD","HALL CROSS","Hall Cross"]
[410286,"KIRKHAM RD","HALL CROSS","Hall Cross"]
[410900,"KIRKHAM RD","HALL CROSS","Hall Cross"]
[410585,"SUNNYSIDE FM","HALL CROSS","Hall Cross"]
[410056,"RIBBY HALL SW STN","HALL CROSS","Hall Cross"]
[410912,"RIBBY HALL SW STN","HALL CROSS","Hall Cross"]
[410808,"HM PRISON KIRKHAM","HALL CROSS","Hall Cross"]
[410742,"FRECKLETON ST SOUTH","HALL CROSS","Hall Cross"]
[410024,"GARLICK HS/","MOORSIDE","Moorside"]
[410598,"GARLICK HS/","MOORSIDE","Moorside"]
[419794,"GARLICK HS/","MOORSIDE","Moorside"]
[410528,"WOODPLUMPTON/WOODPLUMPTON CORN MILL","MOORSIDE","Moorside"]
[410944,"WOODPLUMPTON/WOODPLUMPTON CORN MILL","MOORSIDE","Moorside"]
[410229,"BENSONS LN","MOORSIDE","Moorside"]
[410560,"BENSONS LN","MOORSIDE","Moorside"]
[411107,"BENSONS LN","MOORSIDE","Moorside"]
[410724,"HMS INSKIP","MOORSIDE","Moorside"]
[410137,"ROSEMARY FM/ELSWICK EAST","MOORSIDE","Moorside"]
[410406,"ROSEMARY FM/ELSWICK EAST","MOORSIDE","Moorside"]
[417879,"ROSEMARY FM/ELSWICK EAST","MOORSIDE","Moorside"]
[410158,"BELMONT AVE(RIBBLETON)","RIBBLETON","Ribbleton"]
[417041,"BLUEBELL WAY/RED SCAR GATEHOUSE","RIBBLETON","Ribbleton"]
[410816,"BUCKINGHAM BINGO","ST MARYS ST","St Marys St"]
[410100,"QUEEN ST PRESTON","ST MARYS ST","St Marys St"]
[410293,"NEW PRESTON MILL","ST MARYS ST","St Marys St"]
[410787,"TAG LN","TULKETH","Tulketh"]
[410663,"SEYMOUR RD","TULKETH","Tulketh"]
[410163,"WILDMAN ST","TULKETH","Tulketh"]
[418158,"STOCKS BRIDGE MILL","TULKETH","Tulketh"]
[410606,"HARBOUR LN (WARTON)/LIBERATOR WAY/LYTH","WARTON","Warton"]
[417296,"HARBOUR LN (WARTON)/LIBERATOR WAY/LYTH","WARTON","Warton"]
[410309,"DOCTORS ROW/LONGRIDGE SEC/PRESTON RD","LONGRIDGE","Longridge"]
[410504,"DOCTORS ROW/LONGRIDGE SEC/PRESTON RD","LONGRIDGE","Longridge"]
[410758,"DOCTORS ROW/LONGRIDGE SEC/PRESTON RD","LONGRIDGE","Longridge"]
[417334,"DOCTORS ROW/LONGRIDGE SEC/PRESTON RD","LONGRIDGE","Longridge"]
[410381,"LITTLE LN","LONGRIDGE","Longridge"]
[410097,"BERRY LN","LONGRIDGE","Longridge"]
[410101,"CALFCOTE LN","LONGRIDGE","Longridge"]
[410449,"CALFCOTE LN","LONGRIDGE","Longridge"]
[410605,"CALFCOTE LN","LONGRIDGE","Longridge"]
[417032,"CALFCOTE LN","LONGRIDGE","Longridge"]
[455127,"BILLINGTON HALL TREES ABS/","LONGRIDGE","Longridge"]
[455208,"BILLINGTON HALL TREES ABS/","LONGRIDGE","Longridge"]
[455248,"BILLINGTON HALL TREES ABS/","LONGRIDGE","Longridge"]
[455343,"BILLINGTON HALL TREES ABS/","LONGRIDGE","Longridge"]
[455524,"BILLINGTON HALL TREES ABS/","LONGRIDGE","Longridge"]
[455817,"BILLINGTON HALL TREES ABS/","LONGRIDGE","Longridge"]
[456721,"BILLINGTON HALL TREES ABS/","LONGRIDGE","Longridge"]
[457092,"BILLINGTON HALL TREES ABS/","LONGRIDGE","Longridge"]
[457103,"BILLINGTON HALL TREES ABS/","LONGRIDGE","Longridge"]
[410020,"COLLINS NORTH RD","BUSHELL ST","Bushell St"]
[418150,"ELLIOT ST","CRAGGS ROW","Craggs Row"]
[419930,"MOOR LN STUDENT FLATS","CRAGGS ROW","Craggs Row"]
[417073,"RIPON ST/VERNON ST","CRAGGS ROW","Craggs Row"]
[618047,"COTSWOLD CRES","BARROW-DEVONSHIRE RD","Barrow "]
[610263,"INFIELD PK","BARROW-DEVONSHIRE RD","Barrow "]
[610410,"INFIELD PK","BARROW-DEVONSHIRE RD","Barrow "]
[612690,"INFIELD PK","BARROW-DEVONSHIRE RD","Barrow "]
[618095,"INFIELD PK","BARROW-DEVONSHIRE RD","Barrow "]
[618058,"NORFOLK ST","BARROW-DEVONSHIRE RD","Barrow "]
[610204,"FURNESS BUS PK S","CHATSWORTH ST","Chatsworth St"]
[616352,"FURNESS BUS PK S","CHATSWORTH ST","Chatsworth St"]
[616326,"FURNESS NEWS","CHATSWORTH ST","Chatsworth St"]
[618015,"NORTH SCALE","CHATSWORTH ST","Chatsworth St"]
[616017,"FURNESS COLLEGE","CHATSWORTH ST","Chatsworth St"]
[618040,"FREDERICK ST NO2","SANDGATE","Sandgate"]
[618190,"FREDERICK ST NO2","SANDGATE","Sandgate"]
[616249,"FLASS LN","SANDGATE","Sandgate"]
[618206,"SALTHOUSE DEPOT","SANDGATE","Sandgate"]
[610469,"KESTREL DR","DALTON","Dalton"]
[616332,"KESTREL DR","DALTON","Dalton"]
[610463,"CROOKLANDS BROW","DALTON","Dalton"]
[610518,"CROOKLANDS BROW","DALTON","Dalton"]
[610665,"CROOKLANDS BROW","DALTON","Dalton"]
[616094,"VICTORIA ST","DALTON","Dalton"]
[610531,"HIGHFIELD GENERATION/GREYSTONES LN/","DALTON","Dalton"]
[610730,"HIGHFIELD GENERATION/GREYSTONES LN/","DALTON","Dalton"]
[616334,"HIGHFIELD GENERATION/GREYSTONES LN/","DALTON","Dalton"]
[618124,"LIGHTBURN RD A","ULVERSTON","Ulverston"]
[616126,"DALTONGATE/HILL FOOT","ULVERSTON","Ulverston"]
[618119,"DALTONGATE/HILL FOOT","ULVERSTON","Ulverston"]
[610001,"LUND RD SW STN","ULVERSTON","Ulverston"]
[610787,"LUND RD SW STN","ULVERSTON","Ulverston"]
[610844,"LUND RD SW STN","ULVERSTON","Ulverston"]
[618132,"LUND RD SW STN","ULVERSTON","Ulverston"]
[610009,"DRUM CLOSURES SW STN/DEVONSHIRE RD WWT","ASKAM","Askam"]
[610033,"DRUM CLOSURES SW STN/DEVONSHIRE RD WWT","ASKAM","Askam"]
[610074,"DRUM CLOSURES SW STN/DEVONSHIRE RD WWT","ASKAM","Askam"]
[610097,"DRUM CLOSURES SW STN/DEVONSHIRE RD WWT","ASKAM","Askam"]
[610147,"DRUM CLOSURES SW STN/DEVONSHIRE RD WWT","ASKAM","Askam"]
[612820,"DRUM CLOSURES SW STN/DEVONSHIRE RD WWT","ASKAM","Askam"]
[610315,"ASKAM LOCAL","ASKAM","Askam"]
[610212,"DUKE ST","ASKAM","Askam"]
[610349,"SHIP INN","ASKAM","Askam"]
[610433,"SHIP INN","ASKAM","Askam"]
[611323,"SHIP INN","ASKAM","Askam"]
[616019,"DUDDON RD","ASKAM","Askam"]
[610228,"WHITRIGGS/HEARFIELDS","ASKAM","Askam"]
[616001,"WHITRIGGS/HEARFIELDS","ASKAM","Askam"]
[610485,"OLD STATION","CONISTON","Coniston"]
[610510,"OLD STATION","CONISTON","Coniston"]
[610683,"OLD STATION","CONISTON","Coniston"]
[610805,"OLD STATION","CONISTON","Coniston"]
[616134,"OLD STATION","CONISTON","Coniston"]
[616144,"CONISTON HYDRO GEN","CONISTON","Coniston"]
[616257,"CONISTON HYDRO GEN","CONISTON","Coniston"]
[611012,"GRANGE FELL GOLF CLUB SW STN","GRANGE","Grange"]
[611042,"GRANGE FELL GOLF CLUB SW STN","GRANGE","Grange"]
[611112,"GRANGE FELL GOLF CLUB SW STN","GRANGE","Grange"]
[611168,"GRANGE FELL GOLF CLUB SW STN","GRANGE","Grange"]
[616197,"EDEN MOUNT","GRANGE","Grange"]
[611202,"LINGARTH/HAMPSFIELD ABS","GRANGE","Grange"]
[611207,"LINGARTH/HAMPSFIELD ABS","GRANGE","Grange"]
[611235,"LINGARTH/HAMPSFIELD ABS","GRANGE","Grange"]
[611398,"LINGARTH/HAMPSFIELD ABS","GRANGE","Grange"]
[611079,"HEADS DR","GRANGE","Grange"]
[611291,"HEADS DR","GRANGE","Grange"]
[618161,"HEADS DR","GRANGE","Grange"]
[610651,"GREENODD SW STN","HAVERTHWAITE","Haverthwaite"]
[610757,"GREENODD SW STN","HAVERTHWAITE","Haverthwaite"]
[610811,"GREENODD SW STN","HAVERTHWAITE","Haverthwaite"]
[610879,"GREENODD SW STN","HAVERTHWAITE","Haverthwaite"]
[610914,"GREENODD SW STN","HAVERTHWAITE","Haverthwaite"]
[616341,"GREENODD SW STN","HAVERTHWAITE","Haverthwaite"]
[610929,"HAVERTHWAITE ABS","HAVERTHWAITE","Haverthwaite"]
[610987,"HAVERTHWAITE ABS","HAVERTHWAITE","Haverthwaite"]
[611050,"HAVERTHWAITE ABS","HAVERTHWAITE","Haverthwaite"]
[611120,"HAVERTHWAITE ABS","HAVERTHWAITE","Haverthwaite"]
[650272,"HAVERTHWAITE ABS","HAVERTHWAITE","Haverthwaite"]
[611028,"HAVERTHWAITE LOCAL","HAVERTHWAITE","Haverthwaite"]
[611092,"HAVERTHWAITE LOCAL","HAVERTHWAITE","Haverthwaite"]
[611160,"HAVERTHWAITE LOCAL","HAVERTHWAITE","Haverthwaite"]
[616155,"HAVERTHWAITE LOCAL","HAVERTHWAITE","Haverthwaite"]
[616342,"HAVERTHWAITE LOCAL","HAVERTHWAITE","Haverthwaite"]
[610139,"WALL END VIA LOCAL RMU","KIRKBY MOOR","Kirkby Moor"]
[610160,"WALL END VIA LOCAL RMU","KIRKBY MOOR","Kirkby Moor"]
[610208,"WALL END VIA LOCAL RMU","KIRKBY MOOR","Kirkby Moor"]
[610259,"WALL END VIA LOCAL RMU","KIRKBY MOOR","Kirkby Moor"]
[610306,"WALL END VIA LOCAL RMU","KIRKBY MOOR","Kirkby Moor"]
[610386,"WALL END VIA LOCAL RMU","KIRKBY MOOR","Kirkby Moor"]
[610465,"WALL END VIA LOCAL RMU","KIRKBY MOOR","Kirkby Moor"]
[616036,"WALL END VIA LOCAL RMU","KIRKBY MOOR","Kirkby Moor"]
[616098,"WALL END VIA LOCAL RMU","KIRKBY MOOR","Kirkby Moor"]
[609043,"WINDFARM","KIRKBY MOOR","Kirkby Moor"]
[650525,"HELME DR O/D / WESTMORLAND HOSP","KENDAL-PARKSIDE RD","Kendal"]
[650539,"HELME DR O/D / WESTMORLAND HOSP","KENDAL-PARKSIDE RD","Kendal"]
[650642,"HELME DR O/D / WESTMORLAND HOSP","KENDAL-PARKSIDE RD","Kendal"]
[650868,"HELME DR O/D / WESTMORLAND HOSP","KENDAL-PARKSIDE RD","Kendal"]
[651000,"HELME DR O/D / WESTMORLAND HOSP","KENDAL-PARKSIDE RD","Kendal"]
[651072,"HELME DR O/D / WESTMORLAND HOSP","KENDAL-PARKSIDE RD","Kendal"]
[651163,"HELME DR O/D / WESTMORLAND HOSP","KENDAL-PARKSIDE RD","Kendal"]
[651269,"HELME DR O/D / WESTMORLAND HOSP","KENDAL-PARKSIDE RD","Kendal"]
[652238,"HELME DR O/D / WESTMORLAND HOSP","KENDAL-PARKSIDE RD","Kendal"]
[656286,"HELME DR O/D / WESTMORLAND HOSP","KENDAL-PARKSIDE RD","Kendal"]
[650964,"WATTSFIELD","KENDAL-PARKSIDE RD","Kendal"]
[656257,"GREENGATE LN","KENDAL-PARKSIDE RD","Kendal"]
[656370,"LOUND RD VILLAGE","KENDAL-PARKSIDE RD","Kendal"]
[659015,"SAND AIRE HS","KENDAL-PARKSIDE RD","Kendal"]
[658070,"PARKSIDE BUS PK","KENDAL-PARKSIDE RD","Kendal"]
[651238,"HELME DR ID/OXENHOLME RD","KENDAL-PARKSIDE RD","Kendal"]
[651448,"HELME DR ID/OXENHOLME RD","KENDAL-PARKSIDE RD","Kendal"]
[651449,"HELME DR ID/OXENHOLME RD","KENDAL-PARKSIDE RD","Kendal"]
[652348,"HELME DR ID/OXENHOLME RD","KENDAL-PARKSIDE RD","Kendal"]
[656312,"HELME DR ID/OXENHOLME RD","KENDAL-PARKSIDE RD","Kendal"]
[658110,"BURNTBARROW","ARNSIDE","Arnside"]
[643006,"MOUNT PLEASANT/PLANTATION AVE","ARNSIDE","Arnside"]
[643080,"WATERSLACK SW STN","ARNSIDE","Arnside"]
[643100,"WATERSLACK SW STN","ARNSIDE","Arnside"]
[656204,"BRIERY BANK","ARNSIDE","Arnside"]
[651801,"BOOTHS","KIRKBY LONSDALE","Kirkby Lonsdale"]
[651858,"BOOTHS","KIRKBY LONSDALE","Kirkby Lonsdale"]
[652376,"BOOTHS","KIRKBY LONSDALE","Kirkby Lonsdale"]
[656390,"T1","KIRKBY LONSDALE","Kirkby Lonsdale"]
[651379,"CROOKLANDS SW STN","KIRKBY LONSDALE","Kirkby Lonsdale"]
[651471,"CROOKLANDS SW STN","KIRKBY LONSDALE","Kirkby Lonsdale"]
[651593,"CROOKLANDS SW STN","KIRKBY LONSDALE","Kirkby Lonsdale"]
[651639,"CROOKLANDS SW STN","KIRKBY LONSDALE","Kirkby Lonsdale"]
[651654,"CROOKLANDS SW STN","KIRKBY LONSDALE","Kirkby Lonsdale"]
[651706,"CROOKLANDS SW STN","KIRKBY LONSDALE","Kirkby Lonsdale"]
[641069,"LONSDALE HALL ABS","KIRKBY LONSDALE","Kirkby Lonsdale"]
[641075,"LONSDALE HALL ABS","KIRKBY LONSDALE","Kirkby Lonsdale"]
[643265,"LONSDALE HALL ABS","KIRKBY LONSDALE","Kirkby Lonsdale"]
[651667,"LONSDALE HALL ABS","KIRKBY LONSDALE","Kirkby Lonsdale"]
[650231,"KINGDOM HALL","MINTSFEET","Mintsfeet"]
[650242,"KINGDOM HALL","MINTSFEET","Mintsfeet"]
[651113,"KINGDOM HALL","MINTSFEET","Mintsfeet"]
[651164,"KINGDOM HALL","MINTSFEET","Mintsfeet"]
[651325,"KINGDOM HALL","MINTSFEET","Mintsfeet"]
[651395,"KINGDOM HALL","MINTSFEET","Mintsfeet"]
[651423,"KINGDOM HALL","MINTSFEET","Mintsfeet"]
[651492,"KINGDOM HALL","MINTSFEET","Mintsfeet"]
[651509,"KINGDOM HALL","MINTSFEET","Mintsfeet"]
[651629,"KINGDOM HALL","MINTSFEET","Mintsfeet"]
[651630,"KINGDOM HALL","MINTSFEET","Mintsfeet"]
[652281,"KINGDOM HALL","MINTSFEET","Mintsfeet"]
[656318,"KINGDOM HALL","MINTSFEET","Mintsfeet"]
[651312,"QUEEN KATHERINE AVE","MINTSFEET","Mintsfeet"]
[656418,"QUEEN KATHERINE AVE","MINTSFEET","Mintsfeet"]
[650476,"ASHLEIGH RD","MINTSFEET","Mintsfeet"]
[650656,"ASHLEIGH RD","MINTSFEET","Mintsfeet"]
[650720,"ASHLEIGH RD","MINTSFEET","Mintsfeet"]
[650778,"ASHLEIGH RD","MINTSFEET","Mintsfeet"]
[650947,"ASHLEIGH RD","MINTSFEET","Mintsfeet"]
[656425,"ASHLEIGH RD","MINTSFEET","Mintsfeet"]
[658040,"MINTSFEET RD N/KENTRIGG","MINTSFEET","Mintsfeet"]
[651738,"MEALBANK VIA SLACKS LN ABS","SEDBERGH","Sedbergh"]
[651842,"MEALBANK VIA SLACKS LN ABS","SEDBERGH","Sedbergh"]
[651895,"MEALBANK VIA SLACKS LN ABS","SEDBERGH","Sedbergh"]
[651930,"ARCHERS HALL ABS/BLANDSES ABS/","SEDBERGH","Sedbergh"]
[651958,"ARCHERS HALL ABS/BLANDSES ABS/","SEDBERGH","Sedbergh"]
[651974,"ARCHERS HALL ABS/BLANDSES ABS/","SEDBERGH","Sedbergh"]
[652062,"ARCHERS HALL ABS/BLANDSES ABS/","SEDBERGH","Sedbergh"]
[652083,"ARCHERS HALL ABS/BLANDSES ABS/","SEDBERGH","Sedbergh"]
[652131,"ARCHERS HALL ABS/BLANDSES ABS/","SEDBERGH","Sedbergh"]
[652169,"ARCHERS HALL ABS/BLANDSES ABS/","SEDBERGH","Sedbergh"]
[652186,"ARCHERS HALL ABS/BLANDSES ABS/","SEDBERGH","Sedbergh"]
[652244,"ARCHERS HALL ABS/BLANDSES ABS/","SEDBERGH","Sedbergh"]
[659049,"ARCHERS HALL ABS/BLANDSES ABS/","SEDBERGH","Sedbergh"]
[651988,"SEDBERGH LOCAL","SEDBERGH","Sedbergh"]
[656331,"SEDBERGH LOCAL","SEDBERGH","Sedbergh"]
[651690,"CROOKLANDS/BARBON","SEDBERGH","Sedbergh"]
[651737,"CROOKLANDS/BARBON","SEDBERGH","Sedbergh"]
[651783,"CROOKLANDS/BARBON","SEDBERGH","Sedbergh"]
[651830,"CROOKLANDS/BARBON","SEDBERGH","Sedbergh"]
[651832,"CROOKLANDS/BARBON","SEDBERGH","Sedbergh"]
[652542,"CROOKLANDS/BARBON","SEDBERGH","Sedbergh"]
[652002,"RASH MILL ABS","SEDBERGH","Sedbergh"]
[652077,"RASH MILL ABS","SEDBERGH","Sedbergh"]
[652124,"RASH MILL ABS","SEDBERGH","Sedbergh"]
[656335,"RASH MILL ABS","SEDBERGH","Sedbergh"]
[650483,"DUGG HILL","WHASSET","Whasset"]
[650559,"DUGG HILL","WHASSET","Whasset"]
[650664,"DUGG HILL","WHASSET","Whasset"]
[650789,"DUGG HILL","WHASSET","Whasset"]
[650840,"DUGG HILL","WHASSET","Whasset"]
[651031,"DUGG HILL","WHASSET","Whasset"]
[652285,"DUGG HILL","WHASSET","Whasset"]
[651065,"LIBBYS/OVERTHWAITE ABS","WHASSET","Whasset"]
[650884,"PARADISE LN ABS/SOUTH MILNTHORPE ABS","WHASSET","Whasset"]
[650998,"PARADISE LN ABS/SOUTH MILNTHORPE ABS","WHASSET","Whasset"]
[650848,"HAVERFLATTS LN/OWLET ASH","WHASSET","Whasset"]
[656240,"HAVERFLATTS LN/OWLET ASH","WHASSET","Whasset"]
[651097,"WHASSET RMU","WHASSET","Whasset"]
[651329,"WHASSET RMU","WHASSET","Whasset"]
[652298,"WHASSET RMU","WHASSET","Whasset"]
[658047,"WHASSET RMU","WHASSET","Whasset"]
[650325,"HEATHWAITE","WINDERMERE","Windermere"]
[650354,"HEATHWAITE","WINDERMERE","Windermere"]
[650380,"HEATHWAITE","WINDERMERE","Windermere"]
[650409,"HEATHWAITE","WINDERMERE","Windermere"]
[650429,"HEATHWAITE","WINDERMERE","Windermere"]
[650506,"HEATHWAITE","WINDERMERE","Windermere"]
[656130,"HEATHWAITE","WINDERMERE","Windermere"]
[656150,"HEATHWAITE","WINDERMERE","Windermere"]
[656393,"HEATHWAITE","WINDERMERE","Windermere"]
[656160,"COLLEGE RD","WINDERMERE","Windermere"]
[650194,"HILL FM","WINDERMERE","Windermere"]
[650198,"HILL FM","WINDERMERE","Windermere"]
[650621,"HILL FM","WINDERMERE","Windermere"]
[650652,"HILL FM","WINDERMERE","Windermere"]
[650780,"HILL FM","WINDERMERE","Windermere"]
[652825,"HILL FM","WINDERMERE","Windermere"]
[656211,"HILL FM","WINDERMERE","Windermere"]
[650434,"SEED HOWE","WINDERMERE","Windermere"]
[652333,"SEED HOWE","WINDERMERE","Windermere"]
[650163,"OLD PEOPLES HOME","WINDERMERE","Windermere"]
[650176,"OLD PEOPLES HOME","WINDERMERE","Windermere"]
[656109,"OLD PEOPLES HOME","WINDERMERE","Windermere"]
[656169,"OLD PEOPLES HOME","WINDERMERE","Windermere"]
[650146,"WATERHEAD","AMBLESIDE","Ambleside"]
[658102,"WATERHEAD","AMBLESIDE","Ambleside"]
[650054,"LAKE RD AMBLESIDE","AMBLESIDE","Ambleside"]
[656046,"LAKE RD AMBLESIDE","AMBLESIDE","Ambleside"]
[656054,"LAKE RD AMBLESIDE","AMBLESIDE","Ambleside"]
[658003,"LAKE RD AMBLESIDE","AMBLESIDE","Ambleside"]
[656088,"LOW FOLD","AMBLESIDE","Ambleside"]
[650018,"BORRANS CT","AMBLESIDE","Ambleside"]
[650050,"BORRANS CT","AMBLESIDE","Ambleside"]
[650106,"BORRANS CT","AMBLESIDE","Ambleside"]
[650264,"BORRANS CT","AMBLESIDE","Ambleside"]
[652828,"BORRANS CT","AMBLESIDE","Ambleside"]
[656069,"BORRANS CT","AMBLESIDE","Ambleside"]
[659441,"BORRANS CT","AMBLESIDE","Ambleside"]
[650003,"SKELWITH BRIDGE/CROFT COTT ABS","AMBLESIDE","Ambleside"]
[650070,"SKELWITH BRIDGE/CROFT COTT ABS","AMBLESIDE","Ambleside"]
[656001,"SKELWITH BRIDGE/CROFT COTT ABS","AMBLESIDE","Ambleside"]
[656049,"SKELWITH BRIDGE/CROFT COTT ABS","AMBLESIDE","Ambleside"]
[623050,"HELDER ST/SIDDICK WINDFARM","SIDDICK","Siddick"]
[620416,"SAFEWAYS/COKE OVENS","ANNIE PIT","Annie Pit"]
[621416,"EDINBURGH AVE/SCAWFELL A/CROSWAITE CT","ANNIE PIT","Annie Pit"]
[628811,"BANKLANDS/LAVEROCK","ANNIE PIT","Annie Pit"]
[621414,"ANNIE PIT LOCAL TRANS","ANNIE PIT","Annie Pit"]
[620581,"FLEET ST / HARRINGTON RD","ANNIE PIT","Annie Pit"]
[620763,"ASPATRIA LOCAL RMU","ASPATRIA","Aspatria"]
[630141,"ASPATRIA LOCAL RMU","ASPATRIA","Aspatria"]
[620250,"WARWICK HALL GVR","ASPATRIA","Aspatria"]
[620948,"WARWICK HALL GVR","ASPATRIA","Aspatria"]
[622865,"WARWICK HALL GVR","ASPATRIA","Aspatria"]
[620413,"HALL BANK ABS","ASPATRIA","Aspatria"]
[620841,"HALL BANK ABS","ASPATRIA","Aspatria"]
[621039,"HALL BANK ABS","ASPATRIA","Aspatria"]
[620059,"RECREATION GROUND","ASPATRIA","Aspatria"]
[620527,"RECREATION GROUND","ASPATRIA","Aspatria"]
[620740,"RECREATION GROUND","ASPATRIA","Aspatria"]
[621995,"RECREATION GROUND","ASPATRIA","Aspatria"]
[622867,"RECREATION GROUND","ASPATRIA","Aspatria"]
[620337,"BRAYTON PK ABS","ASPATRIA","Aspatria"]
[620460,"BRAYTON PK ABS","ASPATRIA","Aspatria"]
[620795,"BRAYTON PK ABS","ASPATRIA","Aspatria"]
[621131,"BRAYTON PK ABS","ASPATRIA","Aspatria"]
[621180,"BRAYTON PK ABS","ASPATRIA","Aspatria"]
[621658,"BRAYTON PK ABS","ASPATRIA","Aspatria"]
[620017,"WOODSIDE AVE/BEECH LN","EMBLETON","Embleton"]
[620462,"WOODSIDE AVE/BEECH LN","EMBLETON","Embleton"]
[621646,"WOODSIDE AVE/BEECH LN","EMBLETON","Embleton"]
[620114,"EMBLETON VICARAGE","EMBLETON","Embleton"]
[620353,"EMBLETON VICARAGE","EMBLETON","Embleton"]
[621063,"EMBLETON VICARAGE","EMBLETON","Embleton"]
[621091,"EMBLETON VICARAGE","EMBLETON","Embleton"]
[621364,"EMBLETON VICARAGE","EMBLETON","Embleton"]
[620099,"BUTTERMERE-SEWAGE WKS GVR","EMBLETON","Embleton"]
[620245,"BUTTERMERE-SEWAGE WKS GVR","EMBLETON","Embleton"]
[620552,"BUTTERMERE-SEWAGE WKS GVR","EMBLETON","Embleton"]
[620814,"BUTTERMERE-SEWAGE WKS GVR","EMBLETON","Embleton"]
[620825,"BUTTERMERE-SEWAGE WKS GVR","EMBLETON","Embleton"]
[621191,"BUTTERMERE-SEWAGE WKS GVR","EMBLETON","Embleton"]
[623132,"BUTTERMERE-SEWAGE WKS GVR","EMBLETON","Embleton"]
[622866,"EMBLETON LOCAL RMU","EMBLETON","Embleton"]
[620981,"BROOKHOUSE","EMBLETON","Embleton"]
[621097,"BROOKHOUSE","EMBLETON","Embleton"]
[620362,"GRAYSON SIDE GVR","EMBLETON","Embleton"]
[621778,"GRAYSON SIDE GVR","EMBLETON","Embleton"]
[620363,"LAMPLUGH RD/DEANCROSS","HDA N01","HDA No1"]
[620583,"LAMPLUGH RD/DEANCROSS","HDA N01","HDA No1"]
[620599,"LAMPLUGH RD/DEANCROSS","HDA N01","HDA No1"]
[620715,"LAMPLUGH RD/DEANCROSS","HDA N01","HDA No1"]
[621340,"LAMPLUGH RD/DEANCROSS","HDA N01","HDA No1"]
[621589,"LAMPLUGH RD/DEANCROSS","HDA N01","HDA No1"]
[620205,"WINSCALES AVE/LANDFILL GENERATION","HDA N01","HDA No1"]
[620210,"WINSCALES AVE/LANDFILL GENERATION","HDA N01","HDA No1"]
[620657,"WINSCALES AVE/LANDFILL GENERATION","HDA N01","HDA No1"]
[620670,"WINSCALES AVE/LANDFILL GENERATION","HDA N01","HDA No1"]
[621318,"WINSCALES AVE/LANDFILL GENERATION","HDA N01","HDA No1"]
[623067,"WINSCALES AVE/LANDFILL GENERATION","HDA N01","HDA No1"]
[620678,"MOOR HS FM LODGE PV","HDA N02","HDA No2"]
[621827,"NORWEB DEPOT/BE","HDA N02","HDA No3"]
[620917,"CASTLEHEAD SW STN","KESWICK","Keswick"]
[621890,"CASTLEHEAD SW STN","KESWICK","Keswick"]
[620160,"KESWICK TIMESHARE","KESWICK","Keswick"]
[621200,"KESWICK TIMESHARE","KESWICK","Keswick"]
[621363,"KESWICK TIMESHARE","KESWICK","Keswick"]
[661631,"KESWICK TIMESHARE","KESWICK","Keswick"]
[620122,"STATION AVE","KESWICK","Keswick"]
[620444,"STATION AVE","KESWICK","Keswick"]
[620130,"LAIRTHWAITE","KESWICK","Keswick"]
[621219,"LAIRTHWAITE","KESWICK","Keswick"]
[621233,"LAIRTHWAITE","KESWICK","Keswick"]
[623120,"CROSTHWAITE RD","KESWICK","Keswick"]
[623021,"TEXTURED FIBRES","MARYPORT","Maryport"]
[620619,"THE ARCHES","MARYPORT","Maryport"]
[621375,"THE ARCHES","MARYPORT","Maryport"]
[620420,"BROUGHTON MOOR NORTH","MARYPORT","Maryport"]
[621546,"BROUGHTON MOOR NORTH","MARYPORT","Maryport"]
[620626,"RISEHOW SAW MILL","MARYPORT","Maryport"]
[620296,"MARYPORT LOCAL SW STN","MARYPORT","Maryport"]
[621339,"MARYPORT LOCAL SW STN","MARYPORT","Maryport"]
[629494,"MARYPORT LOCAL SW STN","MARYPORT","Maryport"]
[620700,"C.I. HOSPITAL/HUNDAY FM ABS/HUNDAY FM","LEYLAND NATIONAL","Leyland National"]
[620907,"C.I. HOSPITAL/HUNDAY FM ABS/HUNDAY FM","LEYLAND NATIONAL","Leyland National"]
[620933,"C.I. HOSPITAL/HUNDAY FM ABS/HUNDAY FM","LEYLAND NATIONAL","Leyland National"]
[621008,"C.I. HOSPITAL/HUNDAY FM ABS/HUNDAY FM","LEYLAND NATIONAL","Leyland National"]
[621241,"C.I. HOSPITAL/HUNDAY FM ABS/HUNDAY FM","LEYLAND NATIONAL","Leyland National"]
[621873,"C.I. HOSPITAL/HUNDAY FM ABS/HUNDAY FM","LEYLAND NATIONAL","Leyland National"]
[621246,"BRIERY HSE/STAINBURN VILL","STAINBURN","Stainburn"]
[629531,"BRIERY HSE/STAINBURN VILL","STAINBURN","Stainburn"]
[620688,"RIVERGARTH ABS","STAINBURN","Stainburn"]
[620971,"RIVERGARTH ABS","STAINBURN","Stainburn"]
[621795,"RIVERGARTH ABS","STAINBURN","Stainburn"]
[620516,"SALMON HALL ABS/HILLSIDE ABS","STAINBURN","Stainburn"]
[620843,"SALMON HALL ABS/HILLSIDE ABS","STAINBURN","Stainburn"]
[621081,"SALMON HALL ABS/HILLSIDE ABS","STAINBURN","Stainburn"]
[621690,"DRYDEN WAY GVR","EGREMONT","Egremont"]
[622181,"DRYDEN WAY GVR","EGREMONT","Egremont"]
[622369,"DRYDEN WAY GVR","EGREMONT","Egremont"]
[621651,"KILN BROW/ROW FM GVR","EGREMONT","Egremont"]
[621774,"KILN BROW/ROW FM GVR","EGREMONT","Egremont"]
[622462,"KILN BROW/ROW FM GVR","EGREMONT","Egremont"]
[622613,"KILN BROW/ROW FM GVR","EGREMONT","Egremont"]
[622662,"KILN BROW/ROW FM GVR","EGREMONT","Egremont"]
[629056,"KILN BROW/ROW FM GVR","EGREMONT","Egremont"]
[622042,"CROFT PIT/SYKE HS GVR","EGREMONT","Egremont"]
[622473,"CROFT PIT/SYKE HS GVR","EGREMONT","Egremont"]
[622807,"CROFT PIT/SYKE HS GVR","EGREMONT","Egremont"]
[620289,"BRITISH CELANESE/EARL ST","EGREMONT","Egremont"]
[621048,"BRITISH CELANESE/EARL ST","EGREMONT","Egremont"]
[621960,"BRITISH CELANESE/EARL ST","EGREMONT","Egremont"]
[628993,"BRITISH CELANESE/EARL ST","EGREMONT","Egremont"]
[622575,"HIGH LODGE/KIRKLAND VIEW","EGREMONT","Egremont"]
[628995,"HIGH LODGE/KIRKLAND VIEW","EGREMONT","Egremont"]
[621977,"MEADOWFIELDS","MIDWAY","Midway"]
[622058,"MEADOWFIELDS","MIDWAY","Midway"]
[622166,"MEADOWFIELDS","MIDWAY","Midway"]
[622267,"MEADOWFIELDS","MIDWAY","Midway"]
[622446,"MEADOWFIELDS","MIDWAY","Midway"]
[622458,"MEADOWFIELDS","MIDWAY","Midway"]
[622538,"MEADOWFIELDS","MIDWAY","Midway"]
[622552,"MEADOWFIELDS","MIDWAY","Midway"]
[622587,"MEADOWFIELDS","MIDWAY","Midway"]
[624033,"MEADOWFIELDS","MIDWAY","Midway"]
[622264,"BROOM ABS/LINGMELL CRES/","MIDWAY","Midway"]
[622871,"BROOM ABS/LINGMELL CRES/","MIDWAY","Midway"]
[622028,"SEASCALE HALL ABS/CNC TRAINING FACILIT","MIDWAY","Midway"]
[622358,"SEASCALE HALL ABS/CNC TRAINING FACILIT","MIDWAY","Midway"]
[622696,"SEASCALE HALL ABS/CNC TRAINING FACILIT","MIDWAY","Midway"]
[629274,"SEASCALE HALL ABS/CNC TRAINING FACILIT","MIDWAY","Midway"]
[622194,"SEASCALE PK","MIDWAY","Midway"]
[623196,"SEASCALE PK","MIDWAY","Midway"]
[622110,"SLIPWAY LOCAL","SLIPWAY","Slipway"]
[623086,"SLIPWAY LOCAL","SLIPWAY","Slipway"]
[621451,"ARROWTHWAITE","SLIPWAY","Slipway"]
[621459,"HIGHFIELD CT","HENSINGHAM","Hensingham"]
[621468,"CARTGATE RD","HENSINGHAM","Hensingham"]
[621445,"WHITEHAVEN TECH COLLEGE","HENSINGHAM","Hensingham"]
[622508,"SNEBRO GILL","HENSINGHAM","Hensingham"]
[621485,"FAIRFIELD PK / SPRINGFIELD","HENSINGHAM","Hensingham"]
[621987,"RATTY ABS","CARLETON","Carleton"]
[622199,"RATTY ABS","CARLETON","Carleton"]
[622350,"RATTY ABS","CARLETON","Carleton"]
[622783,"RATTY ABS","CARLETON","Carleton"]
[622041,"MITESIDE ABS / GASKETH ABS","CARLETON","Carleton"]
[622160,"MITESIDE ABS / GASKETH ABS","CARLETON","Carleton"]
[622345,"MITESIDE ABS / GASKETH ABS","CARLETON","Carleton"]
[622379,"MITESIDE ABS / GASKETH ABS","CARLETON","Carleton"]
[622391,"MITESIDE ABS / GASKETH ABS","CARLETON","Carleton"]
[622519,"MITESIDE ABS / GASKETH ABS","CARLETON","Carleton"]
[622639,"MITESIDE ABS / GASKETH ABS","CARLETON","Carleton"]
[622700,"MITESIDE ABS / GASKETH ABS","CARLETON","Carleton"]
[631025,"SINCLAIR DR","CARLISLE NORTH BSP","Carlisle North"]
[636081,"SINCLAIR DR","CARLISLE NORTH BSP","Carlisle North"]
[631247,"DUCHESS AVE/14MU","CARLISLE NORTH BSP","Carlisle North"]
[638040,"DESMOND SW STN/LAFARGE CEMENT/WILLOWHO","CARLISLE NORTH BSP","Carlisle North"]
[636417,"CARLISLE N BSP LOCAL","CARLISLE NORTH BSP","Carlisle North"]
[631523,"SPORTS PAV SHEEPMOUNT","WILLOWHOLME","Willowholme"]
[631755,"SPORTS PAV SHEEPMOUNT","WILLOWHOLME","Willowholme"]
[638115,"SPORTS PAV SHEEPMOUNT","WILLOWHOLME","Willowholme"]
[638196,"WILLOWHOLME AUX SUPPLIES","WILLOWHOLME","Willowholme"]
[638045,"ETTERBY RD","WILLOWHOLME","Willowholme"]
[636216,"NORMAN ST","FUSEHILL","Fusehill"]
[638218,"FUSEHILL HOSPITAL","FUSEHILL","Fusehill"]
[638656,"FUSEHILL HOSPITAL","FUSEHILL","Fusehill"]
[636243,"BOTCHERBY","FUSEHILL","Fusehill"]
[636270,"BOTCHERBY","FUSEHILL","Fusehill"]
[631293,"GAS WORKS/ROME ST","JAMES ST","James St"]
[636181,"GAS WORKS/ROME ST","JAMES ST","James St"]
[638930,"JAMES ST LOCAL","JAMES ST","James St"]
[638060,"MORTONS","JAMES ST","James St"]
[638695,"CHARLOTTE ST RETAIL PK","JAMES ST","James St"]
[631234,"LINGEY CL ABS/FOLLY ABS/","MORTON PK","Morton Park"]
[631268,"LINGEY CL ABS/FOLLY ABS/","MORTON PK","Morton Park"]
[631359,"LINGEY CL ABS/FOLLY ABS/","MORTON PK","Morton Park"]
[631377,"LINGEY CL ABS/FOLLY ABS/","MORTON PK","Morton Park"]
[636186,"LINGEY CL ABS/FOLLY ABS/","MORTON PK","Morton Park"]
[636495,"LINGEY CL ABS/FOLLY ABS/","MORTON PK","Morton Park"]
[638046,"LYNDHURST GARDEN","MORTON PK","Morton Park"]
[631150,"MORTON PK O/D","MORTON PK","Morton Park"]
[631172,"MORTON PK O/D","MORTON PK","Morton Park"]
[636106,"MORTON PK O/D","MORTON PK","Morton Park"]
[630874,"NEWBY WEST/ORTON GRANGE GENERATION/","MORTON PK","Morton Park"]
[631104,"NEWBY WEST/ORTON GRANGE GENERATION/","MORTON PK","Morton Park"]
[636069,"NEWBY WEST/ORTON GRANGE GENERATION/","MORTON PK","Morton Park"]
[631473,"LIGHTFOOT DR","PETTERIL BANK","Petteril Bank"]
[636215,"LIGHTFOOT DR","PETTERIL BANK","Petteril Bank"]
[631668,"BURNETT RD","PETTERIL BANK","Petteril Bank"]
[636263,"BURNETT RD","PETTERIL BANK","Petteril Bank"]
[636150,"PETTERIL BANK HS","PETTERIL BANK","Petteril Bank"]
[639035,"PETTERIL BANK HS","PETTERIL BANK","Petteril Bank"]
[631590,"HOPESHILL DRIVE","PETTERIL BANK","Petteril Bank"]
[631909,"HOPESHILL DRIVE","PETTERIL BANK","Petteril Bank"]
[632218,"HOPESHILL DRIVE","PETTERIL BANK","Petteril Bank"]
[632352,"HOPESHILL DRIVE","PETTERIL BANK","Petteril Bank"]
[632442,"HOPESHILL DRIVE","PETTERIL BANK","Petteril Bank"]
[632511,"HOPESHILL DRIVE","PETTERIL BANK","Petteril Bank"]
[636413,"HOPESHILL DRIVE","PETTERIL BANK","Petteril Bank"]
[661626,"HOPESHILL DRIVE","PETTERIL BANK","Petteril Bank"]
[636346,"ASKERTON CASTLE","ASKERTON CASTLE","Askerton castle"]
[632389,"WALTON","ASKERTON CASTLE","Askerton castle"]
[632463,"WALTON","ASKERTON CASTLE","Askerton castle"]
[632672,"WALTON","ASKERTON CASTLE","Askerton castle"]
[632744,"WALTON","ASKERTON CASTLE","Askerton castle"]
[632015,"FELLEND","ASKERTON CASTLE","Askerton castle"]
[632356,"FELLEND","ASKERTON CASTLE","Askerton castle"]
[632393,"BRAMPTON FELL GATES/GOLF CLUB HS","CAPONTREE","Capontree"]
[632517,"GELT RD","CAPONTREE","Capontree"]
[632642,"GELT RD","CAPONTREE","Capontree"]
[633069,"GELT RD","CAPONTREE","Capontree"]
[638160,"GELT RD","CAPONTREE","Capontree"]
[632475,"UNITY FM GENERATION","CAPONTREE","Capontree"]
[632573,"UNITY FM GENERATION","CAPONTREE","Capontree"]
[632582,"UNITY FM GENERATION","CAPONTREE","Capontree"]
[632667,"UNITY FM GENERATION","CAPONTREE","Capontree"]
[632763,"UNITY FM GENERATION","CAPONTREE","Capontree"]
[633073,"UNITY FM GENERATION","CAPONTREE","Capontree"]
[636344,"UNITY FM GENERATION","CAPONTREE","Capontree"]
[632048,"CAPONTREE GVR/HOW MILL GVR","CAPONTREE","Capontree"]
[632100,"CAPONTREE GVR/HOW MILL GVR","CAPONTREE","Capontree"]
[632292,"CAPONTREE GVR/HOW MILL GVR","CAPONTREE","Capontree"]
[633204,"CAPONTREE GVR/HOW MILL GVR","CAPONTREE","Capontree"]
[638957,"CAPONTREE GVR/HOW MILL GVR","CAPONTREE","Capontree"]
[632040,"SANDY LONNING SW STN","CAPONTREE","Capontree"]
[632190,"SANDY LONNING SW STN","CAPONTREE","Capontree"]
[631328,"SLEALANDSBURN","EASTON","Easton"]
[631427,"SLEALANDSBURN","EASTON","Easton"]
[631445,"SLEALANDSBURN","EASTON","Easton"]
[631513,"SLEALANDSBURN","EASTON","Easton"]
[631448,"WARWICKSLAND","EASTON","Easton"]
[631587,"WARWICKSLAND","EASTON","Easton"]
[631679,"WARWICKSLAND","EASTON","Easton"]
[631759,"WARWICKSLAND","EASTON","Easton"]
[631830,"WARWICKSLAND","EASTON","Easton"]
[632935,"WARWICKSLAND","EASTON","Easton"]
[631639,"SHANKCASTLE","EASTON","Easton"]
[631789,"SHANKCASTLE","EASTON","Easton"]
[631904,"SHANKCASTLE","EASTON","Easton"]
[632017,"SHANKCASTLE","EASTON","Easton"]
[632069,"DAPPLEYMOOR","KINKRY HILL","Kinkry Hill"]
[632200,"DAPPLEYMOOR","KINKRY HILL","Kinkry Hill"]
[632112,"SNOUTS","KINKRY HILL","Kinkry Hill"]
[632213,"SNOUTS","KINKRY HILL","Kinkry Hill"]
[632324,"SNOUTS","KINKRY HILL","Kinkry Hill"]
[632471,"SNOUTS","KINKRY HILL","Kinkry Hill"]
[632509,"SNOUTS","KINKRY HILL","Kinkry Hill"]
[632312,"BEWCASTLE","KINKRY HILL","Kinkry Hill"]
[632613,"BEWCASTLE","KINKRY HILL","Kinkry Hill"]
[632657,"BEWCASTLE","KINKRY HILL","Kinkry Hill"]
[660990,"CASTLE SOWERBY ABS","SEBERGHAM","Sebergham"]
[660999,"CASTLE SOWERBY ABS","SEBERGHAM","Sebergham"]
[620500,"PARKHEAD ABS/GPO REPEATER","SEBERGHAM","Sebergham"]
[620786,"PARKHEAD ABS/GPO REPEATER","SEBERGHAM","Sebergham"]
[630776,"PARKHEAD ABS/GPO REPEATER","SEBERGHAM","Sebergham"]
[630801,"PARKHEAD ABS/GPO REPEATER","SEBERGHAM","Sebergham"]
[630915,"PARKHEAD ABS/GPO REPEATER","SEBERGHAM","Sebergham"]
[631022,"PARKHEAD ABS/GPO REPEATER","SEBERGHAM","Sebergham"]
[631060,"PARKHEAD ABS/GPO REPEATER","SEBERGHAM","Sebergham"]
[630958,"WOODCROFT ABS/","SEBERGHAM","Sebergham"]
[630975,"WOODCROFT ABS/","SEBERGHAM","Sebergham"]
[631039,"WOODCROFT ABS/","SEBERGHAM","Sebergham"]
[631123,"WOODCROFT ABS/","SEBERGHAM","Sebergham"]
[636395,"WOODCROFT ABS/","SEBERGHAM","Sebergham"]
[660983,"BIRKS ABS","SEBERGHAM","Sebergham"]
[662866,"BIRKS ABS","SEBERGHAM","Sebergham"]
[630112,"CHERITEX/SILLOTH AIRFIELD","SILLOTH","Silloth"]
[630165,"CHERITEX/SILLOTH AIRFIELD","SILLOTH","Silloth"]
[630212,"CHERITEX/SILLOTH AIRFIELD","SILLOTH","Silloth"]
[631178,"CHERITEX/SILLOTH AIRFIELD","SILLOTH","Silloth"]
[636018,"CHERITEX/SILLOTH AIRFIELD","SILLOTH","Silloth"]
[630017,"HARVEST PK","SILLOTH","Silloth"]
[630048,"HARVEST PK","SILLOTH","Silloth"]
[630072,"HARVEST PK","SILLOTH","Silloth"]
[630130,"HARVEST PK","SILLOTH","Silloth"]
[632914,"HARVEST PK","SILLOTH","Silloth"]
[630118,"ESK ST","SILLOTH","Silloth"]
[630119,"ESK ST","SILLOTH","Silloth"]
[631425,"BLACKFORD/","WESTLINTON","Westlinton"]
[633160,"BLACKFORD/","WESTLINTON","Westlinton"]
[631115,"BRAMPTON RD LONGTOWN","WESTLINTON","Westlinton"]
[631313,"BRAMPTON RD LONGTOWN","WESTLINTON","Westlinton"]
[633144,"BRAMPTON RD LONGTOWN","WESTLINTON","Westlinton"]
[631210,"HOPESYKE SW STN","WESTLINTON","Westlinton"]
[631274,"HOPESYKE SW STN","WESTLINTON","Westlinton"]
[631249,"WESTLINTON VILL","WESTLINTON","Westlinton"]
[633229,"WESTLINTON VILL","WESTLINTON","Westlinton"]
[631444,"WESTLINTON LOCAL","WESTLINTON","Westlinton"]
[631524,"WESTLINTON LOCAL","WESTLINTON","Westlinton"]
[631736,"WESTLINTON LOCAL","WESTLINTON","Westlinton"]
[631897,"WESTLINTON LOCAL","WESTLINTON","Westlinton"]
[632000,"WESTLINTON LOCAL","WESTLINTON","Westlinton"]
[633058,"WESTLINTON LOCAL","WESTLINTON","Westlinton"]
[633059,"WESTLINTON LOCAL","WESTLINTON","Westlinton"]
[639519,"WESTLINTON LOCAL","WESTLINTON","Westlinton"]
[630585,"SPITTAL EST/WIGTON EXTERNAL SW STN","WIGTON","Wigton"]
[630634,"SPITTAL EST/WIGTON EXTERNAL SW STN","WIGTON","Wigton"]
[630687,"SPITTAL EST/WIGTON EXTERNAL SW STN","WIGTON","Wigton"]
[630765,"SPITTAL EST/WIGTON EXTERNAL SW STN","WIGTON","Wigton"]
[630852,"SPITTAL EST/WIGTON EXTERNAL SW STN","WIGTON","Wigton"]
[633189,"SPITTAL EST/WIGTON EXTERNAL SW STN","WIGTON","Wigton"]
[630384,"ANTHORN SW STN","WIGTON","Wigton"]
[630526,"ANTHORN SW STN","WIGTON","Wigton"]
[630307,"MOORHOUSE ABS","WIGTON","Wigton"]
[630552,"MOORHOUSE ABS","WIGTON","Wigton"]
[630653,"MOORHOUSE ABS","WIGTON","Wigton"]
[630753,"MOORHOUSE ABS","WIGTON","Wigton"]
[630786,"MOORHOUSE ABS","WIGTON","Wigton"]
[633195,"MOORHOUSE ABS","WIGTON","Wigton"]
[633239,"MOORHOUSE ABS","WIGTON","Wigton"]
[630221,"GREENRIGG FM ABS/CHURCHRIGG ABS","WIGTON","Wigton"]
[630248,"GREENRIGG FM ABS/CHURCHRIGG ABS","WIGTON","Wigton"]
[630309,"GREENRIGG FM ABS/CHURCHRIGG ABS","WIGTON","Wigton"]
[630360,"GREENRIGG FM ABS/CHURCHRIGG ABS","WIGTON","Wigton"]
[632839,"GREENRIGG FM ABS/CHURCHRIGG ABS","WIGTON","Wigton"]
[630717,"SHAWOOD RD ABS","WIGTON","Wigton"]
[630845,"SHAWOOD RD ABS","WIGTON","Wigton"]
[630305,"CROSS LN","WIGTON","Wigton"]
[630386,"CROSS LN","WIGTON","Wigton"]
[630477,"CROSS LN","WIGTON","Wigton"]
[636034,"CROSS LN","WIGTON","Wigton"]
[630317,"LOW DOCKRAYRIGG ABS","WIGTON","Wigton"]
[630415,"LOW DOCKRAYRIGG ABS","WIGTON","Wigton"]
[630529,"LOW DOCKRAYRIGG ABS","WIGTON","Wigton"]
[638007,"RAYOPHANE SW/ST NO2","WIGTON","Wigton"]
[632758,"RED BECK ABS","SPADEADAM","Spadeadam 132/11kV"]
[632771,"RED BECK ABS","SPADEADAM","Spadeadam 132/11kV"]
[661517,"ALSTON O/D NO1","ALSTON","Alston"]
[662650,"ALSTON O/D NO1","ALSTON","Alston"]
[662809,"ALSTON O/D NO1","ALSTON","Alston"]
[662846,"ALSTON O/D NO1","ALSTON","Alston"]
[663363,"ALSTON O/D NO1","ALSTON","Alston"]
[668045,"ALSTON O/D NO1","ALSTON","Alston"]
[663049,"ALSTON O/D NO2","ALSTON","Alston"]
[660561,"CROSSLANDS ABS/SANDHILL ABS","ALSTON","Alston"]
[661349,"CROSSLANDS ABS/SANDHILL ABS","ALSTON","Alston"]
[662667,"CROSSLANDS ABS/SANDHILL ABS","ALSTON","Alston"]
[663352,"CROSSLANDS ABS/SANDHILL ABS","ALSTON","Alston"]
[660858,"SCALES ABS","HUTTON END","Hutton End"]
[661934,"SCALES ABS","HUTTON END","Hutton End"]
[660043,"HILL HOUSES ABS/","HUTTON END","Hutton End"]
[660058,"HILL HOUSES ABS/","HUTTON END","Hutton End"]
[660813,"HILL HOUSES ABS/","HUTTON END","Hutton End"]
[660902,"HILL HOUSES ABS/","HUTTON END","Hutton End"]
[661301,"HILL HOUSES ABS/","HUTTON END","Hutton End"]
[661486,"HILL HOUSES ABS/","HUTTON END","Hutton End"]
[661882,"HILL HOUSES ABS/","HUTTON END","Hutton End"]
[662865,"HILL HOUSES ABS/","HUTTON END","Hutton End"]
[663384,"HILL HOUSES ABS/","HUTTON END","Hutton End"]
[666013,"HILL HOUSES ABS/","HUTTON END","Hutton End"]
[660042,"HUTTON END O/D SW STN/IVEGILL ABS/","HUTTON END","Hutton End"]
[661112,"HUTTON END O/D SW STN/IVEGILL ABS/","HUTTON END","Hutton End"]
[661178,"HUTTON END O/D SW STN/IVEGILL ABS/","HUTTON END","Hutton End"]
[661215,"HUTTON END O/D SW STN/IVEGILL ABS/","HUTTON END","Hutton End"]
[661312,"HUTTON END O/D SW STN/IVEGILL ABS/","HUTTON END","Hutton End"]
[661658,"HUTTON END O/D SW STN/IVEGILL ABS/","HUTTON END","Hutton End"]
[663489,"HUTTON END O/D SW STN/IVEGILL ABS/","HUTTON END","Hutton End"]
[668802,"HUTTON END O/D SW STN/IVEGILL ABS/","HUTTON END","Hutton End"]
[660013,"GRASSKNOP ABS","HUTTON END","Hutton End"]
[660755,"GRASSKNOP ABS","HUTTON END","Hutton End"]
[661341,"GRASSKNOP ABS","HUTTON END","Hutton End"]
[661392,"GRASSKNOP ABS","HUTTON END","Hutton End"]
[663361,"GRASSKNOP ABS","HUTTON END","Hutton End"]
[660261,"ASHTON LEA ABS","KIRKBY THORE","Kirkby Thore"]
[661201,"ASHTON LEA ABS","KIRKBY THORE","Kirkby Thore"]
[662879,"ASHTON LEA ABS","KIRKBY THORE","Kirkby Thore"]
[663287,"ASHTON LEA ABS","KIRKBY THORE","Kirkby Thore"]
[660239,"STAMP HILL ABS","KIRKBY THORE","Kirkby Thore"]
[661939,"STAMP HILL ABS","KIRKBY THORE","Kirkby Thore"]
[662790,"STAMP HILL ABS","KIRKBY THORE","Kirkby Thore"]
[660209,"KIRKBY THORE O/D","KIRKBY THORE","Kirkby Thore"]
[660661,"KIRKBY THORE O/D","KIRKBY THORE","Kirkby Thore"]
[660700,"KIRKBY THORE O/D","KIRKBY THORE","Kirkby Thore"]
[661687,"KIRKBY THORE O/D","KIRKBY THORE","Kirkby Thore"]
[662882,"KIRKBY THORE O/D","KIRKBY THORE","Kirkby Thore"]
[668709,"KIRKBY THORE O/D","KIRKBY THORE","Kirkby Thore"]
[663077,"LOW ABBEY ABS","KIRKBY THORE","Kirkby Thore"]
[660168,"HORNS BUNG ABS","LITTLE SALKELD","Little Salkeld"]
[661549,"HORNS BUNG ABS","LITTLE SALKELD","Little Salkeld"]
[662565,"HORNS BUNG ABS","LITTLE SALKELD","Little Salkeld"]
[660681,"STONEYBECK ABS","LITTLE SALKELD","Little Salkeld"]
[661315,"STONEYBECK ABS","LITTLE SALKELD","Little Salkeld"]
[663397,"STONEYBECK ABS","LITTLE SALKELD","Little Salkeld"]
[660138,"TYNEHOLME MILL","LITTLE SALKELD","Little Salkeld"]
[660706,"TYNEHOLME MILL","LITTLE SALKELD","Little Salkeld"]
[661732,"TYNEHOLME MILL","LITTLE SALKELD","Little Salkeld"]
[663293,"TYNEHOLME MILL","LITTLE SALKELD","Little Salkeld"]
[663590,"TYNEHOLME MILL","LITTLE SALKELD","Little Salkeld"]
[660154,"LAZONBY/KIRKOSWALD","LITTLE SALKELD","Little Salkeld"]
[660566,"LAZONBY/KIRKOSWALD","LITTLE SALKELD","Little Salkeld"]
[661540,"LAZONBY/KIRKOSWALD","LITTLE SALKELD","Little Salkeld"]
[661584,"LAZONBY/KIRKOSWALD","LITTLE SALKELD","Little Salkeld"]
[661653,"LAZONBY/KIRKOSWALD","LITTLE SALKELD","Little Salkeld"]
[662504,"LAZONBY/KIRKOSWALD","LITTLE SALKELD","Little Salkeld"]
[666168,"LAZONBY/KIRKOSWALD","LITTLE SALKELD","Little Salkeld"]
[660527,"APPLEBY","NEWBY","Newby"]
[662146,"APPLEBY","NEWBY","Newby"]
[666156,"APPLEBY","NEWBY","Newby"]
[660461,"COLVILLES","NEWBY","Newby"]
[661982,"COLVILLES","NEWBY","Newby"]
[662120,"COLVILLES","NEWBY","Newby"]
[663261,"COLVILLES","NEWBY","Newby"]
[660373,"GREAT STRICKLAND","NEWBY","Newby"]
[660443,"GREAT STRICKLAND","NEWBY","Newby"]
[661223,"GREAT STRICKLAND","NEWBY","Newby"]
[661502,"GREAT STRICKLAND","NEWBY","Newby"]
[662038,"GREAT STRICKLAND","NEWBY","Newby"]
[663469,"GREAT STRICKLAND","NEWBY","Newby"]
[663740,"GREAT STRICKLAND","NEWBY","Newby"]
[663008,"HALEFIELD ABS/LUCASFIELD ABS","NEWBY","Newby"]
[660367,"ULLSMOOR AR","SHAP","Shap"]
[661916,"ULLSMOOR AR","SHAP","Shap"]
[661928,"ULLSMOOR AR","SHAP","Shap"]
[662425,"ULLSMOOR AR","SHAP","Shap"]
[663271,"ULLSMOOR AR","SHAP","Shap"]
[660348,"GREYHOUND/CROSBY RAVENSWORTH RD ABS","SHAP","Shap"]
[666075,"GREYHOUND/CROSBY RAVENSWORTH RD ABS","SHAP","Shap"]
[663265,"SHAP GRANITE TEED WICKERSGILL","SHAP","Shap"]
[660549,"ENTERBER ABS/WINTON/HARTLEY","KIRKBY STEPHEN","Kirkby Stephen"]
[660718,"ENTERBER ABS/WINTON/HARTLEY","KIRKBY STEPHEN","Kirkby Stephen"]
[662122,"ENTERBER ABS/WINTON/HARTLEY","KIRKBY STEPHEN","Kirkby Stephen"]
[662123,"ENTERBER ABS/WINTON/HARTLEY","KIRKBY STEPHEN","Kirkby Stephen"]
[662448,"ENTERBER ABS/WINTON/HARTLEY","KIRKBY STEPHEN","Kirkby Stephen"]
[662479,"ENTERBER ABS/WINTON/HARTLEY","KIRKBY STEPHEN","Kirkby Stephen"]
[662523,"ENTERBER ABS/WINTON/HARTLEY","KIRKBY STEPHEN","Kirkby Stephen"]
[662541,"ENTERBER ABS/WINTON/HARTLEY","KIRKBY STEPHEN","Kirkby Stephen"]
[662717,"ENTERBER ABS/WINTON/HARTLEY","KIRKBY STEPHEN","Kirkby Stephen"]
[662780,"ENTERBER ABS/WINTON/HARTLEY","KIRKBY STEPHEN","Kirkby Stephen"]
[663292,"ENTERBER ABS/WINTON/HARTLEY","KIRKBY STEPHEN","Kirkby Stephen"]
[666179,"ENTERBER ABS/WINTON/HARTLEY","KIRKBY STEPHEN","Kirkby Stephen"]
[660321,"WHARTON HALL SW STN","KIRKBY STEPHEN","Kirkby Stephen"]
[662257,"WHARTON HALL SW STN","KIRKBY STEPHEN","Kirkby Stephen"]
[662281,"WHARTON HALL SW STN","KIRKBY STEPHEN","Kirkby Stephen"]
[663788,"WHARTON HALL SW STN","KIRKBY STEPHEN","Kirkby Stephen"]
[666112,"GLITSCH UK","KIRKBY STEPHEN","Kirkby Stephen"]
[660426,"LEASES ABS","KIRKBY STEPHEN","Kirkby Stephen"]
[661894,"LEASES ABS","KIRKBY STEPHEN","Kirkby Stephen"]
[662161,"LEASES ABS","KIRKBY STEPHEN","Kirkby Stephen"]
[662176,"LEASES ABS","KIRKBY STEPHEN","Kirkby Stephen"]
[662302,"LEASES ABS","KIRKBY STEPHEN","Kirkby Stephen"]
[662637,"LEASES ABS","KIRKBY STEPHEN","Kirkby Stephen"]
[663025,"LEASES ABS","KIRKBY STEPHEN","Kirkby Stephen"]
[660347,"SCAR SYKES ABS/","NEWBIGGIN ON LUNE","Newbiggin on Lune"]
[660652,"SCAR SYKES ABS/","NEWBIGGIN ON LUNE","Newbiggin on Lune"]
[662343,"SCAR SYKES ABS/","NEWBIGGIN ON LUNE","Newbiggin on Lune"]
[660338,"HIGH GREENSIDE ABS","NEWBIGGIN ON LUNE","Newbiggin on Lune"]
[662371,"HIGH GREENSIDE ABS","NEWBIGGIN ON LUNE","Newbiggin on Lune"]
[662388,"HIGH GREENSIDE ABS","NEWBIGGIN ON LUNE","Newbiggin on Lune"]
[662409,"HIGH GREENSIDE ABS","NEWBIGGIN ON LUNE","Newbiggin on Lune"]
[660235,"TEBAY W M6 SERVICE/TEBAY E M6 SERVICE/","SELSMIRE","Selsmire"]
[662025,"TEBAY W M6 SERVICE/TEBAY E M6 SERVICE/","SELSMIRE","Selsmire"]
[662029,"TEBAY W M6 SERVICE/TEBAY E M6 SERVICE/","SELSMIRE","Selsmire"]
[669485,"TEBAY W M6 SERVICE/TEBAY E M6 SERVICE/","SELSMIRE","Selsmire"]
[660313,"SHAP GRANITE SW STN TEED BYPASS SWGR","SELSMIRE","Selsmire"]
[661779,"ORTON MAIN TEED BYPASS SWGR","SELSMIRE","Selsmire"]
[662084,"ORTON MAIN TEED BYPASS SWGR","SELSMIRE","Selsmire"]
[661757,"KESWICK","GILLSROW","Gillsrow"]
[663356,"KESWICK","GILLSROW","Gillsrow"]
[661440,"BECKSIDE ABS/","GILLSROW","Gillsrow"]
[661464,"BECKSIDE ABS/","GILLSROW","Gillsrow"]
[661495,"BECKSIDE ABS/","GILLSROW","Gillsrow"]
[662890,"BECKSIDE ABS/","GILLSROW","Gillsrow"]
[660596,"NEWTONGATE/BECKSES ABS","GILLSROW","Gillsrow"]
[660793,"NEWTONGATE/BECKSES ABS","GILLSROW","Gillsrow"]
[660827,"NEWTONGATE/BECKSES ABS","GILLSROW","Gillsrow"]
[661414,"NEWTONGATE/BECKSES ABS","GILLSROW","Gillsrow"]
[661783,"NEWTONGATE/BECKSES ABS","GILLSROW","Gillsrow"]
[663427,"NEWTONGATE/BECKSES ABS","GILLSROW","Gillsrow"]
[660439,"TROUTBECK HEAD","GILLSROW","Gillsrow"]
[660835,"TROUTBECK HEAD","GILLSROW","Gillsrow"]
[661801,"TROUTBECK HEAD","GILLSROW","Gillsrow"]
[661852,"TROUTBECK HEAD","GILLSROW","Gillsrow"]
[661862,"TROUTBECK HEAD","GILLSROW","Gillsrow"]
[663345,"TROUTBECK HEAD","GILLSROW","Gillsrow"]
[668009,"GILWILLY IND EST/BICC GILWILLY","NEWTONGATE","Newtongate T13"]
[666056,"AUCTION MART/AUCTION MART ABS","NEWTONGATE","Newtongate T13"]
[666142,"COOKSON CT","NEWTONGATE","Newtongate T13"]
[666050,"HAWESWATER RD/MOSS THORN FM PV","NEWTONGATE","Newtongate T11 & T12"]
[660080,"WILDRIGGS","NEWTONGATE","Newtongate T11 & T12"]
[660747,"WILDRIGGS","NEWTONGATE","Newtongate T11 & T12"]
[662127,"WILDRIGGS","NEWTONGATE","Newtongate T11 & T12"]
[663131,"WILDRIGGS","NEWTONGATE","Newtongate T11 & T12"]
[666022,"WILDRIGGS","NEWTONGATE","Newtongate T11 & T12"]
[669543,"WILDRIGGS","NEWTONGATE","Newtongate T11 & T12"]
[660424,"ALEXANDRA RD","NEWTONGATE","Newtongate T13"]
[660428,"ALEXANDRA RD","NEWTONGATE","Newtongate T13"]
[661992,"ALEXANDRA RD","NEWTONGATE","Newtongate T13"]
[662702,"ALEXANDRA RD","NEWTONGATE","Newtongate T13"]
[666141,"ALEXANDRA RD","NEWTONGATE","Newtongate T13"]
[660108,"FELLSIDE FOODS","NEWTONGATE","Newtongate T11 & T12"]
[661221,"FELLSIDE FOODS","NEWTONGATE","Newtongate T11 & T12"]
[663244,"FELLSIDE FOODS","NEWTONGATE","Newtongate T11 & T12"]
[669186,"SAINSBURYS CASTLE HILL RD","NEWTONGATE","Newtongate T11 & T12"]
[660886,"FOWLERSYKE ABS/PENNYHILL PK/","NEWTONGATE","Newtongate T11 & T12"]
[662360,"FOWLERSYKE ABS/PENNYHILL PK/","NEWTONGATE","Newtongate T11 & T12"]
[666202,"NEWTONGATE O/D","NEWTONGATE","Newtongate T11 & T12"]
[643341,"TOWN END/GREENWOOD AVENUE","BOLTON LE SANDS","Bolton Le Sands"]
[643017,"BOLTON LE SANDS LIBRARY","BOLTON LE SANDS","Bolton Le Sands"]
[643114,"BOLTON LE SANDS LIBRARY","BOLTON LE SANDS","Bolton Le Sands"]
[643391,"BOLTON LE SANDS LIBRARY","BOLTON LE SANDS","Bolton Le Sands"]
[641345,"NETHER KELLET","BOLTON LE SANDS","Bolton Le Sands"]
[641425,"NETHER KELLET","BOLTON LE SANDS","Bolton Le Sands"]
[643130,"NETHER KELLET","BOLTON LE SANDS","Bolton Le Sands"]
[641458,"COASTAL ROAD/EASDALE CLOSE","BOLTON LE SANDS","Bolton Le Sands"]
[643139,"BACK LN QUARRY SW STN","BOLTON LE SANDS","Bolton Le Sands"]
[641832,"BARE LN CROSSING","BROADWAY","Broadway"]
[641828,"PEMBROKE AVE","BROADWAY","Broadway"]
[641895,"TORRISHOLME/MICHAEL PLACE","BROADWAY","Broadway"]
[643425,"FAIRSNAPE DR","GARSTANG","Garstang"]
[641165,"FORTON LODGE/PARK LN WINMARLEIGH","GARSTANG","Garstang"]
[642208,"FORTON LODGE/PARK LN WINMARLEIGH","GARSTANG","Garstang"]
[643416,"FORTON LODGE/PARK LN WINMARLEIGH","GARSTANG","Garstang"]
[642369,"GIBSONS FM","GARSTANG","Garstang"]
[642129,"WINDSOR RD","GARSTANG","Garstang"]
[642153,"WINDSOR RD","GARSTANG","Garstang"]
[642294,"WINDSOR RD","GARSTANG","Garstang"]
[642377,"WINDSOR RD","GARSTANG","Garstang"]
[642417,"WINDSOR RD","GARSTANG","Garstang"]
[642108,"LANCASTER OLD RD S/LANCASTER RD GARSTA","GARSTANG","Garstang"]
[642285,"MATHER AVE","GARSTANG","Garstang"]
[642337,"MATHER AVE","GARSTANG","Garstang"]
[642155,"HAWTHORN AVE","GARSTANG","Garstang"]
[642201,"HAWTHORN AVE","GARSTANG","Garstang"]
[642456,"HAWTHORN AVE","GARSTANG","Garstang"]
[643241,"RIVER LUNE/POINTER PARROCK/CELTECH","LANCASTER","Lancaster"]
[641381,"CELTECH NO 2/BACK BULLER ST","LANCASTER","Lancaster"]
[641537,"FOLLY BRIDGE SW STN","LANCASTER","Lancaster"]
[641094,"DENNISONS","LANCASTER","Lancaster"]
[641102,"DENNISONS","LANCASTER","Lancaster"]
[649317,"DENNISONS","LANCASTER","Lancaster"]
[641261,"GREYSTONES","LANCASTER","Lancaster"]
[641282,"GREYSTONES","LANCASTER","Lancaster"]
[643207,"GREYSTONES","LANCASTER","Lancaster"]
[643262,"GREYSTONES","LANCASTER","Lancaster"]
[649414,"THE MILL RACE/WHITE CROSS/WOODVILLE ST","SPRING GDN ST","Spring Garden St 6.6kV"]
[641666,"LANCASTER ATE","SPRING GDN ST","Spring Garden St 6.6kV"]
[641529,"NORTH RD","SPRING GDN ST","Spring Garden St 6.6kV"]
[643270,"WYRESDALE RD/QUERNMORE RD","SPRING GDN ST","Spring Garden St 6.6kV"]
[643268,"SPINNERS CT/RAILWAY ST","SPRING GDN ST","Spring Garden St 6.6kV"]
[642963,"FANNY HS SW STN/FANNY HS PV","WESTGATE","Westgate"]
[641979,"GASHOLDER","WESTGATE","Westgate"]
[641830,"DEVONSHIRE RD","WESTGATE","Westgate"]
[641977,"REGENT LEISURE PK","WESTGATE","Westgate"]
[641812,"FANNY HS FM WF/FANNY HS SW STN/FANNY H","WESTGATE","Westgate"]
[642949,"FANNY HS FM WF/FANNY HS SW STN/FANNY H","WESTGATE","Westgate"]
[641888,"MORECAMBE MARKET/WEST END RD/MORRISONS","WOODHILL LN","Woodhill Lane"]
[641135,"TARNWATER/BT CELL 012542","BURROW BECK","Burrow Beck"]
[641449,"TARNWATER/BT CELL 012542","BURROW BECK","Burrow Beck"]
[643225,"TARNWATER/BT CELL 012542","BURROW BECK","Burrow Beck"]
[641204,"BAILRIGG","BURROW BECK","Burrow Beck"]
[643460,"BAILRIGG","BURROW BECK","Burrow Beck"]
[641190,"BAILRIGG LN END","BURROW BECK","Burrow Beck"]
[641207,"BAILRIGG LN END","BURROW BECK","Burrow Beck"]
[641484,"BAILRIGG LN END","BURROW BECK","Burrow Beck"]
[643124,"BAILRIGG LN END","BURROW BECK","Burrow Beck"]
[643392,"BAILRIGG LN END","BURROW BECK","Burrow Beck"]
[641318,"WHINNEY CARR","BURROW BECK","Burrow Beck"]
[642253,"BROCKHOLES WAY/PRESTON OLD RD/WESTFIEL","CATTERALL WATER WKS","Catterall Waterworks"]
[642962,"PARKLANDS/CATTERALL LN/BE/COCK ROBIN","CATTERALL WATER WKS","Catterall Waterworks"]
[410391,"MYERSCOUGH","CATTERALL WATER WKS","Catterall Waterworks"]
[651103,"BURTON SW STN","YEALAND","Yealand"]
[651310,"BURTON SW STN","YEALAND","Yealand"]
[643010,"PINE LK/WELL LN/YEALAND MANOR","YEALAND","Yealand"]
[643061,"PINE LK/WELL LN/YEALAND MANOR","YEALAND","Yealand"]
[643325,"PINE LK/WELL LN/YEALAND MANOR","YEALAND","Yealand"]
[643326,"PINE LK/WELL LN/YEALAND MANOR","YEALAND","Yealand"]
[649465,"N.E.L CONST SITE SW STN/CCG HEYSHAM/","TRIMPELL (CONS)","Trimpell"]
[649169,"EDMONDSONS","TRIMPELL (CONS)","Trimpell"]
[643165,"CLAUGHTON VILLAGE/BE","CLAUGHTON","Claughton"]
[641270,"CLAUGHTON MANOR WKS/LV SUPPLY","CLAUGHTON","Claughton"]
[643209,"CLAUGHTON MANOR WKS/LV SUPPLY","CLAUGHTON","Claughton"]
[642019,"LITTLE TONGUES LN","PREESALL","Preesall"]
[642438,"LITTLE TONGUES LN","PREESALL","Preesall"]
[642093,"SMITHY LN","PREESALL","Preesall"]
[642071,"MONKS LN ABS/HEIGHTS ABS","PREESALL","Preesall"]
[642407,"MONKS LN ABS/HEIGHTS ABS","PREESALL","Preesall"]
[642015,"PILLING STN","PREESALL","Preesall"]
[642056,"PILLING STN","PREESALL","Preesall"]
[642138,"PILLING STN","PREESALL","Preesall"]
[642007,"TREE FM ABS/CARR BRIDGE ABS/COLD ROW","PREESALL","Preesall"]
[642092,"TREE FM ABS/CARR BRIDGE ABS/COLD ROW","PREESALL","Preesall"]
[642261,"TREE FM ABS/CARR BRIDGE ABS/COLD ROW","PREESALL","Preesall"]
[642322,"TREE FM ABS/CARR BRIDGE ABS/COLD ROW","PREESALL","Preesall"]
[642483,"TREE FM ABS/CARR BRIDGE ABS/COLD ROW","PREESALL","Preesall"]
[641088,"EX MELLING HALL","MELLING","Melling"]
[641236,"EX MELLING HALL","MELLING","Melling"]
[641297,"EX MELLING HALL","MELLING","Melling"]
[641312,"EX MELLING HALL","MELLING","Melling"]
[641363,"EX MELLING HALL","MELLING","Melling"]
[641441,"EX MELLING HALL","MELLING","Melling"]
[643191,"EX MELLING HALL","MELLING","Melling"]
[641046,"EX WRAYTON/MELLING LOCAL","MELLING","Melling"]
[641542,"EX WRAYTON/MELLING LOCAL","MELLING","Melling"]
[642674,"GALLABER PK CARAVAN SITE","FLAT LN","Flat Lane"]
[644355,"GALLABER PK CARAVAN SITE","FLAT LN","Flat Lane"]
[644887,"GALLABER PK CARAVAN SITE","FLAT LN","Flat Lane"]
[644042,"FLAT LN RMU","FLAT LN","Flat Lane"]
[644203,"FLAT LN RMU","FLAT LN","Flat Lane"]
[644651,"FLAT LN RMU","FLAT LN","Flat Lane"]
[644802,"FLAT LN RMU","FLAT LN","Flat Lane"]
[644259,"THE BORRINS ABS","FLAT LN","Flat Lane"]
[644924,"THE BORRINS ABS","FLAT LN","Flat Lane"]
[652526,"THE BORRINS ABS","FLAT LN","Flat Lane"]
[644095,"SANDHOLME ABS","FLAT LN","Flat Lane"]
[644106,"SANDHOLME ABS","FLAT LN","Flat Lane"]
[644154,"SANDHOLME ABS","FLAT LN","Flat Lane"]
[644171,"SANDHOLME ABS","FLAT LN","Flat Lane"]
[644280,"SANDHOLME ABS","FLAT LN","Flat Lane"]
[644281,"SANDHOLME ABS","FLAT LN","Flat Lane"]
[644289,"SANDHOLME ABS","FLAT LN","Flat Lane"]
[644375,"SANDHOLME ABS","FLAT LN","Flat Lane"]
[644412,"SANDHOLME ABS","FLAT LN","Flat Lane"]
[644447,"SANDHOLME ABS","FLAT LN","Flat Lane"]
[644450,"SANDHOLME ABS","FLAT LN","Flat Lane"]
[644452,"SANDHOLME ABS","FLAT LN","Flat Lane"]
[644483,"SANDHOLME ABS","FLAT LN","Flat Lane"]
[644538,"SANDHOLME ABS","FLAT LN","Flat Lane"]
[644568,"SANDHOLME ABS","FLAT LN","Flat Lane"]
[644584,"SANDHOLME ABS","FLAT LN","Flat Lane"]
[644589,"SANDHOLME ABS","FLAT LN","Flat Lane"]
[644590,"SANDHOLME ABS","FLAT LN","Flat Lane"]
[644598,"SANDHOLME ABS","FLAT LN","Flat Lane"]
[644606,"SANDHOLME ABS","FLAT LN","Flat Lane"]
[644633,"SANDHOLME ABS","FLAT LN","Flat Lane"]
[644634,"SANDHOLME ABS","FLAT LN","Flat Lane"]
[644637,"SANDHOLME ABS","FLAT LN","Flat Lane"]
[644649,"SANDHOLME ABS","FLAT LN","Flat Lane"]
[644660,"SANDHOLME ABS","FLAT LN","Flat Lane"]
[644666,"SANDHOLME ABS","FLAT LN","Flat Lane"]
[644685,"SANDHOLME ABS","FLAT LN","Flat Lane"]
[644701,"SANDHOLME ABS","FLAT LN","Flat Lane"]
[644702,"SANDHOLME ABS","FLAT LN","Flat Lane"]
[644762,"SANDHOLME ABS","FLAT LN","Flat Lane"]
[644768,"SANDHOLME ABS","FLAT LN","Flat Lane"]
[644772,"SANDHOLME ABS","FLAT LN","Flat Lane"]
[644815,"SANDHOLME ABS","FLAT LN","Flat Lane"]
[644828,"SANDHOLME ABS","FLAT LN","Flat Lane"]
[644841,"SANDHOLME ABS","FLAT LN","Flat Lane"]
[644843,"SANDHOLME ABS","FLAT LN","Flat Lane"]
[644874,"SANDHOLME ABS","FLAT LN","Flat Lane"]
[644902,"SANDHOLME ABS","FLAT LN","Flat Lane"]
[644940,"SANDHOLME ABS","FLAT LN","Flat Lane"]
[644951,"SANDHOLME ABS","FLAT LN","Flat Lane"]
[644969,"SANDHOLME ABS","FLAT LN","Flat Lane"]
[644971,"SANDHOLME ABS","FLAT LN","Flat Lane"]
[644988,"SANDHOLME ABS","FLAT LN","Flat Lane"]
[652321,"SANDHOLME ABS","FLAT LN","Flat Lane"]
[652325,"SANDHOLME ABS","FLAT LN","Flat Lane"]
[652353,"SANDHOLME ABS","FLAT LN","Flat Lane"]
[652362,"SANDHOLME ABS","FLAT LN","Flat Lane"]
[652417,"SANDHOLME ABS","FLAT LN","Flat Lane"]
[652418,"SANDHOLME ABS","FLAT LN","Flat Lane"]
[652419,"SANDHOLME ABS","FLAT LN","Flat Lane"]
[652420,"SANDHOLME ABS","FLAT LN","Flat Lane"]
[652421,"SANDHOLME ABS","FLAT LN","Flat Lane"]
[652512,"SANDHOLME ABS","FLAT LN","Flat Lane"]
[652538,"SANDHOLME ABS","FLAT LN","Flat Lane"]
[652539,"SANDHOLME ABS","FLAT LN","Flat Lane"]
[652699,"SANDHOLME ABS","FLAT LN","Flat Lane"]
[652866,"SANDHOLME ABS","FLAT LN","Flat Lane"]
[652886,"SANDHOLME ABS","FLAT LN","Flat Lane"]
[653477,"SANDHOLME ABS","FLAT LN","Flat Lane"]
[656428,"SANDHOLME ABS","FLAT LN","Flat Lane"]
[659187,"SANDHOLME ABS","FLAT LN","Flat Lane"]
[659334,"SANDHOLME ABS","FLAT LN","Flat Lane"]
[644027,"SETTLE CREAMERY/PROSPECT TERR","SETTLE","Settle"]
[644057,"SETTLE CREAMERY/PROSPECT TERR","SETTLE","Settle"]
[659020,"SETTLE CREAMERY/PROSPECT TERR","SETTLE","Settle"]
[659021,"SETTLE CREAMERY/PROSPECT TERR","SETTLE","Settle"]
[659165,"SETTLE CREAMERY/PROSPECT TERR","SETTLE","Settle"]
[644004,"BELL HILL","SETTLE","Settle"]
[644029,"BELL HILL","SETTLE","Settle"]
[644044,"BELL HILL","SETTLE","Settle"]
[644050,"BELL HILL","SETTLE","Settle"]
[644114,"BELL HILL","SETTLE","Settle"]
[644228,"BELL HILL","SETTLE","Settle"]
[644236,"BELL HILL","SETTLE","Settle"]
[644241,"BELL HILL","SETTLE","Settle"]
[644243,"BELL HILL","SETTLE","Settle"]
[644252,"BELL HILL","SETTLE","Settle"]
[644308,"BELL HILL","SETTLE","Settle"]
[644310,"BELL HILL","SETTLE","Settle"]
[644312,"BELL HILL","SETTLE","Settle"]
[644336,"BELL HILL","SETTLE","Settle"]
[644394,"BELL HILL","SETTLE","Settle"]
[644395,"BELL HILL","SETTLE","Settle"]
[644396,"BELL HILL","SETTLE","Settle"]
[644566,"BELL HILL","SETTLE","Settle"]
[644708,"BELL HILL","SETTLE","Settle"]
[644748,"BELL HILL","SETTLE","Settle"]
[644753,"BELL HILL","SETTLE","Settle"]
[644757,"BELL HILL","SETTLE","Settle"]
[644919,"BELL HILL","SETTLE","Settle"]
[644920,"BELL HILL","SETTLE","Settle"]
[644946,"BELL HILL","SETTLE","Settle"]
[644950,"BELL HILL","SETTLE","Settle"]
[649418,"BELL HILL","SETTLE","Settle"]
[652372,"BELL HILL","SETTLE","Settle"]
[652544,"BELL HILL","SETTLE","Settle"]
[652645,"BELL HILL","SETTLE","Settle"]
[652659,"BELL HILL","SETTLE","Settle"]
[652718,"BELL HILL","SETTLE","Settle"]
[642773,"CHAPEL ST","SETTLE","Settle"]
[644003,"CHAPEL ST","SETTLE","Settle"]
[644012,"CHAPEL ST","SETTLE","Settle"]
[644036,"CHAPEL ST","SETTLE","Settle"]
[644045,"CHAPEL ST","SETTLE","Settle"]
[644059,"CHAPEL ST","SETTLE","Settle"]
[644639,"CHAPEL ST","SETTLE","Settle"]
[644749,"CHAPEL ST","SETTLE","Settle"]
[652891,"CHAPEL ST","SETTLE","Settle"]
[644021,"STATION RD/SOWARTH FIELD","SETTLE","Settle"]
[644051,"STATION RD/SOWARTH FIELD","SETTLE","Settle"]
[644058,"STATION RD/SOWARTH FIELD","SETTLE","Settle"]
[644024,"MILL CL","SETTLE","Settle"]
[644028,"MILL CL","SETTLE","Settle"]
[644167,"MILL CL","SETTLE","Settle"]
[644205,"MILL CL","SETTLE","Settle"]
[644206,"MILL CL","SETTLE","Settle"]
[644506,"MILL CL","SETTLE","Settle"]
[644657,"MILL CL","SETTLE","Settle"]
[644667,"MILL CL","SETTLE","Settle"]
[644791,"MILL CL","SETTLE","Settle"]
[644958,"MILL CL","SETTLE","Settle"]
[652873,"MILL CL","SETTLE","Settle"]
[644007,"GOODENBER RD/VALE VIEW","BENTHAM","Bentham"]
[644015,"GOODENBER RD/VALE VIEW","BENTHAM","Bentham"]
[644031,"GOODENBER RD/VALE VIEW","BENTHAM","Bentham"]
[644032,"GOODENBER RD/VALE VIEW","BENTHAM","Bentham"]
[644033,"GOODENBER RD/VALE VIEW","BENTHAM","Bentham"]
[644290,"GOODENBER RD/VALE VIEW","BENTHAM","Bentham"]
[644296,"GOODENBER RD/VALE VIEW","BENTHAM","Bentham"]
[644333,"GOODENBER RD/VALE VIEW","BENTHAM","Bentham"]
[644334,"GOODENBER RD/VALE VIEW","BENTHAM","Bentham"]
[644531,"GOODENBER RD/VALE VIEW","BENTHAM","Bentham"]
[644622,"GOODENBER RD/VALE VIEW","BENTHAM","Bentham"]
[644623,"GOODENBER RD/VALE VIEW","BENTHAM","Bentham"]
[644735,"GOODENBER RD/VALE VIEW","BENTHAM","Bentham"]
[644754,"GOODENBER RD/VALE VIEW","BENTHAM","Bentham"]
[644820,"GOODENBER RD/VALE VIEW","BENTHAM","Bentham"]
[644878,"GOODENBER RD/VALE VIEW","BENTHAM","Bentham"]
[644916,"GOODENBER RD/VALE VIEW","BENTHAM","Bentham"]
[644967,"GOODENBER RD/VALE VIEW","BENTHAM","Bentham"]
[652474,"GOODENBER RD/VALE VIEW","BENTHAM","Bentham"]
[652476,"GOODENBER RD/VALE VIEW","BENTHAM","Bentham"]
[656401,"GOODENBER RD/VALE VIEW","BENTHAM","Bentham"]
[656407,"GOODENBER RD/VALE VIEW","BENTHAM","Bentham"]
[659470,"GOODENBER RD/VALE VIEW","BENTHAM","Bentham"]
[644008,"LOW BENTHAM SOLAR FM PV/DIXONS FOLLY","BENTHAM","Bentham"]
[644056,"LOW BENTHAM SOLAR FM PV/DIXONS FOLLY","BENTHAM","Bentham"]
[644109,"LOW BENTHAM SOLAR FM PV/DIXONS FOLLY","BENTHAM","Bentham"]
[644181,"LOW BENTHAM SOLAR FM PV/DIXONS FOLLY","BENTHAM","Bentham"]
[644183,"LOW BENTHAM SOLAR FM PV/DIXONS FOLLY","BENTHAM","Bentham"]
[644226,"LOW BENTHAM SOLAR FM PV/DIXONS FOLLY","BENTHAM","Bentham"]
[644240,"LOW BENTHAM SOLAR FM PV/DIXONS FOLLY","BENTHAM","Bentham"]
[644244,"LOW BENTHAM SOLAR FM PV/DIXONS FOLLY","BENTHAM","Bentham"]
[644247,"LOW BENTHAM SOLAR FM PV/DIXONS FOLLY","BENTHAM","Bentham"]
[644266,"LOW BENTHAM SOLAR FM PV/DIXONS FOLLY","BENTHAM","Bentham"]
[644303,"LOW BENTHAM SOLAR FM PV/DIXONS FOLLY","BENTHAM","Bentham"]
[644304,"LOW BENTHAM SOLAR FM PV/DIXONS FOLLY","BENTHAM","Bentham"]
[644305,"LOW BENTHAM SOLAR FM PV/DIXONS FOLLY","BENTHAM","Bentham"]
[644306,"LOW BENTHAM SOLAR FM PV/DIXONS FOLLY","BENTHAM","Bentham"]
[644329,"LOW BENTHAM SOLAR FM PV/DIXONS FOLLY","BENTHAM","Bentham"]
[644338,"LOW BENTHAM SOLAR FM PV/DIXONS FOLLY","BENTHAM","Bentham"]
[644356,"LOW BENTHAM SOLAR FM PV/DIXONS FOLLY","BENTHAM","Bentham"]
[644411,"LOW BENTHAM SOLAR FM PV/DIXONS FOLLY","BENTHAM","Bentham"]
[644417,"LOW BENTHAM SOLAR FM PV/DIXONS FOLLY","BENTHAM","Bentham"]
[644418,"LOW BENTHAM SOLAR FM PV/DIXONS FOLLY","BENTHAM","Bentham"]
[644419,"LOW BENTHAM SOLAR FM PV/DIXONS FOLLY","BENTHAM","Bentham"]
[644420,"LOW BENTHAM SOLAR FM PV/DIXONS FOLLY","BENTHAM","Bentham"]
[644578,"LOW BENTHAM SOLAR FM PV/DIXONS FOLLY","BENTHAM","Bentham"]
[644665,"LOW BENTHAM SOLAR FM PV/DIXONS FOLLY","BENTHAM","Bentham"]
[644738,"LOW BENTHAM SOLAR FM PV/DIXONS FOLLY","BENTHAM","Bentham"]
[644740,"LOW BENTHAM SOLAR FM PV/DIXONS FOLLY","BENTHAM","Bentham"]
[644741,"LOW BENTHAM SOLAR FM PV/DIXONS FOLLY","BENTHAM","Bentham"]
[644743,"LOW BENTHAM SOLAR FM PV/DIXONS FOLLY","BENTHAM","Bentham"]
[644745,"LOW BENTHAM SOLAR FM PV/DIXONS FOLLY","BENTHAM","Bentham"]
[644746,"LOW BENTHAM SOLAR FM PV/DIXONS FOLLY","BENTHAM","Bentham"]
[644760,"LOW BENTHAM SOLAR FM PV/DIXONS FOLLY","BENTHAM","Bentham"]
[644761,"LOW BENTHAM SOLAR FM PV/DIXONS FOLLY","BENTHAM","Bentham"]
[644794,"LOW BENTHAM SOLAR FM PV/DIXONS FOLLY","BENTHAM","Bentham"]
[644804,"LOW BENTHAM SOLAR FM PV/DIXONS FOLLY","BENTHAM","Bentham"]
[644813,"LOW BENTHAM SOLAR FM PV/DIXONS FOLLY","BENTHAM","Bentham"]
[644853,"LOW BENTHAM SOLAR FM PV/DIXONS FOLLY","BENTHAM","Bentham"]
[644868,"LOW BENTHAM SOLAR FM PV/DIXONS FOLLY","BENTHAM","Bentham"]
[644869,"LOW BENTHAM SOLAR FM PV/DIXONS FOLLY","BENTHAM","Bentham"]
[644871,"LOW BENTHAM SOLAR FM PV/DIXONS FOLLY","BENTHAM","Bentham"]
[644918,"LOW BENTHAM SOLAR FM PV/DIXONS FOLLY","BENTHAM","Bentham"]
[652331,"LOW BENTHAM SOLAR FM PV/DIXONS FOLLY","BENTHAM","Bentham"]
[652345,"LOW BENTHAM SOLAR FM PV/DIXONS FOLLY","BENTHAM","Bentham"]
[652407,"LOW BENTHAM SOLAR FM PV/DIXONS FOLLY","BENTHAM","Bentham"]
[659066,"LOW BENTHAM SOLAR FM PV/DIXONS FOLLY","BENTHAM","Bentham"]
[656392,"BENTHAM LOCAL","BENTHAM","Bentham"]
[642738,"MOUNT PLEASANT/SANSBURY MOUNT","BENTHAM","Bentham"]
[644034,"MOUNT PLEASANT/SANSBURY MOUNT","BENTHAM","Bentham"]
[644049,"MOUNT PLEASANT/SANSBURY MOUNT","BENTHAM","Bentham"]
[644112,"MOUNT PLEASANT/SANSBURY MOUNT","BENTHAM","Bentham"]
[644126,"MOUNT PLEASANT/SANSBURY MOUNT","BENTHAM","Bentham"]
[644127,"MOUNT PLEASANT/SANSBURY MOUNT","BENTHAM","Bentham"]
[644158,"MOUNT PLEASANT/SANSBURY MOUNT","BENTHAM","Bentham"]
[644174,"MOUNT PLEASANT/SANSBURY MOUNT","BENTHAM","Bentham"]
[644213,"MOUNT PLEASANT/SANSBURY MOUNT","BENTHAM","Bentham"]
[644229,"MOUNT PLEASANT/SANSBURY MOUNT","BENTHAM","Bentham"]
[644315,"MOUNT PLEASANT/SANSBURY MOUNT","BENTHAM","Bentham"]
[644341,"MOUNT PLEASANT/SANSBURY MOUNT","BENTHAM","Bentham"]
[644342,"MOUNT PLEASANT/SANSBURY MOUNT","BENTHAM","Bentham"]
[644384,"MOUNT PLEASANT/SANSBURY MOUNT","BENTHAM","Bentham"]
[644385,"MOUNT PLEASANT/SANSBURY MOUNT","BENTHAM","Bentham"]
[644387,"MOUNT PLEASANT/SANSBURY MOUNT","BENTHAM","Bentham"]
[644388,"MOUNT PLEASANT/SANSBURY MOUNT","BENTHAM","Bentham"]
[644410,"MOUNT PLEASANT/SANSBURY MOUNT","BENTHAM","Bentham"]
[644429,"MOUNT PLEASANT/SANSBURY MOUNT","BENTHAM","Bentham"]
[644431,"MOUNT PLEASANT/SANSBURY MOUNT","BENTHAM","Bentham"]
[644432,"MOUNT PLEASANT/SANSBURY MOUNT","BENTHAM","Bentham"]
[644433,"MOUNT PLEASANT/SANSBURY MOUNT","BENTHAM","Bentham"]
[644434,"MOUNT PLEASANT/SANSBURY MOUNT","BENTHAM","Bentham"]
[644435,"MOUNT PLEASANT/SANSBURY MOUNT","BENTHAM","Bentham"]
[644436,"MOUNT PLEASANT/SANSBURY MOUNT","BENTHAM","Bentham"]
[644439,"MOUNT PLEASANT/SANSBURY MOUNT","BENTHAM","Bentham"]
[644441,"MOUNT PLEASANT/SANSBURY MOUNT","BENTHAM","Bentham"]
[644442,"MOUNT PLEASANT/SANSBURY MOUNT","BENTHAM","Bentham"]
[644443,"MOUNT PLEASANT/SANSBURY MOUNT","BENTHAM","Bentham"]
[644444,"MOUNT PLEASANT/SANSBURY MOUNT","BENTHAM","Bentham"]
[644445,"MOUNT PLEASANT/SANSBURY MOUNT","BENTHAM","Bentham"]
[644462,"MOUNT PLEASANT/SANSBURY MOUNT","BENTHAM","Bentham"]
[644463,"MOUNT PLEASANT/SANSBURY MOUNT","BENTHAM","Bentham"]
[644466,"MOUNT PLEASANT/SANSBURY MOUNT","BENTHAM","Bentham"]
[644471,"MOUNT PLEASANT/SANSBURY MOUNT","BENTHAM","Bentham"]
[644588,"MOUNT PLEASANT/SANSBURY MOUNT","BENTHAM","Bentham"]
[644592,"MOUNT PLEASANT/SANSBURY MOUNT","BENTHAM","Bentham"]
[644593,"MOUNT PLEASANT/SANSBURY MOUNT","BENTHAM","Bentham"]
[644596,"MOUNT PLEASANT/SANSBURY MOUNT","BENTHAM","Bentham"]
[644608,"MOUNT PLEASANT/SANSBURY MOUNT","BENTHAM","Bentham"]
[644609,"MOUNT PLEASANT/SANSBURY MOUNT","BENTHAM","Bentham"]
[644610,"MOUNT PLEASANT/SANSBURY MOUNT","BENTHAM","Bentham"]
[644611,"MOUNT PLEASANT/SANSBURY MOUNT","BENTHAM","Bentham"]
[644612,"MOUNT PLEASANT/SANSBURY MOUNT","BENTHAM","Bentham"]
[644613,"MOUNT PLEASANT/SANSBURY MOUNT","BENTHAM","Bentham"]
[644631,"MOUNT PLEASANT/SANSBURY MOUNT","BENTHAM","Bentham"]
[644706,"MOUNT PLEASANT/SANSBURY MOUNT","BENTHAM","Bentham"]
[644726,"MOUNT PLEASANT/SANSBURY MOUNT","BENTHAM","Bentham"]
[644734,"MOUNT PLEASANT/SANSBURY MOUNT","BENTHAM","Bentham"]
[644793,"MOUNT PLEASANT/SANSBURY MOUNT","BENTHAM","Bentham"]
[644833,"MOUNT PLEASANT/SANSBURY MOUNT","BENTHAM","Bentham"]
[644836,"MOUNT PLEASANT/SANSBURY MOUNT","BENTHAM","Bentham"]
[644847,"MOUNT PLEASANT/SANSBURY MOUNT","BENTHAM","Bentham"]
[644870,"MOUNT PLEASANT/SANSBURY MOUNT","BENTHAM","Bentham"]
[644880,"MOUNT PLEASANT/SANSBURY MOUNT","BENTHAM","Bentham"]
[644905,"MOUNT PLEASANT/SANSBURY MOUNT","BENTHAM","Bentham"]
[644960,"MOUNT PLEASANT/SANSBURY MOUNT","BENTHAM","Bentham"]
[644961,"MOUNT PLEASANT/SANSBURY MOUNT","BENTHAM","Bentham"]
[644974,"MOUNT PLEASANT/SANSBURY MOUNT","BENTHAM","Bentham"]
[644975,"MOUNT PLEASANT/SANSBURY MOUNT","BENTHAM","Bentham"]
[644995,"MOUNT PLEASANT/SANSBURY MOUNT","BENTHAM","Bentham"]
[644997,"MOUNT PLEASANT/SANSBURY MOUNT","BENTHAM","Bentham"]
[649139,"MOUNT PLEASANT/SANSBURY MOUNT","BENTHAM","Bentham"]
[649140,"MOUNT PLEASANT/SANSBURY MOUNT","BENTHAM","Bentham"]
[649141,"MOUNT PLEASANT/SANSBURY MOUNT","BENTHAM","Bentham"]
[650771,"MOUNT PLEASANT/SANSBURY MOUNT","BENTHAM","Bentham"]
[652327,"MOUNT PLEASANT/SANSBURY MOUNT","BENTHAM","Bentham"]
[652401,"MOUNT PLEASANT/SANSBURY MOUNT","BENTHAM","Bentham"]
[652402,"MOUNT PLEASANT/SANSBURY MOUNT","BENTHAM","Bentham"]
[652414,"MOUNT PLEASANT/SANSBURY MOUNT","BENTHAM","Bentham"]
[652424,"MOUNT PLEASANT/SANSBURY MOUNT","BENTHAM","Bentham"]
[652426,"MOUNT PLEASANT/SANSBURY MOUNT","BENTHAM","Bentham"]
[659186,"MOUNT PLEASANT/SANSBURY MOUNT","BENTHAM","Bentham"]
[642670,"BENTHAM GOLF CLUB","BENTHAM","Bentham"]
[644186,"BENTHAM GOLF CLUB","BENTHAM","Bentham"]
[644187,"BENTHAM GOLF CLUB","BENTHAM","Bentham"]
[644190,"BENTHAM GOLF CLUB","BENTHAM","Bentham"]
[644191,"BENTHAM GOLF CLUB","BENTHAM","Bentham"]
[644192,"BENTHAM GOLF CLUB","BENTHAM","Bentham"]
[644227,"BENTHAM GOLF CLUB","BENTHAM","Bentham"]
[644245,"BENTHAM GOLF CLUB","BENTHAM","Bentham"]
[644262,"BENTHAM GOLF CLUB","BENTHAM","Bentham"]
[644288,"BENTHAM GOLF CLUB","BENTHAM","Bentham"]
[644330,"BENTHAM GOLF CLUB","BENTHAM","Bentham"]
[644349,"BENTHAM GOLF CLUB","BENTHAM","Bentham"]
[644350,"BENTHAM GOLF CLUB","BENTHAM","Bentham"]
[644352,"BENTHAM GOLF CLUB","BENTHAM","Bentham"]
[644353,"BENTHAM GOLF CLUB","BENTHAM","Bentham"]
[644354,"BENTHAM GOLF CLUB","BENTHAM","Bentham"]
[644380,"BENTHAM GOLF CLUB","BENTHAM","Bentham"]
[644512,"BENTHAM GOLF CLUB","BENTHAM","Bentham"]
[644513,"BENTHAM GOLF CLUB","BENTHAM","Bentham"]
[644579,"BENTHAM GOLF CLUB","BENTHAM","Bentham"]
[644580,"BENTHAM GOLF CLUB","BENTHAM","Bentham"]
[644620,"BENTHAM GOLF CLUB","BENTHAM","Bentham"]
[644654,"BENTHAM GOLF CLUB","BENTHAM","Bentham"]
[644655,"BENTHAM GOLF CLUB","BENTHAM","Bentham"]
[644688,"BENTHAM GOLF CLUB","BENTHAM","Bentham"]
[644763,"BENTHAM GOLF CLUB","BENTHAM","Bentham"]
[644842,"BENTHAM GOLF CLUB","BENTHAM","Bentham"]
[644909,"BENTHAM GOLF CLUB","BENTHAM","Bentham"]
[644917,"BENTHAM GOLF CLUB","BENTHAM","Bentham"]
[644921,"BENTHAM GOLF CLUB","BENTHAM","Bentham"]
[644956,"BENTHAM GOLF CLUB","BENTHAM","Bentham"]
[650013,"BENTHAM GOLF CLUB","BENTHAM","Bentham"]
[652349,"BENTHAM GOLF CLUB","BENTHAM","Bentham"]
[652422,"BENTHAM GOLF CLUB","BENTHAM","Bentham"]
[652470,"BENTHAM GOLF CLUB","BENTHAM","Bentham"]
[652877,"BENTHAM GOLF CLUB","BENTHAM","Bentham"]
[652920,"BENTHAM GOLF CLUB","BENTHAM","Bentham"]
[659170,"BENTHAM GOLF CLUB","BENTHAM","Bentham"]
[644019,"INGLETON INDUSTRIAL","INGLETON","Ingleton"]
[644020,"INGLETON INDUSTRIAL","INGLETON","Ingleton"]
[644037,"INGLETON INDUSTRIAL","INGLETON","Ingleton"]
[644038,"INGLETON INDUSTRIAL","INGLETON","Ingleton"]
[644040,"INGLETON INDUSTRIAL","INGLETON","Ingleton"]
[644054,"INGLETON INDUSTRIAL","INGLETON","Ingleton"]
[644248,"INGLETON INDUSTRIAL","INGLETON","Ingleton"]
[644321,"INGLETON INDUSTRIAL","INGLETON","Ingleton"]
[644495,"INGLETON INDUSTRIAL","INGLETON","Ingleton"]
[644496,"INGLETON INDUSTRIAL","INGLETON","Ingleton"]
[644497,"INGLETON INDUSTRIAL","INGLETON","Ingleton"]
[644498,"INGLETON INDUSTRIAL","INGLETON","Ingleton"]
[644499,"INGLETON INDUSTRIAL","INGLETON","Ingleton"]
[644500,"INGLETON INDUSTRIAL","INGLETON","Ingleton"]
[644501,"INGLETON INDUSTRIAL","INGLETON","Ingleton"]
[644502,"INGLETON INDUSTRIAL","INGLETON","Ingleton"]
[644503,"INGLETON INDUSTRIAL","INGLETON","Ingleton"]
[644504,"INGLETON INDUSTRIAL","INGLETON","Ingleton"]
[644508,"INGLETON INDUSTRIAL","INGLETON","Ingleton"]
[644509,"INGLETON INDUSTRIAL","INGLETON","Ingleton"]
[644510,"INGLETON INDUSTRIAL","INGLETON","Ingleton"]
[644511,"INGLETON INDUSTRIAL","INGLETON","Ingleton"]
[644539,"INGLETON INDUSTRIAL","INGLETON","Ingleton"]
[644544,"INGLETON INDUSTRIAL","INGLETON","Ingleton"]
[644547,"INGLETON INDUSTRIAL","INGLETON","Ingleton"]
[644548,"INGLETON INDUSTRIAL","INGLETON","Ingleton"]
[644549,"INGLETON INDUSTRIAL","INGLETON","Ingleton"]
[644756,"INGLETON INDUSTRIAL","INGLETON","Ingleton"]
[644827,"INGLETON INDUSTRIAL","INGLETON","Ingleton"]
[644896,"INGLETON INDUSTRIAL","INGLETON","Ingleton"]
[644922,"INGLETON INDUSTRIAL","INGLETON","Ingleton"]
[644931,"INGLETON INDUSTRIAL","INGLETON","Ingleton"]
[644963,"INGLETON INDUSTRIAL","INGLETON","Ingleton"]
[644972,"INGLETON INDUSTRIAL","INGLETON","Ingleton"]
[644982,"INGLETON INDUSTRIAL","INGLETON","Ingleton"]
[652322,"INGLETON INDUSTRIAL","INGLETON","Ingleton"]
[652408,"INGLETON INDUSTRIAL","INGLETON","Ingleton"]
[642636,"ENTER HS ABS/","INGLETON","Ingleton"]
[644048,"ENTER HS ABS/","INGLETON","Ingleton"]
[644128,"ENTER HS ABS/","INGLETON","Ingleton"]
[644276,"ENTER HS ABS/","INGLETON","Ingleton"]
[644277,"ENTER HS ABS/","INGLETON","Ingleton"]
[644278,"ENTER HS ABS/","INGLETON","Ingleton"]
[644325,"ENTER HS ABS/","INGLETON","Ingleton"]
[644326,"ENTER HS ABS/","INGLETON","Ingleton"]
[644328,"ENTER HS ABS/","INGLETON","Ingleton"]
[644407,"ENTER HS ABS/","INGLETON","Ingleton"]
[644409,"ENTER HS ABS/","INGLETON","Ingleton"]
[644428,"ENTER HS ABS/","INGLETON","Ingleton"]
[644492,"ENTER HS ABS/","INGLETON","Ingleton"]
[644493,"ENTER HS ABS/","INGLETON","Ingleton"]
[644494,"ENTER HS ABS/","INGLETON","Ingleton"]
[644522,"ENTER HS ABS/","INGLETON","Ingleton"]
[644523,"ENTER HS ABS/","INGLETON","Ingleton"]
[644529,"ENTER HS ABS/","INGLETON","Ingleton"]
[644551,"ENTER HS ABS/","INGLETON","Ingleton"]
[644554,"ENTER HS ABS/","INGLETON","Ingleton"]
[644555,"ENTER HS ABS/","INGLETON","Ingleton"]
[644556,"ENTER HS ABS/","INGLETON","Ingleton"]
[644576,"ENTER HS ABS/","INGLETON","Ingleton"]
[644577,"ENTER HS ABS/","INGLETON","Ingleton"]
[644629,"ENTER HS ABS/","INGLETON","Ingleton"]
[644803,"ENTER HS ABS/","INGLETON","Ingleton"]
[644822,"ENTER HS ABS/","INGLETON","Ingleton"]
[644990,"ENTER HS ABS/","INGLETON","Ingleton"]
[644993,"ENTER HS ABS/","INGLETON","Ingleton"]
[650933,"ENTER HS ABS/","INGLETON","Ingleton"]
[652334,"ENTER HS ABS/","INGLETON","Ingleton"]
[642599,"BEECH TERR ABS/BENTHAM RD ABS/","INGLETON","Ingleton"]
[642754,"BEECH TERR ABS/BENTHAM RD ABS/","INGLETON","Ingleton"]
[644170,"BEECH TERR ABS/BENTHAM RD ABS/","INGLETON","Ingleton"]
[644184,"BEECH TERR ABS/BENTHAM RD ABS/","INGLETON","Ingleton"]
[644217,"BEECH TERR ABS/BENTHAM RD ABS/","INGLETON","Ingleton"]
[644220,"BEECH TERR ABS/BENTHAM RD ABS/","INGLETON","Ingleton"]
[644237,"BEECH TERR ABS/BENTHAM RD ABS/","INGLETON","Ingleton"]
[644238,"BEECH TERR ABS/BENTHAM RD ABS/","INGLETON","Ingleton"]
[644242,"BEECH TERR ABS/BENTHAM RD ABS/","INGLETON","Ingleton"]
[644269,"BEECH TERR ABS/BENTHAM RD ABS/","INGLETON","Ingleton"]
[644272,"BEECH TERR ABS/BENTHAM RD ABS/","INGLETON","Ingleton"]
[644291,"BEECH TERR ABS/BENTHAM RD ABS/","INGLETON","Ingleton"]
[644301,"BEECH TERR ABS/BENTHAM RD ABS/","INGLETON","Ingleton"]
[644331,"BEECH TERR ABS/BENTHAM RD ABS/","INGLETON","Ingleton"]
[644357,"BEECH TERR ABS/BENTHAM RD ABS/","INGLETON","Ingleton"]
[644358,"BEECH TERR ABS/BENTHAM RD ABS/","INGLETON","Ingleton"]
[644359,"BEECH TERR ABS/BENTHAM RD ABS/","INGLETON","Ingleton"]
[644360,"BEECH TERR ABS/BENTHAM RD ABS/","INGLETON","Ingleton"]
[644361,"BEECH TERR ABS/BENTHAM RD ABS/","INGLETON","Ingleton"]
[644362,"BEECH TERR ABS/BENTHAM RD ABS/","INGLETON","Ingleton"]
[644364,"BEECH TERR ABS/BENTHAM RD ABS/","INGLETON","Ingleton"]
[644378,"BEECH TERR ABS/BENTHAM RD ABS/","INGLETON","Ingleton"]
[644379,"BEECH TERR ABS/BENTHAM RD ABS/","INGLETON","Ingleton"]
[644392,"BEECH TERR ABS/BENTHAM RD ABS/","INGLETON","Ingleton"]
[644413,"BEECH TERR ABS/BENTHAM RD ABS/","INGLETON","Ingleton"]
[644414,"BEECH TERR ABS/BENTHAM RD ABS/","INGLETON","Ingleton"]
[644514,"BEECH TERR ABS/BENTHAM RD ABS/","INGLETON","Ingleton"]
[644527,"BEECH TERR ABS/BENTHAM RD ABS/","INGLETON","Ingleton"]
[644585,"BEECH TERR ABS/BENTHAM RD ABS/","INGLETON","Ingleton"]
[644586,"BEECH TERR ABS/BENTHAM RD ABS/","INGLETON","Ingleton"]
[644587,"BEECH TERR ABS/BENTHAM RD ABS/","INGLETON","Ingleton"]
[644683,"BEECH TERR ABS/BENTHAM RD ABS/","INGLETON","Ingleton"]
[644697,"BEECH TERR ABS/BENTHAM RD ABS/","INGLETON","Ingleton"]
[644755,"BEECH TERR ABS/BENTHAM RD ABS/","INGLETON","Ingleton"]
[644849,"BEECH TERR ABS/BENTHAM RD ABS/","INGLETON","Ingleton"]
[644850,"BEECH TERR ABS/BENTHAM RD ABS/","INGLETON","Ingleton"]
[644852,"BEECH TERR ABS/BENTHAM RD ABS/","INGLETON","Ingleton"]
[644945,"BEECH TERR ABS/BENTHAM RD ABS/","INGLETON","Ingleton"]
[644979,"BEECH TERR ABS/BENTHAM RD ABS/","INGLETON","Ingleton"]
[652330,"BEECH TERR ABS/BENTHAM RD ABS/","INGLETON","Ingleton"]
[652423,"BEECH TERR ABS/BENTHAM RD ABS/","INGLETON","Ingleton"]
[652479,"BEECH TERR ABS/BENTHAM RD ABS/","INGLETON","Ingleton"]
[652535,"BEECH TERR ABS/BENTHAM RD ABS/","INGLETON","Ingleton"]
[659253,"BEECH TERR ABS/BENTHAM RD ABS/","INGLETON","Ingleton"]
[642730,"HORTON RD END ABS/HELWITH BR QUARRY AB","HELWITH BRIDGE","Helwith Bridge"]
[644000,"HORTON RD END ABS/HELWITH BR QUARRY AB","HELWITH BRIDGE","Helwith Bridge"]
[644025,"HORTON RD END ABS/HELWITH BR QUARRY AB","HELWITH BRIDGE","Helwith Bridge"]
[644039,"HORTON RD END ABS/HELWITH BR QUARRY AB","HELWITH BRIDGE","Helwith Bridge"]
[644194,"HORTON RD END ABS/HELWITH BR QUARRY AB","HELWITH BRIDGE","Helwith Bridge"]
[644195,"HORTON RD END ABS/HELWITH BR QUARRY AB","HELWITH BRIDGE","Helwith Bridge"]
[644197,"HORTON RD END ABS/HELWITH BR QUARRY AB","HELWITH BRIDGE","Helwith Bridge"]
[644198,"HORTON RD END ABS/HELWITH BR QUARRY AB","HELWITH BRIDGE","Helwith Bridge"]
[644200,"HORTON RD END ABS/HELWITH BR QUARRY AB","HELWITH BRIDGE","Helwith Bridge"]
[644202,"HORTON RD END ABS/HELWITH BR QUARRY AB","HELWITH BRIDGE","Helwith Bridge"]
[644204,"HORTON RD END ABS/HELWITH BR QUARRY AB","HELWITH BRIDGE","Helwith Bridge"]
[644214,"HORTON RD END ABS/HELWITH BR QUARRY AB","HELWITH BRIDGE","Helwith Bridge"]
[644233,"HORTON RD END ABS/HELWITH BR QUARRY AB","HELWITH BRIDGE","Helwith Bridge"]
[644265,"HORTON RD END ABS/HELWITH BR QUARRY AB","HELWITH BRIDGE","Helwith Bridge"]
[644399,"HORTON RD END ABS/HELWITH BR QUARRY AB","HELWITH BRIDGE","Helwith Bridge"]
[644400,"HORTON RD END ABS/HELWITH BR QUARRY AB","HELWITH BRIDGE","Helwith Bridge"]
[644401,"HORTON RD END ABS/HELWITH BR QUARRY AB","HELWITH BRIDGE","Helwith Bridge"]
[644402,"HORTON RD END ABS/HELWITH BR QUARRY AB","HELWITH BRIDGE","Helwith Bridge"]
[644405,"HORTON RD END ABS/HELWITH BR QUARRY AB","HELWITH BRIDGE","Helwith Bridge"]
[644474,"HORTON RD END ABS/HELWITH BR QUARRY AB","HELWITH BRIDGE","Helwith Bridge"]
[644475,"HORTON RD END ABS/HELWITH BR QUARRY AB","HELWITH BRIDGE","Helwith Bridge"]
[644476,"HORTON RD END ABS/HELWITH BR QUARRY AB","HELWITH BRIDGE","Helwith Bridge"]
[644477,"HORTON RD END ABS/HELWITH BR QUARRY AB","HELWITH BRIDGE","Helwith Bridge"]
[644478,"HORTON RD END ABS/HELWITH BR QUARRY AB","HELWITH BRIDGE","Helwith Bridge"]
[644479,"HORTON RD END ABS/HELWITH BR QUARRY AB","HELWITH BRIDGE","Helwith Bridge"]
[644480,"HORTON RD END ABS/HELWITH BR QUARRY AB","HELWITH BRIDGE","Helwith Bridge"]
[644481,"HORTON RD END ABS/HELWITH BR QUARRY AB","HELWITH BRIDGE","Helwith Bridge"]
[644486,"HORTON RD END ABS/HELWITH BR QUARRY AB","HELWITH BRIDGE","Helwith Bridge"]
[644533,"HORTON RD END ABS/HELWITH BR QUARRY AB","HELWITH BRIDGE","Helwith Bridge"]
[644534,"HORTON RD END ABS/HELWITH BR QUARRY AB","HELWITH BRIDGE","Helwith Bridge"]
[644535,"HORTON RD END ABS/HELWITH BR QUARRY AB","HELWITH BRIDGE","Helwith Bridge"]
[644536,"HORTON RD END ABS/HELWITH BR QUARRY AB","HELWITH BRIDGE","Helwith Bridge"]
[644545,"HORTON RD END ABS/HELWITH BR QUARRY AB","HELWITH BRIDGE","Helwith Bridge"]
[644546,"HORTON RD END ABS/HELWITH BR QUARRY AB","HELWITH BRIDGE","Helwith Bridge"]
[644559,"HORTON RD END ABS/HELWITH BR QUARRY AB","HELWITH BRIDGE","Helwith Bridge"]
[644562,"HORTON RD END ABS/HELWITH BR QUARRY AB","HELWITH BRIDGE","Helwith Bridge"]
[644632,"HORTON RD END ABS/HELWITH BR QUARRY AB","HELWITH BRIDGE","Helwith Bridge"]
[644643,"HORTON RD END ABS/HELWITH BR QUARRY AB","HELWITH BRIDGE","Helwith Bridge"]
[644652,"HORTON RD END ABS/HELWITH BR QUARRY AB","HELWITH BRIDGE","Helwith Bridge"]
[644653,"HORTON RD END ABS/HELWITH BR QUARRY AB","HELWITH BRIDGE","Helwith Bridge"]
[644669,"HORTON RD END ABS/HELWITH BR QUARRY AB","HELWITH BRIDGE","Helwith Bridge"]
[644670,"HORTON RD END ABS/HELWITH BR QUARRY AB","HELWITH BRIDGE","Helwith Bridge"]
[644703,"HORTON RD END ABS/HELWITH BR QUARRY AB","HELWITH BRIDGE","Helwith Bridge"]
[644737,"HORTON RD END ABS/HELWITH BR QUARRY AB","HELWITH BRIDGE","Helwith Bridge"]
[644739,"HORTON RD END ABS/HELWITH BR QUARRY AB","HELWITH BRIDGE","Helwith Bridge"]
[644744,"HORTON RD END ABS/HELWITH BR QUARRY AB","HELWITH BRIDGE","Helwith Bridge"]
[644747,"HORTON RD END ABS/HELWITH BR QUARRY AB","HELWITH BRIDGE","Helwith Bridge"]
[644765,"HORTON RD END ABS/HELWITH BR QUARRY AB","HELWITH BRIDGE","Helwith Bridge"]
[644799,"HORTON RD END ABS/HELWITH BR QUARRY AB","HELWITH BRIDGE","Helwith Bridge"]
[644806,"HORTON RD END ABS/HELWITH BR QUARRY AB","HELWITH BRIDGE","Helwith Bridge"]
[644885,"HORTON RD END ABS/HELWITH BR QUARRY AB","HELWITH BRIDGE","Helwith Bridge"]
[644891,"HORTON RD END ABS/HELWITH BR QUARRY AB","HELWITH BRIDGE","Helwith Bridge"]
[644897,"HORTON RD END ABS/HELWITH BR QUARRY AB","HELWITH BRIDGE","Helwith Bridge"]
[644899,"HORTON RD END ABS/HELWITH BR QUARRY AB","HELWITH BRIDGE","Helwith Bridge"]
[644973,"HORTON RD END ABS/HELWITH BR QUARRY AB","HELWITH BRIDGE","Helwith Bridge"]
[644980,"HORTON RD END ABS/HELWITH BR QUARRY AB","HELWITH BRIDGE","Helwith Bridge"]
[644986,"HORTON RD END ABS/HELWITH BR QUARRY AB","HELWITH BRIDGE","Helwith Bridge"]
[644987,"HORTON RD END ABS/HELWITH BR QUARRY AB","HELWITH BRIDGE","Helwith Bridge"]
[644996,"HORTON RD END ABS/HELWITH BR QUARRY AB","HELWITH BRIDGE","Helwith Bridge"]
[652404,"HORTON RD END ABS/HELWITH BR QUARRY AB","HELWITH BRIDGE","Helwith Bridge"]
[652412,"HORTON RD END ABS/HELWITH BR QUARRY AB","HELWITH BRIDGE","Helwith Bridge"]
[652413,"HORTON RD END ABS/HELWITH BR QUARRY AB","HELWITH BRIDGE","Helwith Bridge"]
[652454,"HORTON RD END ABS/HELWITH BR QUARRY AB","HELWITH BRIDGE","Helwith Bridge"]
[652457,"HORTON RD END ABS/HELWITH BR QUARRY AB","HELWITH BRIDGE","Helwith Bridge"]
[644006,"DRY RIGG QUARRY SW STN","HELWITH BRIDGE","Helwith Bridge"]
[644055,"DRY RIGG QUARRY SW STN","HELWITH BRIDGE","Helwith Bridge"]
[644177,"DRY RIGG QUARRY SW STN","HELWITH BRIDGE","Helwith Bridge"]
[644293,"DRY RIGG QUARRY SW STN","HELWITH BRIDGE","Helwith Bridge"]
[644294,"DRY RIGG QUARRY SW STN","HELWITH BRIDGE","Helwith Bridge"]
[644295,"DRY RIGG QUARRY SW STN","HELWITH BRIDGE","Helwith Bridge"]
[644467,"DRY RIGG QUARRY SW STN","HELWITH BRIDGE","Helwith Bridge"]
[644470,"DRY RIGG QUARRY SW STN","HELWITH BRIDGE","Helwith Bridge"]
[644557,"DRY RIGG QUARRY SW STN","HELWITH BRIDGE","Helwith Bridge"]
[644558,"DRY RIGG QUARRY SW STN","HELWITH BRIDGE","Helwith Bridge"]
[652346,"DRY RIGG QUARRY SW STN","HELWITH BRIDGE","Helwith Bridge"]
[652446,"DRY RIGG QUARRY SW STN","HELWITH BRIDGE","Helwith Bridge"]
[659012,"DRY RIGG QUARRY SW STN","HELWITH BRIDGE","Helwith Bridge"]
[659013,"DRY RIGG QUARRY SW STN","HELWITH BRIDGE","Helwith Bridge"]
[644022,"FOREDALE ABS","HELWITH BRIDGE","Helwith Bridge"]
[644223,"FOREDALE ABS","HELWITH BRIDGE","Helwith Bridge"]
[644235,"FOREDALE ABS","HELWITH BRIDGE","Helwith Bridge"]
[644264,"FOREDALE ABS","HELWITH BRIDGE","Helwith Bridge"]
[644939,"FOREDALE ABS","HELWITH BRIDGE","Helwith Bridge"]
[653469,"FOREDALE ABS","HELWITH BRIDGE","Helwith Bridge"]
[659019,"FOREDALE ABS","HELWITH BRIDGE","Helwith Bridge"]
[216712,"NoCircuit","NoPrimary",{"$error":"#N/A"}]
[310460,"NoCircuit","NoPrimary",{"$error":"#N/A"}]
[314384,"NoCircuit","NoPrimary",{"$error":"#N/A"}]
[418027,"NoCircuit","NoPrimary",{"$error":"#N/A"}]
["######"]